Workbook

Sheet สรุปชั่วโมงสอนต่อสัปดาห์ (hidden)
A1: สรุปชั่วโมงปฎิบัติงานรายสัปดาห์
K2: =IF(SUM(J5:J264)>0,"ตรวจสอบชั่วโมงสอนบางสัปดาห์","") -> 
A3: เลขบัตรประชาชน | B3: ปีการศึกษา | C3: ภาคเรียนที่ | D3: สัปดาห์ที่ | E3: จำนวนคาบ | H3: รวม | J3: Check | K3: Check
E4: ตามตารางสอน | F4: สนับสนุนการเรียนรู้ | G4: ตอบสนองนโยบายและจุดเน้น
A5: ='1.ข้อมูลส่วนบุคคล'!$F$5 -> 1234567891234 | B5: ='3.ชั่วโมงสอนตามตารางสอน'!B7 -> 1 | D5: 1 | E5: =SUMIF('3.ชั่วโมงสอนตามตารางสอน'!T$7:T$56,สรุปชั่วโมงสอนต่อสัปดาห์!I5,'3.ชั่วโมงสอนตามตารางสอน'!L$7:L$56) -> 8 | F5: =SUMIF('4.งานสนับสนุนการจัดการเรียนรู้'!#REF!,สรุปชั่วโมงสอนต่อสัปดาห์!I5,'4.งานสนับสนุนการจัดการเรียนรู้'!I$7:I$58) ->  | G5: =SUMIF('5.งานตอบสนองนโยบายและจุดเน้น'!#REF!,สรุปชั่วโมงสอนต่อสัปดาห์!I5,'5.งานตอบสนองนโยบายและจุดเน้น'!I$7:I$58) ->  | H5: =SUM(E5:G5) ->  | I5: =B5&+D5 -> 11 | J5: =IF(H5>ตัวแปร!C$37,1,"") ->  | K5: =IF(J5=1,"ตรวจสอบ","") -> 
A6: ='1.ข้อมูลส่วนบุคคล'!$F$5 -> 1234567891234 | B6: =IF(D5=52,B5+1,B5) -> 1 | D6: 2 | E6: =SUMIF('3.ชั่วโมงสอนตามตารางสอน'!T$7:T$56,สรุปชั่วโมงสอนต่อสัปดาห์!I6,'3.ชั่วโมงสอนตามตารางสอน'!L$7:L$56) -> 15 | F6: =SUMIF('4.งานสนับสนุนการจัดการเรียนรู้'!#REF!,สรุปชั่วโมงสอนต่อสัปดาห์!I6,'4.งานสนับสนุนการจัดการเรียนรู้'!I$7:I$58) ->  | G6: =SUMIF('5.งานตอบสนองนโยบายและจุดเน้น'!#REF!,สรุปชั่วโมงสอนต่อสัปดาห์!I6,'5.งานตอบสนองนโยบายและจุดเน้น'!I$7:I$58) ->  | H6: =SUM(E6:G6) ->  | I6: =B6&+D6 -> 12 | J6: =IF(H6>ตัวแปร!C$37,1,"") ->  | K6: =IF(J6=1,"ตรวจสอบ","") -> 
A7: ='1.ข้อมูลส่วนบุคคล'!$F$5 -> 1234567891234 | B7: =IF(D6=52,B6+1,B6) -> 1 | D7: 3 | E7: =SUMIF('3.ชั่วโมงสอนตามตารางสอน'!T$7:T$56,สรุปชั่วโมงสอนต่อสัปดาห์!I7,'3.ชั่วโมงสอนตามตารางสอน'!L$7:L$56) -> 15 | F7: =SUMIF('4.งานสนับสนุนการจัดการเรียนรู้'!#REF!,สรุปชั่วโมงสอนต่อสัปดาห์!I7,'4.งานสนับสนุนการจัดการเรียนรู้'!I$7:I$58) ->  | G7: =SUMIF('5.งานตอบสนองนโยบายและจุดเน้น'!#REF!,สรุปชั่วโมงสอนต่อสัปดาห์!I7,'5.งานตอบสนองนโยบายและจุดเน้น'!I$7:I$58) ->  | I7: 13 | J7: =IF(H7>ตัวแปร!C$37,1,"") -> 
A8: ='1.ข้อมูลส่วนบุคคล'!$F$5 -> 1234567891234 | B8: 1 | D8: 4 | E8: =SUMIF('3.ชั่วโมงสอนตามตารางสอน'!T$7:T$56,สรุปชั่วโมงสอนต่อสัปดาห์!I8,'3.ชั่วโมงสอนตามตารางสอน'!L$7:L$56) -> 15 | F8: =SUMIF('4.งานสนับสนุนการจัดการเรียนรู้'!#REF!,สรุปชั่วโมงสอนต่อสัปดาห์!I8,'4.งานสนับสนุนการจัดการเรียนรู้'!I$7:I$58) ->  | G8: =SUMIF('5.งานตอบสนองนโยบายและจุดเน้น'!#REF!,สรุปชั่วโมงสอนต่อสัปดาห์!I8,'5.งานตอบสนองนโยบายและจุดเน้น'!I$7:I$58) ->  | I8: 14 | J8: =IF(H8>ตัวแปร!C$37,1,"") -> 
A9: ='1.ข้อมูลส่วนบุคคล'!$F$5 -> 1234567891234 | B9: 1 | D9: 5 | E9: =SUMIF('3.ชั่วโมงสอนตามตารางสอน'!T$7:T$56,สรุปชั่วโมงสอนต่อสัปดาห์!I9,'3.ชั่วโมงสอนตามตารางสอน'!L$7:L$56) -> 20 | F9: =SUMIF('4.งานสนับสนุนการจัดการเรียนรู้'!#REF!,สรุปชั่วโมงสอนต่อสัปดาห์!I9,'4.งานสนับสนุนการจัดการเรียนรู้'!I$7:I$58) ->  | G9: =SUMIF('5.งานตอบสนองนโยบายและจุดเน้น'!#REF!,สรุปชั่วโมงสอนต่อสัปดาห์!I9,'5.งานตอบสนองนโยบายและจุดเน้น'!I$7:I$58) ->  | H9: =SUM(E9:G9) ->  | I9: 15 | J9: =IF(H9>ตัวแปร!C$37,1,"") -> 
A10: ='1.ข้อมูลส่วนบุคคล'!$F$5 -> 1234567891234 | B10: 1 | D10: 6 | E10: =SUMIF('3.ชั่วโมงสอนตามตารางสอน'!T$7:T$56,สรุปชั่วโมงสอนต่อสัปดาห์!I10,'3.ชั่วโมงสอนตามตารางสอน'!L$7:L$56) -> 0 | F10: =SUMIF('4.งานสนับสนุนการจัดการเรียนรู้'!#REF!,สรุปชั่วโมงสอนต่อสัปดาห์!I10,'4.งานสนับสนุนการจัดการเรียนรู้'!I$7:I$58) ->  | G10: =SUMIF('5.งานตอบสนองนโยบายและจุดเน้น'!#REF!,สรุปชั่วโมงสอนต่อสัปดาห์!I10,'5.งานตอบสนองนโยบายและจุดเน้น'!I$7:I$58) ->  | I10: 16 | J10: =IF(H10>ตัวแปร!C$37,1,"") -> 
A11: ='1.ข้อมูลส่วนบุคคล'!$F$5 -> 1234567891234 | B11: 1 | D11: 7 | E11: =SUMIF('3.ชั่วโมงสอนตามตารางสอน'!T$7:T$56,สรุปชั่วโมงสอนต่อสัปดาห์!I11,'3.ชั่วโมงสอนตามตารางสอน'!L$7:L$56) -> 0 | F11: =SUMIF('4.งานสนับสนุนการจัดการเรียนรู้'!#REF!,สรุปชั่วโมงสอนต่อสัปดาห์!I11,'4.งานสนับสนุนการจัดการเรียนรู้'!I$7:I$58) ->  | G11: =SUMIF('5.งานตอบสนองนโยบายและจุดเน้น'!#REF!,สรุปชั่วโมงสอนต่อสัปดาห์!I11,'5.งานตอบสนองนโยบายและจุดเน้น'!I$7:I$58) ->  | I11: 17 | J11: =IF(H11>ตัวแปร!C$37,1,"") -> 
A12: ='1.ข้อมูลส่วนบุคคล'!$F$5 -> 1234567891234 | B12: 1 | D12: 8 | E12: =SUMIF('3.ชั่วโมงสอนตามตารางสอน'!T$7:T$56,สรุปชั่วโมงสอนต่อสัปดาห์!I12,'3.ชั่วโมงสอนตามตารางสอน'!L$7:L$56) -> 0 | F12: =SUMIF('4.งานสนับสนุนการจัดการเรียนรู้'!#REF!,สรุปชั่วโมงสอนต่อสัปดาห์!I12,'4.งานสนับสนุนการจัดการเรียนรู้'!I$7:I$58) ->  | G12: =SUMIF('5.งานตอบสนองนโยบายและจุดเน้น'!#REF!,สรุปชั่วโมงสอนต่อสัปดาห์!I12,'5.งานตอบสนองนโยบายและจุดเน้น'!I$7:I$58) ->  | I12: 18 | J12: =IF(H12>ตัวแปร!C$37,1,"") -> 
A13: ='1.ข้อมูลส่วนบุคคล'!$F$5 -> 1234567891234 | B13: 1 | D13: 9 | E13: =SUMIF('3.ชั่วโมงสอนตามตารางสอน'!T$7:T$56,สรุปชั่วโมงสอนต่อสัปดาห์!I13,'3.ชั่วโมงสอนตามตารางสอน'!L$7:L$56) -> 0 | F13: =SUMIF('4.งานสนับสนุนการจัดการเรียนรู้'!#REF!,สรุปชั่วโมงสอนต่อสัปดาห์!I13,'4.งานสนับสนุนการจัดการเรียนรู้'!I$7:I$58) ->  | G13: =SUMIF('5.งานตอบสนองนโยบายและจุดเน้น'!#REF!,สรุปชั่วโมงสอนต่อสัปดาห์!I13,'5.งานตอบสนองนโยบายและจุดเน้น'!I$7:I$58) ->  | I13: 19 | J13: =IF(H13>ตัวแปร!C$37,1,"") -> 
A14: ='1.ข้อมูลส่วนบุคคล'!$F$5 -> 1234567891234 | B14: 1 | D14: 10 | E14: =SUMIF('3.ชั่วโมงสอนตามตารางสอน'!T$7:T$56,สรุปชั่วโมงสอนต่อสัปดาห์!I14,'3.ชั่วโมงสอนตามตารางสอน'!L$7:L$56) -> 0 | F14: =SUMIF('4.งานสนับสนุนการจัดการเรียนรู้'!#REF!,สรุปชั่วโมงสอนต่อสัปดาห์!I14,'4.งานสนับสนุนการจัดการเรียนรู้'!I$7:I$58) ->  | G14: =SUMIF('5.งานตอบสนองนโยบายและจุดเน้น'!#REF!,สรุปชั่วโมงสอนต่อสัปดาห์!I14,'5.งานตอบสนองนโยบายและจุดเน้น'!I$7:I$58) ->  | I14: 110 | J14: =IF(H14>ตัวแปร!C$37,1,"") -> 
A15: ='1.ข้อมูลส่วนบุคคล'!$F$5 -> 1234567891234 | B15: 1 | D15: 11 | E15: =SUMIF('3.ชั่วโมงสอนตามตารางสอน'!T$7:T$56,สรุปชั่วโมงสอนต่อสัปดาห์!I15,'3.ชั่วโมงสอนตามตารางสอน'!L$7:L$56) -> 0 | F15: =SUMIF('4.งานสนับสนุนการจัดการเรียนรู้'!#REF!,สรุปชั่วโมงสอนต่อสัปดาห์!I15,'4.งานสนับสนุนการจัดการเรียนรู้'!I$7:I$58) ->  | G15: =SUMIF('5.งานตอบสนองนโยบายและจุดเน้น'!#REF!,สรุปชั่วโมงสอนต่อสัปดาห์!I15,'5.งานตอบสนองนโยบายและจุดเน้น'!I$7:I$58) ->  | I15: 111 | J15: =IF(H15>ตัวแปร!C$37,1,"") -> 
A16: ='1.ข้อมูลส่วนบุคคล'!$F$5 -> 1234567891234 | B16: 1 | D16: 12 | E16: =SUMIF('3.ชั่วโมงสอนตามตารางสอน'!T$7:T$56,สรุปชั่วโมงสอนต่อสัปดาห์!I16,'3.ชั่วโมงสอนตามตารางสอน'!L$7:L$56) -> 0 | F16: =SUMIF('4.งานสนับสนุนการจัดการเรียนรู้'!#REF!,สรุปชั่วโมงสอนต่อสัปดาห์!I16,'4.งานสนับสนุนการจัดการเรียนรู้'!I$7:I$58) ->  | G16: =SUMIF('5.งานตอบสนองนโยบายและจุดเน้น'!#REF!,สรุปชั่วโมงสอนต่อสัปดาห์!I16,'5.งานตอบสนองนโยบายและจุดเน้น'!I$7:I$58) ->  | I16: 112 | J16: =IF(H16>ตัวแปร!C$37,1,"") -> 
A17: ='1.ข้อมูลส่วนบุคคล'!$F$5 -> 1234567891234 | B17: 1 | D17: 13 | E17: =SUMIF('3.ชั่วโมงสอนตามตารางสอน'!T$7:T$56,สรุปชั่วโมงสอนต่อสัปดาห์!I17,'3.ชั่วโมงสอนตามตารางสอน'!L$7:L$56) -> 0 | F17: =SUMIF('4.งานสนับสนุนการจัดการเรียนรู้'!#REF!,สรุปชั่วโมงสอนต่อสัปดาห์!I17,'4.งานสนับสนุนการจัดการเรียนรู้'!I$7:I$58) ->  | G17: =SUMIF('5.งานตอบสนองนโยบายและจุดเน้น'!#REF!,สรุปชั่วโมงสอนต่อสัปดาห์!I17,'5.งานตอบสนองนโยบายและจุดเน้น'!I$7:I$58) ->  | I17: 113 | J17: =IF(H17>ตัวแปร!C$37,1,"") -> 
A18: ='1.ข้อมูลส่วนบุคคล'!$F$5 -> 1234567891234 | B18: 1 | D18: 14 | E18: =SUMIF('3.ชั่วโมงสอนตามตารางสอน'!T$7:T$56,สรุปชั่วโมงสอนต่อสัปดาห์!I18,'3.ชั่วโมงสอนตามตารางสอน'!L$7:L$56) -> 0 | F18: =SUMIF('4.งานสนับสนุนการจัดการเรียนรู้'!#REF!,สรุปชั่วโมงสอนต่อสัปดาห์!I18,'4.งานสนับสนุนการจัดการเรียนรู้'!I$7:I$58) ->  | G18: =SUMIF('5.งานตอบสนองนโยบายและจุดเน้น'!#REF!,สรุปชั่วโมงสอนต่อสัปดาห์!I18,'5.งานตอบสนองนโยบายและจุดเน้น'!I$7:I$58) ->  | I18: 114 | J18: =IF(H18>ตัวแปร!C$37,1,"") -> 
A19: ='1.ข้อมูลส่วนบุคคล'!$F$5 -> 1234567891234 | B19: 1 | D19: 15 | E19: =SUMIF('3.ชั่วโมงสอนตามตารางสอน'!T$7:T$56,สรุปชั่วโมงสอนต่อสัปดาห์!I19,'3.ชั่วโมงสอนตามตารางสอน'!L$7:L$56) -> 0 | F19: =SUMIF('4.งานสนับสนุนการจัดการเรียนรู้'!#REF!,สรุปชั่วโมงสอนต่อสัปดาห์!I19,'4.งานสนับสนุนการจัดการเรียนรู้'!I$7:I$58) ->  | G19: =SUMIF('5.งานตอบสนองนโยบายและจุดเน้น'!#REF!,สรุปชั่วโมงสอนต่อสัปดาห์!I19,'5.งานตอบสนองนโยบายและจุดเน้น'!I$7:I$58) ->  | I19: 115 | J19: =IF(H19>ตัวแปร!C$37,1,"") -> 
A20: ='1.ข้อมูลส่วนบุคคล'!$F$5 -> 1234567891234 | B20: 1 | D20: 16 | E20: =SUMIF('3.ชั่วโมงสอนตามตารางสอน'!T$7:T$56,สรุปชั่วโมงสอนต่อสัปดาห์!I20,'3.ชั่วโมงสอนตามตารางสอน'!L$7:L$56) -> 0 | F20: =SUMIF('4.งานสนับสนุนการจัดการเรียนรู้'!#REF!,สรุปชั่วโมงสอนต่อสัปดาห์!I20,'4.งานสนับสนุนการจัดการเรียนรู้'!I$7:I$58) ->  | G20: =SUMIF('5.งานตอบสนองนโยบายและจุดเน้น'!#REF!,สรุปชั่วโมงสอนต่อสัปดาห์!I20,'5.งานตอบสนองนโยบายและจุดเน้น'!I$7:I$58) ->  | I20: 116 | J20: =IF(H20>ตัวแปร!C$37,1,"") -> 
A21: ='1.ข้อมูลส่วนบุคคล'!$F$5 -> 1234567891234 | B21: 1 | D21: 17 | E21: =SUMIF('3.ชั่วโมงสอนตามตารางสอน'!T$7:T$56,สรุปชั่วโมงสอนต่อสัปดาห์!I21,'3.ชั่วโมงสอนตามตารางสอน'!L$7:L$56) -> 0 | F21: =SUMIF('4.งานสนับสนุนการจัดการเรียนรู้'!#REF!,สรุปชั่วโมงสอนต่อสัปดาห์!I21,'4.งานสนับสนุนการจัดการเรียนรู้'!I$7:I$58) ->  | G21: =SUMIF('5.งานตอบสนองนโยบายและจุดเน้น'!#REF!,สรุปชั่วโมงสอนต่อสัปดาห์!I21,'5.งานตอบสนองนโยบายและจุดเน้น'!I$7:I$58) ->  | I21: 117 | J21: =IF(H21>ตัวแปร!C$37,1,"") -> 
A22: ='1.ข้อมูลส่วนบุคคล'!$F$5 -> 1234567891234 | B22: 1 | D22: 18 | E22: =SUMIF('3.ชั่วโมงสอนตามตารางสอน'!T$7:T$56,สรุปชั่วโมงสอนต่อสัปดาห์!I22,'3.ชั่วโมงสอนตามตารางสอน'!L$7:L$56) -> 0 | F22: =SUMIF('4.งานสนับสนุนการจัดการเรียนรู้'!#REF!,สรุปชั่วโมงสอนต่อสัปดาห์!I22,'4.งานสนับสนุนการจัดการเรียนรู้'!I$7:I$58) ->  | G22: =SUMIF('5.งานตอบสนองนโยบายและจุดเน้น'!#REF!,สรุปชั่วโมงสอนต่อสัปดาห์!I22,'5.งานตอบสนองนโยบายและจุดเน้น'!I$7:I$58) ->  | I22: 118 | J22: =IF(H22>ตัวแปร!C$37,1,"") -> 
A23: ='1.ข้อมูลส่วนบุคคล'!$F$5 -> 1234567891234 | B23: 1 | D23: 19 | E23: =SUMIF('3.ชั่วโมงสอนตามตารางสอน'!T$7:T$56,สรุปชั่วโมงสอนต่อสัปดาห์!I23,'3.ชั่วโมงสอนตามตารางสอน'!L$7:L$56) -> 0 | F23: =SUMIF('4.งานสนับสนุนการจัดการเรียนรู้'!#REF!,สรุปชั่วโมงสอนต่อสัปดาห์!I23,'4.งานสนับสนุนการจัดการเรียนรู้'!I$7:I$58) ->  | G23: =SUMIF('5.งานตอบสนองนโยบายและจุดเน้น'!#REF!,สรุปชั่วโมงสอนต่อสัปดาห์!I23,'5.งานตอบสนองนโยบายและจุดเน้น'!I$7:I$58) ->  | I23: 119 | J23: =IF(H23>ตัวแปร!C$37,1,"") -> 
A24: ='1.ข้อมูลส่วนบุคคล'!$F$5 -> 1234567891234 | B24: 1 | D24: 20 | E24: =SUMIF('3.ชั่วโมงสอนตามตารางสอน'!T$7:T$56,สรุปชั่วโมงสอนต่อสัปดาห์!I24,'3.ชั่วโมงสอนตามตารางสอน'!L$7:L$56) -> 0 | F24: =SUMIF('4.งานสนับสนุนการจัดการเรียนรู้'!#REF!,สรุปชั่วโมงสอนต่อสัปดาห์!I24,'4.งานสนับสนุนการจัดการเรียนรู้'!I$7:I$58) ->  | G24: =SUMIF('5.งานตอบสนองนโยบายและจุดเน้น'!#REF!,สรุปชั่วโมงสอนต่อสัปดาห์!I24,'5.งานตอบสนองนโยบายและจุดเน้น'!I$7:I$58) ->  | I24: 120 | J24: =IF(H24>ตัวแปร!C$37,1,"") -> 
A25: ='1.ข้อมูลส่วนบุคคล'!$F$5 -> 1234567891234 | B25: 1 | D25: 21 | E25: =SUMIF('3.ชั่วโมงสอนตามตารางสอน'!T$7:T$56,สรุปชั่วโมงสอนต่อสัปดาห์!I25,'3.ชั่วโมงสอนตามตารางสอน'!L$7:L$56) -> 0 | F25: =SUMIF('4.งานสนับสนุนการจัดการเรียนรู้'!#REF!,สรุปชั่วโมงสอนต่อสัปดาห์!I25,'4.งานสนับสนุนการจัดการเรียนรู้'!I$7:I$58) ->  | G25: =SUMIF('5.งานตอบสนองนโยบายและจุดเน้น'!#REF!,สรุปชั่วโมงสอนต่อสัปดาห์!I25,'5.งานตอบสนองนโยบายและจุดเน้น'!I$7:I$58) ->  | I25: 121 | J25: =IF(H25>ตัวแปร!C$37,1,"") -> 
A26: ='1.ข้อมูลส่วนบุคคล'!$F$5 -> 1234567891234 | B26: 1 | D26: 22 | E26: =SUMIF('3.ชั่วโมงสอนตามตารางสอน'!T$7:T$56,สรุปชั่วโมงสอนต่อสัปดาห์!I26,'3.ชั่วโมงสอนตามตารางสอน'!L$7:L$56) -> 0 | F26: =SUMIF('4.งานสนับสนุนการจัดการเรียนรู้'!#REF!,สรุปชั่วโมงสอนต่อสัปดาห์!I26,'4.งานสนับสนุนการจัดการเรียนรู้'!I$7:I$58) ->  | G26: =SUMIF('5.งานตอบสนองนโยบายและจุดเน้น'!#REF!,สรุปชั่วโมงสอนต่อสัปดาห์!I26,'5.งานตอบสนองนโยบายและจุดเน้น'!I$7:I$58) ->  | I26: 122 | J26: =IF(H26>ตัวแปร!C$37,1,"") -> 
A27: ='1.ข้อมูลส่วนบุคคล'!$F$5 -> 1234567891234 | B27: 1 | D27: 23 | E27: =SUMIF('3.ชั่วโมงสอนตามตารางสอน'!T$7:T$56,สรุปชั่วโมงสอนต่อสัปดาห์!I27,'3.ชั่วโมงสอนตามตารางสอน'!L$7:L$56) -> 0 | F27: =SUMIF('4.งานสนับสนุนการจัดการเรียนรู้'!#REF!,สรุปชั่วโมงสอนต่อสัปดาห์!I27,'4.งานสนับสนุนการจัดการเรียนรู้'!I$7:I$58) ->  | G27: =SUMIF('5.งานตอบสนองนโยบายและจุดเน้น'!#REF!,สรุปชั่วโมงสอนต่อสัปดาห์!I27,'5.งานตอบสนองนโยบายและจุดเน้น'!I$7:I$58) ->  | I27: 123 | J27: =IF(H27>ตัวแปร!C$37,1,"") -> 
A28: ='1.ข้อมูลส่วนบุคคล'!$F$5 -> 1234567891234 | B28: 1 | D28: 24 | E28: =SUMIF('3.ชั่วโมงสอนตามตารางสอน'!T$7:T$56,สรุปชั่วโมงสอนต่อสัปดาห์!I28,'3.ชั่วโมงสอนตามตารางสอน'!L$7:L$56) -> 0 | F28: =SUMIF('4.งานสนับสนุนการจัดการเรียนรู้'!#REF!,สรุปชั่วโมงสอนต่อสัปดาห์!I28,'4.งานสนับสนุนการจัดการเรียนรู้'!I$7:I$58) ->  | G28: =SUMIF('5.งานตอบสนองนโยบายและจุดเน้น'!#REF!,สรุปชั่วโมงสอนต่อสัปดาห์!I28,'5.งานตอบสนองนโยบายและจุดเน้น'!I$7:I$58) ->  | I28: 124 | J28: =IF(H28>ตัวแปร!C$37,1,"") -> 
A29: ='1.ข้อมูลส่วนบุคคล'!$F$5 -> 1234567891234 | B29: 1 | D29: 25 | E29: =SUMIF('3.ชั่วโมงสอนตามตารางสอน'!T$7:T$56,สรุปชั่วโมงสอนต่อสัปดาห์!I29,'3.ชั่วโมงสอนตามตารางสอน'!L$7:L$56) -> 0 | F29: =SUMIF('4.งานสนับสนุนการจัดการเรียนรู้'!#REF!,สรุปชั่วโมงสอนต่อสัปดาห์!I29,'4.งานสนับสนุนการจัดการเรียนรู้'!I$7:I$58) ->  | G29: =SUMIF('5.งานตอบสนองนโยบายและจุดเน้น'!#REF!,สรุปชั่วโมงสอนต่อสัปดาห์!I29,'5.งานตอบสนองนโยบายและจุดเน้น'!I$7:I$58) ->  | I29: 125 | J29: =IF(H29>ตัวแปร!C$37,1,"") -> 
A30: ='1.ข้อมูลส่วนบุคคล'!$F$5 -> 1234567891234 | B30: 1 | D30: 26 | E30: =SUMIF('3.ชั่วโมงสอนตามตารางสอน'!T$7:T$56,สรุปชั่วโมงสอนต่อสัปดาห์!I30,'3.ชั่วโมงสอนตามตารางสอน'!L$7:L$56) -> 0 | F30: =SUMIF('4.งานสนับสนุนการจัดการเรียนรู้'!#REF!,สรุปชั่วโมงสอนต่อสัปดาห์!I30,'4.งานสนับสนุนการจัดการเรียนรู้'!I$7:I$58) ->  | G30: =SUMIF('5.งานตอบสนองนโยบายและจุดเน้น'!#REF!,สรุปชั่วโมงสอนต่อสัปดาห์!I30,'5.งานตอบสนองนโยบายและจุดเน้น'!I$7:I$58) ->  | I30: 126 | J30: =IF(H30>ตัวแปร!C$37,1,"") -> 
A31: ='1.ข้อมูลส่วนบุคคล'!$F$5 -> 1234567891234 | B31: 1 | D31: 27 | E31: =SUMIF('3.ชั่วโมงสอนตามตารางสอน'!T$7:T$56,สรุปชั่วโมงสอนต่อสัปดาห์!I31,'3.ชั่วโมงสอนตามตารางสอน'!L$7:L$56) -> 0 | F31: =SUMIF('4.งานสนับสนุนการจัดการเรียนรู้'!#REF!,สรุปชั่วโมงสอนต่อสัปดาห์!I31,'4.งานสนับสนุนการจัดการเรียนรู้'!I$7:I$58) ->  | G31: =SUMIF('5.งานตอบสนองนโยบายและจุดเน้น'!#REF!,สรุปชั่วโมงสอนต่อสัปดาห์!I31,'5.งานตอบสนองนโยบายและจุดเน้น'!I$7:I$58) ->  | I31: 127 | J31: =IF(H31>ตัวแปร!C$37,1,"") -> 
A32: ='1.ข้อมูลส่วนบุคคล'!$F$5 -> 1234567891234 | B32: 1 | D32: 28 | E32: =SUMIF('3.ชั่วโมงสอนตามตารางสอน'!T$7:T$56,สรุปชั่วโมงสอนต่อสัปดาห์!I32,'3.ชั่วโมงสอนตามตารางสอน'!L$7:L$56) -> 0 | F32: =SUMIF('4.งานสนับสนุนการจัดการเรียนรู้'!#REF!,สรุปชั่วโมงสอนต่อสัปดาห์!I32,'4.งานสนับสนุนการจัดการเรียนรู้'!I$7:I$58) ->  | G32: =SUMIF('5.งานตอบสนองนโยบายและจุดเน้น'!#REF!,สรุปชั่วโมงสอนต่อสัปดาห์!I32,'5.งานตอบสนองนโยบายและจุดเน้น'!I$7:I$58) ->  | I32: 128 | J32: =IF(H32>ตัวแปร!C$37,1,"") -> 
A33: ='1.ข้อมูลส่วนบุคคล'!$F$5 -> 1234567891234 | B33: 1 | D33: 29 | E33: =SUMIF('3.ชั่วโมงสอนตามตารางสอน'!T$7:T$56,สรุปชั่วโมงสอนต่อสัปดาห์!I33,'3.ชั่วโมงสอนตามตารางสอน'!L$7:L$56) -> 0 | F33: =SUMIF('4.งานสนับสนุนการจัดการเรียนรู้'!#REF!,สรุปชั่วโมงสอนต่อสัปดาห์!I33,'4.งานสนับสนุนการจัดการเรียนรู้'!I$7:I$58) ->  | G33: =SUMIF('5.งานตอบสนองนโยบายและจุดเน้น'!#REF!,สรุปชั่วโมงสอนต่อสัปดาห์!I33,'5.งานตอบสนองนโยบายและจุดเน้น'!I$7:I$58) ->  | I33: 129 | J33: =IF(H33>ตัวแปร!C$37,1,"") -> 
A34: ='1.ข้อมูลส่วนบุคคล'!$F$5 -> 1234567891234 | B34: 1 | D34: 30 | E34: =SUMIF('3.ชั่วโมงสอนตามตารางสอน'!T$7:T$56,สรุปชั่วโมงสอนต่อสัปดาห์!I34,'3.ชั่วโมงสอนตามตารางสอน'!L$7:L$56) -> 0 | F34: =SUMIF('4.งานสนับสนุนการจัดการเรียนรู้'!#REF!,สรุปชั่วโมงสอนต่อสัปดาห์!I34,'4.งานสนับสนุนการจัดการเรียนรู้'!I$7:I$58) ->  | G34: =SUMIF('5.งานตอบสนองนโยบายและจุดเน้น'!#REF!,สรุปชั่วโมงสอนต่อสัปดาห์!I34,'5.งานตอบสนองนโยบายและจุดเน้น'!I$7:I$58) ->  | I34: 130 | J34: =IF(H34>ตัวแปร!C$37,1,"") -> 
A35: ='1.ข้อมูลส่วนบุคคล'!$F$5 -> 1234567891234 | B35: 1 | D35: 31 | E35: =SUMIF('3.ชั่วโมงสอนตามตารางสอน'!T$7:T$56,สรุปชั่วโมงสอนต่อสัปดาห์!I35,'3.ชั่วโมงสอนตามตารางสอน'!L$7:L$56) -> 0 | F35: =SUMIF('4.งานสนับสนุนการจัดการเรียนรู้'!#REF!,สรุปชั่วโมงสอนต่อสัปดาห์!I35,'4.งานสนับสนุนการจัดการเรียนรู้'!I$7:I$58) ->  | G35: =SUMIF('5.งานตอบสนองนโยบายและจุดเน้น'!#REF!,สรุปชั่วโมงสอนต่อสัปดาห์!I35,'5.งานตอบสนองนโยบายและจุดเน้น'!I$7:I$58) ->  | I35: 131 | J35: =IF(H35>ตัวแปร!C$37,1,"") -> 
A36: ='1.ข้อมูลส่วนบุคคล'!$F$5 -> 1234567891234 | B36: 1 | D36: 32 | E36: =SUMIF('3.ชั่วโมงสอนตามตารางสอน'!T$7:T$56,สรุปชั่วโมงสอนต่อสัปดาห์!I36,'3.ชั่วโมงสอนตามตารางสอน'!L$7:L$56) -> 0 | F36: =SUMIF('4.งานสนับสนุนการจัดการเรียนรู้'!#REF!,สรุปชั่วโมงสอนต่อสัปดาห์!I36,'4.งานสนับสนุนการจัดการเรียนรู้'!I$7:I$58) ->  | G36: =SUMIF('5.งานตอบสนองนโยบายและจุดเน้น'!#REF!,สรุปชั่วโมงสอนต่อสัปดาห์!I36,'5.งานตอบสนองนโยบายและจุดเน้น'!I$7:I$58) ->  | I36: 132 | J36: =IF(H36>ตัวแปร!C$37,1,"") -> 
A37: ='1.ข้อมูลส่วนบุคคล'!$F$5 -> 1234567891234 | B37: 1 | D37: 33 | E37: =SUMIF('3.ชั่วโมงสอนตามตารางสอน'!T$7:T$56,สรุปชั่วโมงสอนต่อสัปดาห์!I37,'3.ชั่วโมงสอนตามตารางสอน'!L$7:L$56) -> 0 | F37: =SUMIF('4.งานสนับสนุนการจัดการเรียนรู้'!#REF!,สรุปชั่วโมงสอนต่อสัปดาห์!I37,'4.งานสนับสนุนการจัดการเรียนรู้'!I$7:I$58) ->  | G37: =SUMIF('5.งานตอบสนองนโยบายและจุดเน้น'!#REF!,สรุปชั่วโมงสอนต่อสัปดาห์!I37,'5.งานตอบสนองนโยบายและจุดเน้น'!I$7:I$58) ->  | I37: 133 | J37: =IF(H37>ตัวแปร!C$37,1,"") -> 
A38: ='1.ข้อมูลส่วนบุคคล'!$F$5 -> 1234567891234 | B38: 1 | D38: 34 | E38: =SUMIF('3.ชั่วโมงสอนตามตารางสอน'!T$7:T$56,สรุปชั่วโมงสอนต่อสัปดาห์!I38,'3.ชั่วโมงสอนตามตารางสอน'!L$7:L$56) -> 0 | F38: =SUMIF('4.งานสนับสนุนการจัดการเรียนรู้'!#REF!,สรุปชั่วโมงสอนต่อสัปดาห์!I38,'4.งานสนับสนุนการจัดการเรียนรู้'!I$7:I$58) ->  | G38: =SUMIF('5.งานตอบสนองนโยบายและจุดเน้น'!#REF!,สรุปชั่วโมงสอนต่อสัปดาห์!I38,'5.งานตอบสนองนโยบายและจุดเน้น'!I$7:I$58) ->  | I38: 134 | J38: =IF(H38>ตัวแปร!C$37,1,"") -> 
A39: ='1.ข้อมูลส่วนบุคคล'!$F$5 -> 1234567891234 | B39: 1 | D39: 35 | E39: =SUMIF('3.ชั่วโมงสอนตามตารางสอน'!T$7:T$56,สรุปชั่วโมงสอนต่อสัปดาห์!I39,'3.ชั่วโมงสอนตามตารางสอน'!L$7:L$56) -> 0 | F39: =SUMIF('4.งานสนับสนุนการจัดการเรียนรู้'!#REF!,สรุปชั่วโมงสอนต่อสัปดาห์!I39,'4.งานสนับสนุนการจัดการเรียนรู้'!I$7:I$58) ->  | G39: =SUMIF('5.งานตอบสนองนโยบายและจุดเน้น'!#REF!,สรุปชั่วโมงสอนต่อสัปดาห์!I39,'5.งานตอบสนองนโยบายและจุดเน้น'!I$7:I$58) ->  | I39: 135 | J39: =IF(H39>ตัวแปร!C$37,1,"") -> 
A40: ='1.ข้อมูลส่วนบุคคล'!$F$5 -> 1234567891234 | B40: 1 | D40: 36 | E40: =SUMIF('3.ชั่วโมงสอนตามตารางสอน'!T$7:T$56,สรุปชั่วโมงสอนต่อสัปดาห์!I40,'3.ชั่วโมงสอนตามตารางสอน'!L$7:L$56) -> 0 | F40: =SUMIF('4.งานสนับสนุนการจัดการเรียนรู้'!#REF!,สรุปชั่วโมงสอนต่อสัปดาห์!I40,'4.งานสนับสนุนการจัดการเรียนรู้'!I$7:I$58) ->  | G40: =SUMIF('5.งานตอบสนองนโยบายและจุดเน้น'!#REF!,สรุปชั่วโมงสอนต่อสัปดาห์!I40,'5.งานตอบสนองนโยบายและจุดเน้น'!I$7:I$58) ->  | I40: 136 | J40: =IF(H40>ตัวแปร!C$37,1,"") -> 
A41: ='1.ข้อมูลส่วนบุคคล'!$F$5 -> 1234567891234 | B41: 1 | D41: 37 | E41: =SUMIF('3.ชั่วโมงสอนตามตารางสอน'!T$7:T$56,สรุปชั่วโมงสอนต่อสัปดาห์!I41,'3.ชั่วโมงสอนตามตารางสอน'!L$7:L$56) -> 0 | F41: =SUMIF('4.งานสนับสนุนการจัดการเรียนรู้'!#REF!,สรุปชั่วโมงสอนต่อสัปดาห์!I41,'4.งานสนับสนุนการจัดการเรียนรู้'!I$7:I$58) ->  | G41: =SUMIF('5.งานตอบสนองนโยบายและจุดเน้น'!#REF!,สรุปชั่วโมงสอนต่อสัปดาห์!I41,'5.งานตอบสนองนโยบายและจุดเน้น'!I$7:I$58) ->  | I41: 137 | J41: =IF(H41>ตัวแปร!C$37,1,"") -> 
A42: ='1.ข้อมูลส่วนบุคคล'!$F$5 -> 1234567891234 | B42: 1 | D42: 38 | E42: =SUMIF('3.ชั่วโมงสอนตามตารางสอน'!T$7:T$56,สรุปชั่วโมงสอนต่อสัปดาห์!I42,'3.ชั่วโมงสอนตามตารางสอน'!L$7:L$56) -> 0 | F42: =SUMIF('4.งานสนับสนุนการจัดการเรียนรู้'!#REF!,สรุปชั่วโมงสอนต่อสัปดาห์!I42,'4.งานสนับสนุนการจัดการเรียนรู้'!I$7:I$58) ->  | G42: =SUMIF('5.งานตอบสนองนโยบายและจุดเน้น'!#REF!,สรุปชั่วโมงสอนต่อสัปดาห์!I42,'5.งานตอบสนองนโยบายและจุดเน้น'!I$7:I$58) ->  | I42: 138 | J42: =IF(H42>ตัวแปร!C$37,1,"") -> 
A43: ='1.ข้อมูลส่วนบุคคล'!$F$5 -> 1234567891234 | B43: 1 | D43: 39 | E43: =SUMIF('3.ชั่วโมงสอนตามตารางสอน'!T$7:T$56,สรุปชั่วโมงสอนต่อสัปดาห์!I43,'3.ชั่วโมงสอนตามตารางสอน'!L$7:L$56) -> 0 | F43: =SUMIF('4.งานสนับสนุนการจัดการเรียนรู้'!#REF!,สรุปชั่วโมงสอนต่อสัปดาห์!I43,'4.งานสนับสนุนการจัดการเรียนรู้'!I$7:I$58) ->  | G43: =SUMIF('5.งานตอบสนองนโยบายและจุดเน้น'!#REF!,สรุปชั่วโมงสอนต่อสัปดาห์!I43,'5.งานตอบสนองนโยบายและจุดเน้น'!I$7:I$58) ->  | I43: 139 | J43: =IF(H43>ตัวแปร!C$37,1,"") -> 
A44: ='1.ข้อมูลส่วนบุคคล'!$F$5 -> 1234567891234 | B44: 1 | D44: 40 | E44: =SUMIF('3.ชั่วโมงสอนตามตารางสอน'!T$7:T$56,สรุปชั่วโมงสอนต่อสัปดาห์!I44,'3.ชั่วโมงสอนตามตารางสอน'!L$7:L$56) -> 0 | F44: =SUMIF('4.งานสนับสนุนการจัดการเรียนรู้'!#REF!,สรุปชั่วโมงสอนต่อสัปดาห์!I44,'4.งานสนับสนุนการจัดการเรียนรู้'!I$7:I$58) ->  | G44: =SUMIF('5.งานตอบสนองนโยบายและจุดเน้น'!#REF!,สรุปชั่วโมงสอนต่อสัปดาห์!I44,'5.งานตอบสนองนโยบายและจุดเน้น'!I$7:I$58) ->  | I44: 140 | J44: =IF(H44>ตัวแปร!C$37,1,"") -> 
A45: ='1.ข้อมูลส่วนบุคคล'!$F$5 -> 1234567891234 | B45: 1 | D45: 41 | E45: =SUMIF('3.ชั่วโมงสอนตามตารางสอน'!T$7:T$56,สรุปชั่วโมงสอนต่อสัปดาห์!I45,'3.ชั่วโมงสอนตามตารางสอน'!L$7:L$56) -> 0 | F45: =SUMIF('4.งานสนับสนุนการจัดการเรียนรู้'!#REF!,สรุปชั่วโมงสอนต่อสัปดาห์!I45,'4.งานสนับสนุนการจัดการเรียนรู้'!I$7:I$58) ->  | G45: =SUMIF('5.งานตอบสนองนโยบายและจุดเน้น'!#REF!,สรุปชั่วโมงสอนต่อสัปดาห์!I45,'5.งานตอบสนองนโยบายและจุดเน้น'!I$7:I$58) ->  | I45: 141 | J45: =IF(H45>ตัวแปร!C$37,1,"") -> 
A46: ='1.ข้อมูลส่วนบุคคล'!$F$5 -> 1234567891234 | B46: 1 | D46: 42 | E46: =SUMIF('3.ชั่วโมงสอนตามตารางสอน'!T$7:T$56,สรุปชั่วโมงสอนต่อสัปดาห์!I46,'3.ชั่วโมงสอนตามตารางสอน'!L$7:L$56) -> 0 | F46: =SUMIF('4.งานสนับสนุนการจัดการเรียนรู้'!#REF!,สรุปชั่วโมงสอนต่อสัปดาห์!I46,'4.งานสนับสนุนการจัดการเรียนรู้'!I$7:I$58) ->  | G46: =SUMIF('5.งานตอบสนองนโยบายและจุดเน้น'!#REF!,สรุปชั่วโมงสอนต่อสัปดาห์!I46,'5.งานตอบสนองนโยบายและจุดเน้น'!I$7:I$58) ->  | I46: 142 | J46: =IF(H46>ตัวแปร!C$37,1,"") -> 
A47: ='1.ข้อมูลส่วนบุคคล'!$F$5 -> 1234567891234 | B47: 1 | D47: 43 | E47: =SUMIF('3.ชั่วโมงสอนตามตารางสอน'!T$7:T$56,สรุปชั่วโมงสอนต่อสัปดาห์!I47,'3.ชั่วโมงสอนตามตารางสอน'!L$7:L$56) -> 0 | F47: =SUMIF('4.งานสนับสนุนการจัดการเรียนรู้'!#REF!,สรุปชั่วโมงสอนต่อสัปดาห์!I47,'4.งานสนับสนุนการจัดการเรียนรู้'!I$7:I$58) ->  | G47: =SUMIF('5.งานตอบสนองนโยบายและจุดเน้น'!#REF!,สรุปชั่วโมงสอนต่อสัปดาห์!I47,'5.งานตอบสนองนโยบายและจุดเน้น'!I$7:I$58) ->  | I47: 143 | J47: =IF(H47>ตัวแปร!C$37,1,"") -> 
A48: ='1.ข้อมูลส่วนบุคคล'!$F$5 -> 1234567891234 | B48: 1 | D48: 44 | E48: =SUMIF('3.ชั่วโมงสอนตามตารางสอน'!T$7:T$56,สรุปชั่วโมงสอนต่อสัปดาห์!I48,'3.ชั่วโมงสอนตามตารางสอน'!L$7:L$56) -> 0 | F48: =SUMIF('4.งานสนับสนุนการจัดการเรียนรู้'!#REF!,สรุปชั่วโมงสอนต่อสัปดาห์!I48,'4.งานสนับสนุนการจัดการเรียนรู้'!I$7:I$58) ->  | G48: =SUMIF('5.งานตอบสนองนโยบายและจุดเน้น'!#REF!,สรุปชั่วโมงสอนต่อสัปดาห์!I48,'5.งานตอบสนองนโยบายและจุดเน้น'!I$7:I$58) ->  | I48: 144 | J48: =IF(H48>ตัวแปร!C$37,1,"") -> 
A49: ='1.ข้อมูลส่วนบุคคล'!$F$5 -> 1234567891234 | B49: 1 | D49: 45 | E49: =SUMIF('3.ชั่วโมงสอนตามตารางสอน'!T$7:T$56,สรุปชั่วโมงสอนต่อสัปดาห์!I49,'3.ชั่วโมงสอนตามตารางสอน'!L$7:L$56) -> 0 | F49: =SUMIF('4.งานสนับสนุนการจัดการเรียนรู้'!#REF!,สรุปชั่วโมงสอนต่อสัปดาห์!I49,'4.งานสนับสนุนการจัดการเรียนรู้'!I$7:I$58) ->  | G49: =SUMIF('5.งานตอบสนองนโยบายและจุดเน้น'!#REF!,สรุปชั่วโมงสอนต่อสัปดาห์!I49,'5.งานตอบสนองนโยบายและจุดเน้น'!I$7:I$58) ->  | I49: 145 | J49: =IF(H49>ตัวแปร!C$37,1,"") -> 
A50: ='1.ข้อมูลส่วนบุคคล'!$F$5 -> 1234567891234 | B50: 1 | D50: 46 | E50: =SUMIF('3.ชั่วโมงสอนตามตารางสอน'!T$7:T$56,สรุปชั่วโมงสอนต่อสัปดาห์!I50,'3.ชั่วโมงสอนตามตารางสอน'!L$7:L$56) -> 0 | F50: =SUMIF('4.งานสนับสนุนการจัดการเรียนรู้'!#REF!,สรุปชั่วโมงสอนต่อสัปดาห์!I50,'4.งานสนับสนุนการจัดการเรียนรู้'!I$7:I$58) ->  | G50: =SUMIF('5.งานตอบสนองนโยบายและจุดเน้น'!#REF!,สรุปชั่วโมงสอนต่อสัปดาห์!I50,'5.งานตอบสนองนโยบายและจุดเน้น'!I$7:I$58) ->  | I50: 146 | J50: =IF(H50>ตัวแปร!C$37,1,"") -> 
A51: ='1.ข้อมูลส่วนบุคคล'!$F$5 -> 1234567891234 | B51: 1 | D51: 47 | E51: =SUMIF('3.ชั่วโมงสอนตามตารางสอน'!T$7:T$56,สรุปชั่วโมงสอนต่อสัปดาห์!I51,'3.ชั่วโมงสอนตามตารางสอน'!L$7:L$56) -> 0 | F51: =SUMIF('4.งานสนับสนุนการจัดการเรียนรู้'!#REF!,สรุปชั่วโมงสอนต่อสัปดาห์!I51,'4.งานสนับสนุนการจัดการเรียนรู้'!I$7:I$58) ->  | G51: =SUMIF('5.งานตอบสนองนโยบายและจุดเน้น'!#REF!,สรุปชั่วโมงสอนต่อสัปดาห์!I51,'5.งานตอบสนองนโยบายและจุดเน้น'!I$7:I$58) ->  | I51: 147 | J51: =IF(H51>ตัวแปร!C$37,1,"") -> 
A52: ='1.ข้อมูลส่วนบุคคล'!$F$5 -> 1234567891234 | B52: 1 | D52: 48 | E52: =SUMIF('3.ชั่วโมงสอนตามตารางสอน'!T$7:T$56,สรุปชั่วโมงสอนต่อสัปดาห์!I52,'3.ชั่วโมงสอนตามตารางสอน'!L$7:L$56) -> 0 | F52: =SUMIF('4.งานสนับสนุนการจัดการเรียนรู้'!#REF!,สรุปชั่วโมงสอนต่อสัปดาห์!I52,'4.งานสนับสนุนการจัดการเรียนรู้'!I$7:I$58) ->  | G52: =SUMIF('5.งานตอบสนองนโยบายและจุดเน้น'!#REF!,สรุปชั่วโมงสอนต่อสัปดาห์!I52,'5.งานตอบสนองนโยบายและจุดเน้น'!I$7:I$58) ->  | I52: 148 | J52: =IF(H52>ตัวแปร!C$37,1,"") -> 
A53: ='1.ข้อมูลส่วนบุคคล'!$F$5 -> 1234567891234 | B53: 1 | D53: 49 | E53: =SUMIF('3.ชั่วโมงสอนตามตารางสอน'!T$7:T$56,สรุปชั่วโมงสอนต่อสัปดาห์!I53,'3.ชั่วโมงสอนตามตารางสอน'!L$7:L$56) -> 0 | F53: =SUMIF('4.งานสนับสนุนการจัดการเรียนรู้'!#REF!,สรุปชั่วโมงสอนต่อสัปดาห์!I53,'4.งานสนับสนุนการจัดการเรียนรู้'!I$7:I$58) ->  | G53: =SUMIF('5.งานตอบสนองนโยบายและจุดเน้น'!#REF!,สรุปชั่วโมงสอนต่อสัปดาห์!I53,'5.งานตอบสนองนโยบายและจุดเน้น'!I$7:I$58) ->  | I53: 149 | J53: =IF(H53>ตัวแปร!C$37,1,"") -> 
A54: ='1.ข้อมูลส่วนบุคคล'!$F$5 -> 1234567891234 | B54: 1 | D54: 50 | E54: =SUMIF('3.ชั่วโมงสอนตามตารางสอน'!T$7:T$56,สรุปชั่วโมงสอนต่อสัปดาห์!I54,'3.ชั่วโมงสอนตามตารางสอน'!L$7:L$56) -> 0 | F54: =SUMIF('4.งานสนับสนุนการจัดการเรียนรู้'!#REF!,สรุปชั่วโมงสอนต่อสัปดาห์!I54,'4.งานสนับสนุนการจัดการเรียนรู้'!I$7:I$58) ->  | G54: =SUMIF('5.งานตอบสนองนโยบายและจุดเน้น'!#REF!,สรุปชั่วโมงสอนต่อสัปดาห์!I54,'5.งานตอบสนองนโยบายและจุดเน้น'!I$7:I$58) ->  | I54: 150 | J54: =IF(H54>ตัวแปร!C$37,1,"") -> 
B55: 1 | D55: 51 | E55: =SUMIF('3.ชั่วโมงสอนตามตารางสอน'!T$7:T$56,สรุปชั่วโมงสอนต่อสัปดาห์!I55,'3.ชั่วโมงสอนตามตารางสอน'!L$7:L$56) -> 0 | F55: =SUMIF('4.งานสนับสนุนการจัดการเรียนรู้'!#REF!,สรุปชั่วโมงสอนต่อสัปดาห์!I55,'4.งานสนับสนุนการจัดการเรียนรู้'!I$7:I$58) ->  | G55: =SUMIF('5.งานตอบสนองนโยบายและจุดเน้น'!#REF!,สรุปชั่วโมงสอนต่อสัปดาห์!I55,'5.งานตอบสนองนโยบายและจุดเน้น'!I$7:I$58) ->  | I55: 151 | J55: =IF(H55>ตัวแปร!C$37,1,"") -> 
B56: 1 | D56: 52 | E56: =SUMIF('3.ชั่วโมงสอนตามตารางสอน'!T$7:T$56,สรุปชั่วโมงสอนต่อสัปดาห์!I56,'3.ชั่วโมงสอนตามตารางสอน'!L$7:L$56) -> 0 | F56: =SUMIF('4.งานสนับสนุนการจัดการเรียนรู้'!#REF!,สรุปชั่วโมงสอนต่อสัปดาห์!I56,'4.งานสนับสนุนการจัดการเรียนรู้'!I$7:I$58) ->  | G56: =SUMIF('5.งานตอบสนองนโยบายและจุดเน้น'!#REF!,สรุปชั่วโมงสอนต่อสัปดาห์!I56,'5.งานตอบสนองนโยบายและจุดเน้น'!I$7:I$58) ->  | I56: 152 | J56: =IF(H56>ตัวแปร!C$37,1,"") -> 
B57: 2 | D57: 1 | E57: =SUMIF('3.ชั่วโมงสอนตามตารางสอน'!T$7:T$56,สรุปชั่วโมงสอนต่อสัปดาห์!I57,'3.ชั่วโมงสอนตามตารางสอน'!L$7:L$56) -> 0 | F57: =SUMIF('4.งานสนับสนุนการจัดการเรียนรู้'!#REF!,สรุปชั่วโมงสอนต่อสัปดาห์!I57,'4.งานสนับสนุนการจัดการเรียนรู้'!I$7:I$58) ->  | G57: =SUMIF('5.งานตอบสนองนโยบายและจุดเน้น'!#REF!,สรุปชั่วโมงสอนต่อสัปดาห์!I57,'5.งานตอบสนองนโยบายและจุดเน้น'!I$7:I$58) ->  | I57: 21 | J57: =IF(H57>ตัวแปร!C$37,1,"") -> 
B58: 2 | D58: 2 | E58: =SUMIF('3.ชั่วโมงสอนตามตารางสอน'!T$7:T$56,สรุปชั่วโมงสอนต่อสัปดาห์!I58,'3.ชั่วโมงสอนตามตารางสอน'!L$7:L$56) -> 0 | F58: =SUMIF('4.งานสนับสนุนการจัดการเรียนรู้'!#REF!,สรุปชั่วโมงสอนต่อสัปดาห์!I58,'4.งานสนับสนุนการจัดการเรียนรู้'!I$7:I$58) ->  | G58: =SUMIF('5.งานตอบสนองนโยบายและจุดเน้น'!#REF!,สรุปชั่วโมงสอนต่อสัปดาห์!I58,'5.งานตอบสนองนโยบายและจุดเน้น'!I$7:I$58) ->  | I58: 22 | J58: =IF(H58>ตัวแปร!C$37,1,"") -> 
B59: 2 | D59: 3 | E59: =SUMIF('3.ชั่วโมงสอนตามตารางสอน'!T$7:T$56,สรุปชั่วโมงสอนต่อสัปดาห์!I59,'3.ชั่วโมงสอนตามตารางสอน'!L$7:L$56) -> 0 | F59: =SUMIF('4.งานสนับสนุนการจัดการเรียนรู้'!#REF!,สรุปชั่วโมงสอนต่อสัปดาห์!I59,'4.งานสนับสนุนการจัดการเรียนรู้'!I$7:I$58) ->  | G59: =SUMIF('5.งานตอบสนองนโยบายและจุดเน้น'!#REF!,สรุปชั่วโมงสอนต่อสัปดาห์!I59,'5.งานตอบสนองนโยบายและจุดเน้น'!I$7:I$58) ->  | I59: 23 | J59: =IF(H59>ตัวแปร!C$37,1,"") -> 
B60: 2 | D60: 4 | E60: =SUMIF('3.ชั่วโมงสอนตามตารางสอน'!T$7:T$56,สรุปชั่วโมงสอนต่อสัปดาห์!I60,'3.ชั่วโมงสอนตามตารางสอน'!L$7:L$56) -> 0 | F60: =SUMIF('4.งานสนับสนุนการจัดการเรียนรู้'!#REF!,สรุปชั่วโมงสอนต่อสัปดาห์!I60,'4.งานสนับสนุนการจัดการเรียนรู้'!I$7:I$58) ->  | G60: =SUMIF('5.งานตอบสนองนโยบายและจุดเน้น'!#REF!,สรุปชั่วโมงสอนต่อสัปดาห์!I60,'5.งานตอบสนองนโยบายและจุดเน้น'!I$7:I$58) ->  | I60: 24 | J60: =IF(H60>ตัวแปร!C$37,1,"") -> 
B61: 2 | D61: 5 | E61: =SUMIF('3.ชั่วโมงสอนตามตารางสอน'!T$7:T$56,สรุปชั่วโมงสอนต่อสัปดาห์!I61,'3.ชั่วโมงสอนตามตารางสอน'!L$7:L$56) -> 0 | F61: =SUMIF('4.งานสนับสนุนการจัดการเรียนรู้'!#REF!,สรุปชั่วโมงสอนต่อสัปดาห์!I61,'4.งานสนับสนุนการจัดการเรียนรู้'!I$7:I$58) ->  | G61: =SUMIF('5.งานตอบสนองนโยบายและจุดเน้น'!#REF!,สรุปชั่วโมงสอนต่อสัปดาห์!I61,'5.งานตอบสนองนโยบายและจุดเน้น'!I$7:I$58) ->  | I61: 25 | J61: =IF(H61>ตัวแปร!C$37,1,"") -> 
B62: 2 | D62: 6 | E62: =SUMIF('3.ชั่วโมงสอนตามตารางสอน'!T$7:T$56,สรุปชั่วโมงสอนต่อสัปดาห์!I62,'3.ชั่วโมงสอนตามตารางสอน'!L$7:L$56) -> 0 | F62: =SUMIF('4.งานสนับสนุนการจัดการเรียนรู้'!#REF!,สรุปชั่วโมงสอนต่อสัปดาห์!I62,'4.งานสนับสนุนการจัดการเรียนรู้'!I$7:I$58) ->  | G62: =SUMIF('5.งานตอบสนองนโยบายและจุดเน้น'!#REF!,สรุปชั่วโมงสอนต่อสัปดาห์!I62,'5.งานตอบสนองนโยบายและจุดเน้น'!I$7:I$58) ->  | I62: 26 | J62: =IF(H62>ตัวแปร!C$37,1,"") -> 
B63: 2 | D63: 7 | E63: =SUMIF('3.ชั่วโมงสอนตามตารางสอน'!T$7:T$56,สรุปชั่วโมงสอนต่อสัปดาห์!I63,'3.ชั่วโมงสอนตามตารางสอน'!L$7:L$56) -> 0 | F63: =SUMIF('4.งานสนับสนุนการจัดการเรียนรู้'!#REF!,สรุปชั่วโมงสอนต่อสัปดาห์!I63,'4.งานสนับสนุนการจัดการเรียนรู้'!I$7:I$58) ->  | G63: =SUMIF('5.งานตอบสนองนโยบายและจุดเน้น'!#REF!,สรุปชั่วโมงสอนต่อสัปดาห์!I63,'5.งานตอบสนองนโยบายและจุดเน้น'!I$7:I$58) ->  | I63: 27 | J63: =IF(H63>ตัวแปร!C$37,1,"") -> 
B64: 2 | D64: 8 | E64: =SUMIF('3.ชั่วโมงสอนตามตารางสอน'!T$7:T$56,สรุปชั่วโมงสอนต่อสัปดาห์!I64,'3.ชั่วโมงสอนตามตารางสอน'!L$7:L$56) -> 0 | F64: =SUMIF('4.งานสนับสนุนการจัดการเรียนรู้'!#REF!,สรุปชั่วโมงสอนต่อสัปดาห์!I64,'4.งานสนับสนุนการจัดการเรียนรู้'!I$7:I$58) ->  | G64: =SUMIF('5.งานตอบสนองนโยบายและจุดเน้น'!#REF!,สรุปชั่วโมงสอนต่อสัปดาห์!I64,'5.งานตอบสนองนโยบายและจุดเน้น'!I$7:I$58) ->  | I64: 28 | J64: =IF(H64>ตัวแปร!C$37,1,"") -> 
B65: 2 | D65: 9 | E65: =SUMIF('3.ชั่วโมงสอนตามตารางสอน'!T$7:T$56,สรุปชั่วโมงสอนต่อสัปดาห์!I65,'3.ชั่วโมงสอนตามตารางสอน'!L$7:L$56) -> 0 | F65: =SUMIF('4.งานสนับสนุนการจัดการเรียนรู้'!#REF!,สรุปชั่วโมงสอนต่อสัปดาห์!I65,'4.งานสนับสนุนการจัดการเรียนรู้'!I$7:I$58) ->  | G65: =SUMIF('5.งานตอบสนองนโยบายและจุดเน้น'!#REF!,สรุปชั่วโมงสอนต่อสัปดาห์!I65,'5.งานตอบสนองนโยบายและจุดเน้น'!I$7:I$58) ->  | I65: 29 | J65: =IF(H65>ตัวแปร!C$37,1,"") -> 
B66: 2 | D66: 10 | E66: =SUMIF('3.ชั่วโมงสอนตามตารางสอน'!T$7:T$56,สรุปชั่วโมงสอนต่อสัปดาห์!I66,'3.ชั่วโมงสอนตามตารางสอน'!L$7:L$56) -> 0 | F66: =SUMIF('4.งานสนับสนุนการจัดการเรียนรู้'!#REF!,สรุปชั่วโมงสอนต่อสัปดาห์!I66,'4.งานสนับสนุนการจัดการเรียนรู้'!I$7:I$58) ->  | G66: =SUMIF('5.งานตอบสนองนโยบายและจุดเน้น'!#REF!,สรุปชั่วโมงสอนต่อสัปดาห์!I66,'5.งานตอบสนองนโยบายและจุดเน้น'!I$7:I$58) ->  | I66: 210 | J66: =IF(H66>ตัวแปร!C$37,1,"") -> 
B67: 2 | D67: 11 | E67: =SUMIF('3.ชั่วโมงสอนตามตารางสอน'!T$7:T$56,สรุปชั่วโมงสอนต่อสัปดาห์!I67,'3.ชั่วโมงสอนตามตารางสอน'!L$7:L$56) -> 0 | F67: =SUMIF('4.งานสนับสนุนการจัดการเรียนรู้'!#REF!,สรุปชั่วโมงสอนต่อสัปดาห์!I67,'4.งานสนับสนุนการจัดการเรียนรู้'!I$7:I$58) ->  | G67: =SUMIF('5.งานตอบสนองนโยบายและจุดเน้น'!#REF!,สรุปชั่วโมงสอนต่อสัปดาห์!I67,'5.งานตอบสนองนโยบายและจุดเน้น'!I$7:I$58) ->  | I67: 211 | J67: =IF(H67>ตัวแปร!C$37,1,"") -> 
B68: 2 | D68: 12 | E68: =SUMIF('3.ชั่วโมงสอนตามตารางสอน'!T$7:T$56,สรุปชั่วโมงสอนต่อสัปดาห์!I68,'3.ชั่วโมงสอนตามตารางสอน'!L$7:L$56) -> 0 | F68: =SUMIF('4.งานสนับสนุนการจัดการเรียนรู้'!#REF!,สรุปชั่วโมงสอนต่อสัปดาห์!I68,'4.งานสนับสนุนการจัดการเรียนรู้'!I$7:I$58) ->  | G68: =SUMIF('5.งานตอบสนองนโยบายและจุดเน้น'!#REF!,สรุปชั่วโมงสอนต่อสัปดาห์!I68,'5.งานตอบสนองนโยบายและจุดเน้น'!I$7:I$58) ->  | I68: 212 | J68: =IF(H68>ตัวแปร!C$37,1,"") -> 
B69: 2 | D69: 13 | E69: =SUMIF('3.ชั่วโมงสอนตามตารางสอน'!T$7:T$56,สรุปชั่วโมงสอนต่อสัปดาห์!I69,'3.ชั่วโมงสอนตามตารางสอน'!L$7:L$56) -> 0 | F69: =SUMIF('4.งานสนับสนุนการจัดการเรียนรู้'!#REF!,สรุปชั่วโมงสอนต่อสัปดาห์!I69,'4.งานสนับสนุนการจัดการเรียนรู้'!I$7:I$58) ->  | G69: =SUMIF('5.งานตอบสนองนโยบายและจุดเน้น'!#REF!,สรุปชั่วโมงสอนต่อสัปดาห์!I69,'5.งานตอบสนองนโยบายและจุดเน้น'!I$7:I$58) ->  | I69: 213 | J69: =IF(H69>ตัวแปร!C$37,1,"") -> 
B70: 2 | D70: 14 | E70: =SUMIF('3.ชั่วโมงสอนตามตารางสอน'!T$7:T$56,สรุปชั่วโมงสอนต่อสัปดาห์!I70,'3.ชั่วโมงสอนตามตารางสอน'!L$7:L$56) -> 0 | F70: =SUMIF('4.งานสนับสนุนการจัดการเรียนรู้'!#REF!,สรุปชั่วโมงสอนต่อสัปดาห์!I70,'4.งานสนับสนุนการจัดการเรียนรู้'!I$7:I$58) ->  | G70: =SUMIF('5.งานตอบสนองนโยบายและจุดเน้น'!#REF!,สรุปชั่วโมงสอนต่อสัปดาห์!I70,'5.งานตอบสนองนโยบายและจุดเน้น'!I$7:I$58) ->  | H70: =SUM(E70:G70) ->  | I70: =B70&+D70 -> 214 | J70: =IF(H70>ตัวแปร!C$37,1,"") ->  | K70: =IF(J70=1,"ตรวจสอบ","") -> 
B71: =IF(D70=52,B70+1,B70) -> 2 | D71: 15 | E71: =SUMIF('3.ชั่วโมงสอนตามตารางสอน'!T$7:T$56,สรุปชั่วโมงสอนต่อสัปดาห์!I71,'3.ชั่วโมงสอนตามตารางสอน'!L$7:L$56) -> 0 | F71: =SUMIF('4.งานสนับสนุนการจัดการเรียนรู้'!#REF!,สรุปชั่วโมงสอนต่อสัปดาห์!I71,'4.งานสนับสนุนการจัดการเรียนรู้'!I$7:I$58) ->  | G71: =SUMIF('5.งานตอบสนองนโยบายและจุดเน้น'!#REF!,สรุปชั่วโมงสอนต่อสัปดาห์!I71,'5.งานตอบสนองนโยบายและจุดเน้น'!I$7:I$58) ->  | I71: 215 | J71: =IF(H71>ตัวแปร!C$37,1,"") -> 
B72: 2 | D72: 16 | E72: =SUMIF('3.ชั่วโมงสอนตามตารางสอน'!T$7:T$56,สรุปชั่วโมงสอนต่อสัปดาห์!I72,'3.ชั่วโมงสอนตามตารางสอน'!L$7:L$56) -> 0 | F72: =SUMIF('4.งานสนับสนุนการจัดการเรียนรู้'!#REF!,สรุปชั่วโมงสอนต่อสัปดาห์!I72,'4.งานสนับสนุนการจัดการเรียนรู้'!I$7:I$58) ->  | G72: =SUMIF('5.งานตอบสนองนโยบายและจุดเน้น'!#REF!,สรุปชั่วโมงสอนต่อสัปดาห์!I72,'5.งานตอบสนองนโยบายและจุดเน้น'!I$7:I$58) ->  | I72: 216 | J72: =IF(H72>ตัวแปร!C$37,1,"") -> 
B73: 2 | D73: 17 | E73: =SUMIF('3.ชั่วโมงสอนตามตารางสอน'!T$7:T$56,สรุปชั่วโมงสอนต่อสัปดาห์!I73,'3.ชั่วโมงสอนตามตารางสอน'!L$7:L$56) -> 0 | F73: =SUMIF('4.งานสนับสนุนการจัดการเรียนรู้'!#REF!,สรุปชั่วโมงสอนต่อสัปดาห์!I73,'4.งานสนับสนุนการจัดการเรียนรู้'!I$7:I$58) ->  | G73: =SUMIF('5.งานตอบสนองนโยบายและจุดเน้น'!#REF!,สรุปชั่วโมงสอนต่อสัปดาห์!I73,'5.งานตอบสนองนโยบายและจุดเน้น'!I$7:I$58) ->  | I73: 217 | J73: =IF(H73>ตัวแปร!C$37,1,"") -> 
B74: 2 | D74: 18 | E74: =SUMIF('3.ชั่วโมงสอนตามตารางสอน'!T$7:T$56,สรุปชั่วโมงสอนต่อสัปดาห์!I74,'3.ชั่วโมงสอนตามตารางสอน'!L$7:L$56) -> 0 | F74: =SUMIF('4.งานสนับสนุนการจัดการเรียนรู้'!#REF!,สรุปชั่วโมงสอนต่อสัปดาห์!I74,'4.งานสนับสนุนการจัดการเรียนรู้'!I$7:I$58) ->  | G74: =SUMIF('5.งานตอบสนองนโยบายและจุดเน้น'!#REF!,สรุปชั่วโมงสอนต่อสัปดาห์!I74,'5.งานตอบสนองนโยบายและจุดเน้น'!I$7:I$58) ->  | I74: 218 | J74: =IF(H74>ตัวแปร!C$37,1,"") -> 
B75: 2 | D75: 19 | E75: =SUMIF('3.ชั่วโมงสอนตามตารางสอน'!T$7:T$56,สรุปชั่วโมงสอนต่อสัปดาห์!I75,'3.ชั่วโมงสอนตามตารางสอน'!L$7:L$56) -> 0 | F75: =SUMIF('4.งานสนับสนุนการจัดการเรียนรู้'!#REF!,สรุปชั่วโมงสอนต่อสัปดาห์!I75,'4.งานสนับสนุนการจัดการเรียนรู้'!I$7:I$58) ->  | G75: =SUMIF('5.งานตอบสนองนโยบายและจุดเน้น'!#REF!,สรุปชั่วโมงสอนต่อสัปดาห์!I75,'5.งานตอบสนองนโยบายและจุดเน้น'!I$7:I$58) ->  | I75: 219 | J75: =IF(H75>ตัวแปร!C$37,1,"") -> 
B76: 2 | D76: 20 | E76: =SUMIF('3.ชั่วโมงสอนตามตารางสอน'!T$7:T$56,สรุปชั่วโมงสอนต่อสัปดาห์!I76,'3.ชั่วโมงสอนตามตารางสอน'!L$7:L$56) -> 0 | F76: =SUMIF('4.งานสนับสนุนการจัดการเรียนรู้'!#REF!,สรุปชั่วโมงสอนต่อสัปดาห์!I76,'4.งานสนับสนุนการจัดการเรียนรู้'!I$7:I$58) ->  | G76: =SUMIF('5.งานตอบสนองนโยบายและจุดเน้น'!#REF!,สรุปชั่วโมงสอนต่อสัปดาห์!I76,'5.งานตอบสนองนโยบายและจุดเน้น'!I$7:I$58) ->  | I76: 220 | J76: =IF(H76>ตัวแปร!C$37,1,"") -> 
B77: 2 | D77: 21 | E77: =SUMIF('3.ชั่วโมงสอนตามตารางสอน'!T$7:T$56,สรุปชั่วโมงสอนต่อสัปดาห์!I77,'3.ชั่วโมงสอนตามตารางสอน'!L$7:L$56) -> 0 | F77: =SUMIF('4.งานสนับสนุนการจัดการเรียนรู้'!#REF!,สรุปชั่วโมงสอนต่อสัปดาห์!I77,'4.งานสนับสนุนการจัดการเรียนรู้'!I$7:I$58) ->  | G77: =SUMIF('5.งานตอบสนองนโยบายและจุดเน้น'!#REF!,สรุปชั่วโมงสอนต่อสัปดาห์!I77,'5.งานตอบสนองนโยบายและจุดเน้น'!I$7:I$58) ->  | I77: 221 | J77: =IF(H77>ตัวแปร!C$37,1,"") -> 
B78: 2 | D78: 22 | E78: =SUMIF('3.ชั่วโมงสอนตามตารางสอน'!T$7:T$56,สรุปชั่วโมงสอนต่อสัปดาห์!I78,'3.ชั่วโมงสอนตามตารางสอน'!L$7:L$56) -> 0 | F78: =SUMIF('4.งานสนับสนุนการจัดการเรียนรู้'!#REF!,สรุปชั่วโมงสอนต่อสัปดาห์!I78,'4.งานสนับสนุนการจัดการเรียนรู้'!I$7:I$58) ->  | G78: =SUMIF('5.งานตอบสนองนโยบายและจุดเน้น'!#REF!,สรุปชั่วโมงสอนต่อสัปดาห์!I78,'5.งานตอบสนองนโยบายและจุดเน้น'!I$7:I$58) ->  | I78: 222 | J78: =IF(H78>ตัวแปร!C$37,1,"") -> 
B79: 2 | D79: 23 | E79: =SUMIF('3.ชั่วโมงสอนตามตารางสอน'!T$7:T$56,สรุปชั่วโมงสอนต่อสัปดาห์!I79,'3.ชั่วโมงสอนตามตารางสอน'!L$7:L$56) -> 0 | F79: =SUMIF('4.งานสนับสนุนการจัดการเรียนรู้'!#REF!,สรุปชั่วโมงสอนต่อสัปดาห์!I79,'4.งานสนับสนุนการจัดการเรียนรู้'!I$7:I$58) ->  | G79: =SUMIF('5.งานตอบสนองนโยบายและจุดเน้น'!#REF!,สรุปชั่วโมงสอนต่อสัปดาห์!I79,'5.งานตอบสนองนโยบายและจุดเน้น'!I$7:I$58) ->  | I79: 223 | J79: =IF(H79>ตัวแปร!C$37,1,"") -> 
B80: 2 | D80: 24 | E80: =SUMIF('3.ชั่วโมงสอนตามตารางสอน'!T$7:T$56,สรุปชั่วโมงสอนต่อสัปดาห์!I80,'3.ชั่วโมงสอนตามตารางสอน'!L$7:L$56) -> 0 | F80: =SUMIF('4.งานสนับสนุนการจัดการเรียนรู้'!#REF!,สรุปชั่วโมงสอนต่อสัปดาห์!I80,'4.งานสนับสนุนการจัดการเรียนรู้'!I$7:I$58) ->  | G80: =SUMIF('5.งานตอบสนองนโยบายและจุดเน้น'!#REF!,สรุปชั่วโมงสอนต่อสัปดาห์!I80,'5.งานตอบสนองนโยบายและจุดเน้น'!I$7:I$58) ->  | I80: 224 | J80: =IF(H80>ตัวแปร!C$37,1,"") -> 
B81: 2 | D81: 25 | E81: =SUMIF('3.ชั่วโมงสอนตามตารางสอน'!T$7:T$56,สรุปชั่วโมงสอนต่อสัปดาห์!I81,'3.ชั่วโมงสอนตามตารางสอน'!L$7:L$56) -> 0 | F81: =SUMIF('4.งานสนับสนุนการจัดการเรียนรู้'!#REF!,สรุปชั่วโมงสอนต่อสัปดาห์!I81,'4.งานสนับสนุนการจัดการเรียนรู้'!I$7:I$58) ->  | G81: =SUMIF('5.งานตอบสนองนโยบายและจุดเน้น'!#REF!,สรุปชั่วโมงสอนต่อสัปดาห์!I81,'5.งานตอบสนองนโยบายและจุดเน้น'!I$7:I$58) ->  | I81: 225 | J81: =IF(H81>ตัวแปร!C$37,1,"") -> 
B82: 2 | D82: 26 | E82: =SUMIF('3.ชั่วโมงสอนตามตารางสอน'!T$7:T$56,สรุปชั่วโมงสอนต่อสัปดาห์!I82,'3.ชั่วโมงสอนตามตารางสอน'!L$7:L$56) -> 0 | F82: =SUMIF('4.งานสนับสนุนการจัดการเรียนรู้'!#REF!,สรุปชั่วโมงสอนต่อสัปดาห์!I82,'4.งานสนับสนุนการจัดการเรียนรู้'!I$7:I$58) ->  | G82: =SUMIF('5.งานตอบสนองนโยบายและจุดเน้น'!#REF!,สรุปชั่วโมงสอนต่อสัปดาห์!I82,'5.งานตอบสนองนโยบายและจุดเน้น'!I$7:I$58) ->  | I82: 226 | J82: =IF(H82>ตัวแปร!C$37,1,"") -> 
B83: 2 | D83: 27 | E83: =SUMIF('3.ชั่วโมงสอนตามตารางสอน'!T$7:T$56,สรุปชั่วโมงสอนต่อสัปดาห์!I83,'3.ชั่วโมงสอนตามตารางสอน'!L$7:L$56) -> 0 | F83: =SUMIF('4.งานสนับสนุนการจัดการเรียนรู้'!#REF!,สรุปชั่วโมงสอนต่อสัปดาห์!I83,'4.งานสนับสนุนการจัดการเรียนรู้'!I$7:I$58) ->  | G83: =SUMIF('5.งานตอบสนองนโยบายและจุดเน้น'!#REF!,สรุปชั่วโมงสอนต่อสัปดาห์!I83,'5.งานตอบสนองนโยบายและจุดเน้น'!I$7:I$58) ->  | I83: 227 | J83: =IF(H83>ตัวแปร!C$37,1,"") -> 
B84: 2 | D84: 28 | E84: =SUMIF('3.ชั่วโมงสอนตามตารางสอน'!T$7:T$56,สรุปชั่วโมงสอนต่อสัปดาห์!I84,'3.ชั่วโมงสอนตามตารางสอน'!L$7:L$56) -> 0 | F84: =SUMIF('4.งานสนับสนุนการจัดการเรียนรู้'!#REF!,สรุปชั่วโมงสอนต่อสัปดาห์!I84,'4.งานสนับสนุนการจัดการเรียนรู้'!I$7:I$58) ->  | G84: =SUMIF('5.งานตอบสนองนโยบายและจุดเน้น'!#REF!,สรุปชั่วโมงสอนต่อสัปดาห์!I84,'5.งานตอบสนองนโยบายและจุดเน้น'!I$7:I$58) ->  | I84: 228 | J84: =IF(H84>ตัวแปร!C$37,1,"") -> 
B85: 2 | D85: 29 | E85: =SUMIF('3.ชั่วโมงสอนตามตารางสอน'!T$7:T$56,สรุปชั่วโมงสอนต่อสัปดาห์!I85,'3.ชั่วโมงสอนตามตารางสอน'!L$7:L$56) -> 0 | F85: =SUMIF('4.งานสนับสนุนการจัดการเรียนรู้'!#REF!,สรุปชั่วโมงสอนต่อสัปดาห์!I85,'4.งานสนับสนุนการจัดการเรียนรู้'!I$7:I$58) ->  | G85: =SUMIF('5.งานตอบสนองนโยบายและจุดเน้น'!#REF!,สรุปชั่วโมงสอนต่อสัปดาห์!I85,'5.งานตอบสนองนโยบายและจุดเน้น'!I$7:I$58) ->  | I85: 229 | J85: =IF(H85>ตัวแปร!C$37,1,"") -> 
B86: 2 | D86: 30 | E86: =SUMIF('3.ชั่วโมงสอนตามตารางสอน'!T$7:T$56,สรุปชั่วโมงสอนต่อสัปดาห์!I86,'3.ชั่วโมงสอนตามตารางสอน'!L$7:L$56) -> 0 | F86: =SUMIF('4.งานสนับสนุนการจัดการเรียนรู้'!#REF!,สรุปชั่วโมงสอนต่อสัปดาห์!I86,'4.งานสนับสนุนการจัดการเรียนรู้'!I$7:I$58) ->  | G86: =SUMIF('5.งานตอบสนองนโยบายและจุดเน้น'!#REF!,สรุปชั่วโมงสอนต่อสัปดาห์!I86,'5.งานตอบสนองนโยบายและจุดเน้น'!I$7:I$58) ->  | I86: 230 | J86: =IF(H86>ตัวแปร!C$37,1,"") -> 
B87: 2 | D87: 31 | E87: =SUMIF('3.ชั่วโมงสอนตามตารางสอน'!T$7:T$56,สรุปชั่วโมงสอนต่อสัปดาห์!I87,'3.ชั่วโมงสอนตามตารางสอน'!L$7:L$56) -> 0 | F87: =SUMIF('4.งานสนับสนุนการจัดการเรียนรู้'!#REF!,สรุปชั่วโมงสอนต่อสัปดาห์!I87,'4.งานสนับสนุนการจัดการเรียนรู้'!I$7:I$58) ->  | G87: =SUMIF('5.งานตอบสนองนโยบายและจุดเน้น'!#REF!,สรุปชั่วโมงสอนต่อสัปดาห์!I87,'5.งานตอบสนองนโยบายและจุดเน้น'!I$7:I$58) ->  | I87: 231 | J87: =IF(H87>ตัวแปร!C$37,1,"") -> 
B88: 2 | D88: 32 | E88: =SUMIF('3.ชั่วโมงสอนตามตารางสอน'!T$7:T$56,สรุปชั่วโมงสอนต่อสัปดาห์!I88,'3.ชั่วโมงสอนตามตารางสอน'!L$7:L$56) -> 0 | F88: =SUMIF('4.งานสนับสนุนการจัดการเรียนรู้'!#REF!,สรุปชั่วโมงสอนต่อสัปดาห์!I88,'4.งานสนับสนุนการจัดการเรียนรู้'!I$7:I$58) ->  | G88: =SUMIF('5.งานตอบสนองนโยบายและจุดเน้น'!#REF!,สรุปชั่วโมงสอนต่อสัปดาห์!I88,'5.งานตอบสนองนโยบายและจุดเน้น'!I$7:I$58) ->  | I88: 232 | J88: =IF(H88>ตัวแปร!C$37,1,"") -> 
B89: 2 | D89: 33 | E89: =SUMIF('3.ชั่วโมงสอนตามตารางสอน'!T$7:T$56,สรุปชั่วโมงสอนต่อสัปดาห์!I89,'3.ชั่วโมงสอนตามตารางสอน'!L$7:L$56) -> 0 | F89: =SUMIF('4.งานสนับสนุนการจัดการเรียนรู้'!#REF!,สรุปชั่วโมงสอนต่อสัปดาห์!I89,'4.งานสนับสนุนการจัดการเรียนรู้'!I$7:I$58) ->  | G89: =SUMIF('5.งานตอบสนองนโยบายและจุดเน้น'!#REF!,สรุปชั่วโมงสอนต่อสัปดาห์!I89,'5.งานตอบสนองนโยบายและจุดเน้น'!I$7:I$58) ->  | I89: 233 | J89: =IF(H89>ตัวแปร!C$37,1,"") -> 
B90: 2 | D90: 34 | E90: =SUMIF('3.ชั่วโมงสอนตามตารางสอน'!T$7:T$56,สรุปชั่วโมงสอนต่อสัปดาห์!I90,'3.ชั่วโมงสอนตามตารางสอน'!L$7:L$56) -> 0 | F90: =SUMIF('4.งานสนับสนุนการจัดการเรียนรู้'!#REF!,สรุปชั่วโมงสอนต่อสัปดาห์!I90,'4.งานสนับสนุนการจัดการเรียนรู้'!I$7:I$58) ->  | G90: =SUMIF('5.งานตอบสนองนโยบายและจุดเน้น'!#REF!,สรุปชั่วโมงสอนต่อสัปดาห์!I90,'5.งานตอบสนองนโยบายและจุดเน้น'!I$7:I$58) ->  | I90: 234 | J90: =IF(H90>ตัวแปร!C$37,1,"") -> 
B91: 2 | D91: 35 | E91: =SUMIF('3.ชั่วโมงสอนตามตารางสอน'!T$7:T$56,สรุปชั่วโมงสอนต่อสัปดาห์!I91,'3.ชั่วโมงสอนตามตารางสอน'!L$7:L$56) -> 0 | F91: =SUMIF('4.งานสนับสนุนการจัดการเรียนรู้'!#REF!,สรุปชั่วโมงสอนต่อสัปดาห์!I91,'4.งานสนับสนุนการจัดการเรียนรู้'!I$7:I$58) ->  | G91: =SUMIF('5.งานตอบสนองนโยบายและจุดเน้น'!#REF!,สรุปชั่วโมงสอนต่อสัปดาห์!I91,'5.งานตอบสนองนโยบายและจุดเน้น'!I$7:I$58) ->  | I91: 235 | J91: =IF(H91>ตัวแปร!C$37,1,"") -> 
B92: 2 | D92: 36 | E92: =SUMIF('3.ชั่วโมงสอนตามตารางสอน'!T$7:T$56,สรุปชั่วโมงสอนต่อสัปดาห์!I92,'3.ชั่วโมงสอนตามตารางสอน'!L$7:L$56) -> 0 | F92: =SUMIF('4.งานสนับสนุนการจัดการเรียนรู้'!#REF!,สรุปชั่วโมงสอนต่อสัปดาห์!I92,'4.งานสนับสนุนการจัดการเรียนรู้'!I$7:I$58) ->  | G92: =SUMIF('5.งานตอบสนองนโยบายและจุดเน้น'!#REF!,สรุปชั่วโมงสอนต่อสัปดาห์!I92,'5.งานตอบสนองนโยบายและจุดเน้น'!I$7:I$58) ->  | I92: 236 | J92: =IF(H92>ตัวแปร!C$37,1,"") -> 
B93: 2 | D93: 37 | E93: =SUMIF('3.ชั่วโมงสอนตามตารางสอน'!T$7:T$56,สรุปชั่วโมงสอนต่อสัปดาห์!I93,'3.ชั่วโมงสอนตามตารางสอน'!L$7:L$56) -> 0 | F93: =SUMIF('4.งานสนับสนุนการจัดการเรียนรู้'!#REF!,สรุปชั่วโมงสอนต่อสัปดาห์!I93,'4.งานสนับสนุนการจัดการเรียนรู้'!I$7:I$58) ->  | G93: =SUMIF('5.งานตอบสนองนโยบายและจุดเน้น'!#REF!,สรุปชั่วโมงสอนต่อสัปดาห์!I93,'5.งานตอบสนองนโยบายและจุดเน้น'!I$7:I$58) ->  | I93: 237 | J93: =IF(H93>ตัวแปร!C$37,1,"") -> 
B94: 2 | D94: 38 | E94: =SUMIF('3.ชั่วโมงสอนตามตารางสอน'!T$7:T$56,สรุปชั่วโมงสอนต่อสัปดาห์!I94,'3.ชั่วโมงสอนตามตารางสอน'!L$7:L$56) -> 0 | F94: =SUMIF('4.งานสนับสนุนการจัดการเรียนรู้'!#REF!,สรุปชั่วโมงสอนต่อสัปดาห์!I94,'4.งานสนับสนุนการจัดการเรียนรู้'!I$7:I$58) ->  | G94: =SUMIF('5.งานตอบสนองนโยบายและจุดเน้น'!#REF!,สรุปชั่วโมงสอนต่อสัปดาห์!I94,'5.งานตอบสนองนโยบายและจุดเน้น'!I$7:I$58) ->  | I94: 238 | J94: =IF(H94>ตัวแปร!C$37,1,"") -> 
B95: 2 | D95: 39 | E95: =SUMIF('3.ชั่วโมงสอนตามตารางสอน'!T$7:T$56,สรุปชั่วโมงสอนต่อสัปดาห์!I95,'3.ชั่วโมงสอนตามตารางสอน'!L$7:L$56) -> 0 | F95: =SUMIF('4.งานสนับสนุนการจัดการเรียนรู้'!#REF!,สรุปชั่วโมงสอนต่อสัปดาห์!I95,'4.งานสนับสนุนการจัดการเรียนรู้'!I$7:I$58) ->  | G95: =SUMIF('5.งานตอบสนองนโยบายและจุดเน้น'!#REF!,สรุปชั่วโมงสอนต่อสัปดาห์!I95,'5.งานตอบสนองนโยบายและจุดเน้น'!I$7:I$58) ->  | I95: 239 | J95: =IF(H95>ตัวแปร!C$37,1,"") -> 
B96: 2 | D96: 40 | E96: =SUMIF('3.ชั่วโมงสอนตามตารางสอน'!T$7:T$56,สรุปชั่วโมงสอนต่อสัปดาห์!I96,'3.ชั่วโมงสอนตามตารางสอน'!L$7:L$56) -> 0 | F96: =SUMIF('4.งานสนับสนุนการจัดการเรียนรู้'!#REF!,สรุปชั่วโมงสอนต่อสัปดาห์!I96,'4.งานสนับสนุนการจัดการเรียนรู้'!I$7:I$58) ->  | G96: =SUMIF('5.งานตอบสนองนโยบายและจุดเน้น'!#REF!,สรุปชั่วโมงสอนต่อสัปดาห์!I96,'5.งานตอบสนองนโยบายและจุดเน้น'!I$7:I$58) ->  | I96: 240 | J96: =IF(H96>ตัวแปร!C$37,1,"") -> 
B97: 2 | D97: 41 | E97: =SUMIF('3.ชั่วโมงสอนตามตารางสอน'!T$7:T$56,สรุปชั่วโมงสอนต่อสัปดาห์!I97,'3.ชั่วโมงสอนตามตารางสอน'!L$7:L$56) -> 0 | F97: =SUMIF('4.งานสนับสนุนการจัดการเรียนรู้'!#REF!,สรุปชั่วโมงสอนต่อสัปดาห์!I97,'4.งานสนับสนุนการจัดการเรียนรู้'!I$7:I$58) ->  | G97: =SUMIF('5.งานตอบสนองนโยบายและจุดเน้น'!#REF!,สรุปชั่วโมงสอนต่อสัปดาห์!I97,'5.งานตอบสนองนโยบายและจุดเน้น'!I$7:I$58) ->  | I97: 241 | J97: =IF(H97>ตัวแปร!C$37,1,"") -> 
B98: 2 | D98: 42 | E98: =SUMIF('3.ชั่วโมงสอนตามตารางสอน'!T$7:T$56,สรุปชั่วโมงสอนต่อสัปดาห์!I98,'3.ชั่วโมงสอนตามตารางสอน'!L$7:L$56) -> 0 | F98: =SUMIF('4.งานสนับสนุนการจัดการเรียนรู้'!#REF!,สรุปชั่วโมงสอนต่อสัปดาห์!I98,'4.งานสนับสนุนการจัดการเรียนรู้'!I$7:I$58) ->  | G98: =SUMIF('5.งานตอบสนองนโยบายและจุดเน้น'!#REF!,สรุปชั่วโมงสอนต่อสัปดาห์!I98,'5.งานตอบสนองนโยบายและจุดเน้น'!I$7:I$58) ->  | I98: 242 | J98: =IF(H98>ตัวแปร!C$37,1,"") -> 
B99: 2 | D99: 43 | E99: =SUMIF('3.ชั่วโมงสอนตามตารางสอน'!T$7:T$56,สรุปชั่วโมงสอนต่อสัปดาห์!I99,'3.ชั่วโมงสอนตามตารางสอน'!L$7:L$56) -> 0 | F99: =SUMIF('4.งานสนับสนุนการจัดการเรียนรู้'!#REF!,สรุปชั่วโมงสอนต่อสัปดาห์!I99,'4.งานสนับสนุนการจัดการเรียนรู้'!I$7:I$58) ->  | G99: =SUMIF('5.งานตอบสนองนโยบายและจุดเน้น'!#REF!,สรุปชั่วโมงสอนต่อสัปดาห์!I99,'5.งานตอบสนองนโยบายและจุดเน้น'!I$7:I$58) ->  | I99: 243 | J99: =IF(H99>ตัวแปร!C$37,1,"") -> 
B100: 2 | D100: 44 | E100: =SUMIF('3.ชั่วโมงสอนตามตารางสอน'!T$7:T$56,สรุปชั่วโมงสอนต่อสัปดาห์!I100,'3.ชั่วโมงสอนตามตารางสอน'!L$7:L$56) -> 0 | F100: =SUMIF('4.งานสนับสนุนการจัดการเรียนรู้'!#REF!,สรุปชั่วโมงสอนต่อสัปดาห์!I100,'4.งานสนับสนุนการจัดการเรียนรู้'!I$7:I$58) ->  | G100: =SUMIF('5.งานตอบสนองนโยบายและจุดเน้น'!#REF!,สรุปชั่วโมงสอนต่อสัปดาห์!I100,'5.งานตอบสนองนโยบายและจุดเน้น'!I$7:I$58) ->  | I100: 244 | J100: =IF(H100>ตัวแปร!C$37,1,"") -> 
B101: 2 | D101: 45 | E101: =SUMIF('3.ชั่วโมงสอนตามตารางสอน'!T$7:T$56,สรุปชั่วโมงสอนต่อสัปดาห์!I101,'3.ชั่วโมงสอนตามตารางสอน'!L$7:L$56) -> 0 | F101: =SUMIF('4.งานสนับสนุนการจัดการเรียนรู้'!#REF!,สรุปชั่วโมงสอนต่อสัปดาห์!I101,'4.งานสนับสนุนการจัดการเรียนรู้'!I$7:I$58) ->  | G101: =SUMIF('5.งานตอบสนองนโยบายและจุดเน้น'!#REF!,สรุปชั่วโมงสอนต่อสัปดาห์!I101,'5.งานตอบสนองนโยบายและจุดเน้น'!I$7:I$58) ->  | I101: 245 | J101: =IF(H101>ตัวแปร!C$37,1,"") -> 
B102: 2 | D102: 46 | E102: =SUMIF('3.ชั่วโมงสอนตามตารางสอน'!T$7:T$56,สรุปชั่วโมงสอนต่อสัปดาห์!I102,'3.ชั่วโมงสอนตามตารางสอน'!L$7:L$56) -> 0 | F102: =SUMIF('4.งานสนับสนุนการจัดการเรียนรู้'!#REF!,สรุปชั่วโมงสอนต่อสัปดาห์!I102,'4.งานสนับสนุนการจัดการเรียนรู้'!I$7:I$58) ->  | G102: =SUMIF('5.งานตอบสนองนโยบายและจุดเน้น'!#REF!,สรุปชั่วโมงสอนต่อสัปดาห์!I102,'5.งานตอบสนองนโยบายและจุดเน้น'!I$7:I$58) ->  | I102: 246 | J102: =IF(H102>ตัวแปร!C$37,1,"") -> 
B103: 2 | D103: 47 | E103: =SUMIF('3.ชั่วโมงสอนตามตารางสอน'!T$7:T$56,สรุปชั่วโมงสอนต่อสัปดาห์!I103,'3.ชั่วโมงสอนตามตารางสอน'!L$7:L$56) -> 0 | F103: =SUMIF('4.งานสนับสนุนการจัดการเรียนรู้'!#REF!,สรุปชั่วโมงสอนต่อสัปดาห์!I103,'4.งานสนับสนุนการจัดการเรียนรู้'!I$7:I$58) ->  | G103: =SUMIF('5.งานตอบสนองนโยบายและจุดเน้น'!#REF!,สรุปชั่วโมงสอนต่อสัปดาห์!I103,'5.งานตอบสนองนโยบายและจุดเน้น'!I$7:I$58) ->  | I103: 247 | J103: =IF(H103>ตัวแปร!C$37,1,"") -> 
B104: 2 | D104: 48 | E104: =SUMIF('3.ชั่วโมงสอนตามตารางสอน'!T$7:T$56,สรุปชั่วโมงสอนต่อสัปดาห์!I104,'3.ชั่วโมงสอนตามตารางสอน'!L$7:L$56) -> 0 | F104: =SUMIF('4.งานสนับสนุนการจัดการเรียนรู้'!#REF!,สรุปชั่วโมงสอนต่อสัปดาห์!I104,'4.งานสนับสนุนการจัดการเรียนรู้'!I$7:I$58) ->  | G104: =SUMIF('5.งานตอบสนองนโยบายและจุดเน้น'!#REF!,สรุปชั่วโมงสอนต่อสัปดาห์!I104,'5.งานตอบสนองนโยบายและจุดเน้น'!I$7:I$58) ->  | I104: 248 | J104: =IF(H104>ตัวแปร!C$37,1,"") -> 
B105: 2 | D105: 49 | E105: =SUMIF('3.ชั่วโมงสอนตามตารางสอน'!T$7:T$56,สรุปชั่วโมงสอนต่อสัปดาห์!I105,'3.ชั่วโมงสอนตามตารางสอน'!L$7:L$56) -> 0 | F105: =SUMIF('4.งานสนับสนุนการจัดการเรียนรู้'!#REF!,สรุปชั่วโมงสอนต่อสัปดาห์!I105,'4.งานสนับสนุนการจัดการเรียนรู้'!I$7:I$58) ->  | G105: =SUMIF('5.งานตอบสนองนโยบายและจุดเน้น'!#REF!,สรุปชั่วโมงสอนต่อสัปดาห์!I105,'5.งานตอบสนองนโยบายและจุดเน้น'!I$7:I$58) ->  | I105: 249 | J105: =IF(H105>ตัวแปร!C$37,1,"") -> 
B106: 2 | D106: 50 | E106: =SUMIF('3.ชั่วโมงสอนตามตารางสอน'!T$7:T$56,สรุปชั่วโมงสอนต่อสัปดาห์!I106,'3.ชั่วโมงสอนตามตารางสอน'!L$7:L$56) -> 0 | F106: =SUMIF('4.งานสนับสนุนการจัดการเรียนรู้'!#REF!,สรุปชั่วโมงสอนต่อสัปดาห์!I106,'4.งานสนับสนุนการจัดการเรียนรู้'!I$7:I$58) ->  | G106: =SUMIF('5.งานตอบสนองนโยบายและจุดเน้น'!#REF!,สรุปชั่วโมงสอนต่อสัปดาห์!I106,'5.งานตอบสนองนโยบายและจุดเน้น'!I$7:I$58) ->  | I106: 250 | J106: =IF(H106>ตัวแปร!C$37,1,"") -> 
B107: 2 | D107: 51 | E107: =SUMIF('3.ชั่วโมงสอนตามตารางสอน'!T$7:T$56,สรุปชั่วโมงสอนต่อสัปดาห์!I107,'3.ชั่วโมงสอนตามตารางสอน'!L$7:L$56) -> 0 | F107: =SUMIF('4.งานสนับสนุนการจัดการเรียนรู้'!#REF!,สรุปชั่วโมงสอนต่อสัปดาห์!I107,'4.งานสนับสนุนการจัดการเรียนรู้'!I$7:I$58) ->  | G107: =SUMIF('5.งานตอบสนองนโยบายและจุดเน้น'!#REF!,สรุปชั่วโมงสอนต่อสัปดาห์!I107,'5.งานตอบสนองนโยบายและจุดเน้น'!I$7:I$58) ->  | I107: 251 | J107: =IF(H107>ตัวแปร!C$37,1,"") -> 
B108: 2 | D108: 52 | E108: =SUMIF('3.ชั่วโมงสอนตามตารางสอน'!T$7:T$56,สรุปชั่วโมงสอนต่อสัปดาห์!I108,'3.ชั่วโมงสอนตามตารางสอน'!L$7:L$56) -> 0 | F108: =SUMIF('4.งานสนับสนุนการจัดการเรียนรู้'!#REF!,สรุปชั่วโมงสอนต่อสัปดาห์!I108,'4.งานสนับสนุนการจัดการเรียนรู้'!I$7:I$58) ->  | G108: =SUMIF('5.งานตอบสนองนโยบายและจุดเน้น'!#REF!,สรุปชั่วโมงสอนต่อสัปดาห์!I108,'5.งานตอบสนองนโยบายและจุดเน้น'!I$7:I$58) ->  | I108: 252 | J108: =IF(H108>ตัวแปร!C$37,1,"") -> 
B109: 3 | D109: 1 | E109: =SUMIF('3.ชั่วโมงสอนตามตารางสอน'!T$7:T$56,สรุปชั่วโมงสอนต่อสัปดาห์!I109,'3.ชั่วโมงสอนตามตารางสอน'!L$7:L$56) -> 0 | F109: =SUMIF('4.งานสนับสนุนการจัดการเรียนรู้'!#REF!,สรุปชั่วโมงสอนต่อสัปดาห์!I109,'4.งานสนับสนุนการจัดการเรียนรู้'!I$7:I$58) ->  | G109: =SUMIF('5.งานตอบสนองนโยบายและจุดเน้น'!#REF!,สรุปชั่วโมงสอนต่อสัปดาห์!I109,'5.งานตอบสนองนโยบายและจุดเน้น'!I$7:I$58) ->  | I109: 31 | J109: =IF(H109>ตัวแปร!C$37,1,"") -> 
B110: 3 | D110: 2 | E110: =SUMIF('3.ชั่วโมงสอนตามตารางสอน'!T$7:T$56,สรุปชั่วโมงสอนต่อสัปดาห์!I110,'3.ชั่วโมงสอนตามตารางสอน'!L$7:L$56) -> 0 | F110: =SUMIF('4.งานสนับสนุนการจัดการเรียนรู้'!#REF!,สรุปชั่วโมงสอนต่อสัปดาห์!I110,'4.งานสนับสนุนการจัดการเรียนรู้'!I$7:I$58) ->  | G110: =SUMIF('5.งานตอบสนองนโยบายและจุดเน้น'!#REF!,สรุปชั่วโมงสอนต่อสัปดาห์!I110,'5.งานตอบสนองนโยบายและจุดเน้น'!I$7:I$58) ->  | I110: 32 | J110: =IF(H110>ตัวแปร!C$37,1,"") -> 
B111: 3 | D111: 3 | E111: =SUMIF('3.ชั่วโมงสอนตามตารางสอน'!T$7:T$56,สรุปชั่วโมงสอนต่อสัปดาห์!I111,'3.ชั่วโมงสอนตามตารางสอน'!L$7:L$56) -> 0 | F111: =SUMIF('4.งานสนับสนุนการจัดการเรียนรู้'!#REF!,สรุปชั่วโมงสอนต่อสัปดาห์!I111,'4.งานสนับสนุนการจัดการเรียนรู้'!I$7:I$58) ->  | G111: =SUMIF('5.งานตอบสนองนโยบายและจุดเน้น'!#REF!,สรุปชั่วโมงสอนต่อสัปดาห์!I111,'5.งานตอบสนองนโยบายและจุดเน้น'!I$7:I$58) ->  | I111: 33 | J111: =IF(H111>ตัวแปร!C$37,1,"") -> 
B112: 3 | D112: 4 | E112: =SUMIF('3.ชั่วโมงสอนตามตารางสอน'!T$7:T$56,สรุปชั่วโมงสอนต่อสัปดาห์!I112,'3.ชั่วโมงสอนตามตารางสอน'!L$7:L$56) -> 0 | F112: =SUMIF('4.งานสนับสนุนการจัดการเรียนรู้'!#REF!,สรุปชั่วโมงสอนต่อสัปดาห์!I112,'4.งานสนับสนุนการจัดการเรียนรู้'!I$7:I$58) ->  | G112: =SUMIF('5.งานตอบสนองนโยบายและจุดเน้น'!#REF!,สรุปชั่วโมงสอนต่อสัปดาห์!I112,'5.งานตอบสนองนโยบายและจุดเน้น'!I$7:I$58) ->  | I112: 34 | J112: =IF(H112>ตัวแปร!C$37,1,"") -> 
B113: 3 | D113: 5 | E113: =SUMIF('3.ชั่วโมงสอนตามตารางสอน'!T$7:T$56,สรุปชั่วโมงสอนต่อสัปดาห์!I113,'3.ชั่วโมงสอนตามตารางสอน'!L$7:L$56) -> 0 | F113: =SUMIF('4.งานสนับสนุนการจัดการเรียนรู้'!#REF!,สรุปชั่วโมงสอนต่อสัปดาห์!I113,'4.งานสนับสนุนการจัดการเรียนรู้'!I$7:I$58) ->  | G113: =SUMIF('5.งานตอบสนองนโยบายและจุดเน้น'!#REF!,สรุปชั่วโมงสอนต่อสัปดาห์!I113,'5.งานตอบสนองนโยบายและจุดเน้น'!I$7:I$58) ->  | I113: 35 | J113: =IF(H113>ตัวแปร!C$37,1,"") -> 
B114: 3 | D114: 6 | E114: =SUMIF('3.ชั่วโมงสอนตามตารางสอน'!T$7:T$56,สรุปชั่วโมงสอนต่อสัปดาห์!I114,'3.ชั่วโมงสอนตามตารางสอน'!L$7:L$56) -> 0 | F114: =SUMIF('4.งานสนับสนุนการจัดการเรียนรู้'!#REF!,สรุปชั่วโมงสอนต่อสัปดาห์!I114,'4.งานสนับสนุนการจัดการเรียนรู้'!I$7:I$58) ->  | G114: =SUMIF('5.งานตอบสนองนโยบายและจุดเน้น'!#REF!,สรุปชั่วโมงสอนต่อสัปดาห์!I114,'5.งานตอบสนองนโยบายและจุดเน้น'!I$7:I$58) ->  | I114: 36 | J114: =IF(H114>ตัวแปร!C$37,1,"") -> 
B115: 3 | D115: 7 | E115: =SUMIF('3.ชั่วโมงสอนตามตารางสอน'!T$7:T$56,สรุปชั่วโมงสอนต่อสัปดาห์!I115,'3.ชั่วโมงสอนตามตารางสอน'!L$7:L$56) -> 0 | F115: =SUMIF('4.งานสนับสนุนการจัดการเรียนรู้'!#REF!,สรุปชั่วโมงสอนต่อสัปดาห์!I115,'4.งานสนับสนุนการจัดการเรียนรู้'!I$7:I$58) ->  | G115: =SUMIF('5.งานตอบสนองนโยบายและจุดเน้น'!#REF!,สรุปชั่วโมงสอนต่อสัปดาห์!I115,'5.งานตอบสนองนโยบายและจุดเน้น'!I$7:I$58) ->  | I115: 37 | J115: =IF(H115>ตัวแปร!C$37,1,"") -> 
B116: 3 | D116: 8 | E116: =SUMIF('3.ชั่วโมงสอนตามตารางสอน'!T$7:T$56,สรุปชั่วโมงสอนต่อสัปดาห์!I116,'3.ชั่วโมงสอนตามตารางสอน'!L$7:L$56) -> 0 | F116: =SUMIF('4.งานสนับสนุนการจัดการเรียนรู้'!#REF!,สรุปชั่วโมงสอนต่อสัปดาห์!I116,'4.งานสนับสนุนการจัดการเรียนรู้'!I$7:I$58) ->  | G116: =SUMIF('5.งานตอบสนองนโยบายและจุดเน้น'!#REF!,สรุปชั่วโมงสอนต่อสัปดาห์!I116,'5.งานตอบสนองนโยบายและจุดเน้น'!I$7:I$58) ->  | I116: 38 | J116: =IF(H116>ตัวแปร!C$37,1,"") -> 
B117: 3 | D117: 9 | E117: =SUMIF('3.ชั่วโมงสอนตามตารางสอน'!T$7:T$56,สรุปชั่วโมงสอนต่อสัปดาห์!I117,'3.ชั่วโมงสอนตามตารางสอน'!L$7:L$56) -> 0 | F117: =SUMIF('4.งานสนับสนุนการจัดการเรียนรู้'!#REF!,สรุปชั่วโมงสอนต่อสัปดาห์!I117,'4.งานสนับสนุนการจัดการเรียนรู้'!I$7:I$58) ->  | G117: =SUMIF('5.งานตอบสนองนโยบายและจุดเน้น'!#REF!,สรุปชั่วโมงสอนต่อสัปดาห์!I117,'5.งานตอบสนองนโยบายและจุดเน้น'!I$7:I$58) ->  | I117: 39 | J117: =IF(H117>ตัวแปร!C$37,1,"") -> 
B118: 3 | D118: 10 | E118: =SUMIF('3.ชั่วโมงสอนตามตารางสอน'!T$7:T$56,สรุปชั่วโมงสอนต่อสัปดาห์!I118,'3.ชั่วโมงสอนตามตารางสอน'!L$7:L$56) -> 0 | F118: =SUMIF('4.งานสนับสนุนการจัดการเรียนรู้'!#REF!,สรุปชั่วโมงสอนต่อสัปดาห์!I118,'4.งานสนับสนุนการจัดการเรียนรู้'!I$7:I$58) ->  | G118: =SUMIF('5.งานตอบสนองนโยบายและจุดเน้น'!#REF!,สรุปชั่วโมงสอนต่อสัปดาห์!I118,'5.งานตอบสนองนโยบายและจุดเน้น'!I$7:I$58) ->  | I118: 310 | J118: =IF(H118>ตัวแปร!C$37,1,"") -> 
B119: 3 | D119: 11 | E119: =SUMIF('3.ชั่วโมงสอนตามตารางสอน'!T$7:T$56,สรุปชั่วโมงสอนต่อสัปดาห์!I119,'3.ชั่วโมงสอนตามตารางสอน'!L$7:L$56) -> 0 | F119: =SUMIF('4.งานสนับสนุนการจัดการเรียนรู้'!#REF!,สรุปชั่วโมงสอนต่อสัปดาห์!I119,'4.งานสนับสนุนการจัดการเรียนรู้'!I$7:I$58) ->  | G119: =SUMIF('5.งานตอบสนองนโยบายและจุดเน้น'!#REF!,สรุปชั่วโมงสอนต่อสัปดาห์!I119,'5.งานตอบสนองนโยบายและจุดเน้น'!I$7:I$58) ->  | I119: 311 | J119: =IF(H119>ตัวแปร!C$37,1,"") -> 
B120: 3 | D120: 12 | E120: =SUMIF('3.ชั่วโมงสอนตามตารางสอน'!T$7:T$56,สรุปชั่วโมงสอนต่อสัปดาห์!I120,'3.ชั่วโมงสอนตามตารางสอน'!L$7:L$56) -> 0 | F120: =SUMIF('4.งานสนับสนุนการจัดการเรียนรู้'!#REF!,สรุปชั่วโมงสอนต่อสัปดาห์!I120,'4.งานสนับสนุนการจัดการเรียนรู้'!I$7:I$58) ->  | G120: =SUMIF('5.งานตอบสนองนโยบายและจุดเน้น'!#REF!,สรุปชั่วโมงสอนต่อสัปดาห์!I120,'5.งานตอบสนองนโยบายและจุดเน้น'!I$7:I$58) ->  | I120: 312 | J120: =IF(H120>ตัวแปร!C$37,1,"") -> 
B121: 3 | D121: 13 | E121: =SUMIF('3.ชั่วโมงสอนตามตารางสอน'!T$7:T$56,สรุปชั่วโมงสอนต่อสัปดาห์!I121,'3.ชั่วโมงสอนตามตารางสอน'!L$7:L$56) -> 0 | F121: =SUMIF('4.งานสนับสนุนการจัดการเรียนรู้'!#REF!,สรุปชั่วโมงสอนต่อสัปดาห์!I121,'4.งานสนับสนุนการจัดการเรียนรู้'!I$7:I$58) ->  | G121: =SUMIF('5.งานตอบสนองนโยบายและจุดเน้น'!#REF!,สรุปชั่วโมงสอนต่อสัปดาห์!I121,'5.งานตอบสนองนโยบายและจุดเน้น'!I$7:I$58) ->  | I121: 313 | J121: =IF(H121>ตัวแปร!C$37,1,"") -> 
B122: 3 | D122: 14 | E122: =SUMIF('3.ชั่วโมงสอนตามตารางสอน'!T$7:T$56,สรุปชั่วโมงสอนต่อสัปดาห์!I122,'3.ชั่วโมงสอนตามตารางสอน'!L$7:L$56) -> 0 | F122: =SUMIF('4.งานสนับสนุนการจัดการเรียนรู้'!#REF!,สรุปชั่วโมงสอนต่อสัปดาห์!I122,'4.งานสนับสนุนการจัดการเรียนรู้'!I$7:I$58) ->  | G122: =SUMIF('5.งานตอบสนองนโยบายและจุดเน้น'!#REF!,สรุปชั่วโมงสอนต่อสัปดาห์!I122,'5.งานตอบสนองนโยบายและจุดเน้น'!I$7:I$58) ->  | I122: 314 | J122: =IF(H122>ตัวแปร!C$37,1,"") -> 
B123: 3 | D123: 15 | E123: =SUMIF('3.ชั่วโมงสอนตามตารางสอน'!T$7:T$56,สรุปชั่วโมงสอนต่อสัปดาห์!I123,'3.ชั่วโมงสอนตามตารางสอน'!L$7:L$56) -> 0 | F123: =SUMIF('4.งานสนับสนุนการจัดการเรียนรู้'!#REF!,สรุปชั่วโมงสอนต่อสัปดาห์!I123,'4.งานสนับสนุนการจัดการเรียนรู้'!I$7:I$58) ->  | G123: =SUMIF('5.งานตอบสนองนโยบายและจุดเน้น'!#REF!,สรุปชั่วโมงสอนต่อสัปดาห์!I123,'5.งานตอบสนองนโยบายและจุดเน้น'!I$7:I$58) ->  | I123: 315 | J123: =IF(H123>ตัวแปร!C$37,1,"") -> 
B124: 3 | D124: 16 | E124: =SUMIF('3.ชั่วโมงสอนตามตารางสอน'!T$7:T$56,สรุปชั่วโมงสอนต่อสัปดาห์!I124,'3.ชั่วโมงสอนตามตารางสอน'!L$7:L$56) -> 0 | F124: =SUMIF('4.งานสนับสนุนการจัดการเรียนรู้'!#REF!,สรุปชั่วโมงสอนต่อสัปดาห์!I124,'4.งานสนับสนุนการจัดการเรียนรู้'!I$7:I$58) ->  | G124: =SUMIF('5.งานตอบสนองนโยบายและจุดเน้น'!#REF!,สรุปชั่วโมงสอนต่อสัปดาห์!I124,'5.งานตอบสนองนโยบายและจุดเน้น'!I$7:I$58) ->  | I124: 316 | J124: =IF(H124>ตัวแปร!C$37,1,"") -> 
B125: 3 | D125: 17 | E125: =SUMIF('3.ชั่วโมงสอนตามตารางสอน'!T$7:T$56,สรุปชั่วโมงสอนต่อสัปดาห์!I125,'3.ชั่วโมงสอนตามตารางสอน'!L$7:L$56) -> 0 | F125: =SUMIF('4.งานสนับสนุนการจัดการเรียนรู้'!#REF!,สรุปชั่วโมงสอนต่อสัปดาห์!I125,'4.งานสนับสนุนการจัดการเรียนรู้'!I$7:I$58) ->  | G125: =SUMIF('5.งานตอบสนองนโยบายและจุดเน้น'!#REF!,สรุปชั่วโมงสอนต่อสัปดาห์!I125,'5.งานตอบสนองนโยบายและจุดเน้น'!I$7:I$58) ->  | I125: 317 | J125: =IF(H125>ตัวแปร!C$37,1,"") -> 
B126: 3 | D126: 18 | E126: =SUMIF('3.ชั่วโมงสอนตามตารางสอน'!T$7:T$56,สรุปชั่วโมงสอนต่อสัปดาห์!I126,'3.ชั่วโมงสอนตามตารางสอน'!L$7:L$56) -> 0 | F126: =SUMIF('4.งานสนับสนุนการจัดการเรียนรู้'!#REF!,สรุปชั่วโมงสอนต่อสัปดาห์!I126,'4.งานสนับสนุนการจัดการเรียนรู้'!I$7:I$58) ->  | G126: =SUMIF('5.งานตอบสนองนโยบายและจุดเน้น'!#REF!,สรุปชั่วโมงสอนต่อสัปดาห์!I126,'5.งานตอบสนองนโยบายและจุดเน้น'!I$7:I$58) ->  | I126: 318 | J126: =IF(H126>ตัวแปร!C$37,1,"") -> 
B127: 3 | D127: 19 | E127: =SUMIF('3.ชั่วโมงสอนตามตารางสอน'!T$7:T$56,สรุปชั่วโมงสอนต่อสัปดาห์!I127,'3.ชั่วโมงสอนตามตารางสอน'!L$7:L$56) -> 0 | F127: =SUMIF('4.งานสนับสนุนการจัดการเรียนรู้'!#REF!,สรุปชั่วโมงสอนต่อสัปดาห์!I127,'4.งานสนับสนุนการจัดการเรียนรู้'!I$7:I$58) ->  | G127: =SUMIF('5.งานตอบสนองนโยบายและจุดเน้น'!#REF!,สรุปชั่วโมงสอนต่อสัปดาห์!I127,'5.งานตอบสนองนโยบายและจุดเน้น'!I$7:I$58) ->  | I127: 319 | J127: =IF(H127>ตัวแปร!C$37,1,"") -> 
B128: 3 | D128: 20 | E128: =SUMIF('3.ชั่วโมงสอนตามตารางสอน'!T$7:T$56,สรุปชั่วโมงสอนต่อสัปดาห์!I128,'3.ชั่วโมงสอนตามตารางสอน'!L$7:L$56) -> 0 | F128: =SUMIF('4.งานสนับสนุนการจัดการเรียนรู้'!#REF!,สรุปชั่วโมงสอนต่อสัปดาห์!I128,'4.งานสนับสนุนการจัดการเรียนรู้'!I$7:I$58) ->  | G128: =SUMIF('5.งานตอบสนองนโยบายและจุดเน้น'!#REF!,สรุปชั่วโมงสอนต่อสัปดาห์!I128,'5.งานตอบสนองนโยบายและจุดเน้น'!I$7:I$58) ->  | I128: 320 | J128: =IF(H128>ตัวแปร!C$37,1,"") -> 
B129: 3 | D129: 21 | E129: =SUMIF('3.ชั่วโมงสอนตามตารางสอน'!T$7:T$56,สรุปชั่วโมงสอนต่อสัปดาห์!I129,'3.ชั่วโมงสอนตามตารางสอน'!L$7:L$56) -> 0 | F129: =SUMIF('4.งานสนับสนุนการจัดการเรียนรู้'!#REF!,สรุปชั่วโมงสอนต่อสัปดาห์!I129,'4.งานสนับสนุนการจัดการเรียนรู้'!I$7:I$58) ->  | G129: =SUMIF('5.งานตอบสนองนโยบายและจุดเน้น'!#REF!,สรุปชั่วโมงสอนต่อสัปดาห์!I129,'5.งานตอบสนองนโยบายและจุดเน้น'!I$7:I$58) ->  | I129: 321 | J129: =IF(H129>ตัวแปร!C$37,1,"") -> 
B130: 3 | D130: 22 | E130: =SUMIF('3.ชั่วโมงสอนตามตารางสอน'!T$7:T$56,สรุปชั่วโมงสอนต่อสัปดาห์!I130,'3.ชั่วโมงสอนตามตารางสอน'!L$7:L$56) -> 0 | F130: =SUMIF('4.งานสนับสนุนการจัดการเรียนรู้'!#REF!,สรุปชั่วโมงสอนต่อสัปดาห์!I130,'4.งานสนับสนุนการจัดการเรียนรู้'!I$7:I$58) ->  | G130: =SUMIF('5.งานตอบสนองนโยบายและจุดเน้น'!#REF!,สรุปชั่วโมงสอนต่อสัปดาห์!I130,'5.งานตอบสนองนโยบายและจุดเน้น'!I$7:I$58) ->  | I130: 322 | J130: =IF(H130>ตัวแปร!C$37,1,"") -> 
B131: 3 | D131: 23 | E131: =SUMIF('3.ชั่วโมงสอนตามตารางสอน'!T$7:T$56,สรุปชั่วโมงสอนต่อสัปดาห์!I131,'3.ชั่วโมงสอนตามตารางสอน'!L$7:L$56) -> 0 | F131: =SUMIF('4.งานสนับสนุนการจัดการเรียนรู้'!#REF!,สรุปชั่วโมงสอนต่อสัปดาห์!I131,'4.งานสนับสนุนการจัดการเรียนรู้'!I$7:I$58) ->  | G131: =SUMIF('5.งานตอบสนองนโยบายและจุดเน้น'!#REF!,สรุปชั่วโมงสอนต่อสัปดาห์!I131,'5.งานตอบสนองนโยบายและจุดเน้น'!I$7:I$58) ->  | I131: 323 | J131: =IF(H131>ตัวแปร!C$37,1,"") -> 
B132: 3 | D132: 24 | E132: =SUMIF('3.ชั่วโมงสอนตามตารางสอน'!T$7:T$56,สรุปชั่วโมงสอนต่อสัปดาห์!I132,'3.ชั่วโมงสอนตามตารางสอน'!L$7:L$56) -> 0 | F132: =SUMIF('4.งานสนับสนุนการจัดการเรียนรู้'!#REF!,สรุปชั่วโมงสอนต่อสัปดาห์!I132,'4.งานสนับสนุนการจัดการเรียนรู้'!I$7:I$58) ->  | G132: =SUMIF('5.งานตอบสนองนโยบายและจุดเน้น'!#REF!,สรุปชั่วโมงสอนต่อสัปดาห์!I132,'5.งานตอบสนองนโยบายและจุดเน้น'!I$7:I$58) ->  | I132: 324 | J132: =IF(H132>ตัวแปร!C$37,1,"") -> 
B133: 3 | D133: 25 | E133: =SUMIF('3.ชั่วโมงสอนตามตารางสอน'!T$7:T$56,สรุปชั่วโมงสอนต่อสัปดาห์!I133,'3.ชั่วโมงสอนตามตารางสอน'!L$7:L$56) -> 0 | F133: =SUMIF('4.งานสนับสนุนการจัดการเรียนรู้'!#REF!,สรุปชั่วโมงสอนต่อสัปดาห์!I133,'4.งานสนับสนุนการจัดการเรียนรู้'!I$7:I$58) ->  | G133: =SUMIF('5.งานตอบสนองนโยบายและจุดเน้น'!#REF!,สรุปชั่วโมงสอนต่อสัปดาห์!I133,'5.งานตอบสนองนโยบายและจุดเน้น'!I$7:I$58) ->  | I133: 325 | J133: =IF(H133>ตัวแปร!C$37,1,"") -> 
B134: 3 | D134: 26 | E134: =SUMIF('3.ชั่วโมงสอนตามตารางสอน'!T$7:T$56,สรุปชั่วโมงสอนต่อสัปดาห์!I134,'3.ชั่วโมงสอนตามตารางสอน'!L$7:L$56) -> 0 | F134: =SUMIF('4.งานสนับสนุนการจัดการเรียนรู้'!#REF!,สรุปชั่วโมงสอนต่อสัปดาห์!I134,'4.งานสนับสนุนการจัดการเรียนรู้'!I$7:I$58) ->  | G134: =SUMIF('5.งานตอบสนองนโยบายและจุดเน้น'!#REF!,สรุปชั่วโมงสอนต่อสัปดาห์!I134,'5.งานตอบสนองนโยบายและจุดเน้น'!I$7:I$58) ->  | H134: =SUM(E134:G134) ->  | I134: =B134&+D134 -> 326 | J134: =IF(H134>ตัวแปร!C$37,1,"") ->  | K134: =IF(J134=1,"ตรวจสอบ","") -> 
B135: =IF(D134=52,B134+1,B134) -> 3 | D135: 27 | E135: =SUMIF('3.ชั่วโมงสอนตามตารางสอน'!T$7:T$56,สรุปชั่วโมงสอนต่อสัปดาห์!I135,'3.ชั่วโมงสอนตามตารางสอน'!L$7:L$56) -> 0 | F135: =SUMIF('4.งานสนับสนุนการจัดการเรียนรู้'!#REF!,สรุปชั่วโมงสอนต่อสัปดาห์!I135,'4.งานสนับสนุนการจัดการเรียนรู้'!I$7:I$58) ->  | G135: =SUMIF('5.งานตอบสนองนโยบายและจุดเน้น'!#REF!,สรุปชั่วโมงสอนต่อสัปดาห์!I135,'5.งานตอบสนองนโยบายและจุดเน้น'!I$7:I$58) ->  | I135: 327 | J135: =IF(H135>ตัวแปร!C$37,1,"") -> 
B136: 3 | D136: 28 | E136: =SUMIF('3.ชั่วโมงสอนตามตารางสอน'!T$7:T$56,สรุปชั่วโมงสอนต่อสัปดาห์!I136,'3.ชั่วโมงสอนตามตารางสอน'!L$7:L$56) -> 0 | F136: =SUMIF('4.งานสนับสนุนการจัดการเรียนรู้'!#REF!,สรุปชั่วโมงสอนต่อสัปดาห์!I136,'4.งานสนับสนุนการจัดการเรียนรู้'!I$7:I$58) ->  | G136: =SUMIF('5.งานตอบสนองนโยบายและจุดเน้น'!#REF!,สรุปชั่วโมงสอนต่อสัปดาห์!I136,'5.งานตอบสนองนโยบายและจุดเน้น'!I$7:I$58) ->  | I136: 328 | J136: =IF(H136>ตัวแปร!C$37,1,"") -> 
B137: 3 | D137: 29 | E137: =SUMIF('3.ชั่วโมงสอนตามตารางสอน'!T$7:T$56,สรุปชั่วโมงสอนต่อสัปดาห์!I137,'3.ชั่วโมงสอนตามตารางสอน'!L$7:L$56) -> 0 | F137: =SUMIF('4.งานสนับสนุนการจัดการเรียนรู้'!#REF!,สรุปชั่วโมงสอนต่อสัปดาห์!I137,'4.งานสนับสนุนการจัดการเรียนรู้'!I$7:I$58) ->  | G137: =SUMIF('5.งานตอบสนองนโยบายและจุดเน้น'!#REF!,สรุปชั่วโมงสอนต่อสัปดาห์!I137,'5.งานตอบสนองนโยบายและจุดเน้น'!I$7:I$58) ->  | I137: 329 | J137: =IF(H137>ตัวแปร!C$37,1,"") -> 
B138: 3 | D138: 30 | E138: =SUMIF('3.ชั่วโมงสอนตามตารางสอน'!T$7:T$56,สรุปชั่วโมงสอนต่อสัปดาห์!I138,'3.ชั่วโมงสอนตามตารางสอน'!L$7:L$56) -> 0 | F138: =SUMIF('4.งานสนับสนุนการจัดการเรียนรู้'!#REF!,สรุปชั่วโมงสอนต่อสัปดาห์!I138,'4.งานสนับสนุนการจัดการเรียนรู้'!I$7:I$58) ->  | G138: =SUMIF('5.งานตอบสนองนโยบายและจุดเน้น'!#REF!,สรุปชั่วโมงสอนต่อสัปดาห์!I138,'5.งานตอบสนองนโยบายและจุดเน้น'!I$7:I$58) ->  | I138: 330 | J138: =IF(H138>ตัวแปร!C$37,1,"") -> 
B139: 3 | D139: 31 | E139: =SUMIF('3.ชั่วโมงสอนตามตารางสอน'!T$7:T$56,สรุปชั่วโมงสอนต่อสัปดาห์!I139,'3.ชั่วโมงสอนตามตารางสอน'!L$7:L$56) -> 0 | F139: =SUMIF('4.งานสนับสนุนการจัดการเรียนรู้'!#REF!,สรุปชั่วโมงสอนต่อสัปดาห์!I139,'4.งานสนับสนุนการจัดการเรียนรู้'!I$7:I$58) ->  | G139: =SUMIF('5.งานตอบสนองนโยบายและจุดเน้น'!#REF!,สรุปชั่วโมงสอนต่อสัปดาห์!I139,'5.งานตอบสนองนโยบายและจุดเน้น'!I$7:I$58) ->  | I139: 331 | J139: =IF(H139>ตัวแปร!C$37,1,"") -> 
B140: 3 | D140: 32 | E140: =SUMIF('3.ชั่วโมงสอนตามตารางสอน'!T$7:T$56,สรุปชั่วโมงสอนต่อสัปดาห์!I140,'3.ชั่วโมงสอนตามตารางสอน'!L$7:L$56) -> 0 | F140: =SUMIF('4.งานสนับสนุนการจัดการเรียนรู้'!#REF!,สรุปชั่วโมงสอนต่อสัปดาห์!I140,'4.งานสนับสนุนการจัดการเรียนรู้'!I$7:I$58) ->  | G140: =SUMIF('5.งานตอบสนองนโยบายและจุดเน้น'!#REF!,สรุปชั่วโมงสอนต่อสัปดาห์!I140,'5.งานตอบสนองนโยบายและจุดเน้น'!I$7:I$58) ->  | I140: 332 | J140: =IF(H140>ตัวแปร!C$37,1,"") -> 
B141: 3 | D141: 33 | E141: =SUMIF('3.ชั่วโมงสอนตามตารางสอน'!T$7:T$56,สรุปชั่วโมงสอนต่อสัปดาห์!I141,'3.ชั่วโมงสอนตามตารางสอน'!L$7:L$56) -> 0 | F141: =SUMIF('4.งานสนับสนุนการจัดการเรียนรู้'!#REF!,สรุปชั่วโมงสอนต่อสัปดาห์!I141,'4.งานสนับสนุนการจัดการเรียนรู้'!I$7:I$58) ->  | G141: =SUMIF('5.งานตอบสนองนโยบายและจุดเน้น'!#REF!,สรุปชั่วโมงสอนต่อสัปดาห์!I141,'5.งานตอบสนองนโยบายและจุดเน้น'!I$7:I$58) ->  | I141: 333 | J141: =IF(H141>ตัวแปร!C$37,1,"") -> 
B142: 3 | D142: 34 | E142: =SUMIF('3.ชั่วโมงสอนตามตารางสอน'!T$7:T$56,สรุปชั่วโมงสอนต่อสัปดาห์!I142,'3.ชั่วโมงสอนตามตารางสอน'!L$7:L$56) -> 0 | F142: =SUMIF('4.งานสนับสนุนการจัดการเรียนรู้'!#REF!,สรุปชั่วโมงสอนต่อสัปดาห์!I142,'4.งานสนับสนุนการจัดการเรียนรู้'!I$7:I$58) ->  | G142: =SUMIF('5.งานตอบสนองนโยบายและจุดเน้น'!#REF!,สรุปชั่วโมงสอนต่อสัปดาห์!I142,'5.งานตอบสนองนโยบายและจุดเน้น'!I$7:I$58) ->  | I142: 334 | J142: =IF(H142>ตัวแปร!C$37,1,"") -> 
B143: 3 | D143: 35 | E143: =SUMIF('3.ชั่วโมงสอนตามตารางสอน'!T$7:T$56,สรุปชั่วโมงสอนต่อสัปดาห์!I143,'3.ชั่วโมงสอนตามตารางสอน'!L$7:L$56) -> 0 | F143: =SUMIF('4.งานสนับสนุนการจัดการเรียนรู้'!#REF!,สรุปชั่วโมงสอนต่อสัปดาห์!I143,'4.งานสนับสนุนการจัดการเรียนรู้'!I$7:I$58) ->  | G143: =SUMIF('5.งานตอบสนองนโยบายและจุดเน้น'!#REF!,สรุปชั่วโมงสอนต่อสัปดาห์!I143,'5.งานตอบสนองนโยบายและจุดเน้น'!I$7:I$58) ->  | I143: 335 | J143: =IF(H143>ตัวแปร!C$37,1,"") -> 
B144: 3 | D144: 36 | E144: =SUMIF('3.ชั่วโมงสอนตามตารางสอน'!T$7:T$56,สรุปชั่วโมงสอนต่อสัปดาห์!I144,'3.ชั่วโมงสอนตามตารางสอน'!L$7:L$56) -> 0 | F144: =SUMIF('4.งานสนับสนุนการจัดการเรียนรู้'!#REF!,สรุปชั่วโมงสอนต่อสัปดาห์!I144,'4.งานสนับสนุนการจัดการเรียนรู้'!I$7:I$58) ->  | G144: =SUMIF('5.งานตอบสนองนโยบายและจุดเน้น'!#REF!,สรุปชั่วโมงสอนต่อสัปดาห์!I144,'5.งานตอบสนองนโยบายและจุดเน้น'!I$7:I$58) ->  | I144: 336 | J144: =IF(H144>ตัวแปร!C$37,1,"") -> 
B145: 3 | D145: 37 | E145: =SUMIF('3.ชั่วโมงสอนตามตารางสอน'!T$7:T$56,สรุปชั่วโมงสอนต่อสัปดาห์!I145,'3.ชั่วโมงสอนตามตารางสอน'!L$7:L$56) -> 0 | F145: =SUMIF('4.งานสนับสนุนการจัดการเรียนรู้'!#REF!,สรุปชั่วโมงสอนต่อสัปดาห์!I145,'4.งานสนับสนุนการจัดการเรียนรู้'!I$7:I$58) ->  | G145: =SUMIF('5.งานตอบสนองนโยบายและจุดเน้น'!#REF!,สรุปชั่วโมงสอนต่อสัปดาห์!I145,'5.งานตอบสนองนโยบายและจุดเน้น'!I$7:I$58) ->  | I145: 337 | J145: =IF(H145>ตัวแปร!C$37,1,"") -> 
B146: 3 | D146: 38 | E146: =SUMIF('3.ชั่วโมงสอนตามตารางสอน'!T$7:T$56,สรุปชั่วโมงสอนต่อสัปดาห์!I146,'3.ชั่วโมงสอนตามตารางสอน'!L$7:L$56) -> 0 | F146: =SUMIF('4.งานสนับสนุนการจัดการเรียนรู้'!#REF!,สรุปชั่วโมงสอนต่อสัปดาห์!I146,'4.งานสนับสนุนการจัดการเรียนรู้'!I$7:I$58) ->  | G146: =SUMIF('5.งานตอบสนองนโยบายและจุดเน้น'!#REF!,สรุปชั่วโมงสอนต่อสัปดาห์!I146,'5.งานตอบสนองนโยบายและจุดเน้น'!I$7:I$58) ->  | I146: 338 | J146: =IF(H146>ตัวแปร!C$37,1,"") -> 
B147: 3 | D147: 39 | E147: =SUMIF('3.ชั่วโมงสอนตามตารางสอน'!T$7:T$56,สรุปชั่วโมงสอนต่อสัปดาห์!I147,'3.ชั่วโมงสอนตามตารางสอน'!L$7:L$56) -> 0 | F147: =SUMIF('4.งานสนับสนุนการจัดการเรียนรู้'!#REF!,สรุปชั่วโมงสอนต่อสัปดาห์!I147,'4.งานสนับสนุนการจัดการเรียนรู้'!I$7:I$58) ->  | G147: =SUMIF('5.งานตอบสนองนโยบายและจุดเน้น'!#REF!,สรุปชั่วโมงสอนต่อสัปดาห์!I147,'5.งานตอบสนองนโยบายและจุดเน้น'!I$7:I$58) ->  | I147: 339 | J147: =IF(H147>ตัวแปร!C$37,1,"") -> 
B148: 3 | D148: 40 | E148: =SUMIF('3.ชั่วโมงสอนตามตารางสอน'!T$7:T$56,สรุปชั่วโมงสอนต่อสัปดาห์!I148,'3.ชั่วโมงสอนตามตารางสอน'!L$7:L$56) -> 0 | F148: =SUMIF('4.งานสนับสนุนการจัดการเรียนรู้'!#REF!,สรุปชั่วโมงสอนต่อสัปดาห์!I148,'4.งานสนับสนุนการจัดการเรียนรู้'!I$7:I$58) ->  | G148: =SUMIF('5.งานตอบสนองนโยบายและจุดเน้น'!#REF!,สรุปชั่วโมงสอนต่อสัปดาห์!I148,'5.งานตอบสนองนโยบายและจุดเน้น'!I$7:I$58) ->  | I148: 340 | J148: =IF(H148>ตัวแปร!C$37,1,"") -> 
B149: 3 | D149: 41 | E149: =SUMIF('3.ชั่วโมงสอนตามตารางสอน'!T$7:T$56,สรุปชั่วโมงสอนต่อสัปดาห์!I149,'3.ชั่วโมงสอนตามตารางสอน'!L$7:L$56) -> 0 | F149: =SUMIF('4.งานสนับสนุนการจัดการเรียนรู้'!#REF!,สรุปชั่วโมงสอนต่อสัปดาห์!I149,'4.งานสนับสนุนการจัดการเรียนรู้'!I$7:I$58) ->  | G149: =SUMIF('5.งานตอบสนองนโยบายและจุดเน้น'!#REF!,สรุปชั่วโมงสอนต่อสัปดาห์!I149,'5.งานตอบสนองนโยบายและจุดเน้น'!I$7:I$58) ->  | I149: 341 | J149: =IF(H149>ตัวแปร!C$37,1,"") -> 
B150: 3 | D150: 42 | E150: =SUMIF('3.ชั่วโมงสอนตามตารางสอน'!T$7:T$56,สรุปชั่วโมงสอนต่อสัปดาห์!I150,'3.ชั่วโมงสอนตามตารางสอน'!L$7:L$56) -> 0 | F150: =SUMIF('4.งานสนับสนุนการจัดการเรียนรู้'!#REF!,สรุปชั่วโมงสอนต่อสัปดาห์!I150,'4.งานสนับสนุนการจัดการเรียนรู้'!I$7:I$58) ->  | G150: =SUMIF('5.งานตอบสนองนโยบายและจุดเน้น'!#REF!,สรุปชั่วโมงสอนต่อสัปดาห์!I150,'5.งานตอบสนองนโยบายและจุดเน้น'!I$7:I$58) ->  | I150: 342 | J150: =IF(H150>ตัวแปร!C$37,1,"") -> 
B151: 3 | D151: 43 | E151: =SUMIF('3.ชั่วโมงสอนตามตารางสอน'!T$7:T$56,สรุปชั่วโมงสอนต่อสัปดาห์!I151,'3.ชั่วโมงสอนตามตารางสอน'!L$7:L$56) -> 0 | F151: =SUMIF('4.งานสนับสนุนการจัดการเรียนรู้'!#REF!,สรุปชั่วโมงสอนต่อสัปดาห์!I151,'4.งานสนับสนุนการจัดการเรียนรู้'!I$7:I$58) ->  | G151: =SUMIF('5.งานตอบสนองนโยบายและจุดเน้น'!#REF!,สรุปชั่วโมงสอนต่อสัปดาห์!I151,'5.งานตอบสนองนโยบายและจุดเน้น'!I$7:I$58) ->  | I151: 343 | J151: =IF(H151>ตัวแปร!C$37,1,"") -> 
B152: 3 | D152: 44 | E152: =SUMIF('3.ชั่วโมงสอนตามตารางสอน'!T$7:T$56,สรุปชั่วโมงสอนต่อสัปดาห์!I152,'3.ชั่วโมงสอนตามตารางสอน'!L$7:L$56) -> 0 | F152: =SUMIF('4.งานสนับสนุนการจัดการเรียนรู้'!#REF!,สรุปชั่วโมงสอนต่อสัปดาห์!I152,'4.งานสนับสนุนการจัดการเรียนรู้'!I$7:I$58) ->  | G152: =SUMIF('5.งานตอบสนองนโยบายและจุดเน้น'!#REF!,สรุปชั่วโมงสอนต่อสัปดาห์!I152,'5.งานตอบสนองนโยบายและจุดเน้น'!I$7:I$58) ->  | I152: 344 | J152: =IF(H152>ตัวแปร!C$37,1,"") -> 
B153: 3 | D153: 45 | E153: =SUMIF('3.ชั่วโมงสอนตามตารางสอน'!T$7:T$56,สรุปชั่วโมงสอนต่อสัปดาห์!I153,'3.ชั่วโมงสอนตามตารางสอน'!L$7:L$56) -> 0 | F153: =SUMIF('4.งานสนับสนุนการจัดการเรียนรู้'!#REF!,สรุปชั่วโมงสอนต่อสัปดาห์!I153,'4.งานสนับสนุนการจัดการเรียนรู้'!I$7:I$58) ->  | G153: =SUMIF('5.งานตอบสนองนโยบายและจุดเน้น'!#REF!,สรุปชั่วโมงสอนต่อสัปดาห์!I153,'5.งานตอบสนองนโยบายและจุดเน้น'!I$7:I$58) ->  | I153: 345 | J153: =IF(H153>ตัวแปร!C$37,1,"") -> 
B154: 3 | D154: 46 | E154: =SUMIF('3.ชั่วโมงสอนตามตารางสอน'!T$7:T$56,สรุปชั่วโมงสอนต่อสัปดาห์!I154,'3.ชั่วโมงสอนตามตารางสอน'!L$7:L$56) -> 0 | F154: =SUMIF('4.งานสนับสนุนการจัดการเรียนรู้'!#REF!,สรุปชั่วโมงสอนต่อสัปดาห์!I154,'4.งานสนับสนุนการจัดการเรียนรู้'!I$7:I$58) ->  | G154: =SUMIF('5.งานตอบสนองนโยบายและจุดเน้น'!#REF!,สรุปชั่วโมงสอนต่อสัปดาห์!I154,'5.งานตอบสนองนโยบายและจุดเน้น'!I$7:I$58) ->  | I154: 346 | J154: =IF(H154>ตัวแปร!C$37,1,"") -> 
B155: 3 | D155: 47 | E155: =SUMIF('3.ชั่วโมงสอนตามตารางสอน'!T$7:T$56,สรุปชั่วโมงสอนต่อสัปดาห์!I155,'3.ชั่วโมงสอนตามตารางสอน'!L$7:L$56) -> 0 | F155: =SUMIF('4.งานสนับสนุนการจัดการเรียนรู้'!#REF!,สรุปชั่วโมงสอนต่อสัปดาห์!I155,'4.งานสนับสนุนการจัดการเรียนรู้'!I$7:I$58) ->  | G155: =SUMIF('5.งานตอบสนองนโยบายและจุดเน้น'!#REF!,สรุปชั่วโมงสอนต่อสัปดาห์!I155,'5.งานตอบสนองนโยบายและจุดเน้น'!I$7:I$58) ->  | I155: 347 | J155: =IF(H155>ตัวแปร!C$37,1,"") -> 
B156: 3 | D156: 48 | E156: =SUMIF('3.ชั่วโมงสอนตามตารางสอน'!T$7:T$56,สรุปชั่วโมงสอนต่อสัปดาห์!I156,'3.ชั่วโมงสอนตามตารางสอน'!L$7:L$56) -> 0 | F156: =SUMIF('4.งานสนับสนุนการจัดการเรียนรู้'!#REF!,สรุปชั่วโมงสอนต่อสัปดาห์!I156,'4.งานสนับสนุนการจัดการเรียนรู้'!I$7:I$58) ->  | G156: =SUMIF('5.งานตอบสนองนโยบายและจุดเน้น'!#REF!,สรุปชั่วโมงสอนต่อสัปดาห์!I156,'5.งานตอบสนองนโยบายและจุดเน้น'!I$7:I$58) ->  | I156: 348 | J156: =IF(H156>ตัวแปร!C$37,1,"") -> 
B157: 3 | D157: 49 | E157: =SUMIF('3.ชั่วโมงสอนตามตารางสอน'!T$7:T$56,สรุปชั่วโมงสอนต่อสัปดาห์!I157,'3.ชั่วโมงสอนตามตารางสอน'!L$7:L$56) -> 0 | F157: =SUMIF('4.งานสนับสนุนการจัดการเรียนรู้'!#REF!,สรุปชั่วโมงสอนต่อสัปดาห์!I157,'4.งานสนับสนุนการจัดการเรียนรู้'!I$7:I$58) ->  | G157: =SUMIF('5.งานตอบสนองนโยบายและจุดเน้น'!#REF!,สรุปชั่วโมงสอนต่อสัปดาห์!I157,'5.งานตอบสนองนโยบายและจุดเน้น'!I$7:I$58) ->  | I157: 349 | J157: =IF(H157>ตัวแปร!C$37,1,"") -> 
B158: 3 | D158: 50 | E158: =SUMIF('3.ชั่วโมงสอนตามตารางสอน'!T$7:T$56,สรุปชั่วโมงสอนต่อสัปดาห์!I158,'3.ชั่วโมงสอนตามตารางสอน'!L$7:L$56) -> 0 | F158: =SUMIF('4.งานสนับสนุนการจัดการเรียนรู้'!#REF!,สรุปชั่วโมงสอนต่อสัปดาห์!I158,'4.งานสนับสนุนการจัดการเรียนรู้'!I$7:I$58) ->  | G158: =SUMIF('5.งานตอบสนองนโยบายและจุดเน้น'!#REF!,สรุปชั่วโมงสอนต่อสัปดาห์!I158,'5.งานตอบสนองนโยบายและจุดเน้น'!I$7:I$58) ->  | I158: 350 | J158: =IF(H158>ตัวแปร!C$37,1,"") -> 
B159: 3 | D159: 51 | E159: =SUMIF('3.ชั่วโมงสอนตามตารางสอน'!T$7:T$56,สรุปชั่วโมงสอนต่อสัปดาห์!I159,'3.ชั่วโมงสอนตามตารางสอน'!L$7:L$56) -> 0 | F159: =SUMIF('4.งานสนับสนุนการจัดการเรียนรู้'!#REF!,สรุปชั่วโมงสอนต่อสัปดาห์!I159,'4.งานสนับสนุนการจัดการเรียนรู้'!I$7:I$58) ->  | G159: =SUMIF('5.งานตอบสนองนโยบายและจุดเน้น'!#REF!,สรุปชั่วโมงสอนต่อสัปดาห์!I159,'5.งานตอบสนองนโยบายและจุดเน้น'!I$7:I$58) ->  | I159: 351 | J159: =IF(H159>ตัวแปร!C$37,1,"") -> 
B160: 3 | D160: 52 | E160: =SUMIF('3.ชั่วโมงสอนตามตารางสอน'!T$7:T$56,สรุปชั่วโมงสอนต่อสัปดาห์!I160,'3.ชั่วโมงสอนตามตารางสอน'!L$7:L$56) -> 0 | F160: =SUMIF('4.งานสนับสนุนการจัดการเรียนรู้'!#REF!,สรุปชั่วโมงสอนต่อสัปดาห์!I160,'4.งานสนับสนุนการจัดการเรียนรู้'!I$7:I$58) ->  | G160: =SUMIF('5.งานตอบสนองนโยบายและจุดเน้น'!#REF!,สรุปชั่วโมงสอนต่อสัปดาห์!I160,'5.งานตอบสนองนโยบายและจุดเน้น'!I$7:I$58) ->  | I160: 352 | J160: =IF(H160>ตัวแปร!C$37,1,"") -> 
B161: 4 | D161: 1 | E161: =SUMIF('3.ชั่วโมงสอนตามตารางสอน'!T$7:T$56,สรุปชั่วโมงสอนต่อสัปดาห์!I161,'3.ชั่วโมงสอนตามตารางสอน'!L$7:L$56) -> 0 | F161: =SUMIF('4.งานสนับสนุนการจัดการเรียนรู้'!#REF!,สรุปชั่วโมงสอนต่อสัปดาห์!I161,'4.งานสนับสนุนการจัดการเรียนรู้'!I$7:I$58) ->  | G161: =SUMIF('5.งานตอบสนองนโยบายและจุดเน้น'!#REF!,สรุปชั่วโมงสอนต่อสัปดาห์!I161,'5.งานตอบสนองนโยบายและจุดเน้น'!I$7:I$58) ->  | I161: 41 | J161: =IF(H161>ตัวแปร!C$37,1,"") -> 
B162: 4 | D162: 2 | E162: =SUMIF('3.ชั่วโมงสอนตามตารางสอน'!T$7:T$56,สรุปชั่วโมงสอนต่อสัปดาห์!I162,'3.ชั่วโมงสอนตามตารางสอน'!L$7:L$56) -> 0 | F162: =SUMIF('4.งานสนับสนุนการจัดการเรียนรู้'!#REF!,สรุปชั่วโมงสอนต่อสัปดาห์!I162,'4.งานสนับสนุนการจัดการเรียนรู้'!I$7:I$58) ->  | G162: =SUMIF('5.งานตอบสนองนโยบายและจุดเน้น'!#REF!,สรุปชั่วโมงสอนต่อสัปดาห์!I162,'5.งานตอบสนองนโยบายและจุดเน้น'!I$7:I$58) ->  | I162: 42 | J162: =IF(H162>ตัวแปร!C$37,1,"") -> 
B163: 4 | D163: 3 | E163: =SUMIF('3.ชั่วโมงสอนตามตารางสอน'!T$7:T$56,สรุปชั่วโมงสอนต่อสัปดาห์!I163,'3.ชั่วโมงสอนตามตารางสอน'!L$7:L$56) -> 0 | F163: =SUMIF('4.งานสนับสนุนการจัดการเรียนรู้'!#REF!,สรุปชั่วโมงสอนต่อสัปดาห์!I163,'4.งานสนับสนุนการจัดการเรียนรู้'!I$7:I$58) ->  | G163: =SUMIF('5.งานตอบสนองนโยบายและจุดเน้น'!#REF!,สรุปชั่วโมงสอนต่อสัปดาห์!I163,'5.งานตอบสนองนโยบายและจุดเน้น'!I$7:I$58) ->  | I163: 43 | J163: =IF(H163>ตัวแปร!C$37,1,"") -> 
B164: 4 | D164: 4 | E164: =SUMIF('3.ชั่วโมงสอนตามตารางสอน'!T$7:T$56,สรุปชั่วโมงสอนต่อสัปดาห์!I164,'3.ชั่วโมงสอนตามตารางสอน'!L$7:L$56) -> 0 | F164: =SUMIF('4.งานสนับสนุนการจัดการเรียนรู้'!#REF!,สรุปชั่วโมงสอนต่อสัปดาห์!I164,'4.งานสนับสนุนการจัดการเรียนรู้'!I$7:I$58) ->  | G164: =SUMIF('5.งานตอบสนองนโยบายและจุดเน้น'!#REF!,สรุปชั่วโมงสอนต่อสัปดาห์!I164,'5.งานตอบสนองนโยบายและจุดเน้น'!I$7:I$58) ->  | I164: 44 | J164: =IF(H164>ตัวแปร!C$37,1,"") -> 
B165: 4 | D165: 5 | E165: =SUMIF('3.ชั่วโมงสอนตามตารางสอน'!T$7:T$56,สรุปชั่วโมงสอนต่อสัปดาห์!I165,'3.ชั่วโมงสอนตามตารางสอน'!L$7:L$56) -> 0 | F165: =SUMIF('4.งานสนับสนุนการจัดการเรียนรู้'!#REF!,สรุปชั่วโมงสอนต่อสัปดาห์!I165,'4.งานสนับสนุนการจัดการเรียนรู้'!I$7:I$58) ->  | G165: =SUMIF('5.งานตอบสนองนโยบายและจุดเน้น'!#REF!,สรุปชั่วโมงสอนต่อสัปดาห์!I165,'5.งานตอบสนองนโยบายและจุดเน้น'!I$7:I$58) ->  | I165: 45 | J165: =IF(H165>ตัวแปร!C$37,1,"") -> 
B166: 4 | D166: 6 | E166: =SUMIF('3.ชั่วโมงสอนตามตารางสอน'!T$7:T$56,สรุปชั่วโมงสอนต่อสัปดาห์!I166,'3.ชั่วโมงสอนตามตารางสอน'!L$7:L$56) -> 0 | F166: =SUMIF('4.งานสนับสนุนการจัดการเรียนรู้'!#REF!,สรุปชั่วโมงสอนต่อสัปดาห์!I166,'4.งานสนับสนุนการจัดการเรียนรู้'!I$7:I$58) ->  | G166: =SUMIF('5.งานตอบสนองนโยบายและจุดเน้น'!#REF!,สรุปชั่วโมงสอนต่อสัปดาห์!I166,'5.งานตอบสนองนโยบายและจุดเน้น'!I$7:I$58) ->  | I166: 46 | J166: =IF(H166>ตัวแปร!C$37,1,"") -> 
B167: 4 | D167: 7 | E167: =SUMIF('3.ชั่วโมงสอนตามตารางสอน'!T$7:T$56,สรุปชั่วโมงสอนต่อสัปดาห์!I167,'3.ชั่วโมงสอนตามตารางสอน'!L$7:L$56) -> 0 | F167: =SUMIF('4.งานสนับสนุนการจัดการเรียนรู้'!#REF!,สรุปชั่วโมงสอนต่อสัปดาห์!I167,'4.งานสนับสนุนการจัดการเรียนรู้'!I$7:I$58) ->  | G167: =SUMIF('5.งานตอบสนองนโยบายและจุดเน้น'!#REF!,สรุปชั่วโมงสอนต่อสัปดาห์!I167,'5.งานตอบสนองนโยบายและจุดเน้น'!I$7:I$58) ->  | I167: 47 | J167: =IF(H167>ตัวแปร!C$37,1,"") -> 
B168: 4 | D168: 8 | E168: =SUMIF('3.ชั่วโมงสอนตามตารางสอน'!T$7:T$56,สรุปชั่วโมงสอนต่อสัปดาห์!I168,'3.ชั่วโมงสอนตามตารางสอน'!L$7:L$56) -> 0 | F168: =SUMIF('4.งานสนับสนุนการจัดการเรียนรู้'!#REF!,สรุปชั่วโมงสอนต่อสัปดาห์!I168,'4.งานสนับสนุนการจัดการเรียนรู้'!I$7:I$58) ->  | G168: =SUMIF('5.งานตอบสนองนโยบายและจุดเน้น'!#REF!,สรุปชั่วโมงสอนต่อสัปดาห์!I168,'5.งานตอบสนองนโยบายและจุดเน้น'!I$7:I$58) ->  | I168: 48 | J168: =IF(H168>ตัวแปร!C$37,1,"") -> 
B169: 4 | D169: 9 | E169: =SUMIF('3.ชั่วโมงสอนตามตารางสอน'!T$7:T$56,สรุปชั่วโมงสอนต่อสัปดาห์!I169,'3.ชั่วโมงสอนตามตารางสอน'!L$7:L$56) -> 0 | F169: =SUMIF('4.งานสนับสนุนการจัดการเรียนรู้'!#REF!,สรุปชั่วโมงสอนต่อสัปดาห์!I169,'4.งานสนับสนุนการจัดการเรียนรู้'!I$7:I$58) ->  | G169: =SUMIF('5.งานตอบสนองนโยบายและจุดเน้น'!#REF!,สรุปชั่วโมงสอนต่อสัปดาห์!I169,'5.งานตอบสนองนโยบายและจุดเน้น'!I$7:I$58) ->  | I169: 49 | J169: =IF(H169>ตัวแปร!C$37,1,"") -> 
B170: 4 | D170: 10 | E170: =SUMIF('3.ชั่วโมงสอนตามตารางสอน'!T$7:T$56,สรุปชั่วโมงสอนต่อสัปดาห์!I170,'3.ชั่วโมงสอนตามตารางสอน'!L$7:L$56) -> 0 | F170: =SUMIF('4.งานสนับสนุนการจัดการเรียนรู้'!#REF!,สรุปชั่วโมงสอนต่อสัปดาห์!I170,'4.งานสนับสนุนการจัดการเรียนรู้'!I$7:I$58) ->  | G170: =SUMIF('5.งานตอบสนองนโยบายและจุดเน้น'!#REF!,สรุปชั่วโมงสอนต่อสัปดาห์!I170,'5.งานตอบสนองนโยบายและจุดเน้น'!I$7:I$58) ->  | I170: 410 | J170: =IF(H170>ตัวแปร!C$37,1,"") -> 
B171: 4 | D171: 11 | E171: =SUMIF('3.ชั่วโมงสอนตามตารางสอน'!T$7:T$56,สรุปชั่วโมงสอนต่อสัปดาห์!I171,'3.ชั่วโมงสอนตามตารางสอน'!L$7:L$56) -> 0 | F171: =SUMIF('4.งานสนับสนุนการจัดการเรียนรู้'!#REF!,สรุปชั่วโมงสอนต่อสัปดาห์!I171,'4.งานสนับสนุนการจัดการเรียนรู้'!I$7:I$58) ->  | G171: =SUMIF('5.งานตอบสนองนโยบายและจุดเน้น'!#REF!,สรุปชั่วโมงสอนต่อสัปดาห์!I171,'5.งานตอบสนองนโยบายและจุดเน้น'!I$7:I$58) ->  | I171: 411 | J171: =IF(H171>ตัวแปร!C$37,1,"") -> 
B172: 4 | D172: 12 | E172: =SUMIF('3.ชั่วโมงสอนตามตารางสอน'!T$7:T$56,สรุปชั่วโมงสอนต่อสัปดาห์!I172,'3.ชั่วโมงสอนตามตารางสอน'!L$7:L$56) -> 0 | F172: =SUMIF('4.งานสนับสนุนการจัดการเรียนรู้'!#REF!,สรุปชั่วโมงสอนต่อสัปดาห์!I172,'4.งานสนับสนุนการจัดการเรียนรู้'!I$7:I$58) ->  | G172: =SUMIF('5.งานตอบสนองนโยบายและจุดเน้น'!#REF!,สรุปชั่วโมงสอนต่อสัปดาห์!I172,'5.งานตอบสนองนโยบายและจุดเน้น'!I$7:I$58) ->  | I172: 412 | J172: =IF(H172>ตัวแปร!C$37,1,"") -> 
B173: 4 | D173: 13 | E173: =SUMIF('3.ชั่วโมงสอนตามตารางสอน'!T$7:T$56,สรุปชั่วโมงสอนต่อสัปดาห์!I173,'3.ชั่วโมงสอนตามตารางสอน'!L$7:L$56) -> 0 | F173: =SUMIF('4.งานสนับสนุนการจัดการเรียนรู้'!#REF!,สรุปชั่วโมงสอนต่อสัปดาห์!I173,'4.งานสนับสนุนการจัดการเรียนรู้'!I$7:I$58) ->  | G173: =SUMIF('5.งานตอบสนองนโยบายและจุดเน้น'!#REF!,สรุปชั่วโมงสอนต่อสัปดาห์!I173,'5.งานตอบสนองนโยบายและจุดเน้น'!I$7:I$58) ->  | I173: 413 | J173: =IF(H173>ตัวแปร!C$37,1,"") -> 
B174: 4 | D174: 14 | E174: =SUMIF('3.ชั่วโมงสอนตามตารางสอน'!T$7:T$56,สรุปชั่วโมงสอนต่อสัปดาห์!I174,'3.ชั่วโมงสอนตามตารางสอน'!L$7:L$56) -> 0 | F174: =SUMIF('4.งานสนับสนุนการจัดการเรียนรู้'!#REF!,สรุปชั่วโมงสอนต่อสัปดาห์!I174,'4.งานสนับสนุนการจัดการเรียนรู้'!I$7:I$58) ->  | G174: =SUMIF('5.งานตอบสนองนโยบายและจุดเน้น'!#REF!,สรุปชั่วโมงสอนต่อสัปดาห์!I174,'5.งานตอบสนองนโยบายและจุดเน้น'!I$7:I$58) ->  | I174: 414 | J174: =IF(H174>ตัวแปร!C$37,1,"") -> 
B175: 4 | D175: 15 | E175: =SUMIF('3.ชั่วโมงสอนตามตารางสอน'!T$7:T$56,สรุปชั่วโมงสอนต่อสัปดาห์!I175,'3.ชั่วโมงสอนตามตารางสอน'!L$7:L$56) -> 0 | F175: =SUMIF('4.งานสนับสนุนการจัดการเรียนรู้'!#REF!,สรุปชั่วโมงสอนต่อสัปดาห์!I175,'4.งานสนับสนุนการจัดการเรียนรู้'!I$7:I$58) ->  | G175: =SUMIF('5.งานตอบสนองนโยบายและจุดเน้น'!#REF!,สรุปชั่วโมงสอนต่อสัปดาห์!I175,'5.งานตอบสนองนโยบายและจุดเน้น'!I$7:I$58) ->  | I175: 415 | J175: =IF(H175>ตัวแปร!C$37,1,"") -> 
B176: 4 | D176: 16 | E176: =SUMIF('3.ชั่วโมงสอนตามตารางสอน'!T$7:T$56,สรุปชั่วโมงสอนต่อสัปดาห์!I176,'3.ชั่วโมงสอนตามตารางสอน'!L$7:L$56) -> 0 | F176: =SUMIF('4.งานสนับสนุนการจัดการเรียนรู้'!#REF!,สรุปชั่วโมงสอนต่อสัปดาห์!I176,'4.งานสนับสนุนการจัดการเรียนรู้'!I$7:I$58) ->  | G176: =SUMIF('5.งานตอบสนองนโยบายและจุดเน้น'!#REF!,สรุปชั่วโมงสอนต่อสัปดาห์!I176,'5.งานตอบสนองนโยบายและจุดเน้น'!I$7:I$58) ->  | I176: 416 | J176: =IF(H176>ตัวแปร!C$37,1,"") -> 
B177: 4 | D177: 17 | E177: =SUMIF('3.ชั่วโมงสอนตามตารางสอน'!T$7:T$56,สรุปชั่วโมงสอนต่อสัปดาห์!I177,'3.ชั่วโมงสอนตามตารางสอน'!L$7:L$56) -> 0 | F177: =SUMIF('4.งานสนับสนุนการจัดการเรียนรู้'!#REF!,สรุปชั่วโมงสอนต่อสัปดาห์!I177,'4.งานสนับสนุนการจัดการเรียนรู้'!I$7:I$58) ->  | G177: =SUMIF('5.งานตอบสนองนโยบายและจุดเน้น'!#REF!,สรุปชั่วโมงสอนต่อสัปดาห์!I177,'5.งานตอบสนองนโยบายและจุดเน้น'!I$7:I$58) ->  | I177: 417 | J177: =IF(H177>ตัวแปร!C$37,1,"") -> 
B178: 4 | D178: 18 | E178: =SUMIF('3.ชั่วโมงสอนตามตารางสอน'!T$7:T$56,สรุปชั่วโมงสอนต่อสัปดาห์!I178,'3.ชั่วโมงสอนตามตารางสอน'!L$7:L$56) -> 0 | F178: =SUMIF('4.งานสนับสนุนการจัดการเรียนรู้'!#REF!,สรุปชั่วโมงสอนต่อสัปดาห์!I178,'4.งานสนับสนุนการจัดการเรียนรู้'!I$7:I$58) ->  | G178: =SUMIF('5.งานตอบสนองนโยบายและจุดเน้น'!#REF!,สรุปชั่วโมงสอนต่อสัปดาห์!I178,'5.งานตอบสนองนโยบายและจุดเน้น'!I$7:I$58) ->  | I178: 418 | J178: =IF(H178>ตัวแปร!C$37,1,"") -> 
B179: 4 | D179: 19 | E179: =SUMIF('3.ชั่วโมงสอนตามตารางสอน'!T$7:T$56,สรุปชั่วโมงสอนต่อสัปดาห์!I179,'3.ชั่วโมงสอนตามตารางสอน'!L$7:L$56) -> 0 | F179: =SUMIF('4.งานสนับสนุนการจัดการเรียนรู้'!#REF!,สรุปชั่วโมงสอนต่อสัปดาห์!I179,'4.งานสนับสนุนการจัดการเรียนรู้'!I$7:I$58) ->  | G179: =SUMIF('5.งานตอบสนองนโยบายและจุดเน้น'!#REF!,สรุปชั่วโมงสอนต่อสัปดาห์!I179,'5.งานตอบสนองนโยบายและจุดเน้น'!I$7:I$58) ->  | I179: 419 | J179: =IF(H179>ตัวแปร!C$37,1,"") -> 
B180: 4 | D180: 20 | E180: =SUMIF('3.ชั่วโมงสอนตามตารางสอน'!T$7:T$56,สรุปชั่วโมงสอนต่อสัปดาห์!I180,'3.ชั่วโมงสอนตามตารางสอน'!L$7:L$56) -> 0 | F180: =SUMIF('4.งานสนับสนุนการจัดการเรียนรู้'!#REF!,สรุปชั่วโมงสอนต่อสัปดาห์!I180,'4.งานสนับสนุนการจัดการเรียนรู้'!I$7:I$58) ->  | G180: =SUMIF('5.งานตอบสนองนโยบายและจุดเน้น'!#REF!,สรุปชั่วโมงสอนต่อสัปดาห์!I180,'5.งานตอบสนองนโยบายและจุดเน้น'!I$7:I$58) ->  | I180: 420 | J180: =IF(H180>ตัวแปร!C$37,1,"") -> 
B181: 4 | D181: 21 | E181: =SUMIF('3.ชั่วโมงสอนตามตารางสอน'!T$7:T$56,สรุปชั่วโมงสอนต่อสัปดาห์!I181,'3.ชั่วโมงสอนตามตารางสอน'!L$7:L$56) -> 0 | F181: =SUMIF('4.งานสนับสนุนการจัดการเรียนรู้'!#REF!,สรุปชั่วโมงสอนต่อสัปดาห์!I181,'4.งานสนับสนุนการจัดการเรียนรู้'!I$7:I$58) ->  | G181: =SUMIF('5.งานตอบสนองนโยบายและจุดเน้น'!#REF!,สรุปชั่วโมงสอนต่อสัปดาห์!I181,'5.งานตอบสนองนโยบายและจุดเน้น'!I$7:I$58) ->  | I181: 421 | J181: =IF(H181>ตัวแปร!C$37,1,"") -> 
B182: 4 | D182: 22 | E182: =SUMIF('3.ชั่วโมงสอนตามตารางสอน'!T$7:T$56,สรุปชั่วโมงสอนต่อสัปดาห์!I182,'3.ชั่วโมงสอนตามตารางสอน'!L$7:L$56) -> 0 | F182: =SUMIF('4.งานสนับสนุนการจัดการเรียนรู้'!#REF!,สรุปชั่วโมงสอนต่อสัปดาห์!I182,'4.งานสนับสนุนการจัดการเรียนรู้'!I$7:I$58) ->  | G182: =SUMIF('5.งานตอบสนองนโยบายและจุดเน้น'!#REF!,สรุปชั่วโมงสอนต่อสัปดาห์!I182,'5.งานตอบสนองนโยบายและจุดเน้น'!I$7:I$58) ->  | I182: 422 | J182: =IF(H182>ตัวแปร!C$37,1,"") -> 
B183: 4 | D183: 23 | E183: =SUMIF('3.ชั่วโมงสอนตามตารางสอน'!T$7:T$56,สรุปชั่วโมงสอนต่อสัปดาห์!I183,'3.ชั่วโมงสอนตามตารางสอน'!L$7:L$56) -> 0 | F183: =SUMIF('4.งานสนับสนุนการจัดการเรียนรู้'!#REF!,สรุปชั่วโมงสอนต่อสัปดาห์!I183,'4.งานสนับสนุนการจัดการเรียนรู้'!I$7:I$58) ->  | G183: =SUMIF('5.งานตอบสนองนโยบายและจุดเน้น'!#REF!,สรุปชั่วโมงสอนต่อสัปดาห์!I183,'5.งานตอบสนองนโยบายและจุดเน้น'!I$7:I$58) ->  | I183: 423 | J183: =IF(H183>ตัวแปร!C$37,1,"") -> 
B184: 4 | D184: 24 | E184: =SUMIF('3.ชั่วโมงสอนตามตารางสอน'!T$7:T$56,สรุปชั่วโมงสอนต่อสัปดาห์!I184,'3.ชั่วโมงสอนตามตารางสอน'!L$7:L$56) -> 0 | F184: =SUMIF('4.งานสนับสนุนการจัดการเรียนรู้'!#REF!,สรุปชั่วโมงสอนต่อสัปดาห์!I184,'4.งานสนับสนุนการจัดการเรียนรู้'!I$7:I$58) ->  | G184: =SUMIF('5.งานตอบสนองนโยบายและจุดเน้น'!#REF!,สรุปชั่วโมงสอนต่อสัปดาห์!I184,'5.งานตอบสนองนโยบายและจุดเน้น'!I$7:I$58) ->  | I184: 424 | J184: =IF(H184>ตัวแปร!C$37,1,"") -> 
B185: 4 | D185: 25 | E185: =SUMIF('3.ชั่วโมงสอนตามตารางสอน'!T$7:T$56,สรุปชั่วโมงสอนต่อสัปดาห์!I185,'3.ชั่วโมงสอนตามตารางสอน'!L$7:L$56) -> 0 | F185: =SUMIF('4.งานสนับสนุนการจัดการเรียนรู้'!#REF!,สรุปชั่วโมงสอนต่อสัปดาห์!I185,'4.งานสนับสนุนการจัดการเรียนรู้'!I$7:I$58) ->  | G185: =SUMIF('5.งานตอบสนองนโยบายและจุดเน้น'!#REF!,สรุปชั่วโมงสอนต่อสัปดาห์!I185,'5.งานตอบสนองนโยบายและจุดเน้น'!I$7:I$58) ->  | I185: 425 | J185: =IF(H185>ตัวแปร!C$37,1,"") -> 
B186: 4 | D186: 26 | E186: =SUMIF('3.ชั่วโมงสอนตามตารางสอน'!T$7:T$56,สรุปชั่วโมงสอนต่อสัปดาห์!I186,'3.ชั่วโมงสอนตามตารางสอน'!L$7:L$56) -> 0 | F186: =SUMIF('4.งานสนับสนุนการจัดการเรียนรู้'!#REF!,สรุปชั่วโมงสอนต่อสัปดาห์!I186,'4.งานสนับสนุนการจัดการเรียนรู้'!I$7:I$58) ->  | G186: =SUMIF('5.งานตอบสนองนโยบายและจุดเน้น'!#REF!,สรุปชั่วโมงสอนต่อสัปดาห์!I186,'5.งานตอบสนองนโยบายและจุดเน้น'!I$7:I$58) ->  | I186: 426 | J186: =IF(H186>ตัวแปร!C$37,1,"") -> 
B187: 4 | D187: 27 | E187: =SUMIF('3.ชั่วโมงสอนตามตารางสอน'!T$7:T$56,สรุปชั่วโมงสอนต่อสัปดาห์!I187,'3.ชั่วโมงสอนตามตารางสอน'!L$7:L$56) -> 0 | F187: =SUMIF('4.งานสนับสนุนการจัดการเรียนรู้'!#REF!,สรุปชั่วโมงสอนต่อสัปดาห์!I187,'4.งานสนับสนุนการจัดการเรียนรู้'!I$7:I$58) ->  | G187: =SUMIF('5.งานตอบสนองนโยบายและจุดเน้น'!#REF!,สรุปชั่วโมงสอนต่อสัปดาห์!I187,'5.งานตอบสนองนโยบายและจุดเน้น'!I$7:I$58) ->  | I187: 427 | J187: =IF(H187>ตัวแปร!C$37,1,"") -> 
B188: 4 | D188: 28 | E188: =SUMIF('3.ชั่วโมงสอนตามตารางสอน'!T$7:T$56,สรุปชั่วโมงสอนต่อสัปดาห์!I188,'3.ชั่วโมงสอนตามตารางสอน'!L$7:L$56) -> 0 | F188: =SUMIF('4.งานสนับสนุนการจัดการเรียนรู้'!#REF!,สรุปชั่วโมงสอนต่อสัปดาห์!I188,'4.งานสนับสนุนการจัดการเรียนรู้'!I$7:I$58) ->  | G188: =SUMIF('5.งานตอบสนองนโยบายและจุดเน้น'!#REF!,สรุปชั่วโมงสอนต่อสัปดาห์!I188,'5.งานตอบสนองนโยบายและจุดเน้น'!I$7:I$58) ->  | I188: 428 | J188: =IF(H188>ตัวแปร!C$37,1,"") -> 
B189: 4 | D189: 29 | E189: =SUMIF('3.ชั่วโมงสอนตามตารางสอน'!T$7:T$56,สรุปชั่วโมงสอนต่อสัปดาห์!I189,'3.ชั่วโมงสอนตามตารางสอน'!L$7:L$56) -> 0 | F189: =SUMIF('4.งานสนับสนุนการจัดการเรียนรู้'!#REF!,สรุปชั่วโมงสอนต่อสัปดาห์!I189,'4.งานสนับสนุนการจัดการเรียนรู้'!I$7:I$58) ->  | G189: =SUMIF('5.งานตอบสนองนโยบายและจุดเน้น'!#REF!,สรุปชั่วโมงสอนต่อสัปดาห์!I189,'5.งานตอบสนองนโยบายและจุดเน้น'!I$7:I$58) ->  | I189: 429 | J189: =IF(H189>ตัวแปร!C$37,1,"") -> 
B190: 4 | D190: 30 | E190: =SUMIF('3.ชั่วโมงสอนตามตารางสอน'!T$7:T$56,สรุปชั่วโมงสอนต่อสัปดาห์!I190,'3.ชั่วโมงสอนตามตารางสอน'!L$7:L$56) -> 0 | F190: =SUMIF('4.งานสนับสนุนการจัดการเรียนรู้'!#REF!,สรุปชั่วโมงสอนต่อสัปดาห์!I190,'4.งานสนับสนุนการจัดการเรียนรู้'!I$7:I$58) ->  | G190: =SUMIF('5.งานตอบสนองนโยบายและจุดเน้น'!#REF!,สรุปชั่วโมงสอนต่อสัปดาห์!I190,'5.งานตอบสนองนโยบายและจุดเน้น'!I$7:I$58) ->  | I190: 430 | J190: =IF(H190>ตัวแปร!C$37,1,"") -> 
B191: 4 | D191: 31 | E191: =SUMIF('3.ชั่วโมงสอนตามตารางสอน'!T$7:T$56,สรุปชั่วโมงสอนต่อสัปดาห์!I191,'3.ชั่วโมงสอนตามตารางสอน'!L$7:L$56) -> 0 | F191: =SUMIF('4.งานสนับสนุนการจัดการเรียนรู้'!#REF!,สรุปชั่วโมงสอนต่อสัปดาห์!I191,'4.งานสนับสนุนการจัดการเรียนรู้'!I$7:I$58) ->  | G191: =SUMIF('5.งานตอบสนองนโยบายและจุดเน้น'!#REF!,สรุปชั่วโมงสอนต่อสัปดาห์!I191,'5.งานตอบสนองนโยบายและจุดเน้น'!I$7:I$58) ->  | I191: 431 | J191: =IF(H191>ตัวแปร!C$37,1,"") -> 
B192: 4 | D192: 32 | E192: =SUMIF('3.ชั่วโมงสอนตามตารางสอน'!T$7:T$56,สรุปชั่วโมงสอนต่อสัปดาห์!I192,'3.ชั่วโมงสอนตามตารางสอน'!L$7:L$56) -> 0 | F192: =SUMIF('4.งานสนับสนุนการจัดการเรียนรู้'!#REF!,สรุปชั่วโมงสอนต่อสัปดาห์!I192,'4.งานสนับสนุนการจัดการเรียนรู้'!I$7:I$58) ->  | G192: =SUMIF('5.งานตอบสนองนโยบายและจุดเน้น'!#REF!,สรุปชั่วโมงสอนต่อสัปดาห์!I192,'5.งานตอบสนองนโยบายและจุดเน้น'!I$7:I$58) ->  | I192: 432 | J192: =IF(H192>ตัวแปร!C$37,1,"") -> 
B193: 4 | D193: 33 | E193: =SUMIF('3.ชั่วโมงสอนตามตารางสอน'!T$7:T$56,สรุปชั่วโมงสอนต่อสัปดาห์!I193,'3.ชั่วโมงสอนตามตารางสอน'!L$7:L$56) -> 0 | F193: =SUMIF('4.งานสนับสนุนการจัดการเรียนรู้'!#REF!,สรุปชั่วโมงสอนต่อสัปดาห์!I193,'4.งานสนับสนุนการจัดการเรียนรู้'!I$7:I$58) ->  | G193: =SUMIF('5.งานตอบสนองนโยบายและจุดเน้น'!#REF!,สรุปชั่วโมงสอนต่อสัปดาห์!I193,'5.งานตอบสนองนโยบายและจุดเน้น'!I$7:I$58) ->  | I193: 433 | J193: =IF(H193>ตัวแปร!C$37,1,"") -> 
B194: 4 | D194: 34 | E194: =SUMIF('3.ชั่วโมงสอนตามตารางสอน'!T$7:T$56,สรุปชั่วโมงสอนต่อสัปดาห์!I194,'3.ชั่วโมงสอนตามตารางสอน'!L$7:L$56) -> 0 | F194: =SUMIF('4.งานสนับสนุนการจัดการเรียนรู้'!#REF!,สรุปชั่วโมงสอนต่อสัปดาห์!I194,'4.งานสนับสนุนการจัดการเรียนรู้'!I$7:I$58) ->  | G194: =SUMIF('5.งานตอบสนองนโยบายและจุดเน้น'!#REF!,สรุปชั่วโมงสอนต่อสัปดาห์!I194,'5.งานตอบสนองนโยบายและจุดเน้น'!I$7:I$58) ->  | I194: 434 | J194: =IF(H194>ตัวแปร!C$37,1,"") -> 
B195: 4 | D195: 35 | E195: =SUMIF('3.ชั่วโมงสอนตามตารางสอน'!T$7:T$56,สรุปชั่วโมงสอนต่อสัปดาห์!I195,'3.ชั่วโมงสอนตามตารางสอน'!L$7:L$56) -> 0 | F195: =SUMIF('4.งานสนับสนุนการจัดการเรียนรู้'!#REF!,สรุปชั่วโมงสอนต่อสัปดาห์!I195,'4.งานสนับสนุนการจัดการเรียนรู้'!I$7:I$58) ->  | G195: =SUMIF('5.งานตอบสนองนโยบายและจุดเน้น'!#REF!,สรุปชั่วโมงสอนต่อสัปดาห์!I195,'5.งานตอบสนองนโยบายและจุดเน้น'!I$7:I$58) ->  | I195: 435 | J195: =IF(H195>ตัวแปร!C$37,1,"") -> 
B196: 4 | D196: 36 | E196: =SUMIF('3.ชั่วโมงสอนตามตารางสอน'!T$7:T$56,สรุปชั่วโมงสอนต่อสัปดาห์!I196,'3.ชั่วโมงสอนตามตารางสอน'!L$7:L$56) -> 0 | F196: =SUMIF('4.งานสนับสนุนการจัดการเรียนรู้'!#REF!,สรุปชั่วโมงสอนต่อสัปดาห์!I196,'4.งานสนับสนุนการจัดการเรียนรู้'!I$7:I$58) ->  | G196: =SUMIF('5.งานตอบสนองนโยบายและจุดเน้น'!#REF!,สรุปชั่วโมงสอนต่อสัปดาห์!I196,'5.งานตอบสนองนโยบายและจุดเน้น'!I$7:I$58) ->  | I196: 436 | J196: =IF(H196>ตัวแปร!C$37,1,"") -> 
B197: 4 | D197: 37 | E197: =SUMIF('3.ชั่วโมงสอนตามตารางสอน'!T$7:T$56,สรุปชั่วโมงสอนต่อสัปดาห์!I197,'3.ชั่วโมงสอนตามตารางสอน'!L$7:L$56) -> 0 | F197: =SUMIF('4.งานสนับสนุนการจัดการเรียนรู้'!#REF!,สรุปชั่วโมงสอนต่อสัปดาห์!I197,'4.งานสนับสนุนการจัดการเรียนรู้'!I$7:I$58) ->  | G197: =SUMIF('5.งานตอบสนองนโยบายและจุดเน้น'!#REF!,สรุปชั่วโมงสอนต่อสัปดาห์!I197,'5.งานตอบสนองนโยบายและจุดเน้น'!I$7:I$58) ->  | I197: 437 | J197: =IF(H197>ตัวแปร!C$37,1,"") -> 
B198: 4 | D198: 38 | E198: =SUMIF('3.ชั่วโมงสอนตามตารางสอน'!T$7:T$56,สรุปชั่วโมงสอนต่อสัปดาห์!I198,'3.ชั่วโมงสอนตามตารางสอน'!L$7:L$56) -> 0 | F198: =SUMIF('4.งานสนับสนุนการจัดการเรียนรู้'!#REF!,สรุปชั่วโมงสอนต่อสัปดาห์!I198,'4.งานสนับสนุนการจัดการเรียนรู้'!I$7:I$58) ->  | G198: =SUMIF('5.งานตอบสนองนโยบายและจุดเน้น'!#REF!,สรุปชั่วโมงสอนต่อสัปดาห์!I198,'5.งานตอบสนองนโยบายและจุดเน้น'!I$7:I$58) ->  | H198: =SUM(E198:G198) ->  | I198: =B198&+D198 -> 438 | J198: =IF(H198>ตัวแปร!C$37,1,"") ->  | K198: =IF(J198=1,"ตรวจสอบ","") -> 
B199: =IF(D198=52,B198+1,B198) -> 4 | D199: 39 | E199: =SUMIF('3.ชั่วโมงสอนตามตารางสอน'!T$7:T$56,สรุปชั่วโมงสอนต่อสัปดาห์!I199,'3.ชั่วโมงสอนตามตารางสอน'!L$7:L$56) -> 0 | F199: =SUMIF('4.งานสนับสนุนการจัดการเรียนรู้'!#REF!,สรุปชั่วโมงสอนต่อสัปดาห์!I199,'4.งานสนับสนุนการจัดการเรียนรู้'!I$7:I$58) ->  | G199: =SUMIF('5.งานตอบสนองนโยบายและจุดเน้น'!#REF!,สรุปชั่วโมงสอนต่อสัปดาห์!I199,'5.งานตอบสนองนโยบายและจุดเน้น'!I$7:I$58) ->  | I199: 439 | J199: =IF(H199>ตัวแปร!C$37,1,"") -> 
B200: 4 | D200: 40 | E200: =SUMIF('3.ชั่วโมงสอนตามตารางสอน'!T$7:T$56,สรุปชั่วโมงสอนต่อสัปดาห์!I200,'3.ชั่วโมงสอนตามตารางสอน'!L$7:L$56) -> 0 | F200: =SUMIF('4.งานสนับสนุนการจัดการเรียนรู้'!#REF!,สรุปชั่วโมงสอนต่อสัปดาห์!I200,'4.งานสนับสนุนการจัดการเรียนรู้'!I$7:I$58) ->  | G200: =SUMIF('5.งานตอบสนองนโยบายและจุดเน้น'!#REF!,สรุปชั่วโมงสอนต่อสัปดาห์!I200,'5.งานตอบสนองนโยบายและจุดเน้น'!I$7:I$58) ->  | I200: 440 | J200: =IF(H200>ตัวแปร!C$37,1,"") -> 
... 64 more rows

Sheet 1.ข้อมูลส่วนบุคคล
A1: Logbook
A2: ข้อมูลส่วนบุคคล
A3: ลำดับที่ | B3: วัน เดือน ปี ที่บันทึก | C3: หลักสูตรที่พัฒนา | E3: ระดับวิทยฐานะ | F3: วัน เดือน ปี ที่พัฒนา
A5: 1 | B5: คำนำหน้าชื่อ | C5: นาย | E5: เลขที่บัตรประชาชน | F5: 1234567891234
B6: ชื่อ | C6: สมชาย | E6: คุณวุฒิ | F6: ปริญญาตรี (4 ปี) คบ. การสอนภาษาไทย
B7: นามสกุล | C7: ใจดี
A9: 2 | B9: ตำแหน่งปัจจุบัน | C9: ครู | E9: เลขที่ตำแหน่ง | F9: 1234
B10: วิทยฐานะ ครู | C10: ชำนาญการ | E10: ตั้งแต่วันที่ | F10: 2555-01-25 | G10: =DAY(F10)&+"/"&+MONTH(F10)&+"/"&+YEAR(F10) -> 25/1/2555
B11: เงินเดือน | C11: 25000 | D11: บาท | G11: =DAY(F10)&+"/"&+MONTH(F10)&+"/"&+(YEAR(F10)) -> 25/1/2555
A13: 3 | B13: ชื่อสถานศึกษา | C13: โรงเรียนอนุบาลวัดปรินายก | E13: แขวง/ตำบล | F13: บ้านพานถม | G13: =NOW() -> 2018-06-28T11:50:26.510
B14: เขต/อำเภอ | C14: พระนคร | E14: จังหวัด | F14: กรุงเทพฯ | G14: =DAY(G13)&+"/"&+MONTH(G13)&+"/"&+(YEAR(G13)+543) -> 28/6/2561
B15: รหัสไปรษณีย์ | C15: 10200
A17: 4 | B17: สังกัด | C17: สำนักงานคณะกรรมการการศึกษาขั้นพื้นฐาน
B18: หน่วยงาน | C18: สำนักงานเขตพื้นที่การศึกษา | E18: ชื่อหน่วยงาน (ถ้ามี)
A20: 5 | B20: มีความประสงค์จะยื่นขอรับการประเมินเพื่อขอมีหรือเลื่อนวิทยฐานะใด
B21: ครู | C21: =IF(C10="","โปรดระบุวิทยฐานะในข้อที่ 2",VLOOKUP(C10,ตั้งค่าข้อมูล!A4:B8,2,FALSE)) -> ชำนาญการพิเศษ | D21: =IF(C21="ชำนาญการ","",IF(C21="ชำนาญการพิเศษ","",IF(C21="เชี่ยวชาญ","โปรดกรอกข้อมูลในข้อ 6",IF(C21="เชี่ยวชาญพิเศษ","โปรดกรอกข้อมูลในข้อ 6","")))) -> 
A23: 6 | B23: กรณีที่ยื่นขอวิทยฐานะ เชี่ยวชาญ/เชี่ยวชาญพิเศษ ให้ระบุระดับการศึกษาและกลุ่มสาระ/สาขาวิชา/วิชาที่เสนอขอผลงานทางวิชาการ ตามสังกัดของตนเอง
B25: สังกัดหน่วยงานการศึกษา… | D25: ระดับการศึกษา | F25: กลุ่มสาระ/สาขาวิชา/วิชาที่เสนอขอ | G25: ชั่วโมงสอนขั้นต่ำ
B26: สำนักงานเขตพื้นที่การศึกษา | D26: ประถมศึกษา | F26: ภาษาไทย | G26: =IFERROR(VLOOKUP(D26,ตัวแปร!B41:C61,2,0),"") -> 12
D28: การลงนามเพื่อรับรองข้อมูล
E29: การรับรองของตนเอง
D30: ลงชื่อ | E30: =C6&+" "&+C7 -> สมชาย ใจดี
E31: ="("&+C5&+C6&+" "&+C7&+")" -> (นายสมชาย ใจดี)
D32: วัน/เดือน/ปี ที่เริ่มบันทึก | E32: 2560-05-15
E33: =DAY(E32) -> 15 | F33: =MONTH(E32) -> 5 | G33: =YEAR(E32)+543 -> 3103
B34: การรับรองของ ผอ.สถานศึกษา | F34: =TEXT(E32,"MMMM") -> พฤษภาคม
A35: ลงชื่อ | B35: สมหวัง ดังใจ | D35: 2018-02-12
B36: (นาย | C36: =B35&+")" -> สมหวัง ดังใจ) | D36: วัน/เดือน/ปี
A37: ตำแหน่ง | B37: ผู้อำนวยการโรงเรียนอนุบาลวัดปรินายก
A38: กรณีที่ในปีใดมีการปรับปรุงหรือแก้ไขข้อมูลในหน้านี้ ให้ผอ.สถานศึกษาที่เป็นผู้บังคับบัญชาในขณะนั้นทำการรับรองใหม่
A39: ลงชื่อ
B40: (นาย | C40: =B39&+")" -> ) | D40: วัน/เดือน/ปี
A41: ตำแหน่ง | B41: ผู้อำนวยการโรงเรียน....
A43: ลงชื่อ
B44: (นาย | C44: =B43&+")" -> ) | D44: วัน/เดือน/ปี
A45: ตำแหน่ง | B45: ผู้อำนวยการโรงเรียน....
A47: ลงชื่อ
B48: (นาย | C48: =B47&+")" -> ) | D48: วัน/เดือน/ปี
A49: ตำแหน่ง | B49: ผู้อำนวยการโรงเรียน....
A51: ลงชื่อ
B52: (นาย | C52: =B51&+")" -> ) | D52: วัน/เดือน/ปี
A53: ตำแหน่ง | B53: ผู้อำนวยการโรงเรียน....
A55: ลงชื่อ
B56: (นาย | C56: =B55&+")" -> ) | D56: วัน/เดือน/ปี
A57: ตำแหน่ง | B57: ผู้อำนวยการโรงเรียน....
A59: ลงชื่อ
B60: (นาย | C60: =B59&+")" -> ) | D60: วัน/เดือน/ปี
A61: ตำแหน่ง | B61: ผู้อำนวยการโรงเรียน....
A63: ลงชื่อ
B64: (นาย | C64: =B63&+")" -> ) | D64: วัน/เดือน/ปี
A65: ตำแหน่ง | B65: ผู้อำนวยการโรงเรียน....
A67: ลงชื่อ
B68: (นาย | C68: =B67&+")" -> ) | D68: วัน/เดือน/ปี
A69: ตำแหน่ง | B69: ผู้อำนวยการโรงเรียน....
A71: ลงชื่อ
B72: (นาย | C72: =B71&+")" -> ) | D72: วัน/เดือน/ปี
A73: ตำแหน่ง | B73: ผู้อำนวยการโรงเรียน....
A75: ลงชื่อ
B76: (นาย | C76: =B75&+")" -> ) | D76: วัน/เดือน/ปี
A77: ตำแหน่ง | B77: ผู้อำนวยการโรงเรียน....

Sheet 2.การมอบหมายงานสอน
A1: การมอบหมายงานสอน
B4: NO | C4: ปีการศึกษา/ปีงบประมาณ | D4: ภาคเรียนที่ | E4: หน่วยงานการศึกษา | F4: ชื่อสถานศึกษา | G4: ประเภทการสอน/ระดับการศึกษาที่สอน | H4: กลุ่มสาระที่สอน/สาขาวิชาที่สอน/วิชาที่สอน | I4: สาขาวิชา/กลุ่มวิชาที่สอน (ถ้ามี) | J4: ชื่อวิชาที่สอน/วิชาที่อบรม | K4: จำนวนคาบต่อสัปดาห์/หลักสูตร | L4: การรับรองของ ผอ. สถานศึกษา
A5: ='1.ข้อมูลส่วนบุคคล'!$F$5 -> 1234567891234 | B5: 1 | C5: 2560 | D5: 1 | E5: สำนักงานเขตพื้นที่การศึกษา | F5: โรงเรียนอนุบาลวัดปรินายก | G5: ประถมศึกษา | H5: ภาษาไทย | I5: ภาษาไทย | J5: ภาษาไทย | K5: 15 | L5: ถูกต้อง
A6: ='1.ข้อมูลส่วนบุคคล'!$F$5 -> 1234567891234 | B6: 2 | L6: ไม่ถูกต้อง
A7: ='1.ข้อมูลส่วนบุคคล'!$F$5 -> 1234567891234 | B7: 3 | L7: ไม่ถูกต้อง
A8: ='1.ข้อมูลส่วนบุคคล'!$F$5 -> 1234567891234 | B8: 4 | L8: ไม่ถูกต้อง
A9: ='1.ข้อมูลส่วนบุคคล'!$F$5 -> 1234567891234 | B9: 5 | L9: ไม่ถูกต้อง
A10: ='1.ข้อมูลส่วนบุคคล'!$F$5 -> 1234567891234 | B10: 6 | L10: ไม่ถูกต้อง
A11: ='1.ข้อมูลส่วนบุคคล'!$F$5 -> 1234567891234 | B11: 7 | L11: ไม่ถูกต้อง
A12: ='1.ข้อมูลส่วนบุคคล'!$F$5 -> 1234567891234 | B12: 8 | L12: ไม่ถูกต้อง
A13: ='1.ข้อมูลส่วนบุคคล'!$F$5 -> 1234567891234 | B13: 9 | L13: ไม่ถูกต้อง
A14: ='1.ข้อมูลส่วนบุคคล'!$F$5 -> 1234567891234 | B14: 10 | L14: ไม่ถูกต้อง
A15: ='1.ข้อมูลส่วนบุคคล'!$F$5 -> 1234567891234 | B15: 11 | L15: ไม่ถูกต้อง
A16: ='1.ข้อมูลส่วนบุคคล'!$F$5 -> 1234567891234 | B16: 12 | L16: ไม่ถูกต้อง
A17: ='1.ข้อมูลส่วนบุคคล'!$F$5 -> 1234567891234 | B17: 13 | L17: ไม่ถูกต้อง
A18: ='1.ข้อมูลส่วนบุคคล'!$F$5 -> 1234567891234 | B18: 14 | L18: ไม่ถูกต้อง
A19: ='1.ข้อมูลส่วนบุคคล'!$F$5 -> 1234567891234 | B19: 15 | L19: ไม่ถูกต้อง
A20: ='1.ข้อมูลส่วนบุคคล'!$F$5 -> 1234567891234 | B20: 16 | L20: ไม่ถูกต้อง
A21: ='1.ข้อมูลส่วนบุคคล'!$F$5 -> 1234567891234 | B21: 17 | L21: ไม่ถูกต้อง
A22: ='1.ข้อมูลส่วนบุคคล'!$F$5 -> 1234567891234 | B22: 18 | L22: ไม่ถูกต้อง
A23: ='1.ข้อมูลส่วนบุคคล'!$F$5 -> 1234567891234 | B23: 19 | L23: ไม่ถูกต้อง
A24: ='1.ข้อมูลส่วนบุคคล'!$F$5 -> 1234567891234 | B24: 20 | L24: ไม่ถูกต้อง
A25: ='1.ข้อมูลส่วนบุคคล'!$F$5 -> 1234567891234 | B25: 21 | L25: ไม่ถูกต้อง
A26: ='1.ข้อมูลส่วนบุคคล'!$F$5 -> 1234567891234 | B26: 22 | L26: ไม่ถูกต้อง
A27: ='1.ข้อมูลส่วนบุคคล'!$F$5 -> 1234567891234 | B27: 23 | L27: ไม่ถูกต้อง
A28: ='1.ข้อมูลส่วนบุคคล'!$F$5 -> 1234567891234 | B28: 24 | L28: ไม่ถูกต้อง
A29: ='1.ข้อมูลส่วนบุคคล'!$F$5 -> 1234567891234 | B29: 25 | L29: ไม่ถูกต้อง
A30: ='1.ข้อมูลส่วนบุคคล'!$F$5 -> 1234567891234 | B30: 26 | L30: ไม่ถูกต้อง
A31: ='1.ข้อมูลส่วนบุคคล'!$F$5 -> 1234567891234 | B31: 27 | L31: ไม่ถูกต้อง
A32: ='1.ข้อมูลส่วนบุคคล'!$F$5 -> 1234567891234 | B32: 28 | L32: ไม่ถูกต้อง
A33: ='1.ข้อมูลส่วนบุคคล'!$F$5 -> 1234567891234 | B33: 29 | L33: ไม่ถูกต้อง
A34: ='1.ข้อมูลส่วนบุคคล'!$F$5 -> 1234567891234 | B34: 30 | L34: ไม่ถูกต้อง
A35: ='1.ข้อมูลส่วนบุคคล'!$F$5 -> 1234567891234 | B35: 31 | L35: ไม่ถูกต้อง
A36: ='1.ข้อมูลส่วนบุคคล'!$F$5 -> 1234567891234 | B36: 32 | L36: ไม่ถูกต้อง
A37: ='1.ข้อมูลส่วนบุคคล'!$F$5 -> 1234567891234 | B37: 33 | L37: ไม่ถูกต้อง
A38: ='1.ข้อมูลส่วนบุคคล'!$F$5 -> 1234567891234 | B38: 34 | L38: ไม่ถูกต้อง
A39: ='1.ข้อมูลส่วนบุคคล'!$F$5 -> 1234567891234 | B39: 35 | L39: ไม่ถูกต้อง
A40: ='1.ข้อมูลส่วนบุคคล'!$F$5 -> 1234567891234 | B40: 36 | L40: ไม่ถูกต้อง
A41: ='1.ข้อมูลส่วนบุคคล'!$F$5 -> 1234567891234 | B41: 37 | L41: ไม่ถูกต้อง
A42: ='1.ข้อมูลส่วนบุคคล'!$F$5 -> 1234567891234 | B42: 38 | L42: ไม่ถูกต้อง
A43: ='1.ข้อมูลส่วนบุคคล'!$F$5 -> 1234567891234 | B43: 39 | L43: ไม่ถูกต้อง
A44: ='1.ข้อมูลส่วนบุคคล'!$F$5 -> 1234567891234 | B44: 40 | L44: ไม่ถูกต้อง
A45: ='1.ข้อมูลส่วนบุคคล'!$F$5 -> 1234567891234 | B45: 41 | L45: ไม่ถูกต้อง
A46: ='1.ข้อมูลส่วนบุคคล'!$F$5 -> 1234567891234 | B46: 42 | L46: ไม่ถูกต้อง
A47: ='1.ข้อมูลส่วนบุคคล'!$F$5 -> 1234567891234 | B47: 43 | L47: ไม่ถูกต้อง
A48: ='1.ข้อมูลส่วนบุคคล'!$F$5 -> 1234567891234 | B48: 44 | L48: ไม่ถูกต้อง
A49: ='1.ข้อมูลส่วนบุคคล'!$F$5 -> 1234567891234 | B49: 45 | L49: ไม่ถูกต้อง
A50: ='1.ข้อมูลส่วนบุคคล'!$F$5 -> 1234567891234 | B50: 46 | L50: ไม่ถูกต้อง
A51: ='1.ข้อมูลส่วนบุคคล'!$F$5 -> 1234567891234 | B51: 47 | L51: ไม่ถูกต้อง
A52: ='1.ข้อมูลส่วนบุคคล'!$F$5 -> 1234567891234 | B52: 48 | L52: ไม่ถูกต้อง
A53: ='1.ข้อมูลส่วนบุคคล'!$F$5 -> 1234567891234 | B53: 49 | L53: ไม่ถูกต้อง
A54: ='1.ข้อมูลส่วนบุคคล'!$F$5 -> 1234567891234 | B54: 50 | L54: ไม่ถูกต้อง
A55: ='1.ข้อมูลส่วนบุคคล'!$F$5 -> 1234567891234 | B55: 51 | L55: ไม่ถูกต้อง
A56: ='1.ข้อมูลส่วนบุคคล'!$F$5 -> 1234567891234 | B56: 52 | L56: ไม่ถูกต้อง
A57: ='1.ข้อมูลส่วนบุคคล'!$F$5 -> 1234567891234 | B57: 53 | L57: ไม่ถูกต้อง
A58: ='1.ข้อมูลส่วนบุคคล'!$F$5 -> 1234567891234 | B58: 54 | L58: ไม่ถูกต้อง
A59: ='1.ข้อมูลส่วนบุคคล'!$F$5 -> 1234567891234 | B59: 55 | L59: ไม่ถูกต้อง
A60: ='1.ข้อมูลส่วนบุคคล'!$F$5 -> 1234567891234 | B60: 56 | L60: ไม่ถูกต้อง
A61: ='1.ข้อมูลส่วนบุคคล'!$F$5 -> 1234567891234 | B61: 57 | L61: ไม่ถูกต้อง
A62: ='1.ข้อมูลส่วนบุคคล'!$F$5 -> 1234567891234 | B62: 58 | L62: ไม่ถูกต้อง
A63: ='1.ข้อมูลส่วนบุคคล'!$F$5 -> 1234567891234 | B63: 59 | L63: ไม่ถูกต้อง
A64: ='1.ข้อมูลส่วนบุคคล'!$F$5 -> 1234567891234 | B64: 60 | L64: ไม่ถูกต้อง
A65: ='1.ข้อมูลส่วนบุคคล'!$F$5 -> 1234567891234 | B65: 61 | L65: ไม่ถูกต้อง
A66: ='1.ข้อมูลส่วนบุคคล'!$F$5 -> 1234567891234 | B66: 62 | L66: ไม่ถูกต้อง
A67: ='1.ข้อมูลส่วนบุคคล'!$F$5 -> 1234567891234 | B67: 63 | L67: ไม่ถูกต้อง
A68: ='1.ข้อมูลส่วนบุคคล'!$F$5 -> 1234567891234 | B68: 64 | L68: ไม่ถูกต้อง
A69: ='1.ข้อมูลส่วนบุคคล'!$F$5 -> 1234567891234 | B69: 65 | L69: ไม่ถูกต้อง
A70: ='1.ข้อมูลส่วนบุคคล'!$F$5 -> 1234567891234 | B70: 66 | L70: ไม่ถูกต้อง
A71: ='1.ข้อมูลส่วนบุคคล'!$F$5 -> 1234567891234 | B71: 67 | L71: ไม่ถูกต้อง
A72: ='1.ข้อมูลส่วนบุคคล'!$F$5 -> 1234567891234 | B72: 68 | L72: ไม่ถูกต้อง
A73: ='1.ข้อมูลส่วนบุคคล'!$F$5 -> 1234567891234 | B73: 69 | L73: ไม่ถูกต้อง
A74: ='1.ข้อมูลส่วนบุคคล'!$F$5 -> 1234567891234 | B74: 70 | L74: ไม่ถูกต้อง
A75: ='1.ข้อมูลส่วนบุคคล'!$F$5 -> 1234567891234 | B75: 71 | L75: ไม่ถูกต้อง
A76: ='1.ข้อมูลส่วนบุคคล'!$F$5 -> 1234567891234 | B76: 72 | L76: ไม่ถูกต้อง
A77: ='1.ข้อมูลส่วนบุคคล'!$F$5 -> 1234567891234 | B77: 73 | L77: ไม่ถูกต้อง
A78: ='1.ข้อมูลส่วนบุคคล'!$F$5 -> 1234567891234 | B78: 74 | L78: ไม่ถูกต้อง
A79: ='1.ข้อมูลส่วนบุคคล'!$F$5 -> 1234567891234 | B79: 75 | L79: ไม่ถูกต้อง
A80: ='1.ข้อมูลส่วนบุคคล'!$F$5 -> 1234567891234 | B80: 76 | L80: ไม่ถูกต้อง
A81: ='1.ข้อมูลส่วนบุคคล'!$F$5 -> 1234567891234 | B81: 77 | L81: ไม่ถูกต้อง
A82: ='1.ข้อมูลส่วนบุคคล'!$F$5 -> 1234567891234 | B82: 78 | L82: ไม่ถูกต้อง
A83: ='1.ข้อมูลส่วนบุคคล'!$F$5 -> 1234567891234 | B83: 79 | L83: ไม่ถูกต้อง
A84: ='1.ข้อมูลส่วนบุคคล'!$F$5 -> 1234567891234 | B84: 80 | L84: ไม่ถูกต้อง
A85: ='1.ข้อมูลส่วนบุคคล'!$F$5 -> 1234567891234 | B85: 81 | L85: ไม่ถูกต้อง
A86: ='1.ข้อมูลส่วนบุคคล'!$F$5 -> 1234567891234 | B86: 82 | L86: ไม่ถูกต้อง
A87: ='1.ข้อมูลส่วนบุคคล'!$F$5 -> 1234567891234 | B87: 83 | L87: ไม่ถูกต้อง
A88: ='1.ข้อมูลส่วนบุคคล'!$F$5 -> 1234567891234 | B88: 84 | L88: ไม่ถูกต้อง
A89: ='1.ข้อมูลส่วนบุคคล'!$F$5 -> 1234567891234 | B89: 85 | L89: ไม่ถูกต้อง
A90: ='1.ข้อมูลส่วนบุคคล'!$F$5 -> 1234567891234 | B90: 86 | L90: ไม่ถูกต้อง
A91: ='1.ข้อมูลส่วนบุคคล'!$F$5 -> 1234567891234 | B91: 87 | L91: ไม่ถูกต้อง
A92: ='1.ข้อมูลส่วนบุคคล'!$F$5 -> 1234567891234 | B92: 88 | L92: ไม่ถูกต้อง
A93: ='1.ข้อมูลส่วนบุคคล'!$F$5 -> 1234567891234 | B93: 89 | L93: ไม่ถูกต้อง
A94: ='1.ข้อมูลส่วนบุคคล'!$F$5 -> 1234567891234 | B94: 90 | L94: ไม่ถูกต้อง
A95: ='1.ข้อมูลส่วนบุคคล'!$F$5 -> 1234567891234 | B95: 91 | L95: ไม่ถูกต้อง
A96: ='1.ข้อมูลส่วนบุคคล'!$F$5 -> 1234567891234 | B96: 92 | L96: ไม่ถูกต้อง
A97: ='1.ข้อมูลส่วนบุคคล'!$F$5 -> 1234567891234 | B97: 93 | L97: ไม่ถูกต้อง
A98: ='1.ข้อมูลส่วนบุคคล'!$F$5 -> 1234567891234 | B98: 94 | L98: ไม่ถูกต้อง
A99: ='1.ข้อมูลส่วนบุคคล'!$F$5 -> 1234567891234 | B99: 95 | L99: ไม่ถูกต้อง
A100: ='1.ข้อมูลส่วนบุคคล'!$F$5 -> 1234567891234 | B100: 96 | L100: ไม่ถูกต้อง
A101: ='1.ข้อมูลส่วนบุคคล'!$F$5 -> 1234567891234 | B101: 97 | L101: ไม่ถูกต้อง
A102: ='1.ข้อมูลส่วนบุคคล'!$F$5 -> 1234567891234 | B102: 98 | L102: ไม่ถูกต้อง
A103: ='1.ข้อมูลส่วนบุคคล'!$F$5 -> 1234567891234 | B103: 99 | L103: ไม่ถูกต้อง
A104: ='1.ข้อมูลส่วนบุคคล'!$F$5 -> 1234567891234 | B104: 100 | L104: ไม่ถูกต้อง
A105: ='1.ข้อมูลส่วนบุคคล'!$F$5 -> 1234567891234 | B105: 101 | L105: ไม่ถูกต้อง
A106: ='1.ข้อมูลส่วนบุคคล'!$F$5 -> 1234567891234 | B106: 102 | L106: ไม่ถูกต้อง
A107: ='1.ข้อมูลส่วนบุคคล'!$F$5 -> 1234567891234 | B107: 103 | L107: ไม่ถูกต้อง
A108: ='1.ข้อมูลส่วนบุคคล'!$F$5 -> 1234567891234 | B108: 104 | L108: ไม่ถูกต้อง
A109: ='1.ข้อมูลส่วนบุคคล'!$F$5 -> 1234567891234 | B109: 105 | L109: ไม่ถูกต้อง
A110: ='1.ข้อมูลส่วนบุคคล'!$F$5 -> 1234567891234 | B110: 106 | L110: ไม่ถูกต้อง
A111: ='1.ข้อมูลส่วนบุคคล'!$F$5 -> 1234567891234 | B111: 107 | L111: ไม่ถูกต้อง
A112: ='1.ข้อมูลส่วนบุคคล'!$F$5 -> 1234567891234 | B112: 108 | L112: ไม่ถูกต้อง
A113: ='1.ข้อมูลส่วนบุคคล'!$F$5 -> 1234567891234 | B113: 109 | L113: ไม่ถูกต้อง
A114: ='1.ข้อมูลส่วนบุคคล'!$F$5 -> 1234567891234 | B114: 110 | L114: ไม่ถูกต้อง
A115: ='1.ข้อมูลส่วนบุคคล'!$F$5 -> 1234567891234 | B115: 111 | L115: ไม่ถูกต้อง
A116: ='1.ข้อมูลส่วนบุคคล'!$F$5 -> 1234567891234 | B116: 112 | L116: ไม่ถูกต้อง
A117: ='1.ข้อมูลส่วนบุคคล'!$F$5 -> 1234567891234 | B117: 113 | L117: ไม่ถูกต้อง
A118: ='1.ข้อมูลส่วนบุคคล'!$F$5 -> 1234567891234 | B118: 114 | L118: ไม่ถูกต้อง
A119: ='1.ข้อมูลส่วนบุคคล'!$F$5 -> 1234567891234 | B119: 115 | L119: ไม่ถูกต้อง
A120: ='1.ข้อมูลส่วนบุคคล'!$F$5 -> 1234567891234 | B120: 116 | L120: ไม่ถูกต้อง
A121: ='1.ข้อมูลส่วนบุคคล'!$F$5 -> 1234567891234 | B121: 117 | L121: ไม่ถูกต้อง
A122: ='1.ข้อมูลส่วนบุคคล'!$F$5 -> 1234567891234 | B122: 118 | L122: ไม่ถูกต้อง
A123: ='1.ข้อมูลส่วนบุคคล'!$F$5 -> 1234567891234 | B123: 119 | L123: ไม่ถูกต้อง
A124: ='1.ข้อมูลส่วนบุคคล'!$F$5 -> 1234567891234 | B124: 120 | L124: ไม่ถูกต้อง
A125: ='1.ข้อมูลส่วนบุคคล'!$F$5 -> 1234567891234 | B125: 121 | L125: ไม่ถูกต้อง
A126: ='1.ข้อมูลส่วนบุคคล'!$F$5 -> 1234567891234 | B126: 122 | L126: ไม่ถูกต้อง
A127: ='1.ข้อมูลส่วนบุคคล'!$F$5 -> 1234567891234 | B127: 123 | L127: ไม่ถูกต้อง
A128: ='1.ข้อมูลส่วนบุคคล'!$F$5 -> 1234567891234 | B128: 124 | L128: ไม่ถูกต้อง
A129: ='1.ข้อมูลส่วนบุคคล'!$F$5 -> 1234567891234 | B129: 125 | L129: ไม่ถูกต้อง
A130: ='1.ข้อมูลส่วนบุคคล'!$F$5 -> 1234567891234 | B130: 126 | L130: ไม่ถูกต้อง
A131: ='1.ข้อมูลส่วนบุคคล'!$F$5 -> 1234567891234 | B131: 127 | L131: ไม่ถูกต้อง
A132: ='1.ข้อมูลส่วนบุคคล'!$F$5 -> 1234567891234 | B132: 128 | L132: ไม่ถูกต้อง
A133: ='1.ข้อมูลส่วนบุคคล'!$F$5 -> 1234567891234 | B133: 129 | L133: ไม่ถูกต้อง
A134: ='1.ข้อมูลส่วนบุคคล'!$F$5 -> 1234567891234 | B134: 130 | L134: ไม่ถูกต้อง
A135: ='1.ข้อมูลส่วนบุคคล'!$F$5 -> 1234567891234 | B135: 131 | L135: ไม่ถูกต้อง
A136: ='1.ข้อมูลส่วนบุคคล'!$F$5 -> 1234567891234 | B136: 132 | L136: ไม่ถูกต้อง
A137: ='1.ข้อมูลส่วนบุคคล'!$F$5 -> 1234567891234 | B137: 133 | L137: ไม่ถูกต้อง
A138: ='1.ข้อมูลส่วนบุคคล'!$F$5 -> 1234567891234 | B138: 134 | L138: ไม่ถูกต้อง
A139: ='1.ข้อมูลส่วนบุคคล'!$F$5 -> 1234567891234 | B139: 135 | L139: ไม่ถูกต้อง
A140: ='1.ข้อมูลส่วนบุคคล'!$F$5 -> 1234567891234 | B140: 136 | L140: ไม่ถูกต้อง
A141: ='1.ข้อมูลส่วนบุคคล'!$F$5 -> 1234567891234 | B141: 137 | L141: ไม่ถูกต้อง
A142: ='1.ข้อมูลส่วนบุคคล'!$F$5 -> 1234567891234 | B142: 138 | L142: ไม่ถูกต้อง
A143: ='1.ข้อมูลส่วนบุคคล'!$F$5 -> 1234567891234 | B143: 139 | L143: ไม่ถูกต้อง
A144: ='1.ข้อมูลส่วนบุคคล'!$F$5 -> 1234567891234 | B144: 140 | L144: ไม่ถูกต้อง
A145: ='1.ข้อมูลส่วนบุคคล'!$F$5 -> 1234567891234 | B145: 141 | L145: ไม่ถูกต้อง
A146: ='1.ข้อมูลส่วนบุคคล'!$F$5 -> 1234567891234 | B146: 142 | L146: ไม่ถูกต้อง
A147: ='1.ข้อมูลส่วนบุคคล'!$F$5 -> 1234567891234 | B147: 143 | L147: ไม่ถูกต้อง
A148: ='1.ข้อมูลส่วนบุคคล'!$F$5 -> 1234567891234 | B148: 144 | L148: ไม่ถูกต้อง
A149: ='1.ข้อมูลส่วนบุคคล'!$F$5 -> 1234567891234 | B149: 145 | L149: ไม่ถูกต้อง
A150: ='1.ข้อมูลส่วนบุคคล'!$F$5 -> 1234567891234 | B150: 146 | L150: ไม่ถูกต้อง
A151: ='1.ข้อมูลส่วนบุคคล'!$F$5 -> 1234567891234 | B151: 147 | L151: ไม่ถูกต้อง
A152: ='1.ข้อมูลส่วนบุคคล'!$F$5 -> 1234567891234 | B152: 148 | L152: ไม่ถูกต้อง
A153: ='1.ข้อมูลส่วนบุคคล'!$F$5 -> 1234567891234 | B153: 149 | L153: ไม่ถูกต้อง
A154: ='1.ข้อมูลส่วนบุคคล'!$F$5 -> 1234567891234 | B154: 150 | L154: ไม่ถูกต้อง
A155: ='1.ข้อมูลส่วนบุคคล'!$F$5 -> 1234567891234 | B155: 151 | L155: ไม่ถูกต้อง
A156: ='1.ข้อมูลส่วนบุคคล'!$F$5 -> 1234567891234 | B156: 152 | L156: ไม่ถูกต้อง
A157: ='1.ข้อมูลส่วนบุคคล'!$F$5 -> 1234567891234 | B157: 153 | L157: ไม่ถูกต้อง
A158: ='1.ข้อมูลส่วนบุคคล'!$F$5 -> 1234567891234 | B158: 154 | L158: ไม่ถูกต้อง
A159: ='1.ข้อมูลส่วนบุคคล'!$F$5 -> 1234567891234 | B159: 155 | L159: ไม่ถูกต้อง
A160: ='1.ข้อมูลส่วนบุคคล'!$F$5 -> 1234567891234 | B160: 156 | L160: ไม่ถูกต้อง
A161: ='1.ข้อมูลส่วนบุคคล'!$F$5 -> 1234567891234 | B161: 157 | L161: ไม่ถูกต้อง
A162: ='1.ข้อมูลส่วนบุคคล'!$F$5 -> 1234567891234 | B162: 158 | L162: ไม่ถูกต้อง
A163: ='1.ข้อมูลส่วนบุคคล'!$F$5 -> 1234567891234 | B163: 159 | L163: ไม่ถูกต้อง
A164: ='1.ข้อมูลส่วนบุคคล'!$F$5 -> 1234567891234 | B164: 160 | L164: ไม่ถูกต้อง
A165: ='1.ข้อมูลส่วนบุคคล'!$F$5 -> 1234567891234 | B165: 161 | L165: ไม่ถูกต้อง
A166: ='1.ข้อมูลส่วนบุคคล'!$F$5 -> 1234567891234 | B166: 162 | L166: ไม่ถูกต้อง
A167: ='1.ข้อมูลส่วนบุคคล'!$F$5 -> 1234567891234 | B167: 163 | L167: ไม่ถูกต้อง
A168: ='1.ข้อมูลส่วนบุคคล'!$F$5 -> 1234567891234 | B168: 164 | L168: ไม่ถูกต้อง
A169: ='1.ข้อมูลส่วนบุคคล'!$F$5 -> 1234567891234 | B169: 165 | L169: ไม่ถูกต้อง
A170: ='1.ข้อมูลส่วนบุคคล'!$F$5 -> 1234567891234 | B170: 166 | L170: ไม่ถูกต้อง
A171: ='1.ข้อมูลส่วนบุคคล'!$F$5 -> 1234567891234 | B171: 167 | L171: ไม่ถูกต้อง
A172: ='1.ข้อมูลส่วนบุคคล'!$F$5 -> 1234567891234 | B172: 168 | L172: ไม่ถูกต้อง
A173: ='1.ข้อมูลส่วนบุคคล'!$F$5 -> 1234567891234 | B173: 169 | L173: ไม่ถูกต้อง
A174: ='1.ข้อมูลส่วนบุคคล'!$F$5 -> 1234567891234 | B174: 170 | L174: ไม่ถูกต้อง
A175: ='1.ข้อมูลส่วนบุคคล'!$F$5 -> 1234567891234 | B175: 171 | L175: ไม่ถูกต้อง
A176: ='1.ข้อมูลส่วนบุคคล'!$F$5 -> 1234567891234 | B176: 172 | L176: ไม่ถูกต้อง
A177: ='1.ข้อมูลส่วนบุคคล'!$F$5 -> 1234567891234 | B177: 173 | L177: ไม่ถูกต้อง
A178: ='1.ข้อมูลส่วนบุคคล'!$F$5 -> 1234567891234 | B178: 174 | L178: ไม่ถูกต้อง
A179: ='1.ข้อมูลส่วนบุคคล'!$F$5 -> 1234567891234 | B179: 175 | L179: ไม่ถูกต้อง
A180: ='1.ข้อมูลส่วนบุคคล'!$F$5 -> 1234567891234 | B180: 176 | L180: ไม่ถูกต้อง
A181: ='1.ข้อมูลส่วนบุคคล'!$F$5 -> 1234567891234 | B181: 177 | L181: ไม่ถูกต้อง
A182: ='1.ข้อมูลส่วนบุคคล'!$F$5 -> 1234567891234 | B182: 178 | L182: ไม่ถูกต้อง
A183: ='1.ข้อมูลส่วนบุคคล'!$F$5 -> 1234567891234 | B183: 179 | L183: ไม่ถูกต้อง
A184: ='1.ข้อมูลส่วนบุคคล'!$F$5 -> 1234567891234 | B184: 180 | L184: ไม่ถูกต้อง
A185: ='1.ข้อมูลส่วนบุคคล'!$F$5 -> 1234567891234 | B185: 181 | L185: ไม่ถูกต้อง
A186: ='1.ข้อมูลส่วนบุคคล'!$F$5 -> 1234567891234 | B186: 182 | L186: ไม่ถูกต้อง
A187: ='1.ข้อมูลส่วนบุคคล'!$F$5 -> 1234567891234 | B187: 183 | L187: ไม่ถูกต้อง
A188: ='1.ข้อมูลส่วนบุคคล'!$F$5 -> 1234567891234 | B188: 184 | L188: ไม่ถูกต้อง
A189: ='1.ข้อมูลส่วนบุคคล'!$F$5 -> 1234567891234 | B189: 185 | L189: ไม่ถูกต้อง
A190: ='1.ข้อมูลส่วนบุคคล'!$F$5 -> 1234567891234 | B190: 186 | L190: ไม่ถูกต้อง
A191: ='1.ข้อมูลส่วนบุคคล'!$F$5 -> 1234567891234 | B191: 187 | L191: ไม่ถูกต้อง
A192: ='1.ข้อมูลส่วนบุคคล'!$F$5 -> 1234567891234 | B192: 188 | L192: ไม่ถูกต้อง
A193: ='1.ข้อมูลส่วนบุคคล'!$F$5 -> 1234567891234 | B193: 189 | L193: ไม่ถูกต้อง
A194: ='1.ข้อมูลส่วนบุคคล'!$F$5 -> 1234567891234 | B194: 190 | L194: ไม่ถูกต้อง
A195: ='1.ข้อมูลส่วนบุคคล'!$F$5 -> 1234567891234 | B195: 191 | L195: ไม่ถูกต้อง
A196: ='1.ข้อมูลส่วนบุคคล'!$F$5 -> 1234567891234 | B196: 192 | L196: ไม่ถูกต้อง
A197: ='1.ข้อมูลส่วนบุคคล'!$F$5 -> 1234567891234 | B197: 193 | L197: ไม่ถูกต้อง
A198: ='1.ข้อมูลส่วนบุคคล'!$F$5 -> 1234567891234 | B198: 194 | L198: ไม่ถูกต้อง
A199: ='1.ข้อมูลส่วนบุคคล'!$F$5 -> 1234567891234 | B199: 195 | L199: ไม่ถูกต้อง
A200: ='1.ข้อมูลส่วนบุคคล'!$F$5 -> 1234567891234 | B200: 196 | L200: ไม่ถูกต้อง
A201: ='1.ข้อมูลส่วนบุคคล'!$F$5 -> 1234567891234 | B201: 197 | L201: ไม่ถูกต้อง
A202: ='1.ข้อมูลส่วนบุคคล'!$F$5 -> 1234567891234 | B202: 198 | L202: ไม่ถูกต้อง
... 152 more rows

Sheet 3.ชั่วโมงสอนตามตารางสอน
A1: ชั่วโมงการปฏิบัติงาน (ชั่วโมงสอนตามตารางสอน) | C1: ชั่วโมงการปฏิบัติงาน (ชั่วโมงสอนตามตารางสอน)
E3: =IF(SUMIF(AA7:AA22,1)>0,"โปรดตรวจสอบการบันทึกในช่อง 'ปีการศึกษา/ปีงบประมาณ ภาคเรียนที่ และสัปดาห์ที่' เนื่องจากมีการบันทึกไม่ถูกต้อง","") -> 
A5: เลขบัตรประชาชน | B5: ปีที่ | C5: ปีการศึกษา/ปีงบประมาณ | D5: ภาคเรียนที่ | E5: สัปดาห์ที่ | F5: ว/ด/ป ของสัปดาห์ | H5: กลุ่มสาระที่สอน/สาขาวิชาที่สอน/วิชาที่สอน | I5: ชื่อวิชาที่สอน | J5: รหัสวิชา | K5: เกี่ยวข้องกับการขอวิทยฐานะเชี่ยวชาญ/เชี่ยวชาญพิเศษ | L5: จำนวนคาบ/หลักสูตร | M5: หน่วยเวลาที่ใช้ต่อคาบ/หลักสูตร | N5: หน่วยนับเวลาที่ใช้ | O5: ลักษณะการสอน | P5: หมายเหตุ | Q5: การรับรองของ | R5: รหัสเอกสารสำหรับตรวจสอบ | S5: รหัสเอกสารสำหรับตรวจสอบ | W5: คือคิดในหน้าสรุปตรวจสอบชั่วโมงขั้นต่ำ
F6: วันแรกของสัปดาห์ | G6: วันสุดท้ายของสัปดาห์ | P6: (กรณี ชม.สอนน้อยกว่าเกณฑ์ขั้นต่ำ) | Q6: ผอ. สถานศึกษา | W6: ตรวจสอบว่าชั่วโมงในสัปดาห์ไม่ครบตามชั่วโมงขั้นต่ำ (ไม่นับชั่วโมงสอนซ่อมเสริมในสัปดาห์นั้น) | Z6: ชั่วโมงจริง | AA6: ตรวจสอบการบันทึกไม่เรียงลำดับปี ภาคเรียน สัปดาห์ ตามที่ควรจะเป็น | AB6: คำนวณปีรายบุคคล | AG6: สัปดาห์ที่ ผอ. มอบหมาย | AH6: จำนวนชั่วโมงที่ขาด ในสัปดาห์ที่สอนไม่ครบ (คิดสัปดาห์เดียว) | AI6: จำนวนชั่วโมงที่สอนซ่อมเสริม | AJ6: ตรวจสอบว่าชั่วโมงสอนซ่อมเสริมทดแทนอาทิตย์ที่ ผอ. มอบหมายงานได้ ภายในเทอมนั้น | AK6: รายการที่สอนซ่อมเสริม | AL6: ปีที่ ภาคเรียน สัปดาห์ ผอ.รับรอง | AM6: ปีการศึกษา ภาคเรียน | AN6: ปีการศึกษา สัปดาห์
A7: ='1.ข้อมูลส่วนบุคคล'!$F$5 -> 1234567891234 | B7: =IF(AF7<0,"",IF(DATEDIF(AB7,AD7,"y")+(DATEDIF(AB7,AD7,"ym")/10)<=1,1,IF(DATEDIF(AB7,AD7,"y")+(DATEDIF(AB7,AD7,"ym")/10)<=2,2,IF(DATEDIF(AB7,AD7,"y")+(DATEDIF(AB7,AD7,"ym")/10)<=3,3,IF(DATEDIF(AB7,AD7,"y")+(DATEDIF(AB7,AD7,"ym")/10)<=4,4,IF(DATEDIF(AB7,AD7,"y")+(DATEDIF(AB7,AD7,"ym")/10)<=5,5,IF(DATEDIF(AB7,AD7,"y")+(DATEDIF(AB7,AD7,"ym")/10)<=6,6,IF(DATEDIF(AB7,AD7,"y")+(DATEDIF(AB7,AD7,"ym")/10)<=7,7,IF(DATEDIF(AB7,AD7,"y")+(DATEDIF(AB7,AD7,"ym")/10)<=8,8,IF(DATEDIF(AB7,AD7,"y")+(DATEDIF(AB7,AD7,"ym")/10)<=9,9,IF(DATEDIF(AB7,AD7,"y")+(DATEDIF(AB7,AD7,"ym")/10)<=10,10,"ไม่ถูกต้อง"))))))))))) -> 1 | C7: ='2.การมอบหมายงานสอน'!C5 -> 2560 | D7: 1 | E7: 1 | F7: 2560-05-15 | G7: 2560-05-21 | H7: ภาษาไทย | I7: ภาษาไทย | J7: ท31011 | K7: =IF('1.ข้อมูลส่วนบุคคล'!C$21="เชี่ยวชาญ",IF(H7="-","",IF(H7='1.ข้อมูลส่วนบุคคล'!F$26,"เกี่ยวข้อง","ไม่เกี่ยวข้อง")),IF('1.ข้อมูลส่วนบุคคล'!C$21="เชี่ยวชาญพิเศษ",IF(H7="-","",IF(H7='1.ข้อมูลส่วนบุคคล'!F$26,"เกี่ยวข้อง","ไม่เกี่ยวข้อง")),"")) ->  | L7: 8 | M7: 50 | N7: นาที | O7: สอนตามตารางสอน | P7: 7.ปฏิบัติงานอื่นตามที่ ผอ. มอบหมาย | Q7: ถูกต้อง | R7: =S7 -> 256011ท31011ภาษาไทย | S7: =C7&+D7&+E7&+J7&+LEFT(I7,20) -> 256011ท31011ภาษาไทย | T7: =B7&+E7 -> 11 | U7: =IF(LEFT(Q7,3)="ไม่",0,IF(L7="","",B7)) -> 1 | V7: =IF(K7="เกี่ยวข้อง",1,0) -> 0 | W7: =IF(LEFT(Q7,3)="ไม่","",IF(OR(LEFT(P7,1)="1",LEFT(P7,1)="2",LEFT(P7,1)="3",LEFT(P7,1)="4",LEFT(P7,1)="5",LEFT(P7,1)="6",LEFT(P7,1)="7"),0,IF(SUMIFS(Z$7:Z$7000,AL$7:AL$7000,B7&+D7&+E7&+"ถูกต้อง",AK$7:AK$7000,0)<'1.ข้อมูลส่วนบุคคล'!$G$26,1,0))) -> 0 | X7: =IF(Q7="ไม่ถูกต้อง",0,IF(N7="นาที",(L7*M7)/60,L7*M7)) -> 6.666666667 | Y7: =(MOD(X7,1))*60/100 -> 0.4 | Z7: =ROUNDDOWN(X7,0)+Y7 -> 6.4 | AA7: =IF(E7<>1,1,0) -> 0 | AB7: ='1.ข้อมูลส่วนบุคคล'!$E$32 -> 2560-05-15 | AC7: =TEXT(AB7,"yyyy")&+IF(TEXT(AB7,"mm")>9,TEXT(AB7,"mm"),"0"&+TEXT(AB7,"mm"))&+IF(TEXT(AB7,"dd")>9,TEXT(AB7,"dd"),"0"&+TEXT(AB7,"dd")) -> 25600515 | AD7: =F7 -> 2560-05-15 | AE7: =TEXT(AD7,"yyyy")&+IF(TEXT(AD7,"mm")>9,TEXT(AD7,"mm"),"0"&+TEXT(AD7,"mm"))&+IF(TEXT(AD7,"dd")>9,TEXT(AD7,"dd"),"0"&+TEXT(AD7,"dd")) -> 25600515 | AF7: =AE7-AC7 -> 0 | AG7: =IF(LEFT(P7,1)="7",1,0) -> 1 | AH7: =IF(AG7=1,'1.ข้อมูลส่วนบุคคล'!G$26-IF(AND(LEFT(Q7,3)<>"ไม่",AK7=0),SUMIF(AN$7:AN$7000,AN7,Z$7:Z$7000),0),0) -> 5.6 | AI7: =IF(O7="สอนซ่อมเสริม",Z7,0) -> 0 | AJ7: =IF(SUMIF(AM$7:AM$7000,C7&+D7,AI$7:AI$7000)-SUMIF(AM$7:AM$7000,C7&+D7,AH$7:AH$7000)<0,1,0) -> 1 | AK7: =IF(O7="สอนซ่อมเสริม",1,0) -> 0 | AL7: =B7&+D7&+E7&+Q7 -> 111ถูกต้อง | AM7: =C7&+D7 -> 25601 | AN7: =C7&+E7 -> 25601
A8: ='1.ข้อมูลส่วนบุคคล'!$F$5 -> 1234567891234 | B8: =IF(AF8<0,"",IF(DATEDIF(AB8,AD8,"y")+(DATEDIF(AB8,AD8,"ym")/10)<=1,1,IF(DATEDIF(AB8,AD8,"y")+(DATEDIF(AB8,AD8,"ym")/10)<=2,2,IF(DATEDIF(AB8,AD8,"y")+(DATEDIF(AB8,AD8,"ym")/10)<=3,3,IF(DATEDIF(AB8,AD8,"y")+(DATEDIF(AB8,AD8,"ym")/10)<=4,4,IF(DATEDIF(AB8,AD8,"y")+(DATEDIF(AB8,AD8,"ym")/10)<=5,5,IF(DATEDIF(AB8,AD8,"y")+(DATEDIF(AB8,AD8,"ym")/10)<=6,6,IF(DATEDIF(AB8,AD8,"y")+(DATEDIF(AB8,AD8,"ym")/10)<=7,7,IF(DATEDIF(AB8,AD8,"y")+(DATEDIF(AB8,AD8,"ym")/10)<=8,8,IF(DATEDIF(AB8,AD8,"y")+(DATEDIF(AB8,AD8,"ym")/10)<=9,9,IF(DATEDIF(AB8,AD8,"y")+(DATEDIF(AB8,AD8,"ym")/10)<=10,10,"ไม่ถูกต้อง"))))))))))) -> 1 | C8: 2560 | D8: 1 | E8: 2 | F8: 2560-05-22 | G8: 2560-05-28 | H8: ภาษาไทย | I8: ภาษาไทย | J8: ท31011 | K8: =IF('1.ข้อมูลส่วนบุคคล'!C$21="เชี่ยวชาญ",IF(H8="-","",IF(H8='1.ข้อมูลส่วนบุคคล'!F$26,"เกี่ยวข้อง","ไม่เกี่ยวข้อง")),IF('1.ข้อมูลส่วนบุคคล'!C$21="เชี่ยวชาญพิเศษ",IF(H8="-","",IF(H8='1.ข้อมูลส่วนบุคคล'!F$26,"เกี่ยวข้อง","ไม่เกี่ยวข้อง")),"")) ->  | L8: 10 | M8: 50 | N8: นาที | O8: สอนตามตารางสอน | P8: 7.ปฏิบัติงานอื่นตามที่ ผอ. มอบหมาย | Q8: ถูกต้อง | R8: =S8 -> 256012ท31011ภาษาไทย | S8: 256012ท31011ภาษาไทย | T8: 12 | U8: 1 | V8: 0 | W8: =IF(LEFT(Q8,3)="ไม่","",IF(OR(LEFT(P8,1)="1",LEFT(P8,1)="2",LEFT(P8,1)="3",LEFT(P8,1)="4",LEFT(P8,1)="5",LEFT(P8,1)="6",LEFT(P8,1)="7"),0,IF(SUMIFS(Z$7:Z$7000,AL$7:AL$7000,B8&+D8&+E8&+"ถูกต้อง",AK$7:AK$7000,0)<'1.ข้อมูลส่วนบุคคล'!$G$26,1,0))) -> 0 | X8: 8.333333333 | Y8: =(MOD(X8,1))*60/100 -> 0.2 | Z8: =ROUNDDOWN(X8,0)+Y8 -> 8.2 | AA8: =IF(ISBLANK(E8),0,IF(ISBLANK(D8),IF(AND(C8=C7,E8=E7),0,IF(AND(C8=C7,E8=(E7+1)),0,IF(AND(C8=(C7+1),E8=1,E7>=18),0,1))),IF(AND(C8=C7,D8=D7,E8=E7),0,IF(AND(C8=C7,D8=D7,E8=(E7+1)),0,IF(AND(C8=C7,D8=(D7+1),E8=1,E7>=18),0,IF(AND(C8=(C7+1),D8=1,E8=1,E7>=18),0,1)))))) -> 0 | AB8: ='1.ข้อมูลส่วนบุคคล'!$E$32 -> 2560-05-15 | AC8: =TEXT(AB8,"yyyy")&+IF(TEXT(AB8,"mm")>9,TEXT(AB8,"mm"),"0"&+TEXT(AB8,"mm"))&+IF(TEXT(AB8,"dd")>9,TEXT(AB8,"dd"),"0"&+TEXT(AB8,"dd")) -> 25600515 | AD8: 2560-05-22 | AE8: =TEXT(AD8,"yyyy")&+IF(TEXT(AD8,"mm")>9,TEXT(AD8,"mm"),"0"&+TEXT(AD8,"mm"))&+IF(TEXT(AD8,"dd")>9,TEXT(AD8,"dd"),"0"&+TEXT(AD8,"dd")) -> 25600522 | AF8: =AE8-AC8 -> 7 | AG8: 1 | AH8: =IF(AG8=1,IF(AN8=AN7,0,'1.ข้อมูลส่วนบุคคล'!G$26-IF(AND(LEFT(Q8,3)<>"ไม่",AK8=0),SUMIFS(Z$7:Z$7000,AN$7:AN$7000,AN8,AK$7:AK$7000,0),0)),0) -> 3.8 | AI8: 0 | AJ8: 1 | AK8: 0 | AL8: 112ถูกต้อง | AM8: 25601 | AN8: 25602
A9: ='1.ข้อมูลส่วนบุคคล'!$F$5 -> 1234567891234 | B9: 1 | C9: 2560 | D9: 1 | E9: 2 | F9: 2560-05-22 | G9: 2560-05-28 | H9: ภาษาไทย | I9: ภาษาไทย | J9: ท31011 | K9: =IF('1.ข้อมูลส่วนบุคคล'!C$21="เชี่ยวชาญ",IF(H9="-","",IF(H9='1.ข้อมูลส่วนบุคคล'!F$26,"เกี่ยวข้อง","ไม่เกี่ยวข้อง")),IF('1.ข้อมูลส่วนบุคคล'!C$21="เชี่ยวชาญพิเศษ",IF(H9="-","",IF(H9='1.ข้อมูลส่วนบุคคล'!F$26,"เกี่ยวข้อง","ไม่เกี่ยวข้อง")),"")) ->  | L9: 5 | M9: 50 | N9: นาที | O9: สอนซ่อมเสริม | P9: 7.ปฏิบัติงานอื่นตามที่ ผอ. มอบหมาย | Q9: ถูกต้อง | R9: =S9 -> 256012ท31011ภาษาไทย | S9: 256012ท31011ภาษาไทย | T9: 12 | U9: 1 | V9: 0 | W9: =IF(LEFT(Q9,3)="ไม่","",IF(OR(LEFT(P9,1)="1",LEFT(P9,1)="2",LEFT(P9,1)="3",LEFT(P9,1)="4",LEFT(P9,1)="5",LEFT(P9,1)="6",LEFT(P9,1)="7"),0,IF(SUMIFS(Z$7:Z$7000,AL$7:AL$7000,B9&+D9&+E9&+"ถูกต้อง",AK$7:AK$7000,0)<'1.ข้อมูลส่วนบุคคล'!$G$26,1,0))) -> 0 | X9: 4.166666667 | Y9: =(MOD(X9,1))*60/100 -> 0.1 | Z9: 4.1 | AA9: 0 | AB9: ='1.ข้อมูลส่วนบุคคล'!$E$32 -> 2560-05-15 | AC9: 25600515 | AD9: 2560-05-22 | AE9: 25600522 | AF9: 7 | AG9: 1 | AH9: =IF(AG9=1,IF(AN9=AN8,0,'1.ข้อมูลส่วนบุคคล'!G$26-IF(AND(LEFT(Q9,3)<>"ไม่",AK9=0),SUMIFS(Z$7:Z$7000,AN$7:AN$7000,AN9,AK$7:AK$7000,0),0)),0) -> 0 | AI9: 4.1 | AJ9: 1 | AK9: 1 | AL9: 112ถูกต้อง | AM9: 25601 | AN9: 25602
A10: ='1.ข้อมูลส่วนบุคคล'!$F$5 -> 1234567891234 | B10: 1 | C10: 2560 | D10: 1 | E10: 3 | F10: 2560-05-29 | G10: 2560-06-04 | H10: ภาษาไทย | I10: ภาษาไทย | J10: ท31011 | K10: =IF('1.ข้อมูลส่วนบุคคล'!C$21="เชี่ยวชาญ",IF(H10="-","",IF(H10='1.ข้อมูลส่วนบุคคล'!F$26,"เกี่ยวข้อง","ไม่เกี่ยวข้อง")),IF('1.ข้อมูลส่วนบุคคล'!C$21="เชี่ยวชาญพิเศษ",IF(H10="-","",IF(H10='1.ข้อมูลส่วนบุคคล'!F$26,"เกี่ยวข้อง","ไม่เกี่ยวข้อง")),"")) ->  | L10: 15 | M10: 50 | N10: นาที | O10: สอนตามตารางสอน | P10: 7.ปฏิบัติงานอื่นตามที่ ผอ. มอบหมาย | Q10: ถูกต้อง | R10: =S10 -> 256013ท31011ภาษาไทย | S10: 256013ท31011ภาษาไทย | T10: 13 | U10: 1 | V10: 0 | W10: =IF(LEFT(Q10,3)="ไม่","",IF(OR(LEFT(P10,1)="1",LEFT(P10,1)="2",LEFT(P10,1)="3",LEFT(P10,1)="4",LEFT(P10,1)="5",LEFT(P10,1)="6",LEFT(P10,1)="7"),0,IF(SUMIFS(Z$7:Z$7000,AL$7:AL$7000,B10&+D10&+E10&+"ถูกต้อง",AK$7:AK$7000,0)<'1.ข้อมูลส่วนบุคคล'!$G$26,1,0))) -> 0 | X10: 12.5 | Y10: 0.3 | Z10: 12.3 | AA10: 0 | AB10: ='1.ข้อมูลส่วนบุคคล'!$E$32 -> 2560-05-15 | AC10: 25600515 | AD10: 2560-05-29 | AE10: 25600529 | AF10: 14 | AG10: 1 | AH10: =IF(AG10=1,IF(AN10=AN9,0,'1.ข้อมูลส่วนบุคคล'!G$26-IF(AND(LEFT(Q10,3)<>"ไม่",AK10=0),SUMIFS(Z$7:Z$7000,AN$7:AN$7000,AN10,AK$7:AK$7000,0),0)),0) -> -0.3 | AI10: 0 | AJ10: 1 | AK10: 0 | AL10: 113ถูกต้อง | AM10: 25601 | AN10: 25603
A11: ='1.ข้อมูลส่วนบุคคล'!$F$5 -> 1234567891234 | B11: 1 | C11: 2560 | D11: 1 | E11: 4 | F11: 2560-06-05 | G11: 2560-06-11 | H11: ภาษาไทย | I11: ภาษาไทย | J11: ท31011 | K11: =IF('1.ข้อมูลส่วนบุคคล'!C$21="เชี่ยวชาญ",IF(H11="-","",IF(H11='1.ข้อมูลส่วนบุคคล'!F$26,"เกี่ยวข้อง","ไม่เกี่ยวข้อง")),IF('1.ข้อมูลส่วนบุคคล'!C$21="เชี่ยวชาญพิเศษ",IF(H11="-","",IF(H11='1.ข้อมูลส่วนบุคคล'!F$26,"เกี่ยวข้อง","ไม่เกี่ยวข้อง")),"")) ->  | L11: 15 | M11: 50 | N11: นาที | O11: สอนตามตารางสอน | Q11: ถูกต้อง | R11: 256014ท31011ภาษาไทย | S11: 256014ท31011ภาษาไทย | T11: 14 | U11: 1 | V11: 0 | W11: =IF(LEFT(Q11,3)="ไม่","",IF(OR(LEFT(P11,1)="1",LEFT(P11,1)="2",LEFT(P11,1)="3",LEFT(P11,1)="4",LEFT(P11,1)="5",LEFT(P11,1)="6",LEFT(P11,1)="7"),0,IF(SUMIFS(Z$7:Z$7000,AL$7:AL$7000,B11&+D11&+E11&+"ถูกต้อง",AK$7:AK$7000,0)<'1.ข้อมูลส่วนบุคคล'!$G$26,1,0))) -> 0 | X11: 12.5 | Y11: 0.3 | Z11: 12.3 | AA11: 0 | AB11: ='1.ข้อมูลส่วนบุคคล'!$E$32 -> 2560-05-15 | AC11: 25600515 | AD11: 2560-06-05 | AE11: 25600605 | AF11: 90 | AG11: 0 | AH11: =IF(AG11=1,IF(AN11=AN10,0,'1.ข้อมูลส่วนบุคคล'!G$26-IF(AND(LEFT(Q11,3)<>"ไม่",AK11=0),SUMIFS(Z$7:Z$7000,AN$7:AN$7000,AN11,AK$7:AK$7000,0),0)),0) -> 0 | AI11: 0 | AJ11: 1 | AK11: 0 | AL11: 114ถูกต้อง | AM11: 25601 | AN11: 25604
A12: ='1.ข้อมูลส่วนบุคคล'!$F$5 -> 1234567891234 | B12: 1 | C12: 2560 | D12: 1 | E12: 5 | F12: 2560-06-12 | G12: 2560-06-18 | H12: ภาษาไทย | I12: ภาษาไทย | J12: ท31011 | K12: =IF('1.ข้อมูลส่วนบุคคล'!C$21="เชี่ยวชาญ",IF(H12="-","",IF(H12='1.ข้อมูลส่วนบุคคล'!F$26,"เกี่ยวข้อง","ไม่เกี่ยวข้อง")),IF('1.ข้อมูลส่วนบุคคล'!C$21="เชี่ยวชาญพิเศษ",IF(H12="-","",IF(H12='1.ข้อมูลส่วนบุคคล'!F$26,"เกี่ยวข้อง","ไม่เกี่ยวข้อง")),"")) ->  | L12: 15 | M12: 50 | N12: นาที | O12: สอนตามตารางสอน | Q12: ถูกต้อง | R12: 256015ท31011ภาษาไทย | S12: 256015ท31011ภาษาไทย | T12: 15 | U12: 1 | V12: 0 | W12: =IF(LEFT(Q12,3)="ไม่","",IF(OR(LEFT(P12,1)="1",LEFT(P12,1)="2",LEFT(P12,1)="3",LEFT(P12,1)="4",LEFT(P12,1)="5",LEFT(P12,1)="6",LEFT(P12,1)="7"),0,IF(SUMIFS(Z$7:Z$7000,AL$7:AL$7000,B12&+D12&+E12&+"ถูกต้อง",AK$7:AK$7000,0)<'1.ข้อมูลส่วนบุคคล'!$G$26,1,0))) -> 0 | X12: 12.5 | Y12: 0.3 | Z12: 12.3 | AA12: 0 | AB12: ='1.ข้อมูลส่วนบุคคล'!$E$32 -> 2560-05-15 | AC12: 25600515 | AD12: 2560-06-12 | AE12: 25600612 | AF12: 97 | AG12: 0 | AH12: =IF(AG12=1,IF(AN12=AN11,0,'1.ข้อมูลส่วนบุคคล'!G$26-IF(AND(LEFT(Q12,3)<>"ไม่",AK12=0),SUMIFS(Z$7:Z$7000,AN$7:AN$7000,AN12,AK$7:AK$7000,0),0)),0) -> 0 | AI12: 0 | AJ12: 1 | AK12: 0 | AL12: 115ถูกต้อง | AM12: 25601 | AN12: 25605
A13: ='1.ข้อมูลส่วนบุคคล'!$F$5 -> 1234567891234 | B13: 1 | C13: 2560 | D13: 1 | E13: 5 | F13: 2560-06-12 | G13: 2560-06-18 | H13: ภาษาไทย | I13: ภาษาไทย | J13: ท31011 | K13: =IF('1.ข้อมูลส่วนบุคคล'!C$21="เชี่ยวชาญ",IF(H13="-","",IF(H13='1.ข้อมูลส่วนบุคคล'!F$26,"เกี่ยวข้อง","ไม่เกี่ยวข้อง")),IF('1.ข้อมูลส่วนบุคคล'!C$21="เชี่ยวชาญพิเศษ",IF(H13="-","",IF(H13='1.ข้อมูลส่วนบุคคล'!F$26,"เกี่ยวข้อง","ไม่เกี่ยวข้อง")),"")) ->  | L13: 5 | M13: 50 | N13: นาที | O13: สอนซ่อมเสริม | Q13: ถูกต้อง | R13: 256015ท31011ภาษาไทย | S13: 256015ท31011ภาษาไทย | T13: 15 | U13: 1 | V13: 0 | W13: =IF(LEFT(Q13,3)="ไม่","",IF(OR(LEFT(P13,1)="1",LEFT(P13,1)="2",LEFT(P13,1)="3",LEFT(P13,1)="4",LEFT(P13,1)="5",LEFT(P13,1)="6",LEFT(P13,1)="7"),0,IF(SUMIFS(Z$7:Z$7000,AL$7:AL$7000,B13&+D13&+E13&+"ถูกต้อง",AK$7:AK$7000,0)<'1.ข้อมูลส่วนบุคคล'!$G$26,1,0))) -> 0 | X13: 4.166666667 | Y13: 0.1 | Z13: 4.1 | AA13: 0 | AB13: ='1.ข้อมูลส่วนบุคคล'!$E$32 -> 2560-05-15 | AC13: 25600515 | AD13: 2560-06-12 | AE13: 25600612 | AF13: 97 | AG13: 0 | AH13: =IF(AG13=1,IF(AN13=AN12,0,'1.ข้อมูลส่วนบุคคล'!G$26-IF(AND(LEFT(Q13,3)<>"ไม่",AK13=0),SUMIFS(Z$7:Z$7000,AN$7:AN$7000,AN13,AK$7:AK$7000,0),0)),0) -> 0 | AI13: 4.1 | AJ13: 1 | AK13: 1 | AL13: 115ถูกต้อง | AM13: 25601 | AN13: 25605
A14: ='1.ข้อมูลส่วนบุคคล'!$F$5 -> 1234567891234 | K14: =IF('1.ข้อมูลส่วนบุคคล'!C$21="เชี่ยวชาญ",IF(H14="-","",IF(H14='1.ข้อมูลส่วนบุคคล'!F$26,"เกี่ยวข้อง","ไม่เกี่ยวข้อง")),IF('1.ข้อมูลส่วนบุคคล'!C$21="เชี่ยวชาญพิเศษ",IF(H14="-","",IF(H14='1.ข้อมูลส่วนบุคคล'!F$26,"เกี่ยวข้อง","ไม่เกี่ยวข้อง")),"")) ->  | O14: สอนตามตารางสอน | Q14: ไม่ถูกต้อง | U14: 0 | V14: 0 | W14: =IF(LEFT(Q14,3)="ไม่","",IF(OR(LEFT(P14,1)="1",LEFT(P14,1)="2",LEFT(P14,1)="3",LEFT(P14,1)="4",LEFT(P14,1)="5",LEFT(P14,1)="6",LEFT(P14,1)="7"),0,IF(SUMIFS(Z$7:Z$7000,AL$7:AL$7000,B14&+D14&+E14&+"ถูกต้อง",AK$7:AK$7000,0)<'1.ข้อมูลส่วนบุคคล'!$G$26,1,0))) ->  | X14: 0 | Y14: 0 | Z14: 0 | AA14: 0 | AB14: ='1.ข้อมูลส่วนบุคคล'!$E$32 -> 2560-05-15 | AC14: 25600515 | AD14: 00:00:00 | AE14: 19000100 | AF14: -6600415 | AG14: 0 | AH14: =IF(AG14=1,IF(AN14=AN13,0,'1.ข้อมูลส่วนบุคคล'!G$26-IF(AND(LEFT(Q14,3)<>"ไม่",AK14=0),SUMIFS(Z$7:Z$7000,AN$7:AN$7000,AN14,AK$7:AK$7000,0),0)),0) -> 0 | AI14: 0 | AJ14: 0 | AK14: 0 | AL14: ไม่ถูกต้อง
A15: ='1.ข้อมูลส่วนบุคคล'!$F$5 -> 1234567891234 | K15: =IF('1.ข้อมูลส่วนบุคคล'!C$21="เชี่ยวชาญ",IF(H15="-","",IF(H15='1.ข้อมูลส่วนบุคคล'!F$26,"เกี่ยวข้อง","ไม่เกี่ยวข้อง")),IF('1.ข้อมูลส่วนบุคคล'!C$21="เชี่ยวชาญพิเศษ",IF(H15="-","",IF(H15='1.ข้อมูลส่วนบุคคล'!F$26,"เกี่ยวข้อง","ไม่เกี่ยวข้อง")),"")) ->  | O15: สอนตามตารางสอน | Q15: ไม่ถูกต้อง | U15: 0 | V15: 0 | W15: =IF(LEFT(Q15,3)="ไม่","",IF(OR(LEFT(P15,1)="1",LEFT(P15,1)="2",LEFT(P15,1)="3",LEFT(P15,1)="4",LEFT(P15,1)="5",LEFT(P15,1)="6",LEFT(P15,1)="7"),0,IF(SUMIFS(Z$7:Z$7000,AL$7:AL$7000,B15&+D15&+E15&+"ถูกต้อง",AK$7:AK$7000,0)<'1.ข้อมูลส่วนบุคคล'!$G$26,1,0))) ->  | X15: 0 | Y15: 0 | Z15: 0 | AA15: 0 | AB15: ='1.ข้อมูลส่วนบุคคล'!$E$32 -> 2560-05-15 | AC15: 25600515 | AD15: 00:00:00 | AE15: 19000100 | AF15: -6600415 | AG15: 0 | AH15: =IF(AG15=1,IF(AN15=AN14,0,'1.ข้อมูลส่วนบุคคล'!G$26-IF(AND(LEFT(Q15,3)<>"ไม่",AK15=0),SUMIFS(Z$7:Z$7000,AN$7:AN$7000,AN15,AK$7:AK$7000,0),0)),0) -> 0 | AI15: 0 | AJ15: 0 | AK15: 0 | AL15: ไม่ถูกต้อง
A16: ='1.ข้อมูลส่วนบุคคล'!$F$5 -> 1234567891234 | K16: =IF('1.ข้อมูลส่วนบุคคล'!C$21="เชี่ยวชาญ",IF(H16="-","",IF(H16='1.ข้อมูลส่วนบุคคล'!F$26,"เกี่ยวข้อง","ไม่เกี่ยวข้อง")),IF('1.ข้อมูลส่วนบุคคล'!C$21="เชี่ยวชาญพิเศษ",IF(H16="-","",IF(H16='1.ข้อมูลส่วนบุคคล'!F$26,"เกี่ยวข้อง","ไม่เกี่ยวข้อง")),"")) ->  | O16: สอนตามตารางสอน | Q16: ไม่ถูกต้อง | U16: 0 | V16: 0 | W16: =IF(LEFT(Q16,3)="ไม่","",IF(OR(LEFT(P16,1)="1",LEFT(P16,1)="2",LEFT(P16,1)="3",LEFT(P16,1)="4",LEFT(P16,1)="5",LEFT(P16,1)="6",LEFT(P16,1)="7"),0,IF(SUMIFS(Z$7:Z$7000,AL$7:AL$7000,B16&+D16&+E16&+"ถูกต้อง",AK$7:AK$7000,0)<'1.ข้อมูลส่วนบุคคล'!$G$26,1,0))) ->  | X16: 0 | Y16: 0 | Z16: 0 | AA16: 0 | AB16: ='1.ข้อมูลส่วนบุคคล'!$E$32 -> 2560-05-15 | AC16: 25600515 | AD16: 00:00:00 | AE16: 19000100 | AF16: -6600415 | AG16: 0 | AH16: =IF(AG16=1,IF(AN16=AN15,0,'1.ข้อมูลส่วนบุคคล'!G$26-IF(AND(LEFT(Q16,3)<>"ไม่",AK16=0),SUMIFS(Z$7:Z$7000,AN$7:AN$7000,AN16,AK$7:AK$7000,0),0)),0) -> 0 | AI16: 0 | AJ16: 0 | AK16: 0 | AL16: ไม่ถูกต้อง
A17: ='1.ข้อมูลส่วนบุคคล'!$F$5 -> 1234567891234 | K17: =IF('1.ข้อมูลส่วนบุคคล'!C$21="เชี่ยวชาญ",IF(H17="-","",IF(H17='1.ข้อมูลส่วนบุคคล'!F$26,"เกี่ยวข้อง","ไม่เกี่ยวข้อง")),IF('1.ข้อมูลส่วนบุคคล'!C$21="เชี่ยวชาญพิเศษ",IF(H17="-","",IF(H17='1.ข้อมูลส่วนบุคคล'!F$26,"เกี่ยวข้อง","ไม่เกี่ยวข้อง")),"")) ->  | O17: สอนตามตารางสอน | Q17: ไม่ถูกต้อง | U17: 0 | V17: 0 | W17: =IF(LEFT(Q17,3)="ไม่","",IF(OR(LEFT(P17,1)="1",LEFT(P17,1)="2",LEFT(P17,1)="3",LEFT(P17,1)="4",LEFT(P17,1)="5",LEFT(P17,1)="6",LEFT(P17,1)="7"),0,IF(SUMIFS(Z$7:Z$7000,AL$7:AL$7000,B17&+D17&+E17&+"ถูกต้อง",AK$7:AK$7000,0)<'1.ข้อมูลส่วนบุคคล'!$G$26,1,0))) ->  | X17: 0 | Y17: 0 | Z17: 0 | AA17: 0 | AB17: ='1.ข้อมูลส่วนบุคคล'!$E$32 -> 2560-05-15 | AC17: 25600515 | AD17: 00:00:00 | AE17: 19000100 | AF17: -6600415 | AG17: 0 | AH17: =IF(AG17=1,IF(AN17=AN16,0,'1.ข้อมูลส่วนบุคคล'!G$26-IF(AND(LEFT(Q17,3)<>"ไม่",AK17=0),SUMIFS(Z$7:Z$7000,AN$7:AN$7000,AN17,AK$7:AK$7000,0),0)),0) -> 0 | AI17: 0 | AJ17: 0 | AK17: 0 | AL17: ไม่ถูกต้อง
A18: ='1.ข้อมูลส่วนบุคคล'!$F$5 -> 1234567891234 | K18: =IF('1.ข้อมูลส่วนบุคคล'!C$21="เชี่ยวชาญ",IF(H18="-","",IF(H18='1.ข้อมูลส่วนบุคคล'!F$26,"เกี่ยวข้อง","ไม่เกี่ยวข้อง")),IF('1.ข้อมูลส่วนบุคคล'!C$21="เชี่ยวชาญพิเศษ",IF(H18="-","",IF(H18='1.ข้อมูลส่วนบุคคล'!F$26,"เกี่ยวข้อง","ไม่เกี่ยวข้อง")),"")) ->  | O18: สอนตามตารางสอน | Q18: ไม่ถูกต้อง | U18: 0 | V18: 0 | W18: =IF(LEFT(Q18,3)="ไม่","",IF(OR(LEFT(P18,1)="1",LEFT(P18,1)="2",LEFT(P18,1)="3",LEFT(P18,1)="4",LEFT(P18,1)="5",LEFT(P18,1)="6",LEFT(P18,1)="7"),0,IF(SUMIFS(Z$7:Z$7000,AL$7:AL$7000,B18&+D18&+E18&+"ถูกต้อง",AK$7:AK$7000,0)<'1.ข้อมูลส่วนบุคคล'!$G$26,1,0))) ->  | X18: 0 | Y18: 0 | Z18: 0 | AA18: 0 | AB18: ='1.ข้อมูลส่วนบุคคล'!$E$32 -> 2560-05-15 | AC18: 25600515 | AD18: 00:00:00 | AE18: 19000100 | AF18: -6600415 | AG18: 0 | AH18: =IF(AG18=1,IF(AN18=AN17,0,'1.ข้อมูลส่วนบุคคล'!G$26-IF(AND(LEFT(Q18,3)<>"ไม่",AK18=0),SUMIFS(Z$7:Z$7000,AN$7:AN$7000,AN18,AK$7:AK$7000,0),0)),0) -> 0 | AI18: 0 | AJ18: 0 | AK18: 0 | AL18: ไม่ถูกต้อง
A19: ='1.ข้อมูลส่วนบุคคล'!$F$5 -> 1234567891234 | K19: =IF('1.ข้อมูลส่วนบุคคล'!C$21="เชี่ยวชาญ",IF(H19="-","",IF(H19='1.ข้อมูลส่วนบุคคล'!F$26,"เกี่ยวข้อง","ไม่เกี่ยวข้อง")),IF('1.ข้อมูลส่วนบุคคล'!C$21="เชี่ยวชาญพิเศษ",IF(H19="-","",IF(H19='1.ข้อมูลส่วนบุคคล'!F$26,"เกี่ยวข้อง","ไม่เกี่ยวข้อง")),"")) ->  | O19: สอนตามตารางสอน | Q19: ไม่ถูกต้อง | U19: 0 | V19: 0 | W19: =IF(LEFT(Q19,3)="ไม่","",IF(OR(LEFT(P19,1)="1",LEFT(P19,1)="2",LEFT(P19,1)="3",LEFT(P19,1)="4",LEFT(P19,1)="5",LEFT(P19,1)="6",LEFT(P19,1)="7"),0,IF(SUMIFS(Z$7:Z$7000,AL$7:AL$7000,B19&+D19&+E19&+"ถูกต้อง",AK$7:AK$7000,0)<'1.ข้อมูลส่วนบุคคล'!$G$26,1,0))) ->  | X19: 0 | Y19: 0 | Z19: 0 | AA19: 0 | AB19: ='1.ข้อมูลส่วนบุคคล'!$E$32 -> 2560-05-15 | AC19: 25600515 | AD19: 00:00:00 | AE19: 19000100 | AF19: -6600415 | AG19: 0 | AH19: =IF(AG19=1,IF(AN19=AN18,0,'1.ข้อมูลส่วนบุคคล'!G$26-IF(AND(LEFT(Q19,3)<>"ไม่",AK19=0),SUMIFS(Z$7:Z$7000,AN$7:AN$7000,AN19,AK$7:AK$7000,0),0)),0) -> 0 | AI19: 0 | AJ19: 0 | AK19: 0 | AL19: ไม่ถูกต้อง
A20: ='1.ข้อมูลส่วนบุคคล'!$F$5 -> 1234567891234 | K20: =IF('1.ข้อมูลส่วนบุคคล'!C$21="เชี่ยวชาญ",IF(H20="-","",IF(H20='1.ข้อมูลส่วนบุคคล'!F$26,"เกี่ยวข้อง","ไม่เกี่ยวข้อง")),IF('1.ข้อมูลส่วนบุคคล'!C$21="เชี่ยวชาญพิเศษ",IF(H20="-","",IF(H20='1.ข้อมูลส่วนบุคคล'!F$26,"เกี่ยวข้อง","ไม่เกี่ยวข้อง")),"")) ->  | O20: สอนตามตารางสอน | Q20: ไม่ถูกต้อง | U20: 0 | V20: 0 | W20: =IF(LEFT(Q20,3)="ไม่","",IF(OR(LEFT(P20,1)="1",LEFT(P20,1)="2",LEFT(P20,1)="3",LEFT(P20,1)="4",LEFT(P20,1)="5",LEFT(P20,1)="6",LEFT(P20,1)="7"),0,IF(SUMIFS(Z$7:Z$7000,AL$7:AL$7000,B20&+D20&+E20&+"ถูกต้อง",AK$7:AK$7000,0)<'1.ข้อมูลส่วนบุคคล'!$G$26,1,0))) ->  | X20: 0 | Y20: 0 | Z20: 0 | AA20: 0 | AB20: ='1.ข้อมูลส่วนบุคคล'!$E$32 -> 2560-05-15 | AC20: 25600515 | AD20: 00:00:00 | AE20: 19000100 | AF20: -6600415 | AG20: 0 | AH20: =IF(AG20=1,IF(AN20=AN19,0,'1.ข้อมูลส่วนบุคคล'!G$26-IF(AND(LEFT(Q20,3)<>"ไม่",AK20=0),SUMIFS(Z$7:Z$7000,AN$7:AN$7000,AN20,AK$7:AK$7000,0),0)),0) -> 0 | AI20: 0 | AJ20: 0 | AK20: 0 | AL20: ไม่ถูกต้อง
A21: ='1.ข้อมูลส่วนบุคคล'!$F$5 -> 1234567891234 | K21: =IF('1.ข้อมูลส่วนบุคคล'!C$21="เชี่ยวชาญ",IF(H21="-","",IF(H21='1.ข้อมูลส่วนบุคคล'!F$26,"เกี่ยวข้อง","ไม่เกี่ยวข้อง")),IF('1.ข้อมูลส่วนบุคคล'!C$21="เชี่ยวชาญพิเศษ",IF(H21="-","",IF(H21='1.ข้อมูลส่วนบุคคล'!F$26,"เกี่ยวข้อง","ไม่เกี่ยวข้อง")),"")) ->  | O21: สอนตามตารางสอน | Q21: ไม่ถูกต้อง | U21: 0 | V21: 0 | W21: =IF(LEFT(Q21,3)="ไม่","",IF(OR(LEFT(P21,1)="1",LEFT(P21,1)="2",LEFT(P21,1)="3",LEFT(P21,1)="4",LEFT(P21,1)="5",LEFT(P21,1)="6",LEFT(P21,1)="7"),0,IF(SUMIFS(Z$7:Z$7000,AL$7:AL$7000,B21&+D21&+E21&+"ถูกต้อง",AK$7:AK$7000,0)<'1.ข้อมูลส่วนบุคคล'!$G$26,1,0))) ->  | X21: 0 | Y21: 0 | Z21: 0 | AA21: 0 | AB21: ='1.ข้อมูลส่วนบุคคล'!$E$32 -> 2560-05-15 | AC21: 25600515 | AD21: 00:00:00 | AE21: 19000100 | AF21: -6600415 | AG21: 0 | AH21: =IF(AG21=1,IF(AN21=AN20,0,'1.ข้อมูลส่วนบุคคล'!G$26-IF(AND(LEFT(Q21,3)<>"ไม่",AK21=0),SUMIFS(Z$7:Z$7000,AN$7:AN$7000,AN21,AK$7:AK$7000,0),0)),0) -> 0 | AI21: 0 | AJ21: 0 | AK21: 0 | AL21: ไม่ถูกต้อง
A22: ='1.ข้อมูลส่วนบุคคล'!$F$5 -> 1234567891234 | K22: =IF('1.ข้อมูลส่วนบุคคล'!C$21="เชี่ยวชาญ",IF(H22="-","",IF(H22='1.ข้อมูลส่วนบุคคล'!F$26,"เกี่ยวข้อง","ไม่เกี่ยวข้อง")),IF('1.ข้อมูลส่วนบุคคล'!C$21="เชี่ยวชาญพิเศษ",IF(H22="-","",IF(H22='1.ข้อมูลส่วนบุคคล'!F$26,"เกี่ยวข้อง","ไม่เกี่ยวข้อง")),"")) ->  | O22: สอนตามตารางสอน | Q22: ไม่ถูกต้อง | U22: 0 | V22: 0 | W22: =IF(LEFT(Q22,3)="ไม่","",IF(OR(LEFT(P22,1)="1",LEFT(P22,1)="2",LEFT(P22,1)="3",LEFT(P22,1)="4",LEFT(P22,1)="5",LEFT(P22,1)="6",LEFT(P22,1)="7"),0,IF(SUMIFS(Z$7:Z$7000,AL$7:AL$7000,B22&+D22&+E22&+"ถูกต้อง",AK$7:AK$7000,0)<'1.ข้อมูลส่วนบุคคล'!$G$26,1,0))) ->  | X22: 0 | Y22: 0 | Z22: 0 | AA22: 0 | AB22: ='1.ข้อมูลส่วนบุคคล'!$E$32 -> 2560-05-15 | AC22: 25600515 | AD22: 00:00:00 | AE22: 19000100 | AF22: -6600415 | AG22: 0 | AH22: =IF(AG22=1,IF(AN22=AN21,0,'1.ข้อมูลส่วนบุคคล'!G$26-IF(AND(LEFT(Q22,3)<>"ไม่",AK22=0),SUMIFS(Z$7:Z$7000,AN$7:AN$7000,AN22,AK$7:AK$7000,0),0)),0) -> 0 | AI22: 0 | AJ22: 0 | AK22: 0 | AL22: ไม่ถูกต้อง
A23: ='1.ข้อมูลส่วนบุคคล'!$F$5 -> 1234567891234 | K23: =IF('1.ข้อมูลส่วนบุคคล'!C$21="เชี่ยวชาญ",IF(H23="-","",IF(H23='1.ข้อมูลส่วนบุคคล'!F$26,"เกี่ยวข้อง","ไม่เกี่ยวข้อง")),IF('1.ข้อมูลส่วนบุคคล'!C$21="เชี่ยวชาญพิเศษ",IF(H23="-","",IF(H23='1.ข้อมูลส่วนบุคคล'!F$26,"เกี่ยวข้อง","ไม่เกี่ยวข้อง")),"")) ->  | O23: สอนตามตารางสอน | Q23: ไม่ถูกต้อง | U23: 0 | V23: 0 | W23: =IF(LEFT(Q23,3)="ไม่","",IF(OR(LEFT(P23,1)="1",LEFT(P23,1)="2",LEFT(P23,1)="3",LEFT(P23,1)="4",LEFT(P23,1)="5",LEFT(P23,1)="6",LEFT(P23,1)="7"),0,IF(SUMIFS(Z$7:Z$7000,AL$7:AL$7000,B23&+D23&+E23&+"ถูกต้อง",AK$7:AK$7000,0)<'1.ข้อมูลส่วนบุคคล'!$G$26,1,0))) ->  | X23: 0 | Y23: 0 | Z23: 0 | AA23: 0 | AB23: ='1.ข้อมูลส่วนบุคคล'!$E$32 -> 2560-05-15 | AC23: 25600515 | AD23: 00:00:00 | AE23: 19000100 | AF23: -6600415 | AG23: 0 | AH23: =IF(AG23=1,IF(AN23=AN22,0,'1.ข้อมูลส่วนบุคคล'!G$26-IF(AND(LEFT(Q23,3)<>"ไม่",AK23=0),SUMIFS(Z$7:Z$7000,AN$7:AN$7000,AN23,AK$7:AK$7000,0),0)),0) -> 0 | AI23: 0 | AJ23: 0 | AK23: 0 | AL23: ไม่ถูกต้อง
A24: ='1.ข้อมูลส่วนบุคคล'!$F$5 -> 1234567891234 | K24: =IF('1.ข้อมูลส่วนบุคคล'!C$21="เชี่ยวชาญ",IF(H24="-","",IF(H24='1.ข้อมูลส่วนบุคคล'!F$26,"เกี่ยวข้อง","ไม่เกี่ยวข้อง")),IF('1.ข้อมูลส่วนบุคคล'!C$21="เชี่ยวชาญพิเศษ",IF(H24="-","",IF(H24='1.ข้อมูลส่วนบุคคล'!F$26,"เกี่ยวข้อง","ไม่เกี่ยวข้อง")),"")) ->  | O24: สอนตามตารางสอน | Q24: ไม่ถูกต้อง | U24: 0 | V24: 0 | W24: =IF(LEFT(Q24,3)="ไม่","",IF(OR(LEFT(P24,1)="1",LEFT(P24,1)="2",LEFT(P24,1)="3",LEFT(P24,1)="4",LEFT(P24,1)="5",LEFT(P24,1)="6",LEFT(P24,1)="7"),0,IF(SUMIFS(Z$7:Z$7000,AL$7:AL$7000,B24&+D24&+E24&+"ถูกต้อง",AK$7:AK$7000,0)<'1.ข้อมูลส่วนบุคคล'!$G$26,1,0))) ->  | X24: 0 | Y24: 0 | Z24: 0 | AA24: 0 | AB24: ='1.ข้อมูลส่วนบุคคล'!$E$32 -> 2560-05-15 | AC24: 25600515 | AD24: 00:00:00 | AE24: 19000100 | AF24: -6600415 | AG24: 0 | AH24: =IF(AG24=1,IF(AN24=AN23,0,'1.ข้อมูลส่วนบุคคล'!G$26-IF(AND(LEFT(Q24,3)<>"ไม่",AK24=0),SUMIFS(Z$7:Z$7000,AN$7:AN$7000,AN24,AK$7:AK$7000,0),0)),0) -> 0 | AI24: 0 | AJ24: 0 | AK24: 0 | AL24: ไม่ถูกต้อง
A25: ='1.ข้อมูลส่วนบุคคล'!$F$5 -> 1234567891234 | K25: =IF('1.ข้อมูลส่วนบุคคล'!C$21="เชี่ยวชาญ",IF(H25="-","",IF(H25='1.ข้อมูลส่วนบุคคล'!F$26,"เกี่ยวข้อง","ไม่เกี่ยวข้อง")),IF('1.ข้อมูลส่วนบุคคล'!C$21="เชี่ยวชาญพิเศษ",IF(H25="-","",IF(H25='1.ข้อมูลส่วนบุคคล'!F$26,"เกี่ยวข้อง","ไม่เกี่ยวข้อง")),"")) ->  | O25: สอนตามตารางสอน | Q25: ไม่ถูกต้อง | U25: 0 | V25: 0 | W25: =IF(LEFT(Q25,3)="ไม่","",IF(OR(LEFT(P25,1)="1",LEFT(P25,1)="2",LEFT(P25,1)="3",LEFT(P25,1)="4",LEFT(P25,1)="5",LEFT(P25,1)="6",LEFT(P25,1)="7"),0,IF(SUMIFS(Z$7:Z$7000,AL$7:AL$7000,B25&+D25&+E25&+"ถูกต้อง",AK$7:AK$7000,0)<'1.ข้อมูลส่วนบุคคล'!$G$26,1,0))) ->  | X25: 0 | Y25: 0 | Z25: 0 | AA25: 0 | AB25: ='1.ข้อมูลส่วนบุคคล'!$E$32 -> 2560-05-15 | AC25: 25600515 | AD25: 00:00:00 | AE25: 19000100 | AF25: -6600415 | AG25: 0 | AH25: =IF(AG25=1,IF(AN25=AN24,0,'1.ข้อมูลส่วนบุคคล'!G$26-IF(AND(LEFT(Q25,3)<>"ไม่",AK25=0),SUMIFS(Z$7:Z$7000,AN$7:AN$7000,AN25,AK$7:AK$7000,0),0)),0) -> 0 | AI25: 0 | AJ25: 0 | AK25: 0 | AL25: ไม่ถูกต้อง
A26: ='1.ข้อมูลส่วนบุคคล'!$F$5 -> 1234567891234 | K26: =IF('1.ข้อมูลส่วนบุคคล'!C$21="เชี่ยวชาญ",IF(H26="-","",IF(H26='1.ข้อมูลส่วนบุคคล'!F$26,"เกี่ยวข้อง","ไม่เกี่ยวข้อง")),IF('1.ข้อมูลส่วนบุคคล'!C$21="เชี่ยวชาญพิเศษ",IF(H26="-","",IF(H26='1.ข้อมูลส่วนบุคคล'!F$26,"เกี่ยวข้อง","ไม่เกี่ยวข้อง")),"")) ->  | O26: สอนตามตารางสอน | Q26: ไม่ถูกต้อง | U26: 0 | V26: 0 | W26: =IF(LEFT(Q26,3)="ไม่","",IF(OR(LEFT(P26,1)="1",LEFT(P26,1)="2",LEFT(P26,1)="3",LEFT(P26,1)="4",LEFT(P26,1)="5",LEFT(P26,1)="6",LEFT(P26,1)="7"),0,IF(SUMIFS(Z$7:Z$7000,AL$7:AL$7000,B26&+D26&+E26&+"ถูกต้อง",AK$7:AK$7000,0)<'1.ข้อมูลส่วนบุคคล'!$G$26,1,0))) ->  | X26: 0 | Y26: 0 | Z26: 0 | AA26: 0 | AB26: ='1.ข้อมูลส่วนบุคคล'!$E$32 -> 2560-05-15 | AC26: 25600515 | AD26: 00:00:00 | AE26: 19000100 | AF26: -6600415 | AG26: 0 | AH26: =IF(AG26=1,IF(AN26=AN25,0,'1.ข้อมูลส่วนบุคคล'!G$26-IF(AND(LEFT(Q26,3)<>"ไม่",AK26=0),SUMIFS(Z$7:Z$7000,AN$7:AN$7000,AN26,AK$7:AK$7000,0),0)),0) -> 0 | AI26: 0 | AJ26: 0 | AK26: 0 | AL26: ไม่ถูกต้อง
A27: ='1.ข้อมูลส่วนบุคคล'!$F$5 -> 1234567891234 | K27: =IF('1.ข้อมูลส่วนบุคคล'!C$21="เชี่ยวชาญ",IF(H27="-","",IF(H27='1.ข้อมูลส่วนบุคคล'!F$26,"เกี่ยวข้อง","ไม่เกี่ยวข้อง")),IF('1.ข้อมูลส่วนบุคคล'!C$21="เชี่ยวชาญพิเศษ",IF(H27="-","",IF(H27='1.ข้อมูลส่วนบุคคล'!F$26,"เกี่ยวข้อง","ไม่เกี่ยวข้อง")),"")) ->  | O27: สอนตามตารางสอน | Q27: ไม่ถูกต้อง | U27: 0 | V27: 0 | W27: =IF(LEFT(Q27,3)="ไม่","",IF(OR(LEFT(P27,1)="1",LEFT(P27,1)="2",LEFT(P27,1)="3",LEFT(P27,1)="4",LEFT(P27,1)="5",LEFT(P27,1)="6",LEFT(P27,1)="7"),0,IF(SUMIFS(Z$7:Z$7000,AL$7:AL$7000,B27&+D27&+E27&+"ถูกต้อง",AK$7:AK$7000,0)<'1.ข้อมูลส่วนบุคคล'!$G$26,1,0))) ->  | X27: 0 | Y27: 0 | Z27: 0 | AA27: 0 | AB27: ='1.ข้อมูลส่วนบุคคล'!$E$32 -> 2560-05-15 | AC27: 25600515 | AD27: 00:00:00 | AE27: 19000100 | AF27: -6600415 | AG27: 0 | AH27: =IF(AG27=1,IF(AN27=AN26,0,'1.ข้อมูลส่วนบุคคล'!G$26-IF(AND(LEFT(Q27,3)<>"ไม่",AK27=0),SUMIFS(Z$7:Z$7000,AN$7:AN$7000,AN27,AK$7:AK$7000,0),0)),0) -> 0 | AI27: 0 | AJ27: 0 | AK27: 0 | AL27: ไม่ถูกต้อง
A28: ='1.ข้อมูลส่วนบุคคล'!$F$5 -> 1234567891234 | K28: =IF('1.ข้อมูลส่วนบุคคล'!C$21="เชี่ยวชาญ",IF(H28="-","",IF(H28='1.ข้อมูลส่วนบุคคล'!F$26,"เกี่ยวข้อง","ไม่เกี่ยวข้อง")),IF('1.ข้อมูลส่วนบุคคล'!C$21="เชี่ยวชาญพิเศษ",IF(H28="-","",IF(H28='1.ข้อมูลส่วนบุคคล'!F$26,"เกี่ยวข้อง","ไม่เกี่ยวข้อง")),"")) ->  | O28: สอนตามตารางสอน | Q28: ไม่ถูกต้อง | U28: 0 | V28: 0 | W28: =IF(LEFT(Q28,3)="ไม่","",IF(OR(LEFT(P28,1)="1",LEFT(P28,1)="2",LEFT(P28,1)="3",LEFT(P28,1)="4",LEFT(P28,1)="5",LEFT(P28,1)="6",LEFT(P28,1)="7"),0,IF(SUMIFS(Z$7:Z$7000,AL$7:AL$7000,B28&+D28&+E28&+"ถูกต้อง",AK$7:AK$7000,0)<'1.ข้อมูลส่วนบุคคล'!$G$26,1,0))) ->  | X28: 0 | Y28: 0 | Z28: 0 | AA28: 0 | AB28: ='1.ข้อมูลส่วนบุคคล'!$E$32 -> 2560-05-15 | AC28: 25600515 | AD28: 00:00:00 | AE28: 19000100 | AF28: -6600415 | AG28: 0 | AH28: =IF(AG28=1,IF(AN28=AN27,0,'1.ข้อมูลส่วนบุคคล'!G$26-IF(AND(LEFT(Q28,3)<>"ไม่",AK28=0),SUMIFS(Z$7:Z$7000,AN$7:AN$7000,AN28,AK$7:AK$7000,0),0)),0) -> 0 | AI28: 0 | AJ28: 0 | AK28: 0 | AL28: ไม่ถูกต้อง
A29: ='1.ข้อมูลส่วนบุคคล'!$F$5 -> 1234567891234 | K29: =IF('1.ข้อมูลส่วนบุคคล'!C$21="เชี่ยวชาญ",IF(H29="-","",IF(H29='1.ข้อมูลส่วนบุคคล'!F$26,"เกี่ยวข้อง","ไม่เกี่ยวข้อง")),IF('1.ข้อมูลส่วนบุคคล'!C$21="เชี่ยวชาญพิเศษ",IF(H29="-","",IF(H29='1.ข้อมูลส่วนบุคคล'!F$26,"เกี่ยวข้อง","ไม่เกี่ยวข้อง")),"")) ->  | O29: สอนตามตารางสอน | Q29: ไม่ถูกต้อง | U29: 0 | V29: 0 | W29: =IF(LEFT(Q29,3)="ไม่","",IF(OR(LEFT(P29,1)="1",LEFT(P29,1)="2",LEFT(P29,1)="3",LEFT(P29,1)="4",LEFT(P29,1)="5",LEFT(P29,1)="6",LEFT(P29,1)="7"),0,IF(SUMIFS(Z$7:Z$7000,AL$7:AL$7000,B29&+D29&+E29&+"ถูกต้อง",AK$7:AK$7000,0)<'1.ข้อมูลส่วนบุคคล'!$G$26,1,0))) ->  | X29: 0 | Y29: 0 | Z29: 0 | AA29: 0 | AB29: ='1.ข้อมูลส่วนบุคคล'!$E$32 -> 2560-05-15 | AC29: 25600515 | AD29: 00:00:00 | AE29: 19000100 | AF29: -6600415 | AG29: 0 | AH29: =IF(AG29=1,IF(AN29=AN28,0,'1.ข้อมูลส่วนบุคคล'!G$26-IF(AND(LEFT(Q29,3)<>"ไม่",AK29=0),SUMIFS(Z$7:Z$7000,AN$7:AN$7000,AN29,AK$7:AK$7000,0),0)),0) -> 0 | AI29: 0 | AJ29: 0 | AK29: 0 | AL29: ไม่ถูกต้อง
A30: ='1.ข้อมูลส่วนบุคคล'!$F$5 -> 1234567891234 | K30: =IF('1.ข้อมูลส่วนบุคคล'!C$21="เชี่ยวชาญ",IF(H30="-","",IF(H30='1.ข้อมูลส่วนบุคคล'!F$26,"เกี่ยวข้อง","ไม่เกี่ยวข้อง")),IF('1.ข้อมูลส่วนบุคคล'!C$21="เชี่ยวชาญพิเศษ",IF(H30="-","",IF(H30='1.ข้อมูลส่วนบุคคล'!F$26,"เกี่ยวข้อง","ไม่เกี่ยวข้อง")),"")) ->  | O30: สอนตามตารางสอน | Q30: ไม่ถูกต้อง | U30: 0 | V30: 0 | W30: =IF(LEFT(Q30,3)="ไม่","",IF(OR(LEFT(P30,1)="1",LEFT(P30,1)="2",LEFT(P30,1)="3",LEFT(P30,1)="4",LEFT(P30,1)="5",LEFT(P30,1)="6",LEFT(P30,1)="7"),0,IF(SUMIFS(Z$7:Z$7000,AL$7:AL$7000,B30&+D30&+E30&+"ถูกต้อง",AK$7:AK$7000,0)<'1.ข้อมูลส่วนบุคคล'!$G$26,1,0))) ->  | X30: 0 | Y30: 0 | Z30: 0 | AA30: 0 | AB30: ='1.ข้อมูลส่วนบุคคล'!$E$32 -> 2560-05-15 | AC30: 25600515 | AD30: 00:00:00 | AE30: 19000100 | AF30: -6600415 | AG30: 0 | AH30: =IF(AG30=1,IF(AN30=AN29,0,'1.ข้อมูลส่วนบุคคล'!G$26-IF(AND(LEFT(Q30,3)<>"ไม่",AK30=0),SUMIFS(Z$7:Z$7000,AN$7:AN$7000,AN30,AK$7:AK$7000,0),0)),0) -> 0 | AI30: 0 | AJ30: 0 | AK30: 0 | AL30: ไม่ถูกต้อง
A31: ='1.ข้อมูลส่วนบุคคล'!$F$5 -> 1234567891234 | K31: =IF('1.ข้อมูลส่วนบุคคล'!C$21="เชี่ยวชาญ",IF(H31="-","",IF(H31='1.ข้อมูลส่วนบุคคล'!F$26,"เกี่ยวข้อง","ไม่เกี่ยวข้อง")),IF('1.ข้อมูลส่วนบุคคล'!C$21="เชี่ยวชาญพิเศษ",IF(H31="-","",IF(H31='1.ข้อมูลส่วนบุคคล'!F$26,"เกี่ยวข้อง","ไม่เกี่ยวข้อง")),"")) ->  | O31: สอนตามตารางสอน | Q31: ไม่ถูกต้อง | U31: 0 | V31: 0 | W31: =IF(LEFT(Q31,3)="ไม่","",IF(OR(LEFT(P31,1)="1",LEFT(P31,1)="2",LEFT(P31,1)="3",LEFT(P31,1)="4",LEFT(P31,1)="5",LEFT(P31,1)="6",LEFT(P31,1)="7"),0,IF(SUMIFS(Z$7:Z$7000,AL$7:AL$7000,B31&+D31&+E31&+"ถูกต้อง",AK$7:AK$7000,0)<'1.ข้อมูลส่วนบุคคล'!$G$26,1,0))) ->  | X31: 0 | Y31: 0 | Z31: 0 | AA31: 0 | AB31: ='1.ข้อมูลส่วนบุคคล'!$E$32 -> 2560-05-15 | AC31: 25600515 | AD31: 00:00:00 | AE31: 19000100 | AF31: -6600415 | AG31: 0 | AH31: =IF(AG31=1,IF(AN31=AN30,0,'1.ข้อมูลส่วนบุคคล'!G$26-IF(AND(LEFT(Q31,3)<>"ไม่",AK31=0),SUMIFS(Z$7:Z$7000,AN$7:AN$7000,AN31,AK$7:AK$7000,0),0)),0) -> 0 | AI31: 0 | AJ31: 0 | AK31: 0 | AL31: ไม่ถูกต้อง
A32: ='1.ข้อมูลส่วนบุคคล'!$F$5 -> 1234567891234 | K32: =IF('1.ข้อมูลส่วนบุคคล'!C$21="เชี่ยวชาญ",IF(H32="-","",IF(H32='1.ข้อมูลส่วนบุคคล'!F$26,"เกี่ยวข้อง","ไม่เกี่ยวข้อง")),IF('1.ข้อมูลส่วนบุคคล'!C$21="เชี่ยวชาญพิเศษ",IF(H32="-","",IF(H32='1.ข้อมูลส่วนบุคคล'!F$26,"เกี่ยวข้อง","ไม่เกี่ยวข้อง")),"")) ->  | O32: สอนตามตารางสอน | Q32: ไม่ถูกต้อง | U32: 0 | V32: 0 | W32: =IF(LEFT(Q32,3)="ไม่","",IF(OR(LEFT(P32,1)="1",LEFT(P32,1)="2",LEFT(P32,1)="3",LEFT(P32,1)="4",LEFT(P32,1)="5",LEFT(P32,1)="6",LEFT(P32,1)="7"),0,IF(SUMIFS(Z$7:Z$7000,AL$7:AL$7000,B32&+D32&+E32&+"ถูกต้อง",AK$7:AK$7000,0)<'1.ข้อมูลส่วนบุคคล'!$G$26,1,0))) ->  | X32: 0 | Y32: 0 | Z32: 0 | AA32: 0 | AB32: ='1.ข้อมูลส่วนบุคคล'!$E$32 -> 2560-05-15 | AC32: 25600515 | AD32: 00:00:00 | AE32: 19000100 | AF32: -6600415 | AG32: 0 | AH32: =IF(AG32=1,IF(AN32=AN31,0,'1.ข้อมูลส่วนบุคคล'!G$26-IF(AND(LEFT(Q32,3)<>"ไม่",AK32=0),SUMIFS(Z$7:Z$7000,AN$7:AN$7000,AN32,AK$7:AK$7000,0),0)),0) -> 0 | AI32: 0 | AJ32: 0 | AK32: 0 | AL32: ไม่ถูกต้อง
A33: ='1.ข้อมูลส่วนบุคคล'!$F$5 -> 1234567891234 | K33: =IF('1.ข้อมูลส่วนบุคคล'!C$21="เชี่ยวชาญ",IF(H33="-","",IF(H33='1.ข้อมูลส่วนบุคคล'!F$26,"เกี่ยวข้อง","ไม่เกี่ยวข้อง")),IF('1.ข้อมูลส่วนบุคคล'!C$21="เชี่ยวชาญพิเศษ",IF(H33="-","",IF(H33='1.ข้อมูลส่วนบุคคล'!F$26,"เกี่ยวข้อง","ไม่เกี่ยวข้อง")),"")) ->  | O33: สอนตามตารางสอน | Q33: ไม่ถูกต้อง | U33: 0 | V33: 0 | W33: =IF(LEFT(Q33,3)="ไม่","",IF(OR(LEFT(P33,1)="1",LEFT(P33,1)="2",LEFT(P33,1)="3",LEFT(P33,1)="4",LEFT(P33,1)="5",LEFT(P33,1)="6",LEFT(P33,1)="7"),0,IF(SUMIFS(Z$7:Z$7000,AL$7:AL$7000,B33&+D33&+E33&+"ถูกต้อง",AK$7:AK$7000,0)<'1.ข้อมูลส่วนบุคคล'!$G$26,1,0))) ->  | X33: 0 | Y33: 0 | Z33: 0 | AA33: 0 | AB33: ='1.ข้อมูลส่วนบุคคล'!$E$32 -> 2560-05-15 | AC33: 25600515 | AD33: 00:00:00 | AE33: 19000100 | AF33: -6600415 | AG33: 0 | AH33: =IF(AG33=1,IF(AN33=AN32,0,'1.ข้อมูลส่วนบุคคล'!G$26-IF(AND(LEFT(Q33,3)<>"ไม่",AK33=0),SUMIFS(Z$7:Z$7000,AN$7:AN$7000,AN33,AK$7:AK$7000,0),0)),0) -> 0 | AI33: 0 | AJ33: 0 | AK33: 0 | AL33: ไม่ถูกต้อง
A34: ='1.ข้อมูลส่วนบุคคล'!$F$5 -> 1234567891234 | K34: =IF('1.ข้อมูลส่วนบุคคล'!C$21="เชี่ยวชาญ",IF(H34="-","",IF(H34='1.ข้อมูลส่วนบุคคล'!F$26,"เกี่ยวข้อง","ไม่เกี่ยวข้อง")),IF('1.ข้อมูลส่วนบุคคล'!C$21="เชี่ยวชาญพิเศษ",IF(H34="-","",IF(H34='1.ข้อมูลส่วนบุคคล'!F$26,"เกี่ยวข้อง","ไม่เกี่ยวข้อง")),"")) ->  | O34: สอนตามตารางสอน | Q34: ไม่ถูกต้อง | U34: 0 | V34: 0 | W34: =IF(LEFT(Q34,3)="ไม่","",IF(OR(LEFT(P34,1)="1",LEFT(P34,1)="2",LEFT(P34,1)="3",LEFT(P34,1)="4",LEFT(P34,1)="5",LEFT(P34,1)="6",LEFT(P34,1)="7"),0,IF(SUMIFS(Z$7:Z$7000,AL$7:AL$7000,B34&+D34&+E34&+"ถูกต้อง",AK$7:AK$7000,0)<'1.ข้อมูลส่วนบุคคล'!$G$26,1,0))) ->  | X34: 0 | Y34: 0 | Z34: 0 | AA34: 0 | AB34: ='1.ข้อมูลส่วนบุคคล'!$E$32 -> 2560-05-15 | AC34: 25600515 | AD34: 00:00:00 | AE34: 19000100 | AF34: -6600415 | AG34: 0 | AH34: =IF(AG34=1,IF(AN34=AN33,0,'1.ข้อมูลส่วนบุคคล'!G$26-IF(AND(LEFT(Q34,3)<>"ไม่",AK34=0),SUMIFS(Z$7:Z$7000,AN$7:AN$7000,AN34,AK$7:AK$7000,0),0)),0) -> 0 | AI34: 0 | AJ34: 0 | AK34: 0 | AL34: ไม่ถูกต้อง
A35: ='1.ข้อมูลส่วนบุคคล'!$F$5 -> 1234567891234 | K35: =IF('1.ข้อมูลส่วนบุคคล'!C$21="เชี่ยวชาญ",IF(H35="-","",IF(H35='1.ข้อมูลส่วนบุคคล'!F$26,"เกี่ยวข้อง","ไม่เกี่ยวข้อง")),IF('1.ข้อมูลส่วนบุคคล'!C$21="เชี่ยวชาญพิเศษ",IF(H35="-","",IF(H35='1.ข้อมูลส่วนบุคคล'!F$26,"เกี่ยวข้อง","ไม่เกี่ยวข้อง")),"")) ->  | O35: สอนตามตารางสอน | Q35: ไม่ถูกต้อง | U35: 0 | V35: 0 | W35: =IF(LEFT(Q35,3)="ไม่","",IF(OR(LEFT(P35,1)="1",LEFT(P35,1)="2",LEFT(P35,1)="3",LEFT(P35,1)="4",LEFT(P35,1)="5",LEFT(P35,1)="6",LEFT(P35,1)="7"),0,IF(SUMIFS(Z$7:Z$7000,AL$7:AL$7000,B35&+D35&+E35&+"ถูกต้อง",AK$7:AK$7000,0)<'1.ข้อมูลส่วนบุคคล'!$G$26,1,0))) ->  | X35: 0 | Y35: 0 | Z35: 0 | AA35: 0 | AB35: ='1.ข้อมูลส่วนบุคคล'!$E$32 -> 2560-05-15 | AC35: 25600515 | AD35: 00:00:00 | AE35: 19000100 | AF35: -6600415 | AG35: 0 | AH35: =IF(AG35=1,IF(AN35=AN34,0,'1.ข้อมูลส่วนบุคคล'!G$26-IF(AND(LEFT(Q35,3)<>"ไม่",AK35=0),SUMIFS(Z$7:Z$7000,AN$7:AN$7000,AN35,AK$7:AK$7000,0),0)),0) -> 0 | AI35: 0 | AJ35: 0 | AK35: 0 | AL35: ไม่ถูกต้อง
A36: ='1.ข้อมูลส่วนบุคคล'!$F$5 -> 1234567891234 | K36: =IF('1.ข้อมูลส่วนบุคคล'!C$21="เชี่ยวชาญ",IF(H36="-","",IF(H36='1.ข้อมูลส่วนบุคคล'!F$26,"เกี่ยวข้อง","ไม่เกี่ยวข้อง")),IF('1.ข้อมูลส่วนบุคคล'!C$21="เชี่ยวชาญพิเศษ",IF(H36="-","",IF(H36='1.ข้อมูลส่วนบุคคล'!F$26,"เกี่ยวข้อง","ไม่เกี่ยวข้อง")),"")) ->  | O36: สอนตามตารางสอน | Q36: ไม่ถูกต้อง | U36: 0 | V36: 0 | W36: =IF(LEFT(Q36,3)="ไม่","",IF(OR(LEFT(P36,1)="1",LEFT(P36,1)="2",LEFT(P36,1)="3",LEFT(P36,1)="4",LEFT(P36,1)="5",LEFT(P36,1)="6",LEFT(P36,1)="7"),0,IF(SUMIFS(Z$7:Z$7000,AL$7:AL$7000,B36&+D36&+E36&+"ถูกต้อง",AK$7:AK$7000,0)<'1.ข้อมูลส่วนบุคคล'!$G$26,1,0))) ->  | X36: 0 | Y36: 0 | Z36: 0 | AA36: 0 | AB36: ='1.ข้อมูลส่วนบุคคล'!$E$32 -> 2560-05-15 | AC36: 25600515 | AD36: 00:00:00 | AE36: 19000100 | AF36: -6600415 | AG36: 0 | AH36: =IF(AG36=1,IF(AN36=AN35,0,'1.ข้อมูลส่วนบุคคล'!G$26-IF(AND(LEFT(Q36,3)<>"ไม่",AK36=0),SUMIFS(Z$7:Z$7000,AN$7:AN$7000,AN36,AK$7:AK$7000,0),0)),0) -> 0 | AI36: 0 | AJ36: 0 | AK36: 0 | AL36: ไม่ถูกต้อง
A37: ='1.ข้อมูลส่วนบุคคล'!$F$5 -> 1234567891234 | K37: =IF('1.ข้อมูลส่วนบุคคล'!C$21="เชี่ยวชาญ",IF(H37="-","",IF(H37='1.ข้อมูลส่วนบุคคล'!F$26,"เกี่ยวข้อง","ไม่เกี่ยวข้อง")),IF('1.ข้อมูลส่วนบุคคล'!C$21="เชี่ยวชาญพิเศษ",IF(H37="-","",IF(H37='1.ข้อมูลส่วนบุคคล'!F$26,"เกี่ยวข้อง","ไม่เกี่ยวข้อง")),"")) ->  | O37: สอนตามตารางสอน | Q37: ไม่ถูกต้อง | U37: 0 | V37: 0 | W37: =IF(LEFT(Q37,3)="ไม่","",IF(OR(LEFT(P37,1)="1",LEFT(P37,1)="2",LEFT(P37,1)="3",LEFT(P37,1)="4",LEFT(P37,1)="5",LEFT(P37,1)="6",LEFT(P37,1)="7"),0,IF(SUMIFS(Z$7:Z$7000,AL$7:AL$7000,B37&+D37&+E37&+"ถูกต้อง",AK$7:AK$7000,0)<'1.ข้อมูลส่วนบุคคล'!$G$26,1,0))) ->  | X37: 0 | Y37: 0 | Z37: 0 | AA37: 0 | AB37: ='1.ข้อมูลส่วนบุคคล'!$E$32 -> 2560-05-15 | AC37: 25600515 | AD37: 00:00:00 | AE37: 19000100 | AF37: -6600415 | AG37: 0 | AH37: =IF(AG37=1,IF(AN37=AN36,0,'1.ข้อมูลส่วนบุคคล'!G$26-IF(AND(LEFT(Q37,3)<>"ไม่",AK37=0),SUMIFS(Z$7:Z$7000,AN$7:AN$7000,AN37,AK$7:AK$7000,0),0)),0) -> 0 | AI37: 0 | AJ37: 0 | AK37: 0 | AL37: ไม่ถูกต้อง
A38: ='1.ข้อมูลส่วนบุคคล'!$F$5 -> 1234567891234 | K38: =IF('1.ข้อมูลส่วนบุคคล'!C$21="เชี่ยวชาญ",IF(H38="-","",IF(H38='1.ข้อมูลส่วนบุคคล'!F$26,"เกี่ยวข้อง","ไม่เกี่ยวข้อง")),IF('1.ข้อมูลส่วนบุคคล'!C$21="เชี่ยวชาญพิเศษ",IF(H38="-","",IF(H38='1.ข้อมูลส่วนบุคคล'!F$26,"เกี่ยวข้อง","ไม่เกี่ยวข้อง")),"")) ->  | O38: สอนตามตารางสอน | Q38: ไม่ถูกต้อง | U38: 0 | V38: 0 | W38: =IF(LEFT(Q38,3)="ไม่","",IF(OR(LEFT(P38,1)="1",LEFT(P38,1)="2",LEFT(P38,1)="3",LEFT(P38,1)="4",LEFT(P38,1)="5",LEFT(P38,1)="6",LEFT(P38,1)="7"),0,IF(SUMIFS(Z$7:Z$7000,AL$7:AL$7000,B38&+D38&+E38&+"ถูกต้อง",AK$7:AK$7000,0)<'1.ข้อมูลส่วนบุคคล'!$G$26,1,0))) ->  | X38: 0 | Y38: 0 | Z38: 0 | AA38: 0 | AB38: ='1.ข้อมูลส่วนบุคคล'!$E$32 -> 2560-05-15 | AC38: 25600515 | AD38: 00:00:00 | AE38: 19000100 | AF38: -6600415 | AG38: 0 | AH38: =IF(AG38=1,IF(AN38=AN37,0,'1.ข้อมูลส่วนบุคคล'!G$26-IF(AND(LEFT(Q38,3)<>"ไม่",AK38=0),SUMIFS(Z$7:Z$7000,AN$7:AN$7000,AN38,AK$7:AK$7000,0),0)),0) -> 0 | AI38: 0 | AJ38: 0 | AK38: 0 | AL38: ไม่ถูกต้อง
A39: ='1.ข้อมูลส่วนบุคคล'!$F$5 -> 1234567891234 | K39: =IF('1.ข้อมูลส่วนบุคคล'!C$21="เชี่ยวชาญ",IF(H39="-","",IF(H39='1.ข้อมูลส่วนบุคคล'!F$26,"เกี่ยวข้อง","ไม่เกี่ยวข้อง")),IF('1.ข้อมูลส่วนบุคคล'!C$21="เชี่ยวชาญพิเศษ",IF(H39="-","",IF(H39='1.ข้อมูลส่วนบุคคล'!F$26,"เกี่ยวข้อง","ไม่เกี่ยวข้อง")),"")) ->  | O39: สอนตามตารางสอน | Q39: ไม่ถูกต้อง | U39: 0 | V39: 0 | W39: =IF(LEFT(Q39,3)="ไม่","",IF(OR(LEFT(P39,1)="1",LEFT(P39,1)="2",LEFT(P39,1)="3",LEFT(P39,1)="4",LEFT(P39,1)="5",LEFT(P39,1)="6",LEFT(P39,1)="7"),0,IF(SUMIFS(Z$7:Z$7000,AL$7:AL$7000,B39&+D39&+E39&+"ถูกต้อง",AK$7:AK$7000,0)<'1.ข้อมูลส่วนบุคคล'!$G$26,1,0))) ->  | X39: 0 | Y39: 0 | Z39: 0 | AA39: 0 | AB39: ='1.ข้อมูลส่วนบุคคล'!$E$32 -> 2560-05-15 | AC39: 25600515 | AD39: 00:00:00 | AE39: 19000100 | AF39: -6600415 | AG39: 0 | AH39: =IF(AG39=1,IF(AN39=AN38,0,'1.ข้อมูลส่วนบุคคล'!G$26-IF(AND(LEFT(Q39,3)<>"ไม่",AK39=0),SUMIFS(Z$7:Z$7000,AN$7:AN$7000,AN39,AK$7:AK$7000,0),0)),0) -> 0 | AI39: 0 | AJ39: 0 | AK39: 0 | AL39: ไม่ถูกต้อง
A40: ='1.ข้อมูลส่วนบุคคล'!$F$5 -> 1234567891234 | K40: =IF('1.ข้อมูลส่วนบุคคล'!C$21="เชี่ยวชาญ",IF(H40="-","",IF(H40='1.ข้อมูลส่วนบุคคล'!F$26,"เกี่ยวข้อง","ไม่เกี่ยวข้อง")),IF('1.ข้อมูลส่วนบุคคล'!C$21="เชี่ยวชาญพิเศษ",IF(H40="-","",IF(H40='1.ข้อมูลส่วนบุคคล'!F$26,"เกี่ยวข้อง","ไม่เกี่ยวข้อง")),"")) ->  | O40: สอนตามตารางสอน | Q40: ไม่ถูกต้อง | U40: 0 | V40: 0 | W40: =IF(LEFT(Q40,3)="ไม่","",IF(OR(LEFT(P40,1)="1",LEFT(P40,1)="2",LEFT(P40,1)="3",LEFT(P40,1)="4",LEFT(P40,1)="5",LEFT(P40,1)="6",LEFT(P40,1)="7"),0,IF(SUMIFS(Z$7:Z$7000,AL$7:AL$7000,B40&+D40&+E40&+"ถูกต้อง",AK$7:AK$7000,0)<'1.ข้อมูลส่วนบุคคล'!$G$26,1,0))) ->  | X40: 0 | Y40: 0 | Z40: 0 | AA40: 0 | AB40: ='1.ข้อมูลส่วนบุคคล'!$E$32 -> 2560-05-15 | AC40: 25600515 | AD40: 00:00:00 | AE40: 19000100 | AF40: -6600415 | AG40: 0 | AH40: =IF(AG40=1,IF(AN40=AN39,0,'1.ข้อมูลส่วนบุคคล'!G$26-IF(AND(LEFT(Q40,3)<>"ไม่",AK40=0),SUMIFS(Z$7:Z$7000,AN$7:AN$7000,AN40,AK$7:AK$7000,0),0)),0) -> 0 | AI40: 0 | AJ40: 0 | AK40: 0 | AL40: ไม่ถูกต้อง
A41: ='1.ข้อมูลส่วนบุคคล'!$F$5 -> 1234567891234 | K41: =IF('1.ข้อมูลส่วนบุคคล'!C$21="เชี่ยวชาญ",IF(H41="-","",IF(H41='1.ข้อมูลส่วนบุคคล'!F$26,"เกี่ยวข้อง","ไม่เกี่ยวข้อง")),IF('1.ข้อมูลส่วนบุคคล'!C$21="เชี่ยวชาญพิเศษ",IF(H41="-","",IF(H41='1.ข้อมูลส่วนบุคคล'!F$26,"เกี่ยวข้อง","ไม่เกี่ยวข้อง")),"")) ->  | O41: สอนตามตารางสอน | Q41: ไม่ถูกต้อง | U41: 0 | V41: 0 | W41: =IF(LEFT(Q41,3)="ไม่","",IF(OR(LEFT(P41,1)="1",LEFT(P41,1)="2",LEFT(P41,1)="3",LEFT(P41,1)="4",LEFT(P41,1)="5",LEFT(P41,1)="6",LEFT(P41,1)="7"),0,IF(SUMIFS(Z$7:Z$7000,AL$7:AL$7000,B41&+D41&+E41&+"ถูกต้อง",AK$7:AK$7000,0)<'1.ข้อมูลส่วนบุคคล'!$G$26,1,0))) ->  | X41: 0 | Y41: 0 | Z41: 0 | AA41: 0 | AB41: ='1.ข้อมูลส่วนบุคคล'!$E$32 -> 2560-05-15 | AC41: 25600515 | AD41: 00:00:00 | AE41: 19000100 | AF41: -6600415 | AG41: 0 | AH41: =IF(AG41=1,IF(AN41=AN40,0,'1.ข้อมูลส่วนบุคคล'!G$26-IF(AND(LEFT(Q41,3)<>"ไม่",AK41=0),SUMIFS(Z$7:Z$7000,AN$7:AN$7000,AN41,AK$7:AK$7000,0),0)),0) -> 0 | AI41: 0 | AJ41: 0 | AK41: 0 | AL41: ไม่ถูกต้อง
A42: ='1.ข้อมูลส่วนบุคคล'!$F$5 -> 1234567891234 | K42: =IF('1.ข้อมูลส่วนบุคคล'!C$21="เชี่ยวชาญ",IF(H42="-","",IF(H42='1.ข้อมูลส่วนบุคคล'!F$26,"เกี่ยวข้อง","ไม่เกี่ยวข้อง")),IF('1.ข้อมูลส่วนบุคคล'!C$21="เชี่ยวชาญพิเศษ",IF(H42="-","",IF(H42='1.ข้อมูลส่วนบุคคล'!F$26,"เกี่ยวข้อง","ไม่เกี่ยวข้อง")),"")) ->  | O42: สอนตามตารางสอน | Q42: ไม่ถูกต้อง | U42: 0 | V42: 0 | W42: =IF(LEFT(Q42,3)="ไม่","",IF(OR(LEFT(P42,1)="1",LEFT(P42,1)="2",LEFT(P42,1)="3",LEFT(P42,1)="4",LEFT(P42,1)="5",LEFT(P42,1)="6",LEFT(P42,1)="7"),0,IF(SUMIFS(Z$7:Z$7000,AL$7:AL$7000,B42&+D42&+E42&+"ถูกต้อง",AK$7:AK$7000,0)<'1.ข้อมูลส่วนบุคคล'!$G$26,1,0))) ->  | X42: 0 | Y42: 0 | Z42: 0 | AA42: 0 | AB42: ='1.ข้อมูลส่วนบุคคล'!$E$32 -> 2560-05-15 | AC42: 25600515 | AD42: 00:00:00 | AE42: 19000100 | AF42: -6600415 | AG42: 0 | AH42: =IF(AG42=1,IF(AN42=AN41,0,'1.ข้อมูลส่วนบุคคล'!G$26-IF(AND(LEFT(Q42,3)<>"ไม่",AK42=0),SUMIFS(Z$7:Z$7000,AN$7:AN$7000,AN42,AK$7:AK$7000,0),0)),0) -> 0 | AI42: 0 | AJ42: 0 | AK42: 0 | AL42: ไม่ถูกต้อง
A43: ='1.ข้อมูลส่วนบุคคล'!$F$5 -> 1234567891234 | K43: =IF('1.ข้อมูลส่วนบุคคล'!C$21="เชี่ยวชาญ",IF(H43="-","",IF(H43='1.ข้อมูลส่วนบุคคล'!F$26,"เกี่ยวข้อง","ไม่เกี่ยวข้อง")),IF('1.ข้อมูลส่วนบุคคล'!C$21="เชี่ยวชาญพิเศษ",IF(H43="-","",IF(H43='1.ข้อมูลส่วนบุคคล'!F$26,"เกี่ยวข้อง","ไม่เกี่ยวข้อง")),"")) ->  | O43: สอนตามตารางสอน | Q43: ไม่ถูกต้อง | U43: 0 | V43: 0 | W43: =IF(LEFT(Q43,3)="ไม่","",IF(OR(LEFT(P43,1)="1",LEFT(P43,1)="2",LEFT(P43,1)="3",LEFT(P43,1)="4",LEFT(P43,1)="5",LEFT(P43,1)="6",LEFT(P43,1)="7"),0,IF(SUMIFS(Z$7:Z$7000,AL$7:AL$7000,B43&+D43&+E43&+"ถูกต้อง",AK$7:AK$7000,0)<'1.ข้อมูลส่วนบุคคล'!$G$26,1,0))) ->  | X43: 0 | Y43: 0 | Z43: 0 | AA43: 0 | AB43: ='1.ข้อมูลส่วนบุคคล'!$E$32 -> 2560-05-15 | AC43: 25600515 | AD43: 00:00:00 | AE43: 19000100 | AF43: -6600415 | AG43: 0 | AH43: =IF(AG43=1,IF(AN43=AN42,0,'1.ข้อมูลส่วนบุคคล'!G$26-IF(AND(LEFT(Q43,3)<>"ไม่",AK43=0),SUMIFS(Z$7:Z$7000,AN$7:AN$7000,AN43,AK$7:AK$7000,0),0)),0) -> 0 | AI43: 0 | AJ43: 0 | AK43: 0 | AL43: ไม่ถูกต้อง
A44: ='1.ข้อมูลส่วนบุคคล'!$F$5 -> 1234567891234 | K44: =IF('1.ข้อมูลส่วนบุคคล'!C$21="เชี่ยวชาญ",IF(H44="-","",IF(H44='1.ข้อมูลส่วนบุคคล'!F$26,"เกี่ยวข้อง","ไม่เกี่ยวข้อง")),IF('1.ข้อมูลส่วนบุคคล'!C$21="เชี่ยวชาญพิเศษ",IF(H44="-","",IF(H44='1.ข้อมูลส่วนบุคคล'!F$26,"เกี่ยวข้อง","ไม่เกี่ยวข้อง")),"")) ->  | O44: สอนตามตารางสอน | Q44: ไม่ถูกต้อง | U44: 0 | V44: 0 | W44: =IF(LEFT(Q44,3)="ไม่","",IF(OR(LEFT(P44,1)="1",LEFT(P44,1)="2",LEFT(P44,1)="3",LEFT(P44,1)="4",LEFT(P44,1)="5",LEFT(P44,1)="6",LEFT(P44,1)="7"),0,IF(SUMIFS(Z$7:Z$7000,AL$7:AL$7000,B44&+D44&+E44&+"ถูกต้อง",AK$7:AK$7000,0)<'1.ข้อมูลส่วนบุคคล'!$G$26,1,0))) ->  | X44: 0 | Y44: 0 | Z44: 0 | AA44: 0 | AB44: ='1.ข้อมูลส่วนบุคคล'!$E$32 -> 2560-05-15 | AC44: 25600515 | AD44: 00:00:00 | AE44: 19000100 | AF44: -6600415 | AG44: 0 | AH44: =IF(AG44=1,IF(AN44=AN43,0,'1.ข้อมูลส่วนบุคคล'!G$26-IF(AND(LEFT(Q44,3)<>"ไม่",AK44=0),SUMIFS(Z$7:Z$7000,AN$7:AN$7000,AN44,AK$7:AK$7000,0),0)),0) -> 0 | AI44: 0 | AJ44: 0 | AK44: 0 | AL44: ไม่ถูกต้อง
A45: ='1.ข้อมูลส่วนบุคคล'!$F$5 -> 1234567891234 | K45: =IF('1.ข้อมูลส่วนบุคคล'!C$21="เชี่ยวชาญ",IF(H45="-","",IF(H45='1.ข้อมูลส่วนบุคคล'!F$26,"เกี่ยวข้อง","ไม่เกี่ยวข้อง")),IF('1.ข้อมูลส่วนบุคคล'!C$21="เชี่ยวชาญพิเศษ",IF(H45="-","",IF(H45='1.ข้อมูลส่วนบุคคล'!F$26,"เกี่ยวข้อง","ไม่เกี่ยวข้อง")),"")) ->  | O45: สอนตามตารางสอน | Q45: ไม่ถูกต้อง | U45: 0 | V45: 0 | W45: =IF(LEFT(Q45,3)="ไม่","",IF(OR(LEFT(P45,1)="1",LEFT(P45,1)="2",LEFT(P45,1)="3",LEFT(P45,1)="4",LEFT(P45,1)="5",LEFT(P45,1)="6",LEFT(P45,1)="7"),0,IF(SUMIFS(Z$7:Z$7000,AL$7:AL$7000,B45&+D45&+E45&+"ถูกต้อง",AK$7:AK$7000,0)<'1.ข้อมูลส่วนบุคคล'!$G$26,1,0))) ->  | X45: 0 | Y45: 0 | Z45: 0 | AA45: 0 | AB45: ='1.ข้อมูลส่วนบุคคล'!$E$32 -> 2560-05-15 | AC45: 25600515 | AD45: 00:00:00 | AE45: 19000100 | AF45: -6600415 | AG45: 0 | AH45: =IF(AG45=1,IF(AN45=AN44,0,'1.ข้อมูลส่วนบุคคล'!G$26-IF(AND(LEFT(Q45,3)<>"ไม่",AK45=0),SUMIFS(Z$7:Z$7000,AN$7:AN$7000,AN45,AK$7:AK$7000,0),0)),0) -> 0 | AI45: 0 | AJ45: 0 | AK45: 0 | AL45: ไม่ถูกต้อง
A46: ='1.ข้อมูลส่วนบุคคล'!$F$5 -> 1234567891234 | K46: =IF('1.ข้อมูลส่วนบุคคล'!C$21="เชี่ยวชาญ",IF(H46="-","",IF(H46='1.ข้อมูลส่วนบุคคล'!F$26,"เกี่ยวข้อง","ไม่เกี่ยวข้อง")),IF('1.ข้อมูลส่วนบุคคล'!C$21="เชี่ยวชาญพิเศษ",IF(H46="-","",IF(H46='1.ข้อมูลส่วนบุคคล'!F$26,"เกี่ยวข้อง","ไม่เกี่ยวข้อง")),"")) ->  | O46: สอนตามตารางสอน | Q46: ไม่ถูกต้อง | U46: 0 | V46: 0 | W46: =IF(LEFT(Q46,3)="ไม่","",IF(OR(LEFT(P46,1)="1",LEFT(P46,1)="2",LEFT(P46,1)="3",LEFT(P46,1)="4",LEFT(P46,1)="5",LEFT(P46,1)="6",LEFT(P46,1)="7"),0,IF(SUMIFS(Z$7:Z$7000,AL$7:AL$7000,B46&+D46&+E46&+"ถูกต้อง",AK$7:AK$7000,0)<'1.ข้อมูลส่วนบุคคล'!$G$26,1,0))) ->  | X46: 0 | Y46: 0 | Z46: 0 | AA46: 0 | AB46: ='1.ข้อมูลส่วนบุคคล'!$E$32 -> 2560-05-15 | AC46: 25600515 | AD46: 00:00:00 | AE46: 19000100 | AF46: -6600415 | AG46: 0 | AH46: =IF(AG46=1,IF(AN46=AN45,0,'1.ข้อมูลส่วนบุคคล'!G$26-IF(AND(LEFT(Q46,3)<>"ไม่",AK46=0),SUMIFS(Z$7:Z$7000,AN$7:AN$7000,AN46,AK$7:AK$7000,0),0)),0) -> 0 | AI46: 0 | AJ46: 0 | AK46: 0 | AL46: ไม่ถูกต้อง
A47: ='1.ข้อมูลส่วนบุคคล'!$F$5 -> 1234567891234 | K47: =IF('1.ข้อมูลส่วนบุคคล'!C$21="เชี่ยวชาญ",IF(H47="-","",IF(H47='1.ข้อมูลส่วนบุคคล'!F$26,"เกี่ยวข้อง","ไม่เกี่ยวข้อง")),IF('1.ข้อมูลส่วนบุคคล'!C$21="เชี่ยวชาญพิเศษ",IF(H47="-","",IF(H47='1.ข้อมูลส่วนบุคคล'!F$26,"เกี่ยวข้อง","ไม่เกี่ยวข้อง")),"")) ->  | O47: สอนตามตารางสอน | Q47: ไม่ถูกต้อง | U47: 0 | V47: 0 | W47: =IF(LEFT(Q47,3)="ไม่","",IF(OR(LEFT(P47,1)="1",LEFT(P47,1)="2",LEFT(P47,1)="3",LEFT(P47,1)="4",LEFT(P47,1)="5",LEFT(P47,1)="6",LEFT(P47,1)="7"),0,IF(SUMIFS(Z$7:Z$7000,AL$7:AL$7000,B47&+D47&+E47&+"ถูกต้อง",AK$7:AK$7000,0)<'1.ข้อมูลส่วนบุคคล'!$G$26,1,0))) ->  | X47: 0 | Y47: 0 | Z47: 0 | AA47: 0 | AB47: ='1.ข้อมูลส่วนบุคคล'!$E$32 -> 2560-05-15 | AC47: 25600515 | AD47: 00:00:00 | AE47: 19000100 | AF47: -6600415 | AG47: 0 | AH47: =IF(AG47=1,IF(AN47=AN46,0,'1.ข้อมูลส่วนบุคคล'!G$26-IF(AND(LEFT(Q47,3)<>"ไม่",AK47=0),SUMIFS(Z$7:Z$7000,AN$7:AN$7000,AN47,AK$7:AK$7000,0),0)),0) -> 0 | AI47: 0 | AJ47: 0 | AK47: 0 | AL47: ไม่ถูกต้อง
A48: ='1.ข้อมูลส่วนบุคคล'!$F$5 -> 1234567891234 | K48: =IF('1.ข้อมูลส่วนบุคคล'!C$21="เชี่ยวชาญ",IF(H48="-","",IF(H48='1.ข้อมูลส่วนบุคคล'!F$26,"เกี่ยวข้อง","ไม่เกี่ยวข้อง")),IF('1.ข้อมูลส่วนบุคคล'!C$21="เชี่ยวชาญพิเศษ",IF(H48="-","",IF(H48='1.ข้อมูลส่วนบุคคล'!F$26,"เกี่ยวข้อง","ไม่เกี่ยวข้อง")),"")) ->  | O48: สอนตามตารางสอน | Q48: ไม่ถูกต้อง | U48: 0 | V48: 0 | W48: =IF(LEFT(Q48,3)="ไม่","",IF(OR(LEFT(P48,1)="1",LEFT(P48,1)="2",LEFT(P48,1)="3",LEFT(P48,1)="4",LEFT(P48,1)="5",LEFT(P48,1)="6",LEFT(P48,1)="7"),0,IF(SUMIFS(Z$7:Z$7000,AL$7:AL$7000,B48&+D48&+E48&+"ถูกต้อง",AK$7:AK$7000,0)<'1.ข้อมูลส่วนบุคคล'!$G$26,1,0))) ->  | X48: 0 | Y48: 0 | Z48: 0 | AA48: 0 | AB48: ='1.ข้อมูลส่วนบุคคล'!$E$32 -> 2560-05-15 | AC48: 25600515 | AD48: 00:00:00 | AE48: 19000100 | AF48: -6600415 | AG48: 0 | AH48: =IF(AG48=1,IF(AN48=AN47,0,'1.ข้อมูลส่วนบุคคล'!G$26-IF(AND(LEFT(Q48,3)<>"ไม่",AK48=0),SUMIFS(Z$7:Z$7000,AN$7:AN$7000,AN48,AK$7:AK$7000,0),0)),0) -> 0 | AI48: 0 | AJ48: 0 | AK48: 0 | AL48: ไม่ถูกต้อง
A49: ='1.ข้อมูลส่วนบุคคล'!$F$5 -> 1234567891234 | K49: =IF('1.ข้อมูลส่วนบุคคล'!C$21="เชี่ยวชาญ",IF(H49="-","",IF(H49='1.ข้อมูลส่วนบุคคล'!F$26,"เกี่ยวข้อง","ไม่เกี่ยวข้อง")),IF('1.ข้อมูลส่วนบุคคล'!C$21="เชี่ยวชาญพิเศษ",IF(H49="-","",IF(H49='1.ข้อมูลส่วนบุคคล'!F$26,"เกี่ยวข้อง","ไม่เกี่ยวข้อง")),"")) ->  | O49: สอนตามตารางสอน | Q49: ไม่ถูกต้อง | U49: 0 | V49: 0 | W49: =IF(LEFT(Q49,3)="ไม่","",IF(OR(LEFT(P49,1)="1",LEFT(P49,1)="2",LEFT(P49,1)="3",LEFT(P49,1)="4",LEFT(P49,1)="5",LEFT(P49,1)="6",LEFT(P49,1)="7"),0,IF(SUMIFS(Z$7:Z$7000,AL$7:AL$7000,B49&+D49&+E49&+"ถูกต้อง",AK$7:AK$7000,0)<'1.ข้อมูลส่วนบุคคล'!$G$26,1,0))) ->  | X49: 0 | Y49: 0 | Z49: 0 | AA49: 0 | AB49: ='1.ข้อมูลส่วนบุคคล'!$E$32 -> 2560-05-15 | AC49: 25600515 | AD49: 00:00:00 | AE49: 19000100 | AF49: -6600415 | AG49: 0 | AH49: =IF(AG49=1,IF(AN49=AN48,0,'1.ข้อมูลส่วนบุคคล'!G$26-IF(AND(LEFT(Q49,3)<>"ไม่",AK49=0),SUMIFS(Z$7:Z$7000,AN$7:AN$7000,AN49,AK$7:AK$7000,0),0)),0) -> 0 | AI49: 0 | AJ49: 0 | AK49: 0 | AL49: ไม่ถูกต้อง
A50: ='1.ข้อมูลส่วนบุคคล'!$F$5 -> 1234567891234 | K50: =IF('1.ข้อมูลส่วนบุคคล'!C$21="เชี่ยวชาญ",IF(H50="-","",IF(H50='1.ข้อมูลส่วนบุคคล'!F$26,"เกี่ยวข้อง","ไม่เกี่ยวข้อง")),IF('1.ข้อมูลส่วนบุคคล'!C$21="เชี่ยวชาญพิเศษ",IF(H50="-","",IF(H50='1.ข้อมูลส่วนบุคคล'!F$26,"เกี่ยวข้อง","ไม่เกี่ยวข้อง")),"")) ->  | O50: สอนตามตารางสอน | Q50: ไม่ถูกต้อง | U50: 0 | V50: 0 | W50: =IF(LEFT(Q50,3)="ไม่","",IF(OR(LEFT(P50,1)="1",LEFT(P50,1)="2",LEFT(P50,1)="3",LEFT(P50,1)="4",LEFT(P50,1)="5",LEFT(P50,1)="6",LEFT(P50,1)="7"),0,IF(SUMIFS(Z$7:Z$7000,AL$7:AL$7000,B50&+D50&+E50&+"ถูกต้อง",AK$7:AK$7000,0)<'1.ข้อมูลส่วนบุคคล'!$G$26,1,0))) ->  | X50: 0 | Y50: 0 | Z50: 0 | AA50: 0 | AB50: ='1.ข้อมูลส่วนบุคคล'!$E$32 -> 2560-05-15 | AC50: 25600515 | AD50: 00:00:00 | AE50: 19000100 | AF50: -6600415 | AG50: 0 | AH50: =IF(AG50=1,IF(AN50=AN49,0,'1.ข้อมูลส่วนบุคคล'!G$26-IF(AND(LEFT(Q50,3)<>"ไม่",AK50=0),SUMIFS(Z$7:Z$7000,AN$7:AN$7000,AN50,AK$7:AK$7000,0),0)),0) -> 0 | AI50: 0 | AJ50: 0 | AK50: 0 | AL50: ไม่ถูกต้อง
A51: ='1.ข้อมูลส่วนบุคคล'!$F$5 -> 1234567891234 | K51: =IF('1.ข้อมูลส่วนบุคคล'!C$21="เชี่ยวชาญ",IF(H51="-","",IF(H51='1.ข้อมูลส่วนบุคคล'!F$26,"เกี่ยวข้อง","ไม่เกี่ยวข้อง")),IF('1.ข้อมูลส่วนบุคคล'!C$21="เชี่ยวชาญพิเศษ",IF(H51="-","",IF(H51='1.ข้อมูลส่วนบุคคล'!F$26,"เกี่ยวข้อง","ไม่เกี่ยวข้อง")),"")) ->  | O51: สอนตามตารางสอน | Q51: ไม่ถูกต้อง | U51: 0 | V51: 0 | W51: =IF(LEFT(Q51,3)="ไม่","",IF(OR(LEFT(P51,1)="1",LEFT(P51,1)="2",LEFT(P51,1)="3",LEFT(P51,1)="4",LEFT(P51,1)="5",LEFT(P51,1)="6",LEFT(P51,1)="7"),0,IF(SUMIFS(Z$7:Z$7000,AL$7:AL$7000,B51&+D51&+E51&+"ถูกต้อง",AK$7:AK$7000,0)<'1.ข้อมูลส่วนบุคคล'!$G$26,1,0))) ->  | X51: 0 | Y51: 0 | Z51: 0 | AA51: 0 | AB51: ='1.ข้อมูลส่วนบุคคล'!$E$32 -> 2560-05-15 | AC51: 25600515 | AD51: 00:00:00 | AE51: 19000100 | AF51: -6600415 | AG51: 0 | AH51: =IF(AG51=1,IF(AN51=AN50,0,'1.ข้อมูลส่วนบุคคล'!G$26-IF(AND(LEFT(Q51,3)<>"ไม่",AK51=0),SUMIFS(Z$7:Z$7000,AN$7:AN$7000,AN51,AK$7:AK$7000,0),0)),0) -> 0 | AI51: 0 | AJ51: 0 | AK51: 0 | AL51: ไม่ถูกต้อง
A52: ='1.ข้อมูลส่วนบุคคล'!$F$5 -> 1234567891234 | K52: =IF('1.ข้อมูลส่วนบุคคล'!C$21="เชี่ยวชาญ",IF(H52="-","",IF(H52='1.ข้อมูลส่วนบุคคล'!F$26,"เกี่ยวข้อง","ไม่เกี่ยวข้อง")),IF('1.ข้อมูลส่วนบุคคล'!C$21="เชี่ยวชาญพิเศษ",IF(H52="-","",IF(H52='1.ข้อมูลส่วนบุคคล'!F$26,"เกี่ยวข้อง","ไม่เกี่ยวข้อง")),"")) ->  | O52: สอนตามตารางสอน | Q52: ไม่ถูกต้อง | T52: =B52&+E52&+I52 ->  | U52: 0 | V52: 0 | W52: =IF(LEFT(Q52,3)="ไม่","",IF(OR(LEFT(P52,1)="1",LEFT(P52,1)="2",LEFT(P52,1)="3",LEFT(P52,1)="4",LEFT(P52,1)="5",LEFT(P52,1)="6",LEFT(P52,1)="7"),0,IF(SUMIFS(Z$7:Z$7000,AL$7:AL$7000,B52&+D52&+E52&+"ถูกต้อง",AK$7:AK$7000,0)<'1.ข้อมูลส่วนบุคคล'!$G$26,1,0))) ->  | X52: 0 | Y52: 0 | Z52: 0 | AA52: 0 | AB52: ='1.ข้อมูลส่วนบุคคล'!$E$32 -> 2560-05-15 | AC52: 25600515 | AD52: 00:00:00 | AE52: 19000100 | AF52: -6600415 | AG52: 0 | AH52: =IF(AG52=1,IF(AN52=AN51,0,'1.ข้อมูลส่วนบุคคล'!G$26-IF(AND(LEFT(Q52,3)<>"ไม่",AK52=0),SUMIFS(Z$7:Z$7000,AN$7:AN$7000,AN52,AK$7:AK$7000,0),0)),0) -> 0 | AI52: 0 | AJ52: 0 | AK52: 0 | AL52: ไม่ถูกต้อง
A53: ='1.ข้อมูลส่วนบุคคล'!$F$5 -> 1234567891234 | K53: =IF('1.ข้อมูลส่วนบุคคล'!C$21="เชี่ยวชาญ",IF(H53="-","",IF(H53='1.ข้อมูลส่วนบุคคล'!F$26,"เกี่ยวข้อง","ไม่เกี่ยวข้อง")),IF('1.ข้อมูลส่วนบุคคล'!C$21="เชี่ยวชาญพิเศษ",IF(H53="-","",IF(H53='1.ข้อมูลส่วนบุคคล'!F$26,"เกี่ยวข้อง","ไม่เกี่ยวข้อง")),"")) ->  | O53: สอนตามตารางสอน | Q53: ไม่ถูกต้อง | T53: =B53&+E53 ->  | U53: 0 | V53: 0 | W53: =IF(LEFT(Q53,3)="ไม่","",IF(OR(LEFT(P53,1)="1",LEFT(P53,1)="2",LEFT(P53,1)="3",LEFT(P53,1)="4",LEFT(P53,1)="5",LEFT(P53,1)="6",LEFT(P53,1)="7"),0,IF(SUMIFS(Z$7:Z$7000,AL$7:AL$7000,B53&+D53&+E53&+"ถูกต้อง",AK$7:AK$7000,0)<'1.ข้อมูลส่วนบุคคล'!$G$26,1,0))) ->  | X53: 0 | Y53: 0 | Z53: 0 | AA53: 0 | AB53: ='1.ข้อมูลส่วนบุคคล'!$E$32 -> 2560-05-15 | AC53: 25600515 | AD53: 00:00:00 | AE53: 19000100 | AF53: -6600415 | AG53: 0 | AH53: =IF(AG53=1,IF(AN53=AN52,0,'1.ข้อมูลส่วนบุคคล'!G$26-IF(AND(LEFT(Q53,3)<>"ไม่",AK53=0),SUMIFS(Z$7:Z$7000,AN$7:AN$7000,AN53,AK$7:AK$7000,0),0)),0) -> 0 | AI53: 0 | AJ53: 0 | AK53: 0 | AL53: ไม่ถูกต้อง
A54: ='1.ข้อมูลส่วนบุคคล'!$F$5 -> 1234567891234 | K54: =IF('1.ข้อมูลส่วนบุคคล'!C$21="เชี่ยวชาญ",IF(H54="-","",IF(H54='1.ข้อมูลส่วนบุคคล'!F$26,"เกี่ยวข้อง","ไม่เกี่ยวข้อง")),IF('1.ข้อมูลส่วนบุคคล'!C$21="เชี่ยวชาญพิเศษ",IF(H54="-","",IF(H54='1.ข้อมูลส่วนบุคคล'!F$26,"เกี่ยวข้อง","ไม่เกี่ยวข้อง")),"")) ->  | O54: สอนตามตารางสอน | Q54: ไม่ถูกต้อง | U54: 0 | V54: 0 | W54: =IF(LEFT(Q54,3)="ไม่","",IF(OR(LEFT(P54,1)="1",LEFT(P54,1)="2",LEFT(P54,1)="3",LEFT(P54,1)="4",LEFT(P54,1)="5",LEFT(P54,1)="6",LEFT(P54,1)="7"),0,IF(SUMIFS(Z$7:Z$7000,AL$7:AL$7000,B54&+D54&+E54&+"ถูกต้อง",AK$7:AK$7000,0)<'1.ข้อมูลส่วนบุคคล'!$G$26,1,0))) ->  | X54: 0 | Y54: 0 | Z54: 0 | AA54: 0 | AB54: ='1.ข้อมูลส่วนบุคคล'!$E$32 -> 2560-05-15 | AC54: 25600515 | AD54: 00:00:00 | AE54: 19000100 | AF54: -6600415 | AG54: 0 | AH54: =IF(AG54=1,IF(AN54=AN53,0,'1.ข้อมูลส่วนบุคคล'!G$26-IF(AND(LEFT(Q54,3)<>"ไม่",AK54=0),SUMIFS(Z$7:Z$7000,AN$7:AN$7000,AN54,AK$7:AK$7000,0),0)),0) -> 0 | AI54: 0 | AJ54: 0 | AK54: 0 | AL54: ไม่ถูกต้อง
A55: ='1.ข้อมูลส่วนบุคคล'!$F$5 -> 1234567891234 | K55: =IF('1.ข้อมูลส่วนบุคคล'!C$21="เชี่ยวชาญ",IF(H55="-","",IF(H55='1.ข้อมูลส่วนบุคคล'!F$26,"เกี่ยวข้อง","ไม่เกี่ยวข้อง")),IF('1.ข้อมูลส่วนบุคคล'!C$21="เชี่ยวชาญพิเศษ",IF(H55="-","",IF(H55='1.ข้อมูลส่วนบุคคล'!F$26,"เกี่ยวข้อง","ไม่เกี่ยวข้อง")),"")) ->  | O55: สอนตามตารางสอน | Q55: ไม่ถูกต้อง | U55: 0 | V55: 0 | W55: =IF(LEFT(Q55,3)="ไม่","",IF(OR(LEFT(P55,1)="1",LEFT(P55,1)="2",LEFT(P55,1)="3",LEFT(P55,1)="4",LEFT(P55,1)="5",LEFT(P55,1)="6",LEFT(P55,1)="7"),0,IF(SUMIFS(Z$7:Z$7000,AL$7:AL$7000,B55&+D55&+E55&+"ถูกต้อง",AK$7:AK$7000,0)<'1.ข้อมูลส่วนบุคคล'!$G$26,1,0))) ->  | X55: 0 | Y55: 0 | Z55: 0 | AA55: 0 | AB55: ='1.ข้อมูลส่วนบุคคล'!$E$32 -> 2560-05-15 | AC55: 25600515 | AD55: 00:00:00 | AE55: 19000100 | AF55: -6600415 | AG55: 0 | AH55: =IF(AG55=1,IF(AN55=AN54,0,'1.ข้อมูลส่วนบุคคล'!G$26-IF(AND(LEFT(Q55,3)<>"ไม่",AK55=0),SUMIFS(Z$7:Z$7000,AN$7:AN$7000,AN55,AK$7:AK$7000,0),0)),0) -> 0 | AI55: 0 | AJ55: 0 | AK55: 0 | AL55: ไม่ถูกต้อง
A56: ='1.ข้อมูลส่วนบุคคล'!$F$5 -> 1234567891234 | K56: =IF('1.ข้อมูลส่วนบุคคล'!C$21="เชี่ยวชาญ",IF(H56="-","",IF(H56='1.ข้อมูลส่วนบุคคล'!F$26,"เกี่ยวข้อง","ไม่เกี่ยวข้อง")),IF('1.ข้อมูลส่วนบุคคล'!C$21="เชี่ยวชาญพิเศษ",IF(H56="-","",IF(H56='1.ข้อมูลส่วนบุคคล'!F$26,"เกี่ยวข้อง","ไม่เกี่ยวข้อง")),"")) ->  | O56: สอนตามตารางสอน | Q56: ไม่ถูกต้อง | U56: 0 | V56: 0 | W56: =IF(LEFT(Q56,3)="ไม่","",IF(OR(LEFT(P56,1)="1",LEFT(P56,1)="2",LEFT(P56,1)="3",LEFT(P56,1)="4",LEFT(P56,1)="5",LEFT(P56,1)="6",LEFT(P56,1)="7"),0,IF(SUMIFS(Z$7:Z$7000,AL$7:AL$7000,B56&+D56&+E56&+"ถูกต้อง",AK$7:AK$7000,0)<'1.ข้อมูลส่วนบุคคล'!$G$26,1,0))) ->  | X56: 0 | Y56: 0 | Z56: 0 | AA56: 0 | AB56: ='1.ข้อมูลส่วนบุคคล'!$E$32 -> 2560-05-15 | AC56: 25600515 | AD56: 00:00:00 | AE56: 19000100 | AF56: -6600415 | AG56: 0 | AH56: =IF(AG56=1,IF(AN56=AN55,0,'1.ข้อมูลส่วนบุคคล'!G$26-IF(AND(LEFT(Q56,3)<>"ไม่",AK56=0),SUMIFS(Z$7:Z$7000,AN$7:AN$7000,AN56,AK$7:AK$7000,0),0)),0) -> 0 | AI56: 0 | AJ56: 0 | AK56: 0 | AL56: ไม่ถูกต้อง
A57: ='1.ข้อมูลส่วนบุคคล'!$F$5 -> 1234567891234 | K57: =IF('1.ข้อมูลส่วนบุคคล'!C$21="เชี่ยวชาญ",IF(H57="-","",IF(H57='1.ข้อมูลส่วนบุคคล'!F$26,"เกี่ยวข้อง","ไม่เกี่ยวข้อง")),IF('1.ข้อมูลส่วนบุคคล'!C$21="เชี่ยวชาญพิเศษ",IF(H57="-","",IF(H57='1.ข้อมูลส่วนบุคคล'!F$26,"เกี่ยวข้อง","ไม่เกี่ยวข้อง")),"")) ->  | O57: สอนตามตารางสอน | Q57: ไม่ถูกต้อง | U57: 0 | V57: 0 | W57: =IF(LEFT(Q57,3)="ไม่","",IF(OR(LEFT(P57,1)="1",LEFT(P57,1)="2",LEFT(P57,1)="3",LEFT(P57,1)="4",LEFT(P57,1)="5",LEFT(P57,1)="6",LEFT(P57,1)="7"),0,IF(SUMIFS(Z$7:Z$7000,AL$7:AL$7000,B57&+D57&+E57&+"ถูกต้อง",AK$7:AK$7000,0)<'1.ข้อมูลส่วนบุคคล'!$G$26,1,0))) ->  | X57: 0 | Y57: 0 | Z57: 0 | AA57: 0 | AB57: ='1.ข้อมูลส่วนบุคคล'!$E$32 -> 2560-05-15 | AC57: 25600515 | AD57: 00:00:00 | AE57: 19000100 | AF57: -6600415 | AG57: 0 | AH57: =IF(AG57=1,IF(AN57=AN56,0,'1.ข้อมูลส่วนบุคคล'!G$26-IF(AND(LEFT(Q57,3)<>"ไม่",AK57=0),SUMIFS(Z$7:Z$7000,AN$7:AN$7000,AN57,AK$7:AK$7000,0),0)),0) -> 0 | AI57: 0 | AJ57: 0 | AK57: 0 | AL57: ไม่ถูกต้อง
A58: ='1.ข้อมูลส่วนบุคคล'!$F$5 -> 1234567891234 | K58: =IF('1.ข้อมูลส่วนบุคคล'!C$21="เชี่ยวชาญ",IF(H58="-","",IF(H58='1.ข้อมูลส่วนบุคคล'!F$26,"เกี่ยวข้อง","ไม่เกี่ยวข้อง")),IF('1.ข้อมูลส่วนบุคคล'!C$21="เชี่ยวชาญพิเศษ",IF(H58="-","",IF(H58='1.ข้อมูลส่วนบุคคล'!F$26,"เกี่ยวข้อง","ไม่เกี่ยวข้อง")),"")) ->  | O58: สอนตามตารางสอน | Q58: ไม่ถูกต้อง | U58: 0 | V58: 0 | W58: =IF(LEFT(Q58,3)="ไม่","",IF(OR(LEFT(P58,1)="1",LEFT(P58,1)="2",LEFT(P58,1)="3",LEFT(P58,1)="4",LEFT(P58,1)="5",LEFT(P58,1)="6",LEFT(P58,1)="7"),0,IF(SUMIFS(Z$7:Z$7000,AL$7:AL$7000,B58&+D58&+E58&+"ถูกต้อง",AK$7:AK$7000,0)<'1.ข้อมูลส่วนบุคคล'!$G$26,1,0))) ->  | X58: 0 | Y58: 0 | Z58: 0 | AA58: 0 | AB58: ='1.ข้อมูลส่วนบุคคล'!$E$32 -> 2560-05-15 | AC58: 25600515 | AD58: 00:00:00 | AE58: 19000100 | AF58: -6600415 | AG58: 0 | AH58: =IF(AG58=1,IF(AN58=AN57,0,'1.ข้อมูลส่วนบุคคล'!G$26-IF(AND(LEFT(Q58,3)<>"ไม่",AK58=0),SUMIFS(Z$7:Z$7000,AN$7:AN$7000,AN58,AK$7:AK$7000,0),0)),0) -> 0 | AI58: 0 | AJ58: 0 | AK58: 0 | AL58: ไม่ถูกต้อง
A59: ='1.ข้อมูลส่วนบุคคล'!$F$5 -> 1234567891234 | K59: =IF('1.ข้อมูลส่วนบุคคล'!C$21="เชี่ยวชาญ",IF(H59="-","",IF(H59='1.ข้อมูลส่วนบุคคล'!F$26,"เกี่ยวข้อง","ไม่เกี่ยวข้อง")),IF('1.ข้อมูลส่วนบุคคล'!C$21="เชี่ยวชาญพิเศษ",IF(H59="-","",IF(H59='1.ข้อมูลส่วนบุคคล'!F$26,"เกี่ยวข้อง","ไม่เกี่ยวข้อง")),"")) ->  | O59: สอนตามตารางสอน | Q59: ไม่ถูกต้อง | U59: 0 | V59: 0 | W59: =IF(LEFT(Q59,3)="ไม่","",IF(OR(LEFT(P59,1)="1",LEFT(P59,1)="2",LEFT(P59,1)="3",LEFT(P59,1)="4",LEFT(P59,1)="5",LEFT(P59,1)="6",LEFT(P59,1)="7"),0,IF(SUMIFS(Z$7:Z$7000,AL$7:AL$7000,B59&+D59&+E59&+"ถูกต้อง",AK$7:AK$7000,0)<'1.ข้อมูลส่วนบุคคล'!$G$26,1,0))) ->  | X59: 0 | Y59: 0 | Z59: 0 | AA59: 0 | AB59: ='1.ข้อมูลส่วนบุคคล'!$E$32 -> 2560-05-15 | AC59: 25600515 | AD59: 00:00:00 | AE59: 19000100 | AF59: -6600415 | AG59: 0 | AH59: =IF(AG59=1,IF(AN59=AN58,0,'1.ข้อมูลส่วนบุคคล'!G$26-IF(AND(LEFT(Q59,3)<>"ไม่",AK59=0),SUMIFS(Z$7:Z$7000,AN$7:AN$7000,AN59,AK$7:AK$7000,0),0)),0) -> 0 | AI59: 0 | AJ59: 0 | AK59: 0 | AL59: ไม่ถูกต้อง
A60: ='1.ข้อมูลส่วนบุคคล'!$F$5 -> 1234567891234 | K60: =IF('1.ข้อมูลส่วนบุคคล'!C$21="เชี่ยวชาญ",IF(H60="-","",IF(H60='1.ข้อมูลส่วนบุคคล'!F$26,"เกี่ยวข้อง","ไม่เกี่ยวข้อง")),IF('1.ข้อมูลส่วนบุคคล'!C$21="เชี่ยวชาญพิเศษ",IF(H60="-","",IF(H60='1.ข้อมูลส่วนบุคคล'!F$26,"เกี่ยวข้อง","ไม่เกี่ยวข้อง")),"")) ->  | O60: สอนตามตารางสอน | Q60: ไม่ถูกต้อง | U60: 0 | V60: 0 | W60: =IF(LEFT(Q60,3)="ไม่","",IF(OR(LEFT(P60,1)="1",LEFT(P60,1)="2",LEFT(P60,1)="3",LEFT(P60,1)="4",LEFT(P60,1)="5",LEFT(P60,1)="6",LEFT(P60,1)="7"),0,IF(SUMIFS(Z$7:Z$7000,AL$7:AL$7000,B60&+D60&+E60&+"ถูกต้อง",AK$7:AK$7000,0)<'1.ข้อมูลส่วนบุคคล'!$G$26,1,0))) ->  | X60: 0 | Y60: 0 | Z60: 0 | AA60: 0 | AB60: ='1.ข้อมูลส่วนบุคคล'!$E$32 -> 2560-05-15 | AC60: 25600515 | AD60: 00:00:00 | AE60: 19000100 | AF60: -6600415 | AG60: 0 | AH60: =IF(AG60=1,IF(AN60=AN59,0,'1.ข้อมูลส่วนบุคคล'!G$26-IF(AND(LEFT(Q60,3)<>"ไม่",AK60=0),SUMIFS(Z$7:Z$7000,AN$7:AN$7000,AN60,AK$7:AK$7000,0),0)),0) -> 0 | AI60: 0 | AJ60: 0 | AK60: 0 | AL60: ไม่ถูกต้อง
A61: ='1.ข้อมูลส่วนบุคคล'!$F$5 -> 1234567891234 | K61: =IF('1.ข้อมูลส่วนบุคคล'!C$21="เชี่ยวชาญ",IF(H61="-","",IF(H61='1.ข้อมูลส่วนบุคคล'!F$26,"เกี่ยวข้อง","ไม่เกี่ยวข้อง")),IF('1.ข้อมูลส่วนบุคคล'!C$21="เชี่ยวชาญพิเศษ",IF(H61="-","",IF(H61='1.ข้อมูลส่วนบุคคล'!F$26,"เกี่ยวข้อง","ไม่เกี่ยวข้อง")),"")) ->  | O61: สอนตามตารางสอน | Q61: ไม่ถูกต้อง | U61: 0 | V61: 0 | W61: =IF(LEFT(Q61,3)="ไม่","",IF(OR(LEFT(P61,1)="1",LEFT(P61,1)="2",LEFT(P61,1)="3",LEFT(P61,1)="4",LEFT(P61,1)="5",LEFT(P61,1)="6",LEFT(P61,1)="7"),0,IF(SUMIFS(Z$7:Z$7000,AL$7:AL$7000,B61&+D61&+E61&+"ถูกต้อง",AK$7:AK$7000,0)<'1.ข้อมูลส่วนบุคคล'!$G$26,1,0))) ->  | X61: 0 | Y61: 0 | Z61: 0 | AA61: 0 | AB61: ='1.ข้อมูลส่วนบุคคล'!$E$32 -> 2560-05-15 | AC61: 25600515 | AD61: 00:00:00 | AE61: 19000100 | AF61: -6600415 | AG61: 0 | AH61: =IF(AG61=1,IF(AN61=AN60,0,'1.ข้อมูลส่วนบุคคล'!G$26-IF(AND(LEFT(Q61,3)<>"ไม่",AK61=0),SUMIFS(Z$7:Z$7000,AN$7:AN$7000,AN61,AK$7:AK$7000,0),0)),0) -> 0 | AI61: 0 | AJ61: 0 | AK61: 0 | AL61: ไม่ถูกต้อง
A62: ='1.ข้อมูลส่วนบุคคล'!$F$5 -> 1234567891234 | K62: =IF('1.ข้อมูลส่วนบุคคล'!C$21="เชี่ยวชาญ",IF(H62="-","",IF(H62='1.ข้อมูลส่วนบุคคล'!F$26,"เกี่ยวข้อง","ไม่เกี่ยวข้อง")),IF('1.ข้อมูลส่วนบุคคล'!C$21="เชี่ยวชาญพิเศษ",IF(H62="-","",IF(H62='1.ข้อมูลส่วนบุคคล'!F$26,"เกี่ยวข้อง","ไม่เกี่ยวข้อง")),"")) ->  | O62: สอนตามตารางสอน | Q62: ไม่ถูกต้อง | U62: 0 | V62: 0 | W62: =IF(LEFT(Q62,3)="ไม่","",IF(OR(LEFT(P62,1)="1",LEFT(P62,1)="2",LEFT(P62,1)="3",LEFT(P62,1)="4",LEFT(P62,1)="5",LEFT(P62,1)="6",LEFT(P62,1)="7"),0,IF(SUMIFS(Z$7:Z$7000,AL$7:AL$7000,B62&+D62&+E62&+"ถูกต้อง",AK$7:AK$7000,0)<'1.ข้อมูลส่วนบุคคล'!$G$26,1,0))) ->  | X62: 0 | Y62: 0 | Z62: 0 | AA62: 0 | AB62: ='1.ข้อมูลส่วนบุคคล'!$E$32 -> 2560-05-15 | AC62: 25600515 | AD62: 00:00:00 | AE62: 19000100 | AF62: -6600415 | AG62: 0 | AH62: =IF(AG62=1,IF(AN62=AN61,0,'1.ข้อมูลส่วนบุคคล'!G$26-IF(AND(LEFT(Q62,3)<>"ไม่",AK62=0),SUMIFS(Z$7:Z$7000,AN$7:AN$7000,AN62,AK$7:AK$7000,0),0)),0) -> 0 | AI62: 0 | AJ62: 0 | AK62: 0 | AL62: ไม่ถูกต้อง
A63: ='1.ข้อมูลส่วนบุคคล'!$F$5 -> 1234567891234 | K63: =IF('1.ข้อมูลส่วนบุคคล'!C$21="เชี่ยวชาญ",IF(H63="-","",IF(H63='1.ข้อมูลส่วนบุคคล'!F$26,"เกี่ยวข้อง","ไม่เกี่ยวข้อง")),IF('1.ข้อมูลส่วนบุคคล'!C$21="เชี่ยวชาญพิเศษ",IF(H63="-","",IF(H63='1.ข้อมูลส่วนบุคคล'!F$26,"เกี่ยวข้อง","ไม่เกี่ยวข้อง")),"")) ->  | O63: สอนตามตารางสอน | Q63: ไม่ถูกต้อง | U63: 0 | V63: 0 | W63: =IF(LEFT(Q63,3)="ไม่","",IF(OR(LEFT(P63,1)="1",LEFT(P63,1)="2",LEFT(P63,1)="3",LEFT(P63,1)="4",LEFT(P63,1)="5",LEFT(P63,1)="6",LEFT(P63,1)="7"),0,IF(SUMIFS(Z$7:Z$7000,AL$7:AL$7000,B63&+D63&+E63&+"ถูกต้อง",AK$7:AK$7000,0)<'1.ข้อมูลส่วนบุคคล'!$G$26,1,0))) ->  | X63: 0 | Y63: 0 | Z63: 0 | AA63: 0 | AB63: ='1.ข้อมูลส่วนบุคคล'!$E$32 -> 2560-05-15 | AC63: 25600515 | AD63: 00:00:00 | AE63: 19000100 | AF63: -6600415 | AG63: 0 | AH63: =IF(AG63=1,IF(AN63=AN62,0,'1.ข้อมูลส่วนบุคคล'!G$26-IF(AND(LEFT(Q63,3)<>"ไม่",AK63=0),SUMIFS(Z$7:Z$7000,AN$7:AN$7000,AN63,AK$7:AK$7000,0),0)),0) -> 0 | AI63: 0 | AJ63: 0 | AK63: 0 | AL63: ไม่ถูกต้อง
A64: ='1.ข้อมูลส่วนบุคคล'!$F$5 -> 1234567891234 | K64: =IF('1.ข้อมูลส่วนบุคคล'!C$21="เชี่ยวชาญ",IF(H64="-","",IF(H64='1.ข้อมูลส่วนบุคคล'!F$26,"เกี่ยวข้อง","ไม่เกี่ยวข้อง")),IF('1.ข้อมูลส่วนบุคคล'!C$21="เชี่ยวชาญพิเศษ",IF(H64="-","",IF(H64='1.ข้อมูลส่วนบุคคล'!F$26,"เกี่ยวข้อง","ไม่เกี่ยวข้อง")),"")) ->  | O64: สอนตามตารางสอน | Q64: ไม่ถูกต้อง | U64: 0 | V64: 0 | W64: =IF(LEFT(Q64,3)="ไม่","",IF(OR(LEFT(P64,1)="1",LEFT(P64,1)="2",LEFT(P64,1)="3",LEFT(P64,1)="4",LEFT(P64,1)="5",LEFT(P64,1)="6",LEFT(P64,1)="7"),0,IF(SUMIFS(Z$7:Z$7000,AL$7:AL$7000,B64&+D64&+E64&+"ถูกต้อง",AK$7:AK$7000,0)<'1.ข้อมูลส่วนบุคคล'!$G$26,1,0))) ->  | X64: 0 | Y64: 0 | Z64: 0 | AA64: 0 | AB64: ='1.ข้อมูลส่วนบุคคล'!$E$32 -> 2560-05-15 | AC64: 25600515 | AD64: 00:00:00 | AE64: 19000100 | AF64: -6600415 | AG64: 0 | AH64: =IF(AG64=1,IF(AN64=AN63,0,'1.ข้อมูลส่วนบุคคล'!G$26-IF(AND(LEFT(Q64,3)<>"ไม่",AK64=0),SUMIFS(Z$7:Z$7000,AN$7:AN$7000,AN64,AK$7:AK$7000,0),0)),0) -> 0 | AI64: 0 | AJ64: 0 | AK64: 0 | AL64: ไม่ถูกต้อง
A65: ='1.ข้อมูลส่วนบุคคล'!$F$5 -> 1234567891234 | K65: =IF('1.ข้อมูลส่วนบุคคล'!C$21="เชี่ยวชาญ",IF(H65="-","",IF(H65='1.ข้อมูลส่วนบุคคล'!F$26,"เกี่ยวข้อง","ไม่เกี่ยวข้อง")),IF('1.ข้อมูลส่วนบุคคล'!C$21="เชี่ยวชาญพิเศษ",IF(H65="-","",IF(H65='1.ข้อมูลส่วนบุคคล'!F$26,"เกี่ยวข้อง","ไม่เกี่ยวข้อง")),"")) ->  | O65: สอนตามตารางสอน | Q65: ไม่ถูกต้อง | U65: 0 | V65: 0 | W65: =IF(LEFT(Q65,3)="ไม่","",IF(OR(LEFT(P65,1)="1",LEFT(P65,1)="2",LEFT(P65,1)="3",LEFT(P65,1)="4",LEFT(P65,1)="5",LEFT(P65,1)="6",LEFT(P65,1)="7"),0,IF(SUMIFS(Z$7:Z$7000,AL$7:AL$7000,B65&+D65&+E65&+"ถูกต้อง",AK$7:AK$7000,0)<'1.ข้อมูลส่วนบุคคล'!$G$26,1,0))) ->  | X65: 0 | Y65: 0 | Z65: 0 | AA65: 0 | AB65: ='1.ข้อมูลส่วนบุคคล'!$E$32 -> 2560-05-15 | AC65: 25600515 | AD65: 00:00:00 | AE65: 19000100 | AF65: -6600415 | AG65: 0 | AH65: =IF(AG65=1,IF(AN65=AN64,0,'1.ข้อมูลส่วนบุคคล'!G$26-IF(AND(LEFT(Q65,3)<>"ไม่",AK65=0),SUMIFS(Z$7:Z$7000,AN$7:AN$7000,AN65,AK$7:AK$7000,0),0)),0) -> 0 | AI65: 0 | AJ65: 0 | AK65: 0 | AL65: ไม่ถูกต้อง
A66: ='1.ข้อมูลส่วนบุคคล'!$F$5 -> 1234567891234 | K66: =IF('1.ข้อมูลส่วนบุคคล'!C$21="เชี่ยวชาญ",IF(H66="-","",IF(H66='1.ข้อมูลส่วนบุคคล'!F$26,"เกี่ยวข้อง","ไม่เกี่ยวข้อง")),IF('1.ข้อมูลส่วนบุคคล'!C$21="เชี่ยวชาญพิเศษ",IF(H66="-","",IF(H66='1.ข้อมูลส่วนบุคคล'!F$26,"เกี่ยวข้อง","ไม่เกี่ยวข้อง")),"")) ->  | O66: สอนตามตารางสอน | Q66: ไม่ถูกต้อง | U66: 0 | V66: 0 | W66: =IF(LEFT(Q66,3)="ไม่","",IF(OR(LEFT(P66,1)="1",LEFT(P66,1)="2",LEFT(P66,1)="3",LEFT(P66,1)="4",LEFT(P66,1)="5",LEFT(P66,1)="6",LEFT(P66,1)="7"),0,IF(SUMIFS(Z$7:Z$7000,AL$7:AL$7000,B66&+D66&+E66&+"ถูกต้อง",AK$7:AK$7000,0)<'1.ข้อมูลส่วนบุคคล'!$G$26,1,0))) ->  | X66: 0 | Y66: 0 | Z66: 0 | AA66: 0 | AB66: ='1.ข้อมูลส่วนบุคคล'!$E$32 -> 2560-05-15 | AC66: 25600515 | AD66: 00:00:00 | AE66: 19000100 | AF66: -6600415 | AG66: 0 | AH66: =IF(AG66=1,IF(AN66=AN65,0,'1.ข้อมูลส่วนบุคคล'!G$26-IF(AND(LEFT(Q66,3)<>"ไม่",AK66=0),SUMIFS(Z$7:Z$7000,AN$7:AN$7000,AN66,AK$7:AK$7000,0),0)),0) -> 0 | AI66: 0 | AJ66: 0 | AK66: 0 | AL66: ไม่ถูกต้อง
A67: ='1.ข้อมูลส่วนบุคคล'!$F$5 -> 1234567891234 | K67: =IF('1.ข้อมูลส่วนบุคคล'!C$21="เชี่ยวชาญ",IF(H67="-","",IF(H67='1.ข้อมูลส่วนบุคคล'!F$26,"เกี่ยวข้อง","ไม่เกี่ยวข้อง")),IF('1.ข้อมูลส่วนบุคคล'!C$21="เชี่ยวชาญพิเศษ",IF(H67="-","",IF(H67='1.ข้อมูลส่วนบุคคล'!F$26,"เกี่ยวข้อง","ไม่เกี่ยวข้อง")),"")) ->  | O67: สอนตามตารางสอน | Q67: ไม่ถูกต้อง | U67: 0 | V67: 0 | W67: =IF(LEFT(Q67,3)="ไม่","",IF(OR(LEFT(P67,1)="1",LEFT(P67,1)="2",LEFT(P67,1)="3",LEFT(P67,1)="4",LEFT(P67,1)="5",LEFT(P67,1)="6",LEFT(P67,1)="7"),0,IF(SUMIFS(Z$7:Z$7000,AL$7:AL$7000,B67&+D67&+E67&+"ถูกต้อง",AK$7:AK$7000,0)<'1.ข้อมูลส่วนบุคคล'!$G$26,1,0))) ->  | X67: 0 | Y67: 0 | Z67: 0 | AA67: 0 | AB67: ='1.ข้อมูลส่วนบุคคล'!$E$32 -> 2560-05-15 | AC67: 25600515 | AD67: 00:00:00 | AE67: 19000100 | AF67: -6600415 | AG67: 0 | AH67: =IF(AG67=1,IF(AN67=AN66,0,'1.ข้อมูลส่วนบุคคล'!G$26-IF(AND(LEFT(Q67,3)<>"ไม่",AK67=0),SUMIFS(Z$7:Z$7000,AN$7:AN$7000,AN67,AK$7:AK$7000,0),0)),0) -> 0 | AI67: 0 | AJ67: 0 | AK67: 0 | AL67: ไม่ถูกต้อง
A68: ='1.ข้อมูลส่วนบุคคล'!$F$5 -> 1234567891234 | K68: =IF('1.ข้อมูลส่วนบุคคล'!C$21="เชี่ยวชาญ",IF(H68="-","",IF(H68='1.ข้อมูลส่วนบุคคล'!F$26,"เกี่ยวข้อง","ไม่เกี่ยวข้อง")),IF('1.ข้อมูลส่วนบุคคล'!C$21="เชี่ยวชาญพิเศษ",IF(H68="-","",IF(H68='1.ข้อมูลส่วนบุคคล'!F$26,"เกี่ยวข้อง","ไม่เกี่ยวข้อง")),"")) ->  | O68: สอนตามตารางสอน | Q68: ไม่ถูกต้อง | U68: 0 | V68: 0 | W68: =IF(LEFT(Q68,3)="ไม่","",IF(OR(LEFT(P68,1)="1",LEFT(P68,1)="2",LEFT(P68,1)="3",LEFT(P68,1)="4",LEFT(P68,1)="5",LEFT(P68,1)="6",LEFT(P68,1)="7"),0,IF(SUMIFS(Z$7:Z$7000,AL$7:AL$7000,B68&+D68&+E68&+"ถูกต้อง",AK$7:AK$7000,0)<'1.ข้อมูลส่วนบุคคล'!$G$26,1,0))) ->  | X68: 0 | Y68: 0 | Z68: 0 | AA68: 0 | AB68: ='1.ข้อมูลส่วนบุคคล'!$E$32 -> 2560-05-15 | AC68: 25600515 | AD68: 00:00:00 | AE68: 19000100 | AF68: -6600415 | AG68: 0 | AH68: =IF(AG68=1,IF(AN68=AN67,0,'1.ข้อมูลส่วนบุคคล'!G$26-IF(AND(LEFT(Q68,3)<>"ไม่",AK68=0),SUMIFS(Z$7:Z$7000,AN$7:AN$7000,AN68,AK$7:AK$7000,0),0)),0) -> 0 | AI68: 0 | AJ68: 0 | AK68: 0 | AL68: ไม่ถูกต้อง
A69: ='1.ข้อมูลส่วนบุคคล'!$F$5 -> 1234567891234 | K69: =IF('1.ข้อมูลส่วนบุคคล'!C$21="เชี่ยวชาญ",IF(H69="-","",IF(H69='1.ข้อมูลส่วนบุคคล'!F$26,"เกี่ยวข้อง","ไม่เกี่ยวข้อง")),IF('1.ข้อมูลส่วนบุคคล'!C$21="เชี่ยวชาญพิเศษ",IF(H69="-","",IF(H69='1.ข้อมูลส่วนบุคคล'!F$26,"เกี่ยวข้อง","ไม่เกี่ยวข้อง")),"")) ->  | O69: สอนตามตารางสอน | Q69: ไม่ถูกต้อง | U69: 0 | V69: 0 | W69: =IF(LEFT(Q69,3)="ไม่","",IF(OR(LEFT(P69,1)="1",LEFT(P69,1)="2",LEFT(P69,1)="3",LEFT(P69,1)="4",LEFT(P69,1)="5",LEFT(P69,1)="6",LEFT(P69,1)="7"),0,IF(SUMIFS(Z$7:Z$7000,AL$7:AL$7000,B69&+D69&+E69&+"ถูกต้อง",AK$7:AK$7000,0)<'1.ข้อมูลส่วนบุคคล'!$G$26,1,0))) ->  | X69: 0 | Y69: 0 | Z69: 0 | AA69: 0 | AB69: ='1.ข้อมูลส่วนบุคคล'!$E$32 -> 2560-05-15 | AC69: 25600515 | AD69: 00:00:00 | AE69: 19000100 | AF69: -6600415 | AG69: 0 | AH69: =IF(AG69=1,IF(AN69=AN68,0,'1.ข้อมูลส่วนบุคคล'!G$26-IF(AND(LEFT(Q69,3)<>"ไม่",AK69=0),SUMIFS(Z$7:Z$7000,AN$7:AN$7000,AN69,AK$7:AK$7000,0),0)),0) -> 0 | AI69: 0 | AJ69: 0 | AK69: 0 | AL69: ไม่ถูกต้อง
A70: ='1.ข้อมูลส่วนบุคคล'!$F$5 -> 1234567891234 | K70: =IF('1.ข้อมูลส่วนบุคคล'!C$21="เชี่ยวชาญ",IF(H70="-","",IF(H70='1.ข้อมูลส่วนบุคคล'!F$26,"เกี่ยวข้อง","ไม่เกี่ยวข้อง")),IF('1.ข้อมูลส่วนบุคคล'!C$21="เชี่ยวชาญพิเศษ",IF(H70="-","",IF(H70='1.ข้อมูลส่วนบุคคล'!F$26,"เกี่ยวข้อง","ไม่เกี่ยวข้อง")),"")) ->  | O70: สอนตามตารางสอน | Q70: ไม่ถูกต้อง | U70: 0 | V70: 0 | W70: =IF(LEFT(Q70,3)="ไม่","",IF(OR(LEFT(P70,1)="1",LEFT(P70,1)="2",LEFT(P70,1)="3",LEFT(P70,1)="4",LEFT(P70,1)="5",LEFT(P70,1)="6",LEFT(P70,1)="7"),0,IF(SUMIFS(Z$7:Z$7000,AL$7:AL$7000,B70&+D70&+E70&+"ถูกต้อง",AK$7:AK$7000,0)<'1.ข้อมูลส่วนบุคคล'!$G$26,1,0))) ->  | X70: 0 | Y70: 0 | Z70: 0 | AA70: 0 | AB70: ='1.ข้อมูลส่วนบุคคล'!$E$32 -> 2560-05-15 | AC70: 25600515 | AD70: 00:00:00 | AE70: 19000100 | AF70: -6600415 | AG70: 0 | AH70: =IF(AG70=1,IF(AN70=AN69,0,'1.ข้อมูลส่วนบุคคล'!G$26-IF(AND(LEFT(Q70,3)<>"ไม่",AK70=0),SUMIFS(Z$7:Z$7000,AN$7:AN$7000,AN70,AK$7:AK$7000,0),0)),0) -> 0 | AI70: 0 | AJ70: 0 | AK70: 0 | AL70: ไม่ถูกต้อง
A71: ='1.ข้อมูลส่วนบุคคล'!$F$5 -> 1234567891234 | K71: =IF('1.ข้อมูลส่วนบุคคล'!C$21="เชี่ยวชาญ",IF(H71="-","",IF(H71='1.ข้อมูลส่วนบุคคล'!F$26,"เกี่ยวข้อง","ไม่เกี่ยวข้อง")),IF('1.ข้อมูลส่วนบุคคล'!C$21="เชี่ยวชาญพิเศษ",IF(H71="-","",IF(H71='1.ข้อมูลส่วนบุคคล'!F$26,"เกี่ยวข้อง","ไม่เกี่ยวข้อง")),"")) ->  | O71: สอนตามตารางสอน | Q71: ไม่ถูกต้อง | S71: =C71&+D71&+E71&+J71&+LEFT(I71,20) ->  | U71: =IF(LEFT(Q71,3)="ไม่",0,IF(L71="","",B71)) -> 0 | V71: =IF(K71="เกี่ยวข้อง",1,0) -> 0 | W71: =IF(LEFT(Q71,3)="ไม่","",IF(OR(LEFT(P71,1)="1",LEFT(P71,1)="2",LEFT(P71,1)="3",LEFT(P71,1)="4",LEFT(P71,1)="5",LEFT(P71,1)="6",LEFT(P71,1)="7"),0,IF(SUMIFS(Z$7:Z$7000,AL$7:AL$7000,B71&+D71&+E71&+"ถูกต้อง",AK$7:AK$7000,0)<'1.ข้อมูลส่วนบุคคล'!$G$26,1,0))) ->  | X71: =IF(Q71="ไม่ถูกต้อง",0,IF(N71="นาที",(L71*M71)/60,L71*M71)) -> 0 | Y71: 0 | Z71: 0 | AA71: 0 | AB71: ='1.ข้อมูลส่วนบุคคล'!$E$32 -> 2560-05-15 | AC71: 25600515 | AD71: =F71 -> 00:00:00 | AE71: 19000100 | AF71: -6600415 | AG71: =IF(LEFT(P71,1)="7",1,0) -> 0 | AH71: =IF(AG71=1,IF(AN71=AN70,0,'1.ข้อมูลส่วนบุคคล'!G$26-IF(AND(LEFT(Q71,3)<>"ไม่",AK71=0),SUMIFS(Z$7:Z$7000,AN$7:AN$7000,AN71,AK$7:AK$7000,0),0)),0) -> 0 | AI71: =IF(O71="สอนซ่อมเสริม",Z71,0) -> 0 | AJ71: =IF(SUMIF(AM$7:AM$7000,C71&+D71,AI$7:AI$7000)-SUMIF(AM$7:AM$7000,C71&+D71,AH$7:AH$7000)<0,1,0) -> 0 | AK71: =IF(O71="สอนซ่อมเสริม",1,0) -> 0 | AL71: =B71&+D71&+E71&+Q71 -> ไม่ถูกต้อง | AM71: =C71&+D71 ->  | AN71: =C71&+E71 -> 
A72: ='1.ข้อมูลส่วนบุคคล'!$F$5 -> 1234567891234 | B72: =IF(AF72<0,"",IF(DATEDIF(AB72,AD72,"y")+(DATEDIF(AB72,AD72,"ym")/10)<=1,1,IF(DATEDIF(AB72,AD72,"y")+(DATEDIF(AB72,AD72,"ym")/10)<=2,2,IF(DATEDIF(AB72,AD72,"y")+(DATEDIF(AB72,AD72,"ym")/10)<=3,3,IF(DATEDIF(AB72,AD72,"y")+(DATEDIF(AB72,AD72,"ym")/10)<=4,4,IF(DATEDIF(AB72,AD72,"y")+(DATEDIF(AB72,AD72,"ym")/10)<=5,5,IF(DATEDIF(AB72,AD72,"y")+(DATEDIF(AB72,AD72,"ym")/10)<=6,6,IF(DATEDIF(AB72,AD72,"y")+(DATEDIF(AB72,AD72,"ym")/10)<=7,7,IF(DATEDIF(AB72,AD72,"y")+(DATEDIF(AB72,AD72,"ym")/10)<=8,8,IF(DATEDIF(AB72,AD72,"y")+(DATEDIF(AB72,AD72,"ym")/10)<=9,9,IF(DATEDIF(AB72,AD72,"y")+(DATEDIF(AB72,AD72,"ym")/10)<=10,10,"ไม่ถูกต้อง"))))))))))) ->  | K72: =IF('1.ข้อมูลส่วนบุคคล'!C$21="เชี่ยวชาญ",IF(H72="-","",IF(H72='1.ข้อมูลส่วนบุคคล'!F$26,"เกี่ยวข้อง","ไม่เกี่ยวข้อง")),IF('1.ข้อมูลส่วนบุคคล'!C$21="เชี่ยวชาญพิเศษ",IF(H72="-","",IF(H72='1.ข้อมูลส่วนบุคคล'!F$26,"เกี่ยวข้อง","ไม่เกี่ยวข้อง")),"")) ->  | O72: สอนตามตารางสอน | Q72: ไม่ถูกต้อง | R72: =S72 ->  | U72: 0 | V72: 0 | W72: =IF(LEFT(Q72,3)="ไม่","",IF(OR(LEFT(P72,1)="1",LEFT(P72,1)="2",LEFT(P72,1)="3",LEFT(P72,1)="4",LEFT(P72,1)="5",LEFT(P72,1)="6",LEFT(P72,1)="7"),0,IF(SUMIFS(Z$7:Z$7000,AL$7:AL$7000,B72&+D72&+E72&+"ถูกต้อง",AK$7:AK$7000,0)<'1.ข้อมูลส่วนบุคคล'!$G$26,1,0))) ->  | X72: 0 | Y72: 0 | Z72: =ROUNDDOWN(X72,0)+Y72 -> 0 | AA72: =IF(ISBLANK(E72),0,IF(ISBLANK(D72),IF(AND(C72=C71,E72=E71),0,IF(AND(C72=C71,E72=(E71+1)),0,IF(AND(C72=(C71+1),E72=1,E71>=18),0,1))),IF(AND(C72=C71,D72=D71,E72=E71),0,IF(AND(C72=C71,D72=D71,E72=(E71+1)),0,IF(AND(C72=C71,D72=(D71+1),E72=1,E71>=18),0,IF(AND(C72=(C71+1),D72=1,E72=1,E71>=18),0,1)))))) -> 0 | AB72: ='1.ข้อมูลส่วนบุคคล'!$E$32 -> 2560-05-15 | AC72: =TEXT(AB72,"yyyy")&+IF(TEXT(AB72,"mm")>9,TEXT(AB72,"mm"),"0"&+TEXT(AB72,"mm"))&+IF(TEXT(AB72,"dd")>9,TEXT(AB72,"dd"),"0"&+TEXT(AB72,"dd")) -> 25600515 | AD72: 00:00:00 | AE72: =TEXT(AD72,"yyyy")&+IF(TEXT(AD72,"mm")>9,TEXT(AD72,"mm"),"0"&+TEXT(AD72,"mm"))&+IF(TEXT(AD72,"dd")>9,TEXT(AD72,"dd"),"0"&+TEXT(AD72,"dd")) -> 19000100 | AF72: =AE72-AC72 -> -6600415 | AG72: 0 | AH72: =IF(AG72=1,IF(AN72=AN71,0,'1.ข้อมูลส่วนบุคคล'!G$26-IF(AND(LEFT(Q72,3)<>"ไม่",AK72=0),SUMIFS(Z$7:Z$7000,AN$7:AN$7000,AN72,AK$7:AK$7000,0),0)),0) -> 0 | AI72: 0 | AJ72: 0 | AK72: 0 | AL72: ไม่ถูกต้อง
A73: ='1.ข้อมูลส่วนบุคคล'!$F$5 -> 1234567891234 | K73: =IF('1.ข้อมูลส่วนบุคคล'!C$21="เชี่ยวชาญ",IF(H73="-","",IF(H73='1.ข้อมูลส่วนบุคคล'!F$26,"เกี่ยวข้อง","ไม่เกี่ยวข้อง")),IF('1.ข้อมูลส่วนบุคคล'!C$21="เชี่ยวชาญพิเศษ",IF(H73="-","",IF(H73='1.ข้อมูลส่วนบุคคล'!F$26,"เกี่ยวข้อง","ไม่เกี่ยวข้อง")),"")) ->  | O73: สอนตามตารางสอน | Q73: ไม่ถูกต้อง | U73: 0 | V73: 0 | W73: =IF(LEFT(Q73,3)="ไม่","",IF(OR(LEFT(P73,1)="1",LEFT(P73,1)="2",LEFT(P73,1)="3",LEFT(P73,1)="4",LEFT(P73,1)="5",LEFT(P73,1)="6",LEFT(P73,1)="7"),0,IF(SUMIFS(Z$7:Z$7000,AL$7:AL$7000,B73&+D73&+E73&+"ถูกต้อง",AK$7:AK$7000,0)<'1.ข้อมูลส่วนบุคคล'!$G$26,1,0))) ->  | X73: 0 | Y73: =(MOD(X73,1))*60/100 -> 0 | Z73: 0 | AA73: 0 | AB73: ='1.ข้อมูลส่วนบุคคล'!$E$32 -> 2560-05-15 | AC73: 25600515 | AD73: 00:00:00 | AE73: 19000100 | AF73: -6600415 | AG73: 0 | AH73: =IF(AG73=1,IF(AN73=AN72,0,'1.ข้อมูลส่วนบุคคล'!G$26-IF(AND(LEFT(Q73,3)<>"ไม่",AK73=0),SUMIFS(Z$7:Z$7000,AN$7:AN$7000,AN73,AK$7:AK$7000,0),0)),0) -> 0 | AI73: 0 | AJ73: 0 | AK73: 0 | AL73: ไม่ถูกต้อง
A74: ='1.ข้อมูลส่วนบุคคล'!$F$5 -> 1234567891234 | K74: =IF('1.ข้อมูลส่วนบุคคล'!C$21="เชี่ยวชาญ",IF(H74="-","",IF(H74='1.ข้อมูลส่วนบุคคล'!F$26,"เกี่ยวข้อง","ไม่เกี่ยวข้อง")),IF('1.ข้อมูลส่วนบุคคล'!C$21="เชี่ยวชาญพิเศษ",IF(H74="-","",IF(H74='1.ข้อมูลส่วนบุคคล'!F$26,"เกี่ยวข้อง","ไม่เกี่ยวข้อง")),"")) ->  | O74: สอนตามตารางสอน | Q74: ไม่ถูกต้อง | U74: 0 | V74: 0 | W74: =IF(LEFT(Q74,3)="ไม่","",IF(OR(LEFT(P74,1)="1",LEFT(P74,1)="2",LEFT(P74,1)="3",LEFT(P74,1)="4",LEFT(P74,1)="5",LEFT(P74,1)="6",LEFT(P74,1)="7"),0,IF(SUMIFS(Z$7:Z$7000,AL$7:AL$7000,B74&+D74&+E74&+"ถูกต้อง",AK$7:AK$7000,0)<'1.ข้อมูลส่วนบุคคล'!$G$26,1,0))) ->  | X74: 0 | Y74: 0 | Z74: 0 | AA74: 0 | AB74: ='1.ข้อมูลส่วนบุคคล'!$E$32 -> 2560-05-15 | AC74: 25600515 | AD74: 00:00:00 | AE74: 19000100 | AF74: -6600415 | AG74: 0 | AH74: =IF(AG74=1,IF(AN74=AN73,0,'1.ข้อมูลส่วนบุคคล'!G$26-IF(AND(LEFT(Q74,3)<>"ไม่",AK74=0),SUMIFS(Z$7:Z$7000,AN$7:AN$7000,AN74,AK$7:AK$7000,0),0)),0) -> 0 | AI74: 0 | AJ74: 0 | AK74: 0 | AL74: ไม่ถูกต้อง
A75: ='1.ข้อมูลส่วนบุคคล'!$F$5 -> 1234567891234 | K75: =IF('1.ข้อมูลส่วนบุคคล'!C$21="เชี่ยวชาญ",IF(H75="-","",IF(H75='1.ข้อมูลส่วนบุคคล'!F$26,"เกี่ยวข้อง","ไม่เกี่ยวข้อง")),IF('1.ข้อมูลส่วนบุคคล'!C$21="เชี่ยวชาญพิเศษ",IF(H75="-","",IF(H75='1.ข้อมูลส่วนบุคคล'!F$26,"เกี่ยวข้อง","ไม่เกี่ยวข้อง")),"")) ->  | O75: สอนตามตารางสอน | Q75: ไม่ถูกต้อง | U75: 0 | V75: 0 | W75: =IF(LEFT(Q75,3)="ไม่","",IF(OR(LEFT(P75,1)="1",LEFT(P75,1)="2",LEFT(P75,1)="3",LEFT(P75,1)="4",LEFT(P75,1)="5",LEFT(P75,1)="6",LEFT(P75,1)="7"),0,IF(SUMIFS(Z$7:Z$7000,AL$7:AL$7000,B75&+D75&+E75&+"ถูกต้อง",AK$7:AK$7000,0)<'1.ข้อมูลส่วนบุคคล'!$G$26,1,0))) ->  | X75: 0 | Y75: 0 | Z75: 0 | AA75: 0 | AB75: ='1.ข้อมูลส่วนบุคคล'!$E$32 -> 2560-05-15 | AC75: 25600515 | AD75: 00:00:00 | AE75: 19000100 | AF75: -6600415 | AG75: 0 | AH75: =IF(AG75=1,IF(AN75=AN74,0,'1.ข้อมูลส่วนบุคคล'!G$26-IF(AND(LEFT(Q75,3)<>"ไม่",AK75=0),SUMIFS(Z$7:Z$7000,AN$7:AN$7000,AN75,AK$7:AK$7000,0),0)),0) -> 0 | AI75: 0 | AJ75: 0 | AK75: 0 | AL75: ไม่ถูกต้อง
A76: ='1.ข้อมูลส่วนบุคคล'!$F$5 -> 1234567891234 | K76: =IF('1.ข้อมูลส่วนบุคคล'!C$21="เชี่ยวชาญ",IF(H76="-","",IF(H76='1.ข้อมูลส่วนบุคคล'!F$26,"เกี่ยวข้อง","ไม่เกี่ยวข้อง")),IF('1.ข้อมูลส่วนบุคคล'!C$21="เชี่ยวชาญพิเศษ",IF(H76="-","",IF(H76='1.ข้อมูลส่วนบุคคล'!F$26,"เกี่ยวข้อง","ไม่เกี่ยวข้อง")),"")) ->  | O76: สอนตามตารางสอน | Q76: ไม่ถูกต้อง | U76: 0 | V76: 0 | W76: =IF(LEFT(Q76,3)="ไม่","",IF(OR(LEFT(P76,1)="1",LEFT(P76,1)="2",LEFT(P76,1)="3",LEFT(P76,1)="4",LEFT(P76,1)="5",LEFT(P76,1)="6",LEFT(P76,1)="7"),0,IF(SUMIFS(Z$7:Z$7000,AL$7:AL$7000,B76&+D76&+E76&+"ถูกต้อง",AK$7:AK$7000,0)<'1.ข้อมูลส่วนบุคคล'!$G$26,1,0))) ->  | X76: 0 | Y76: 0 | Z76: 0 | AA76: 0 | AB76: ='1.ข้อมูลส่วนบุคคล'!$E$32 -> 2560-05-15 | AC76: 25600515 | AD76: 00:00:00 | AE76: 19000100 | AF76: -6600415 | AG76: 0 | AH76: =IF(AG76=1,IF(AN76=AN75,0,'1.ข้อมูลส่วนบุคคล'!G$26-IF(AND(LEFT(Q76,3)<>"ไม่",AK76=0),SUMIFS(Z$7:Z$7000,AN$7:AN$7000,AN76,AK$7:AK$7000,0),0)),0) -> 0 | AI76: 0 | AJ76: 0 | AK76: 0 | AL76: ไม่ถูกต้อง
A77: ='1.ข้อมูลส่วนบุคคล'!$F$5 -> 1234567891234 | K77: =IF('1.ข้อมูลส่วนบุคคล'!C$21="เชี่ยวชาญ",IF(H77="-","",IF(H77='1.ข้อมูลส่วนบุคคล'!F$26,"เกี่ยวข้อง","ไม่เกี่ยวข้อง")),IF('1.ข้อมูลส่วนบุคคล'!C$21="เชี่ยวชาญพิเศษ",IF(H77="-","",IF(H77='1.ข้อมูลส่วนบุคคล'!F$26,"เกี่ยวข้อง","ไม่เกี่ยวข้อง")),"")) ->  | O77: สอนตามตารางสอน | Q77: ไม่ถูกต้อง | U77: 0 | V77: 0 | W77: =IF(LEFT(Q77,3)="ไม่","",IF(OR(LEFT(P77,1)="1",LEFT(P77,1)="2",LEFT(P77,1)="3",LEFT(P77,1)="4",LEFT(P77,1)="5",LEFT(P77,1)="6",LEFT(P77,1)="7"),0,IF(SUMIFS(Z$7:Z$7000,AL$7:AL$7000,B77&+D77&+E77&+"ถูกต้อง",AK$7:AK$7000,0)<'1.ข้อมูลส่วนบุคคล'!$G$26,1,0))) ->  | X77: 0 | Y77: 0 | Z77: 0 | AA77: 0 | AB77: ='1.ข้อมูลส่วนบุคคล'!$E$32 -> 2560-05-15 | AC77: 25600515 | AD77: 00:00:00 | AE77: 19000100 | AF77: -6600415 | AG77: 0 | AH77: =IF(AG77=1,IF(AN77=AN76,0,'1.ข้อมูลส่วนบุคคล'!G$26-IF(AND(LEFT(Q77,3)<>"ไม่",AK77=0),SUMIFS(Z$7:Z$7000,AN$7:AN$7000,AN77,AK$7:AK$7000,0),0)),0) -> 0 | AI77: 0 | AJ77: 0 | AK77: 0 | AL77: ไม่ถูกต้อง
A78: ='1.ข้อมูลส่วนบุคคล'!$F$5 -> 1234567891234 | K78: =IF('1.ข้อมูลส่วนบุคคล'!C$21="เชี่ยวชาญ",IF(H78="-","",IF(H78='1.ข้อมูลส่วนบุคคล'!F$26,"เกี่ยวข้อง","ไม่เกี่ยวข้อง")),IF('1.ข้อมูลส่วนบุคคล'!C$21="เชี่ยวชาญพิเศษ",IF(H78="-","",IF(H78='1.ข้อมูลส่วนบุคคล'!F$26,"เกี่ยวข้อง","ไม่เกี่ยวข้อง")),"")) ->  | O78: สอนตามตารางสอน | Q78: ไม่ถูกต้อง | U78: 0 | V78: 0 | W78: =IF(LEFT(Q78,3)="ไม่","",IF(OR(LEFT(P78,1)="1",LEFT(P78,1)="2",LEFT(P78,1)="3",LEFT(P78,1)="4",LEFT(P78,1)="5",LEFT(P78,1)="6",LEFT(P78,1)="7"),0,IF(SUMIFS(Z$7:Z$7000,AL$7:AL$7000,B78&+D78&+E78&+"ถูกต้อง",AK$7:AK$7000,0)<'1.ข้อมูลส่วนบุคคล'!$G$26,1,0))) ->  | X78: 0 | Y78: 0 | Z78: 0 | AA78: 0 | AB78: ='1.ข้อมูลส่วนบุคคล'!$E$32 -> 2560-05-15 | AC78: 25600515 | AD78: 00:00:00 | AE78: 19000100 | AF78: -6600415 | AG78: 0 | AH78: =IF(AG78=1,IF(AN78=AN77,0,'1.ข้อมูลส่วนบุคคล'!G$26-IF(AND(LEFT(Q78,3)<>"ไม่",AK78=0),SUMIFS(Z$7:Z$7000,AN$7:AN$7000,AN78,AK$7:AK$7000,0),0)),0) -> 0 | AI78: 0 | AJ78: 0 | AK78: 0 | AL78: ไม่ถูกต้อง
A79: ='1.ข้อมูลส่วนบุคคล'!$F$5 -> 1234567891234 | K79: =IF('1.ข้อมูลส่วนบุคคล'!C$21="เชี่ยวชาญ",IF(H79="-","",IF(H79='1.ข้อมูลส่วนบุคคล'!F$26,"เกี่ยวข้อง","ไม่เกี่ยวข้อง")),IF('1.ข้อมูลส่วนบุคคล'!C$21="เชี่ยวชาญพิเศษ",IF(H79="-","",IF(H79='1.ข้อมูลส่วนบุคคล'!F$26,"เกี่ยวข้อง","ไม่เกี่ยวข้อง")),"")) ->  | O79: สอนตามตารางสอน | Q79: ไม่ถูกต้อง | U79: 0 | V79: 0 | W79: =IF(LEFT(Q79,3)="ไม่","",IF(OR(LEFT(P79,1)="1",LEFT(P79,1)="2",LEFT(P79,1)="3",LEFT(P79,1)="4",LEFT(P79,1)="5",LEFT(P79,1)="6",LEFT(P79,1)="7"),0,IF(SUMIFS(Z$7:Z$7000,AL$7:AL$7000,B79&+D79&+E79&+"ถูกต้อง",AK$7:AK$7000,0)<'1.ข้อมูลส่วนบุคคล'!$G$26,1,0))) ->  | X79: 0 | Y79: 0 | Z79: 0 | AA79: 0 | AB79: ='1.ข้อมูลส่วนบุคคล'!$E$32 -> 2560-05-15 | AC79: 25600515 | AD79: 00:00:00 | AE79: 19000100 | AF79: -6600415 | AG79: 0 | AH79: =IF(AG79=1,IF(AN79=AN78,0,'1.ข้อมูลส่วนบุคคล'!G$26-IF(AND(LEFT(Q79,3)<>"ไม่",AK79=0),SUMIFS(Z$7:Z$7000,AN$7:AN$7000,AN79,AK$7:AK$7000,0),0)),0) -> 0 | AI79: 0 | AJ79: 0 | AK79: 0 | AL79: ไม่ถูกต้อง
A80: ='1.ข้อมูลส่วนบุคคล'!$F$5 -> 1234567891234 | K80: =IF('1.ข้อมูลส่วนบุคคล'!C$21="เชี่ยวชาญ",IF(H80="-","",IF(H80='1.ข้อมูลส่วนบุคคล'!F$26,"เกี่ยวข้อง","ไม่เกี่ยวข้อง")),IF('1.ข้อมูลส่วนบุคคล'!C$21="เชี่ยวชาญพิเศษ",IF(H80="-","",IF(H80='1.ข้อมูลส่วนบุคคล'!F$26,"เกี่ยวข้อง","ไม่เกี่ยวข้อง")),"")) ->  | O80: สอนตามตารางสอน | Q80: ไม่ถูกต้อง | U80: 0 | V80: 0 | W80: =IF(LEFT(Q80,3)="ไม่","",IF(OR(LEFT(P80,1)="1",LEFT(P80,1)="2",LEFT(P80,1)="3",LEFT(P80,1)="4",LEFT(P80,1)="5",LEFT(P80,1)="6",LEFT(P80,1)="7"),0,IF(SUMIFS(Z$7:Z$7000,AL$7:AL$7000,B80&+D80&+E80&+"ถูกต้อง",AK$7:AK$7000,0)<'1.ข้อมูลส่วนบุคคล'!$G$26,1,0))) ->  | X80: 0 | Y80: 0 | Z80: 0 | AA80: 0 | AB80: ='1.ข้อมูลส่วนบุคคล'!$E$32 -> 2560-05-15 | AC80: 25600515 | AD80: 00:00:00 | AE80: 19000100 | AF80: -6600415 | AG80: 0 | AH80: =IF(AG80=1,IF(AN80=AN79,0,'1.ข้อมูลส่วนบุคคล'!G$26-IF(AND(LEFT(Q80,3)<>"ไม่",AK80=0),SUMIFS(Z$7:Z$7000,AN$7:AN$7000,AN80,AK$7:AK$7000,0),0)),0) -> 0 | AI80: 0 | AJ80: 0 | AK80: 0 | AL80: ไม่ถูกต้อง
A81: ='1.ข้อมูลส่วนบุคคล'!$F$5 -> 1234567891234 | K81: =IF('1.ข้อมูลส่วนบุคคล'!C$21="เชี่ยวชาญ",IF(H81="-","",IF(H81='1.ข้อมูลส่วนบุคคล'!F$26,"เกี่ยวข้อง","ไม่เกี่ยวข้อง")),IF('1.ข้อมูลส่วนบุคคล'!C$21="เชี่ยวชาญพิเศษ",IF(H81="-","",IF(H81='1.ข้อมูลส่วนบุคคล'!F$26,"เกี่ยวข้อง","ไม่เกี่ยวข้อง")),"")) ->  | O81: สอนตามตารางสอน | Q81: ไม่ถูกต้อง | U81: 0 | V81: 0 | W81: =IF(LEFT(Q81,3)="ไม่","",IF(OR(LEFT(P81,1)="1",LEFT(P81,1)="2",LEFT(P81,1)="3",LEFT(P81,1)="4",LEFT(P81,1)="5",LEFT(P81,1)="6",LEFT(P81,1)="7"),0,IF(SUMIFS(Z$7:Z$7000,AL$7:AL$7000,B81&+D81&+E81&+"ถูกต้อง",AK$7:AK$7000,0)<'1.ข้อมูลส่วนบุคคล'!$G$26,1,0))) ->  | X81: 0 | Y81: 0 | Z81: 0 | AA81: 0 | AB81: ='1.ข้อมูลส่วนบุคคล'!$E$32 -> 2560-05-15 | AC81: 25600515 | AD81: 00:00:00 | AE81: 19000100 | AF81: -6600415 | AG81: 0 | AH81: =IF(AG81=1,IF(AN81=AN80,0,'1.ข้อมูลส่วนบุคคล'!G$26-IF(AND(LEFT(Q81,3)<>"ไม่",AK81=0),SUMIFS(Z$7:Z$7000,AN$7:AN$7000,AN81,AK$7:AK$7000,0),0)),0) -> 0 | AI81: 0 | AJ81: 0 | AK81: 0 | AL81: ไม่ถูกต้อง
A82: ='1.ข้อมูลส่วนบุคคล'!$F$5 -> 1234567891234 | K82: =IF('1.ข้อมูลส่วนบุคคล'!C$21="เชี่ยวชาญ",IF(H82="-","",IF(H82='1.ข้อมูลส่วนบุคคล'!F$26,"เกี่ยวข้อง","ไม่เกี่ยวข้อง")),IF('1.ข้อมูลส่วนบุคคล'!C$21="เชี่ยวชาญพิเศษ",IF(H82="-","",IF(H82='1.ข้อมูลส่วนบุคคล'!F$26,"เกี่ยวข้อง","ไม่เกี่ยวข้อง")),"")) ->  | O82: สอนตามตารางสอน | Q82: ไม่ถูกต้อง | U82: 0 | V82: 0 | W82: =IF(LEFT(Q82,3)="ไม่","",IF(OR(LEFT(P82,1)="1",LEFT(P82,1)="2",LEFT(P82,1)="3",LEFT(P82,1)="4",LEFT(P82,1)="5",LEFT(P82,1)="6",LEFT(P82,1)="7"),0,IF(SUMIFS(Z$7:Z$7000,AL$7:AL$7000,B82&+D82&+E82&+"ถูกต้อง",AK$7:AK$7000,0)<'1.ข้อมูลส่วนบุคคล'!$G$26,1,0))) ->  | X82: 0 | Y82: 0 | Z82: 0 | AA82: 0 | AB82: ='1.ข้อมูลส่วนบุคคล'!$E$32 -> 2560-05-15 | AC82: 25600515 | AD82: 00:00:00 | AE82: 19000100 | AF82: -6600415 | AG82: 0 | AH82: =IF(AG82=1,IF(AN82=AN81,0,'1.ข้อมูลส่วนบุคคล'!G$26-IF(AND(LEFT(Q82,3)<>"ไม่",AK82=0),SUMIFS(Z$7:Z$7000,AN$7:AN$7000,AN82,AK$7:AK$7000,0),0)),0) -> 0 | AI82: 0 | AJ82: 0 | AK82: 0 | AL82: ไม่ถูกต้อง
A83: ='1.ข้อมูลส่วนบุคคล'!$F$5 -> 1234567891234 | K83: =IF('1.ข้อมูลส่วนบุคคล'!C$21="เชี่ยวชาญ",IF(H83="-","",IF(H83='1.ข้อมูลส่วนบุคคล'!F$26,"เกี่ยวข้อง","ไม่เกี่ยวข้อง")),IF('1.ข้อมูลส่วนบุคคล'!C$21="เชี่ยวชาญพิเศษ",IF(H83="-","",IF(H83='1.ข้อมูลส่วนบุคคล'!F$26,"เกี่ยวข้อง","ไม่เกี่ยวข้อง")),"")) ->  | O83: สอนตามตารางสอน | Q83: ไม่ถูกต้อง | U83: 0 | V83: 0 | W83: =IF(LEFT(Q83,3)="ไม่","",IF(OR(LEFT(P83,1)="1",LEFT(P83,1)="2",LEFT(P83,1)="3",LEFT(P83,1)="4",LEFT(P83,1)="5",LEFT(P83,1)="6",LEFT(P83,1)="7"),0,IF(SUMIFS(Z$7:Z$7000,AL$7:AL$7000,B83&+D83&+E83&+"ถูกต้อง",AK$7:AK$7000,0)<'1.ข้อมูลส่วนบุคคล'!$G$26,1,0))) ->  | X83: 0 | Y83: 0 | Z83: 0 | AA83: 0 | AB83: ='1.ข้อมูลส่วนบุคคล'!$E$32 -> 2560-05-15 | AC83: 25600515 | AD83: 00:00:00 | AE83: 19000100 | AF83: -6600415 | AG83: 0 | AH83: =IF(AG83=1,IF(AN83=AN82,0,'1.ข้อมูลส่วนบุคคล'!G$26-IF(AND(LEFT(Q83,3)<>"ไม่",AK83=0),SUMIFS(Z$7:Z$7000,AN$7:AN$7000,AN83,AK$7:AK$7000,0),0)),0) -> 0 | AI83: 0 | AJ83: 0 | AK83: 0 | AL83: ไม่ถูกต้อง
A84: ='1.ข้อมูลส่วนบุคคล'!$F$5 -> 1234567891234 | K84: =IF('1.ข้อมูลส่วนบุคคล'!C$21="เชี่ยวชาญ",IF(H84="-","",IF(H84='1.ข้อมูลส่วนบุคคล'!F$26,"เกี่ยวข้อง","ไม่เกี่ยวข้อง")),IF('1.ข้อมูลส่วนบุคคล'!C$21="เชี่ยวชาญพิเศษ",IF(H84="-","",IF(H84='1.ข้อมูลส่วนบุคคล'!F$26,"เกี่ยวข้อง","ไม่เกี่ยวข้อง")),"")) ->  | O84: สอนตามตารางสอน | Q84: ไม่ถูกต้อง | U84: 0 | V84: 0 | W84: =IF(LEFT(Q84,3)="ไม่","",IF(OR(LEFT(P84,1)="1",LEFT(P84,1)="2",LEFT(P84,1)="3",LEFT(P84,1)="4",LEFT(P84,1)="5",LEFT(P84,1)="6",LEFT(P84,1)="7"),0,IF(SUMIFS(Z$7:Z$7000,AL$7:AL$7000,B84&+D84&+E84&+"ถูกต้อง",AK$7:AK$7000,0)<'1.ข้อมูลส่วนบุคคล'!$G$26,1,0))) ->  | X84: 0 | Y84: 0 | Z84: 0 | AA84: 0 | AB84: ='1.ข้อมูลส่วนบุคคล'!$E$32 -> 2560-05-15 | AC84: 25600515 | AD84: 00:00:00 | AE84: 19000100 | AF84: -6600415 | AG84: 0 | AH84: =IF(AG84=1,IF(AN84=AN83,0,'1.ข้อมูลส่วนบุคคล'!G$26-IF(AND(LEFT(Q84,3)<>"ไม่",AK84=0),SUMIFS(Z$7:Z$7000,AN$7:AN$7000,AN84,AK$7:AK$7000,0),0)),0) -> 0 | AI84: 0 | AJ84: 0 | AK84: 0 | AL84: ไม่ถูกต้อง
A85: ='1.ข้อมูลส่วนบุคคล'!$F$5 -> 1234567891234 | K85: =IF('1.ข้อมูลส่วนบุคคล'!C$21="เชี่ยวชาญ",IF(H85="-","",IF(H85='1.ข้อมูลส่วนบุคคล'!F$26,"เกี่ยวข้อง","ไม่เกี่ยวข้อง")),IF('1.ข้อมูลส่วนบุคคล'!C$21="เชี่ยวชาญพิเศษ",IF(H85="-","",IF(H85='1.ข้อมูลส่วนบุคคล'!F$26,"เกี่ยวข้อง","ไม่เกี่ยวข้อง")),"")) ->  | O85: สอนตามตารางสอน | Q85: ไม่ถูกต้อง | U85: 0 | V85: 0 | W85: =IF(LEFT(Q85,3)="ไม่","",IF(OR(LEFT(P85,1)="1",LEFT(P85,1)="2",LEFT(P85,1)="3",LEFT(P85,1)="4",LEFT(P85,1)="5",LEFT(P85,1)="6",LEFT(P85,1)="7"),0,IF(SUMIFS(Z$7:Z$7000,AL$7:AL$7000,B85&+D85&+E85&+"ถูกต้อง",AK$7:AK$7000,0)<'1.ข้อมูลส่วนบุคคล'!$G$26,1,0))) ->  | X85: 0 | Y85: 0 | Z85: 0 | AA85: 0 | AB85: ='1.ข้อมูลส่วนบุคคล'!$E$32 -> 2560-05-15 | AC85: 25600515 | AD85: 00:00:00 | AE85: 19000100 | AF85: -6600415 | AG85: 0 | AH85: =IF(AG85=1,IF(AN85=AN84,0,'1.ข้อมูลส่วนบุคคล'!G$26-IF(AND(LEFT(Q85,3)<>"ไม่",AK85=0),SUMIFS(Z$7:Z$7000,AN$7:AN$7000,AN85,AK$7:AK$7000,0),0)),0) -> 0 | AI85: 0 | AJ85: 0 | AK85: 0 | AL85: ไม่ถูกต้อง
A86: ='1.ข้อมูลส่วนบุคคล'!$F$5 -> 1234567891234 | K86: =IF('1.ข้อมูลส่วนบุคคล'!C$21="เชี่ยวชาญ",IF(H86="-","",IF(H86='1.ข้อมูลส่วนบุคคล'!F$26,"เกี่ยวข้อง","ไม่เกี่ยวข้อง")),IF('1.ข้อมูลส่วนบุคคล'!C$21="เชี่ยวชาญพิเศษ",IF(H86="-","",IF(H86='1.ข้อมูลส่วนบุคคล'!F$26,"เกี่ยวข้อง","ไม่เกี่ยวข้อง")),"")) ->  | O86: สอนตามตารางสอน | Q86: ไม่ถูกต้อง | U86: 0 | V86: 0 | W86: =IF(LEFT(Q86,3)="ไม่","",IF(OR(LEFT(P86,1)="1",LEFT(P86,1)="2",LEFT(P86,1)="3",LEFT(P86,1)="4",LEFT(P86,1)="5",LEFT(P86,1)="6",LEFT(P86,1)="7"),0,IF(SUMIFS(Z$7:Z$7000,AL$7:AL$7000,B86&+D86&+E86&+"ถูกต้อง",AK$7:AK$7000,0)<'1.ข้อมูลส่วนบุคคล'!$G$26,1,0))) ->  | X86: 0 | Y86: 0 | Z86: 0 | AA86: 0 | AB86: ='1.ข้อมูลส่วนบุคคล'!$E$32 -> 2560-05-15 | AC86: 25600515 | AD86: 00:00:00 | AE86: 19000100 | AF86: -6600415 | AG86: 0 | AH86: =IF(AG86=1,IF(AN86=AN85,0,'1.ข้อมูลส่วนบุคคล'!G$26-IF(AND(LEFT(Q86,3)<>"ไม่",AK86=0),SUMIFS(Z$7:Z$7000,AN$7:AN$7000,AN86,AK$7:AK$7000,0),0)),0) -> 0 | AI86: 0 | AJ86: 0 | AK86: 0 | AL86: ไม่ถูกต้อง
A87: ='1.ข้อมูลส่วนบุคคล'!$F$5 -> 1234567891234 | K87: =IF('1.ข้อมูลส่วนบุคคล'!C$21="เชี่ยวชาญ",IF(H87="-","",IF(H87='1.ข้อมูลส่วนบุคคล'!F$26,"เกี่ยวข้อง","ไม่เกี่ยวข้อง")),IF('1.ข้อมูลส่วนบุคคล'!C$21="เชี่ยวชาญพิเศษ",IF(H87="-","",IF(H87='1.ข้อมูลส่วนบุคคล'!F$26,"เกี่ยวข้อง","ไม่เกี่ยวข้อง")),"")) ->  | O87: สอนตามตารางสอน | Q87: ไม่ถูกต้อง | U87: 0 | V87: 0 | W87: =IF(LEFT(Q87,3)="ไม่","",IF(OR(LEFT(P87,1)="1",LEFT(P87,1)="2",LEFT(P87,1)="3",LEFT(P87,1)="4",LEFT(P87,1)="5",LEFT(P87,1)="6",LEFT(P87,1)="7"),0,IF(SUMIFS(Z$7:Z$7000,AL$7:AL$7000,B87&+D87&+E87&+"ถูกต้อง",AK$7:AK$7000,0)<'1.ข้อมูลส่วนบุคคล'!$G$26,1,0))) ->  | X87: 0 | Y87: 0 | Z87: 0 | AA87: 0 | AB87: ='1.ข้อมูลส่วนบุคคล'!$E$32 -> 2560-05-15 | AC87: 25600515 | AD87: 00:00:00 | AE87: 19000100 | AF87: -6600415 | AG87: 0 | AH87: =IF(AG87=1,IF(AN87=AN86,0,'1.ข้อมูลส่วนบุคคล'!G$26-IF(AND(LEFT(Q87,3)<>"ไม่",AK87=0),SUMIFS(Z$7:Z$7000,AN$7:AN$7000,AN87,AK$7:AK$7000,0),0)),0) -> 0 | AI87: 0 | AJ87: 0 | AK87: 0 | AL87: ไม่ถูกต้อง
A88: ='1.ข้อมูลส่วนบุคคล'!$F$5 -> 1234567891234 | K88: =IF('1.ข้อมูลส่วนบุคคล'!C$21="เชี่ยวชาญ",IF(H88="-","",IF(H88='1.ข้อมูลส่วนบุคคล'!F$26,"เกี่ยวข้อง","ไม่เกี่ยวข้อง")),IF('1.ข้อมูลส่วนบุคคล'!C$21="เชี่ยวชาญพิเศษ",IF(H88="-","",IF(H88='1.ข้อมูลส่วนบุคคล'!F$26,"เกี่ยวข้อง","ไม่เกี่ยวข้อง")),"")) ->  | O88: สอนตามตารางสอน | Q88: ไม่ถูกต้อง | U88: 0 | V88: 0 | W88: =IF(LEFT(Q88,3)="ไม่","",IF(OR(LEFT(P88,1)="1",LEFT(P88,1)="2",LEFT(P88,1)="3",LEFT(P88,1)="4",LEFT(P88,1)="5",LEFT(P88,1)="6",LEFT(P88,1)="7"),0,IF(SUMIFS(Z$7:Z$7000,AL$7:AL$7000,B88&+D88&+E88&+"ถูกต้อง",AK$7:AK$7000,0)<'1.ข้อมูลส่วนบุคคล'!$G$26,1,0))) ->  | X88: 0 | Y88: 0 | Z88: 0 | AA88: 0 | AB88: ='1.ข้อมูลส่วนบุคคล'!$E$32 -> 2560-05-15 | AC88: 25600515 | AD88: 00:00:00 | AE88: 19000100 | AF88: -6600415 | AG88: 0 | AH88: =IF(AG88=1,IF(AN88=AN87,0,'1.ข้อมูลส่วนบุคคล'!G$26-IF(AND(LEFT(Q88,3)<>"ไม่",AK88=0),SUMIFS(Z$7:Z$7000,AN$7:AN$7000,AN88,AK$7:AK$7000,0),0)),0) -> 0 | AI88: 0 | AJ88: 0 | AK88: 0 | AL88: ไม่ถูกต้อง
A89: ='1.ข้อมูลส่วนบุคคล'!$F$5 -> 1234567891234 | K89: =IF('1.ข้อมูลส่วนบุคคล'!C$21="เชี่ยวชาญ",IF(H89="-","",IF(H89='1.ข้อมูลส่วนบุคคล'!F$26,"เกี่ยวข้อง","ไม่เกี่ยวข้อง")),IF('1.ข้อมูลส่วนบุคคล'!C$21="เชี่ยวชาญพิเศษ",IF(H89="-","",IF(H89='1.ข้อมูลส่วนบุคคล'!F$26,"เกี่ยวข้อง","ไม่เกี่ยวข้อง")),"")) ->  | O89: สอนตามตารางสอน | Q89: ไม่ถูกต้อง | U89: 0 | V89: 0 | W89: =IF(LEFT(Q89,3)="ไม่","",IF(OR(LEFT(P89,1)="1",LEFT(P89,1)="2",LEFT(P89,1)="3",LEFT(P89,1)="4",LEFT(P89,1)="5",LEFT(P89,1)="6",LEFT(P89,1)="7"),0,IF(SUMIFS(Z$7:Z$7000,AL$7:AL$7000,B89&+D89&+E89&+"ถูกต้อง",AK$7:AK$7000,0)<'1.ข้อมูลส่วนบุคคล'!$G$26,1,0))) ->  | X89: 0 | Y89: 0 | Z89: 0 | AA89: 0 | AB89: ='1.ข้อมูลส่วนบุคคล'!$E$32 -> 2560-05-15 | AC89: 25600515 | AD89: 00:00:00 | AE89: 19000100 | AF89: -6600415 | AG89: 0 | AH89: =IF(AG89=1,IF(AN89=AN88,0,'1.ข้อมูลส่วนบุคคล'!G$26-IF(AND(LEFT(Q89,3)<>"ไม่",AK89=0),SUMIFS(Z$7:Z$7000,AN$7:AN$7000,AN89,AK$7:AK$7000,0),0)),0) -> 0 | AI89: 0 | AJ89: 0 | AK89: 0 | AL89: ไม่ถูกต้อง
A90: ='1.ข้อมูลส่วนบุคคล'!$F$5 -> 1234567891234 | K90: =IF('1.ข้อมูลส่วนบุคคล'!C$21="เชี่ยวชาญ",IF(H90="-","",IF(H90='1.ข้อมูลส่วนบุคคล'!F$26,"เกี่ยวข้อง","ไม่เกี่ยวข้อง")),IF('1.ข้อมูลส่วนบุคคล'!C$21="เชี่ยวชาญพิเศษ",IF(H90="-","",IF(H90='1.ข้อมูลส่วนบุคคล'!F$26,"เกี่ยวข้อง","ไม่เกี่ยวข้อง")),"")) ->  | O90: สอนตามตารางสอน | Q90: ไม่ถูกต้อง | U90: 0 | V90: 0 | W90: =IF(LEFT(Q90,3)="ไม่","",IF(OR(LEFT(P90,1)="1",LEFT(P90,1)="2",LEFT(P90,1)="3",LEFT(P90,1)="4",LEFT(P90,1)="5",LEFT(P90,1)="6",LEFT(P90,1)="7"),0,IF(SUMIFS(Z$7:Z$7000,AL$7:AL$7000,B90&+D90&+E90&+"ถูกต้อง",AK$7:AK$7000,0)<'1.ข้อมูลส่วนบุคคล'!$G$26,1,0))) ->  | X90: 0 | Y90: 0 | Z90: 0 | AA90: 0 | AB90: ='1.ข้อมูลส่วนบุคคล'!$E$32 -> 2560-05-15 | AC90: 25600515 | AD90: 00:00:00 | AE90: 19000100 | AF90: -6600415 | AG90: 0 | AH90: =IF(AG90=1,IF(AN90=AN89,0,'1.ข้อมูลส่วนบุคคล'!G$26-IF(AND(LEFT(Q90,3)<>"ไม่",AK90=0),SUMIFS(Z$7:Z$7000,AN$7:AN$7000,AN90,AK$7:AK$7000,0),0)),0) -> 0 | AI90: 0 | AJ90: 0 | AK90: 0 | AL90: ไม่ถูกต้อง
A91: ='1.ข้อมูลส่วนบุคคล'!$F$5 -> 1234567891234 | K91: =IF('1.ข้อมูลส่วนบุคคล'!C$21="เชี่ยวชาญ",IF(H91="-","",IF(H91='1.ข้อมูลส่วนบุคคล'!F$26,"เกี่ยวข้อง","ไม่เกี่ยวข้อง")),IF('1.ข้อมูลส่วนบุคคล'!C$21="เชี่ยวชาญพิเศษ",IF(H91="-","",IF(H91='1.ข้อมูลส่วนบุคคล'!F$26,"เกี่ยวข้อง","ไม่เกี่ยวข้อง")),"")) ->  | O91: สอนตามตารางสอน | Q91: ไม่ถูกต้อง | U91: 0 | V91: 0 | W91: =IF(LEFT(Q91,3)="ไม่","",IF(OR(LEFT(P91,1)="1",LEFT(P91,1)="2",LEFT(P91,1)="3",LEFT(P91,1)="4",LEFT(P91,1)="5",LEFT(P91,1)="6",LEFT(P91,1)="7"),0,IF(SUMIFS(Z$7:Z$7000,AL$7:AL$7000,B91&+D91&+E91&+"ถูกต้อง",AK$7:AK$7000,0)<'1.ข้อมูลส่วนบุคคล'!$G$26,1,0))) ->  | X91: 0 | Y91: 0 | Z91: 0 | AA91: 0 | AB91: ='1.ข้อมูลส่วนบุคคล'!$E$32 -> 2560-05-15 | AC91: 25600515 | AD91: 00:00:00 | AE91: 19000100 | AF91: -6600415 | AG91: 0 | AH91: =IF(AG91=1,IF(AN91=AN90,0,'1.ข้อมูลส่วนบุคคล'!G$26-IF(AND(LEFT(Q91,3)<>"ไม่",AK91=0),SUMIFS(Z$7:Z$7000,AN$7:AN$7000,AN91,AK$7:AK$7000,0),0)),0) -> 0 | AI91: 0 | AJ91: 0 | AK91: 0 | AL91: ไม่ถูกต้อง
A92: ='1.ข้อมูลส่วนบุคคล'!$F$5 -> 1234567891234 | K92: =IF('1.ข้อมูลส่วนบุคคล'!C$21="เชี่ยวชาญ",IF(H92="-","",IF(H92='1.ข้อมูลส่วนบุคคล'!F$26,"เกี่ยวข้อง","ไม่เกี่ยวข้อง")),IF('1.ข้อมูลส่วนบุคคล'!C$21="เชี่ยวชาญพิเศษ",IF(H92="-","",IF(H92='1.ข้อมูลส่วนบุคคล'!F$26,"เกี่ยวข้อง","ไม่เกี่ยวข้อง")),"")) ->  | O92: สอนตามตารางสอน | Q92: ไม่ถูกต้อง | U92: 0 | V92: 0 | W92: =IF(LEFT(Q92,3)="ไม่","",IF(OR(LEFT(P92,1)="1",LEFT(P92,1)="2",LEFT(P92,1)="3",LEFT(P92,1)="4",LEFT(P92,1)="5",LEFT(P92,1)="6",LEFT(P92,1)="7"),0,IF(SUMIFS(Z$7:Z$7000,AL$7:AL$7000,B92&+D92&+E92&+"ถูกต้อง",AK$7:AK$7000,0)<'1.ข้อมูลส่วนบุคคล'!$G$26,1,0))) ->  | X92: 0 | Y92: 0 | Z92: 0 | AA92: 0 | AB92: ='1.ข้อมูลส่วนบุคคล'!$E$32 -> 2560-05-15 | AC92: 25600515 | AD92: 00:00:00 | AE92: 19000100 | AF92: -6600415 | AG92: 0 | AH92: =IF(AG92=1,IF(AN92=AN91,0,'1.ข้อมูลส่วนบุคคล'!G$26-IF(AND(LEFT(Q92,3)<>"ไม่",AK92=0),SUMIFS(Z$7:Z$7000,AN$7:AN$7000,AN92,AK$7:AK$7000,0),0)),0) -> 0 | AI92: 0 | AJ92: 0 | AK92: 0 | AL92: ไม่ถูกต้อง
A93: ='1.ข้อมูลส่วนบุคคล'!$F$5 -> 1234567891234 | K93: =IF('1.ข้อมูลส่วนบุคคล'!C$21="เชี่ยวชาญ",IF(H93="-","",IF(H93='1.ข้อมูลส่วนบุคคล'!F$26,"เกี่ยวข้อง","ไม่เกี่ยวข้อง")),IF('1.ข้อมูลส่วนบุคคล'!C$21="เชี่ยวชาญพิเศษ",IF(H93="-","",IF(H93='1.ข้อมูลส่วนบุคคล'!F$26,"เกี่ยวข้อง","ไม่เกี่ยวข้อง")),"")) ->  | O93: สอนตามตารางสอน | Q93: ไม่ถูกต้อง | U93: 0 | V93: 0 | W93: =IF(LEFT(Q93,3)="ไม่","",IF(OR(LEFT(P93,1)="1",LEFT(P93,1)="2",LEFT(P93,1)="3",LEFT(P93,1)="4",LEFT(P93,1)="5",LEFT(P93,1)="6",LEFT(P93,1)="7"),0,IF(SUMIFS(Z$7:Z$7000,AL$7:AL$7000,B93&+D93&+E93&+"ถูกต้อง",AK$7:AK$7000,0)<'1.ข้อมูลส่วนบุคคล'!$G$26,1,0))) ->  | X93: 0 | Y93: 0 | Z93: 0 | AA93: 0 | AB93: ='1.ข้อมูลส่วนบุคคล'!$E$32 -> 2560-05-15 | AC93: 25600515 | AD93: 00:00:00 | AE93: 19000100 | AF93: -6600415 | AG93: 0 | AH93: =IF(AG93=1,IF(AN93=AN92,0,'1.ข้อมูลส่วนบุคคล'!G$26-IF(AND(LEFT(Q93,3)<>"ไม่",AK93=0),SUMIFS(Z$7:Z$7000,AN$7:AN$7000,AN93,AK$7:AK$7000,0),0)),0) -> 0 | AI93: 0 | AJ93: 0 | AK93: 0 | AL93: ไม่ถูกต้อง
A94: ='1.ข้อมูลส่วนบุคคล'!$F$5 -> 1234567891234 | K94: =IF('1.ข้อมูลส่วนบุคคล'!C$21="เชี่ยวชาญ",IF(H94="-","",IF(H94='1.ข้อมูลส่วนบุคคล'!F$26,"เกี่ยวข้อง","ไม่เกี่ยวข้อง")),IF('1.ข้อมูลส่วนบุคคล'!C$21="เชี่ยวชาญพิเศษ",IF(H94="-","",IF(H94='1.ข้อมูลส่วนบุคคล'!F$26,"เกี่ยวข้อง","ไม่เกี่ยวข้อง")),"")) ->  | O94: สอนตามตารางสอน | Q94: ไม่ถูกต้อง | U94: 0 | V94: 0 | W94: =IF(LEFT(Q94,3)="ไม่","",IF(OR(LEFT(P94,1)="1",LEFT(P94,1)="2",LEFT(P94,1)="3",LEFT(P94,1)="4",LEFT(P94,1)="5",LEFT(P94,1)="6",LEFT(P94,1)="7"),0,IF(SUMIFS(Z$7:Z$7000,AL$7:AL$7000,B94&+D94&+E94&+"ถูกต้อง",AK$7:AK$7000,0)<'1.ข้อมูลส่วนบุคคล'!$G$26,1,0))) ->  | X94: 0 | Y94: 0 | Z94: 0 | AA94: 0 | AB94: ='1.ข้อมูลส่วนบุคคล'!$E$32 -> 2560-05-15 | AC94: 25600515 | AD94: 00:00:00 | AE94: 19000100 | AF94: -6600415 | AG94: 0 | AH94: =IF(AG94=1,IF(AN94=AN93,0,'1.ข้อมูลส่วนบุคคล'!G$26-IF(AND(LEFT(Q94,3)<>"ไม่",AK94=0),SUMIFS(Z$7:Z$7000,AN$7:AN$7000,AN94,AK$7:AK$7000,0),0)),0) -> 0 | AI94: 0 | AJ94: 0 | AK94: 0 | AL94: ไม่ถูกต้อง
A95: ='1.ข้อมูลส่วนบุคคล'!$F$5 -> 1234567891234 | K95: =IF('1.ข้อมูลส่วนบุคคล'!C$21="เชี่ยวชาญ",IF(H95="-","",IF(H95='1.ข้อมูลส่วนบุคคล'!F$26,"เกี่ยวข้อง","ไม่เกี่ยวข้อง")),IF('1.ข้อมูลส่วนบุคคล'!C$21="เชี่ยวชาญพิเศษ",IF(H95="-","",IF(H95='1.ข้อมูลส่วนบุคคล'!F$26,"เกี่ยวข้อง","ไม่เกี่ยวข้อง")),"")) ->  | O95: สอนตามตารางสอน | Q95: ไม่ถูกต้อง | U95: 0 | V95: 0 | W95: =IF(LEFT(Q95,3)="ไม่","",IF(OR(LEFT(P95,1)="1",LEFT(P95,1)="2",LEFT(P95,1)="3",LEFT(P95,1)="4",LEFT(P95,1)="5",LEFT(P95,1)="6",LEFT(P95,1)="7"),0,IF(SUMIFS(Z$7:Z$7000,AL$7:AL$7000,B95&+D95&+E95&+"ถูกต้อง",AK$7:AK$7000,0)<'1.ข้อมูลส่วนบุคคล'!$G$26,1,0))) ->  | X95: 0 | Y95: 0 | Z95: 0 | AA95: 0 | AB95: ='1.ข้อมูลส่วนบุคคล'!$E$32 -> 2560-05-15 | AC95: 25600515 | AD95: 00:00:00 | AE95: 19000100 | AF95: -6600415 | AG95: 0 | AH95: =IF(AG95=1,IF(AN95=AN94,0,'1.ข้อมูลส่วนบุคคล'!G$26-IF(AND(LEFT(Q95,3)<>"ไม่",AK95=0),SUMIFS(Z$7:Z$7000,AN$7:AN$7000,AN95,AK$7:AK$7000,0),0)),0) -> 0 | AI95: 0 | AJ95: 0 | AK95: 0 | AL95: ไม่ถูกต้อง
A96: ='1.ข้อมูลส่วนบุคคล'!$F$5 -> 1234567891234 | K96: =IF('1.ข้อมูลส่วนบุคคล'!C$21="เชี่ยวชาญ",IF(H96="-","",IF(H96='1.ข้อมูลส่วนบุคคล'!F$26,"เกี่ยวข้อง","ไม่เกี่ยวข้อง")),IF('1.ข้อมูลส่วนบุคคล'!C$21="เชี่ยวชาญพิเศษ",IF(H96="-","",IF(H96='1.ข้อมูลส่วนบุคคล'!F$26,"เกี่ยวข้อง","ไม่เกี่ยวข้อง")),"")) ->  | O96: สอนตามตารางสอน | Q96: ไม่ถูกต้อง | U96: 0 | V96: 0 | W96: =IF(LEFT(Q96,3)="ไม่","",IF(OR(LEFT(P96,1)="1",LEFT(P96,1)="2",LEFT(P96,1)="3",LEFT(P96,1)="4",LEFT(P96,1)="5",LEFT(P96,1)="6",LEFT(P96,1)="7"),0,IF(SUMIFS(Z$7:Z$7000,AL$7:AL$7000,B96&+D96&+E96&+"ถูกต้อง",AK$7:AK$7000,0)<'1.ข้อมูลส่วนบุคคล'!$G$26,1,0))) ->  | X96: 0 | Y96: 0 | Z96: 0 | AA96: 0 | AB96: ='1.ข้อมูลส่วนบุคคล'!$E$32 -> 2560-05-15 | AC96: 25600515 | AD96: 00:00:00 | AE96: 19000100 | AF96: -6600415 | AG96: 0 | AH96: =IF(AG96=1,IF(AN96=AN95,0,'1.ข้อมูลส่วนบุคคล'!G$26-IF(AND(LEFT(Q96,3)<>"ไม่",AK96=0),SUMIFS(Z$7:Z$7000,AN$7:AN$7000,AN96,AK$7:AK$7000,0),0)),0) -> 0 | AI96: 0 | AJ96: 0 | AK96: 0 | AL96: ไม่ถูกต้อง
A97: ='1.ข้อมูลส่วนบุคคล'!$F$5 -> 1234567891234 | K97: =IF('1.ข้อมูลส่วนบุคคล'!C$21="เชี่ยวชาญ",IF(H97="-","",IF(H97='1.ข้อมูลส่วนบุคคล'!F$26,"เกี่ยวข้อง","ไม่เกี่ยวข้อง")),IF('1.ข้อมูลส่วนบุคคล'!C$21="เชี่ยวชาญพิเศษ",IF(H97="-","",IF(H97='1.ข้อมูลส่วนบุคคล'!F$26,"เกี่ยวข้อง","ไม่เกี่ยวข้อง")),"")) ->  | O97: สอนตามตารางสอน | Q97: ไม่ถูกต้อง | U97: 0 | V97: 0 | W97: =IF(LEFT(Q97,3)="ไม่","",IF(OR(LEFT(P97,1)="1",LEFT(P97,1)="2",LEFT(P97,1)="3",LEFT(P97,1)="4",LEFT(P97,1)="5",LEFT(P97,1)="6",LEFT(P97,1)="7"),0,IF(SUMIFS(Z$7:Z$7000,AL$7:AL$7000,B97&+D97&+E97&+"ถูกต้อง",AK$7:AK$7000,0)<'1.ข้อมูลส่วนบุคคล'!$G$26,1,0))) ->  | X97: 0 | Y97: 0 | Z97: 0 | AA97: 0 | AB97: ='1.ข้อมูลส่วนบุคคล'!$E$32 -> 2560-05-15 | AC97: 25600515 | AD97: 00:00:00 | AE97: 19000100 | AF97: -6600415 | AG97: 0 | AH97: =IF(AG97=1,IF(AN97=AN96,0,'1.ข้อมูลส่วนบุคคล'!G$26-IF(AND(LEFT(Q97,3)<>"ไม่",AK97=0),SUMIFS(Z$7:Z$7000,AN$7:AN$7000,AN97,AK$7:AK$7000,0),0)),0) -> 0 | AI97: 0 | AJ97: 0 | AK97: 0 | AL97: ไม่ถูกต้อง
A98: ='1.ข้อมูลส่วนบุคคล'!$F$5 -> 1234567891234 | K98: =IF('1.ข้อมูลส่วนบุคคล'!C$21="เชี่ยวชาญ",IF(H98="-","",IF(H98='1.ข้อมูลส่วนบุคคล'!F$26,"เกี่ยวข้อง","ไม่เกี่ยวข้อง")),IF('1.ข้อมูลส่วนบุคคล'!C$21="เชี่ยวชาญพิเศษ",IF(H98="-","",IF(H98='1.ข้อมูลส่วนบุคคล'!F$26,"เกี่ยวข้อง","ไม่เกี่ยวข้อง")),"")) ->  | O98: สอนตามตารางสอน | Q98: ไม่ถูกต้อง | U98: 0 | V98: 0 | W98: =IF(LEFT(Q98,3)="ไม่","",IF(OR(LEFT(P98,1)="1",LEFT(P98,1)="2",LEFT(P98,1)="3",LEFT(P98,1)="4",LEFT(P98,1)="5",LEFT(P98,1)="6",LEFT(P98,1)="7"),0,IF(SUMIFS(Z$7:Z$7000,AL$7:AL$7000,B98&+D98&+E98&+"ถูกต้อง",AK$7:AK$7000,0)<'1.ข้อมูลส่วนบุคคล'!$G$26,1,0))) ->  | X98: 0 | Y98: 0 | Z98: 0 | AA98: 0 | AB98: ='1.ข้อมูลส่วนบุคคล'!$E$32 -> 2560-05-15 | AC98: 25600515 | AD98: 00:00:00 | AE98: 19000100 | AF98: -6600415 | AG98: 0 | AH98: =IF(AG98=1,IF(AN98=AN97,0,'1.ข้อมูลส่วนบุคคล'!G$26-IF(AND(LEFT(Q98,3)<>"ไม่",AK98=0),SUMIFS(Z$7:Z$7000,AN$7:AN$7000,AN98,AK$7:AK$7000,0),0)),0) -> 0 | AI98: 0 | AJ98: 0 | AK98: 0 | AL98: ไม่ถูกต้อง
A99: ='1.ข้อมูลส่วนบุคคล'!$F$5 -> 1234567891234 | K99: =IF('1.ข้อมูลส่วนบุคคล'!C$21="เชี่ยวชาญ",IF(H99="-","",IF(H99='1.ข้อมูลส่วนบุคคล'!F$26,"เกี่ยวข้อง","ไม่เกี่ยวข้อง")),IF('1.ข้อมูลส่วนบุคคล'!C$21="เชี่ยวชาญพิเศษ",IF(H99="-","",IF(H99='1.ข้อมูลส่วนบุคคล'!F$26,"เกี่ยวข้อง","ไม่เกี่ยวข้อง")),"")) ->  | O99: สอนตามตารางสอน | Q99: ไม่ถูกต้อง | U99: 0 | V99: 0 | W99: =IF(LEFT(Q99,3)="ไม่","",IF(OR(LEFT(P99,1)="1",LEFT(P99,1)="2",LEFT(P99,1)="3",LEFT(P99,1)="4",LEFT(P99,1)="5",LEFT(P99,1)="6",LEFT(P99,1)="7"),0,IF(SUMIFS(Z$7:Z$7000,AL$7:AL$7000,B99&+D99&+E99&+"ถูกต้อง",AK$7:AK$7000,0)<'1.ข้อมูลส่วนบุคคล'!$G$26,1,0))) ->  | X99: 0 | Y99: 0 | Z99: 0 | AA99: 0 | AB99: ='1.ข้อมูลส่วนบุคคล'!$E$32 -> 2560-05-15 | AC99: 25600515 | AD99: 00:00:00 | AE99: 19000100 | AF99: -6600415 | AG99: 0 | AH99: =IF(AG99=1,IF(AN99=AN98,0,'1.ข้อมูลส่วนบุคคล'!G$26-IF(AND(LEFT(Q99,3)<>"ไม่",AK99=0),SUMIFS(Z$7:Z$7000,AN$7:AN$7000,AN99,AK$7:AK$7000,0),0)),0) -> 0 | AI99: 0 | AJ99: 0 | AK99: 0 | AL99: ไม่ถูกต้อง
A100: ='1.ข้อมูลส่วนบุคคล'!$F$5 -> 1234567891234 | K100: =IF('1.ข้อมูลส่วนบุคคล'!C$21="เชี่ยวชาญ",IF(H100="-","",IF(H100='1.ข้อมูลส่วนบุคคล'!F$26,"เกี่ยวข้อง","ไม่เกี่ยวข้อง")),IF('1.ข้อมูลส่วนบุคคล'!C$21="เชี่ยวชาญพิเศษ",IF(H100="-","",IF(H100='1.ข้อมูลส่วนบุคคล'!F$26,"เกี่ยวข้อง","ไม่เกี่ยวข้อง")),"")) ->  | O100: สอนตามตารางสอน | Q100: ไม่ถูกต้อง | U100: 0 | V100: 0 | W100: =IF(LEFT(Q100,3)="ไม่","",IF(OR(LEFT(P100,1)="1",LEFT(P100,1)="2",LEFT(P100,1)="3",LEFT(P100,1)="4",LEFT(P100,1)="5",LEFT(P100,1)="6",LEFT(P100,1)="7"),0,IF(SUMIFS(Z$7:Z$7000,AL$7:AL$7000,B100&+D100&+E100&+"ถูกต้อง",AK$7:AK$7000,0)<'1.ข้อมูลส่วนบุคคล'!$G$26,1,0))) ->  | X100: 0 | Y100: 0 | Z100: 0 | AA100: 0 | AB100: ='1.ข้อมูลส่วนบุคคล'!$E$32 -> 2560-05-15 | AC100: 25600515 | AD100: 00:00:00 | AE100: 19000100 | AF100: -6600415 | AG100: 0 | AH100: =IF(AG100=1,IF(AN100=AN99,0,'1.ข้อมูลส่วนบุคคล'!G$26-IF(AND(LEFT(Q100,3)<>"ไม่",AK100=0),SUMIFS(Z$7:Z$7000,AN$7:AN$7000,AN100,AK$7:AK$7000,0),0)),0) -> 0 | AI100: 0 | AJ100: 0 | AK100: 0 | AL100: ไม่ถูกต้อง
A101: ='1.ข้อมูลส่วนบุคคล'!$F$5 -> 1234567891234 | K101: =IF('1.ข้อมูลส่วนบุคคล'!C$21="เชี่ยวชาญ",IF(H101="-","",IF(H101='1.ข้อมูลส่วนบุคคล'!F$26,"เกี่ยวข้อง","ไม่เกี่ยวข้อง")),IF('1.ข้อมูลส่วนบุคคล'!C$21="เชี่ยวชาญพิเศษ",IF(H101="-","",IF(H101='1.ข้อมูลส่วนบุคคล'!F$26,"เกี่ยวข้อง","ไม่เกี่ยวข้อง")),"")) ->  | O101: สอนตามตารางสอน | Q101: ไม่ถูกต้อง | U101: 0 | V101: 0 | W101: =IF(LEFT(Q101,3)="ไม่","",IF(OR(LEFT(P101,1)="1",LEFT(P101,1)="2",LEFT(P101,1)="3",LEFT(P101,1)="4",LEFT(P101,1)="5",LEFT(P101,1)="6",LEFT(P101,1)="7"),0,IF(SUMIFS(Z$7:Z$7000,AL$7:AL$7000,B101&+D101&+E101&+"ถูกต้อง",AK$7:AK$7000,0)<'1.ข้อมูลส่วนบุคคล'!$G$26,1,0))) ->  | X101: 0 | Y101: 0 | Z101: 0 | AA101: 0 | AB101: ='1.ข้อมูลส่วนบุคคล'!$E$32 -> 2560-05-15 | AC101: 25600515 | AD101: 00:00:00 | AE101: 19000100 | AF101: -6600415 | AG101: 0 | AH101: =IF(AG101=1,IF(AN101=AN100,0,'1.ข้อมูลส่วนบุคคล'!G$26-IF(AND(LEFT(Q101,3)<>"ไม่",AK101=0),SUMIFS(Z$7:Z$7000,AN$7:AN$7000,AN101,AK$7:AK$7000,0),0)),0) -> 0 | AI101: 0 | AJ101: 0 | AK101: 0 | AL101: ไม่ถูกต้อง
A102: ='1.ข้อมูลส่วนบุคคล'!$F$5 -> 1234567891234 | K102: =IF('1.ข้อมูลส่วนบุคคล'!C$21="เชี่ยวชาญ",IF(H102="-","",IF(H102='1.ข้อมูลส่วนบุคคล'!F$26,"เกี่ยวข้อง","ไม่เกี่ยวข้อง")),IF('1.ข้อมูลส่วนบุคคล'!C$21="เชี่ยวชาญพิเศษ",IF(H102="-","",IF(H102='1.ข้อมูลส่วนบุคคล'!F$26,"เกี่ยวข้อง","ไม่เกี่ยวข้อง")),"")) ->  | O102: สอนตามตารางสอน | Q102: ไม่ถูกต้อง | U102: 0 | V102: 0 | W102: =IF(LEFT(Q102,3)="ไม่","",IF(OR(LEFT(P102,1)="1",LEFT(P102,1)="2",LEFT(P102,1)="3",LEFT(P102,1)="4",LEFT(P102,1)="5",LEFT(P102,1)="6",LEFT(P102,1)="7"),0,IF(SUMIFS(Z$7:Z$7000,AL$7:AL$7000,B102&+D102&+E102&+"ถูกต้อง",AK$7:AK$7000,0)<'1.ข้อมูลส่วนบุคคล'!$G$26,1,0))) ->  | X102: 0 | Y102: 0 | Z102: 0 | AA102: 0 | AB102: ='1.ข้อมูลส่วนบุคคล'!$E$32 -> 2560-05-15 | AC102: 25600515 | AD102: 00:00:00 | AE102: 19000100 | AF102: -6600415 | AG102: 0 | AH102: =IF(AG102=1,IF(AN102=AN101,0,'1.ข้อมูลส่วนบุคคล'!G$26-IF(AND(LEFT(Q102,3)<>"ไม่",AK102=0),SUMIFS(Z$7:Z$7000,AN$7:AN$7000,AN102,AK$7:AK$7000,0),0)),0) -> 0 | AI102: 0 | AJ102: 0 | AK102: 0 | AL102: ไม่ถูกต้อง
A103: ='1.ข้อมูลส่วนบุคคล'!$F$5 -> 1234567891234 | K103: =IF('1.ข้อมูลส่วนบุคคล'!C$21="เชี่ยวชาญ",IF(H103="-","",IF(H103='1.ข้อมูลส่วนบุคคล'!F$26,"เกี่ยวข้อง","ไม่เกี่ยวข้อง")),IF('1.ข้อมูลส่วนบุคคล'!C$21="เชี่ยวชาญพิเศษ",IF(H103="-","",IF(H103='1.ข้อมูลส่วนบุคคล'!F$26,"เกี่ยวข้อง","ไม่เกี่ยวข้อง")),"")) ->  | O103: สอนตามตารางสอน | Q103: ไม่ถูกต้อง | U103: 0 | V103: 0 | W103: =IF(LEFT(Q103,3)="ไม่","",IF(OR(LEFT(P103,1)="1",LEFT(P103,1)="2",LEFT(P103,1)="3",LEFT(P103,1)="4",LEFT(P103,1)="5",LEFT(P103,1)="6",LEFT(P103,1)="7"),0,IF(SUMIFS(Z$7:Z$7000,AL$7:AL$7000,B103&+D103&+E103&+"ถูกต้อง",AK$7:AK$7000,0)<'1.ข้อมูลส่วนบุคคล'!$G$26,1,0))) ->  | X103: 0 | Y103: 0 | Z103: 0 | AA103: 0 | AB103: ='1.ข้อมูลส่วนบุคคล'!$E$32 -> 2560-05-15 | AC103: 25600515 | AD103: 00:00:00 | AE103: 19000100 | AF103: -6600415 | AG103: 0 | AH103: =IF(AG103=1,IF(AN103=AN102,0,'1.ข้อมูลส่วนบุคคล'!G$26-IF(AND(LEFT(Q103,3)<>"ไม่",AK103=0),SUMIFS(Z$7:Z$7000,AN$7:AN$7000,AN103,AK$7:AK$7000,0),0)),0) -> 0 | AI103: 0 | AJ103: 0 | AK103: 0 | AL103: ไม่ถูกต้อง
A104: ='1.ข้อมูลส่วนบุคคล'!$F$5 -> 1234567891234 | K104: =IF('1.ข้อมูลส่วนบุคคล'!C$21="เชี่ยวชาญ",IF(H104="-","",IF(H104='1.ข้อมูลส่วนบุคคล'!F$26,"เกี่ยวข้อง","ไม่เกี่ยวข้อง")),IF('1.ข้อมูลส่วนบุคคล'!C$21="เชี่ยวชาญพิเศษ",IF(H104="-","",IF(H104='1.ข้อมูลส่วนบุคคล'!F$26,"เกี่ยวข้อง","ไม่เกี่ยวข้อง")),"")) ->  | O104: สอนตามตารางสอน | Q104: ไม่ถูกต้อง | U104: 0 | V104: 0 | W104: =IF(LEFT(Q104,3)="ไม่","",IF(OR(LEFT(P104,1)="1",LEFT(P104,1)="2",LEFT(P104,1)="3",LEFT(P104,1)="4",LEFT(P104,1)="5",LEFT(P104,1)="6",LEFT(P104,1)="7"),0,IF(SUMIFS(Z$7:Z$7000,AL$7:AL$7000,B104&+D104&+E104&+"ถูกต้อง",AK$7:AK$7000,0)<'1.ข้อมูลส่วนบุคคล'!$G$26,1,0))) ->  | X104: 0 | Y104: 0 | Z104: 0 | AA104: 0 | AB104: ='1.ข้อมูลส่วนบุคคล'!$E$32 -> 2560-05-15 | AC104: 25600515 | AD104: 00:00:00 | AE104: 19000100 | AF104: -6600415 | AG104: 0 | AH104: =IF(AG104=1,IF(AN104=AN103,0,'1.ข้อมูลส่วนบุคคล'!G$26-IF(AND(LEFT(Q104,3)<>"ไม่",AK104=0),SUMIFS(Z$7:Z$7000,AN$7:AN$7000,AN104,AK$7:AK$7000,0),0)),0) -> 0 | AI104: 0 | AJ104: 0 | AK104: 0 | AL104: ไม่ถูกต้อง
A105: ='1.ข้อมูลส่วนบุคคล'!$F$5 -> 1234567891234 | K105: =IF('1.ข้อมูลส่วนบุคคล'!C$21="เชี่ยวชาญ",IF(H105="-","",IF(H105='1.ข้อมูลส่วนบุคคล'!F$26,"เกี่ยวข้อง","ไม่เกี่ยวข้อง")),IF('1.ข้อมูลส่วนบุคคล'!C$21="เชี่ยวชาญพิเศษ",IF(H105="-","",IF(H105='1.ข้อมูลส่วนบุคคล'!F$26,"เกี่ยวข้อง","ไม่เกี่ยวข้อง")),"")) ->  | O105: สอนตามตารางสอน | Q105: ไม่ถูกต้อง | U105: 0 | V105: 0 | W105: =IF(LEFT(Q105,3)="ไม่","",IF(OR(LEFT(P105,1)="1",LEFT(P105,1)="2",LEFT(P105,1)="3",LEFT(P105,1)="4",LEFT(P105,1)="5",LEFT(P105,1)="6",LEFT(P105,1)="7"),0,IF(SUMIFS(Z$7:Z$7000,AL$7:AL$7000,B105&+D105&+E105&+"ถูกต้อง",AK$7:AK$7000,0)<'1.ข้อมูลส่วนบุคคล'!$G$26,1,0))) ->  | X105: 0 | Y105: 0 | Z105: 0 | AA105: 0 | AB105: ='1.ข้อมูลส่วนบุคคล'!$E$32 -> 2560-05-15 | AC105: 25600515 | AD105: 00:00:00 | AE105: 19000100 | AF105: -6600415 | AG105: 0 | AH105: =IF(AG105=1,IF(AN105=AN104,0,'1.ข้อมูลส่วนบุคคล'!G$26-IF(AND(LEFT(Q105,3)<>"ไม่",AK105=0),SUMIFS(Z$7:Z$7000,AN$7:AN$7000,AN105,AK$7:AK$7000,0),0)),0) -> 0 | AI105: 0 | AJ105: 0 | AK105: 0 | AL105: ไม่ถูกต้อง
A106: ='1.ข้อมูลส่วนบุคคล'!$F$5 -> 1234567891234 | K106: =IF('1.ข้อมูลส่วนบุคคล'!C$21="เชี่ยวชาญ",IF(H106="-","",IF(H106='1.ข้อมูลส่วนบุคคล'!F$26,"เกี่ยวข้อง","ไม่เกี่ยวข้อง")),IF('1.ข้อมูลส่วนบุคคล'!C$21="เชี่ยวชาญพิเศษ",IF(H106="-","",IF(H106='1.ข้อมูลส่วนบุคคล'!F$26,"เกี่ยวข้อง","ไม่เกี่ยวข้อง")),"")) ->  | O106: สอนตามตารางสอน | Q106: ไม่ถูกต้อง | U106: 0 | V106: 0 | W106: =IF(LEFT(Q106,3)="ไม่","",IF(OR(LEFT(P106,1)="1",LEFT(P106,1)="2",LEFT(P106,1)="3",LEFT(P106,1)="4",LEFT(P106,1)="5",LEFT(P106,1)="6",LEFT(P106,1)="7"),0,IF(SUMIFS(Z$7:Z$7000,AL$7:AL$7000,B106&+D106&+E106&+"ถูกต้อง",AK$7:AK$7000,0)<'1.ข้อมูลส่วนบุคคล'!$G$26,1,0))) ->  | X106: 0 | Y106: 0 | Z106: 0 | AA106: 0 | AB106: ='1.ข้อมูลส่วนบุคคล'!$E$32 -> 2560-05-15 | AC106: 25600515 | AD106: 00:00:00 | AE106: 19000100 | AF106: -6600415 | AG106: 0 | AH106: =IF(AG106=1,IF(AN106=AN105,0,'1.ข้อมูลส่วนบุคคล'!G$26-IF(AND(LEFT(Q106,3)<>"ไม่",AK106=0),SUMIFS(Z$7:Z$7000,AN$7:AN$7000,AN106,AK$7:AK$7000,0),0)),0) -> 0 | AI106: 0 | AJ106: 0 | AK106: 0 | AL106: ไม่ถูกต้อง
A107: ='1.ข้อมูลส่วนบุคคล'!$F$5 -> 1234567891234 | K107: =IF('1.ข้อมูลส่วนบุคคล'!C$21="เชี่ยวชาญ",IF(H107="-","",IF(H107='1.ข้อมูลส่วนบุคคล'!F$26,"เกี่ยวข้อง","ไม่เกี่ยวข้อง")),IF('1.ข้อมูลส่วนบุคคล'!C$21="เชี่ยวชาญพิเศษ",IF(H107="-","",IF(H107='1.ข้อมูลส่วนบุคคล'!F$26,"เกี่ยวข้อง","ไม่เกี่ยวข้อง")),"")) ->  | O107: สอนตามตารางสอน | Q107: ไม่ถูกต้อง | U107: 0 | V107: 0 | W107: =IF(LEFT(Q107,3)="ไม่","",IF(OR(LEFT(P107,1)="1",LEFT(P107,1)="2",LEFT(P107,1)="3",LEFT(P107,1)="4",LEFT(P107,1)="5",LEFT(P107,1)="6",LEFT(P107,1)="7"),0,IF(SUMIFS(Z$7:Z$7000,AL$7:AL$7000,B107&+D107&+E107&+"ถูกต้อง",AK$7:AK$7000,0)<'1.ข้อมูลส่วนบุคคล'!$G$26,1,0))) ->  | X107: 0 | Y107: 0 | Z107: 0 | AA107: 0 | AB107: ='1.ข้อมูลส่วนบุคคล'!$E$32 -> 2560-05-15 | AC107: 25600515 | AD107: 00:00:00 | AE107: 19000100 | AF107: -6600415 | AG107: 0 | AH107: =IF(AG107=1,IF(AN107=AN106,0,'1.ข้อมูลส่วนบุคคล'!G$26-IF(AND(LEFT(Q107,3)<>"ไม่",AK107=0),SUMIFS(Z$7:Z$7000,AN$7:AN$7000,AN107,AK$7:AK$7000,0),0)),0) -> 0 | AI107: 0 | AJ107: 0 | AK107: 0 | AL107: ไม่ถูกต้อง
A108: ='1.ข้อมูลส่วนบุคคล'!$F$5 -> 1234567891234 | K108: =IF('1.ข้อมูลส่วนบุคคล'!C$21="เชี่ยวชาญ",IF(H108="-","",IF(H108='1.ข้อมูลส่วนบุคคล'!F$26,"เกี่ยวข้อง","ไม่เกี่ยวข้อง")),IF('1.ข้อมูลส่วนบุคคล'!C$21="เชี่ยวชาญพิเศษ",IF(H108="-","",IF(H108='1.ข้อมูลส่วนบุคคล'!F$26,"เกี่ยวข้อง","ไม่เกี่ยวข้อง")),"")) ->  | O108: สอนตามตารางสอน | Q108: ไม่ถูกต้อง | U108: 0 | V108: 0 | W108: =IF(LEFT(Q108,3)="ไม่","",IF(OR(LEFT(P108,1)="1",LEFT(P108,1)="2",LEFT(P108,1)="3",LEFT(P108,1)="4",LEFT(P108,1)="5",LEFT(P108,1)="6",LEFT(P108,1)="7"),0,IF(SUMIFS(Z$7:Z$7000,AL$7:AL$7000,B108&+D108&+E108&+"ถูกต้อง",AK$7:AK$7000,0)<'1.ข้อมูลส่วนบุคคล'!$G$26,1,0))) ->  | X108: 0 | Y108: 0 | Z108: 0 | AA108: 0 | AB108: ='1.ข้อมูลส่วนบุคคล'!$E$32 -> 2560-05-15 | AC108: 25600515 | AD108: 00:00:00 | AE108: 19000100 | AF108: -6600415 | AG108: 0 | AH108: =IF(AG108=1,IF(AN108=AN107,0,'1.ข้อมูลส่วนบุคคล'!G$26-IF(AND(LEFT(Q108,3)<>"ไม่",AK108=0),SUMIFS(Z$7:Z$7000,AN$7:AN$7000,AN108,AK$7:AK$7000,0),0)),0) -> 0 | AI108: 0 | AJ108: 0 | AK108: 0 | AL108: ไม่ถูกต้อง
A109: ='1.ข้อมูลส่วนบุคคล'!$F$5 -> 1234567891234 | K109: =IF('1.ข้อมูลส่วนบุคคล'!C$21="เชี่ยวชาญ",IF(H109="-","",IF(H109='1.ข้อมูลส่วนบุคคล'!F$26,"เกี่ยวข้อง","ไม่เกี่ยวข้อง")),IF('1.ข้อมูลส่วนบุคคล'!C$21="เชี่ยวชาญพิเศษ",IF(H109="-","",IF(H109='1.ข้อมูลส่วนบุคคล'!F$26,"เกี่ยวข้อง","ไม่เกี่ยวข้อง")),"")) ->  | O109: สอนตามตารางสอน | Q109: ไม่ถูกต้อง | U109: 0 | V109: 0 | W109: =IF(LEFT(Q109,3)="ไม่","",IF(OR(LEFT(P109,1)="1",LEFT(P109,1)="2",LEFT(P109,1)="3",LEFT(P109,1)="4",LEFT(P109,1)="5",LEFT(P109,1)="6",LEFT(P109,1)="7"),0,IF(SUMIFS(Z$7:Z$7000,AL$7:AL$7000,B109&+D109&+E109&+"ถูกต้อง",AK$7:AK$7000,0)<'1.ข้อมูลส่วนบุคคล'!$G$26,1,0))) ->  | X109: 0 | Y109: 0 | Z109: 0 | AA109: 0 | AB109: ='1.ข้อมูลส่วนบุคคล'!$E$32 -> 2560-05-15 | AC109: 25600515 | AD109: 00:00:00 | AE109: 19000100 | AF109: -6600415 | AG109: 0 | AH109: =IF(AG109=1,IF(AN109=AN108,0,'1.ข้อมูลส่วนบุคคล'!G$26-IF(AND(LEFT(Q109,3)<>"ไม่",AK109=0),SUMIFS(Z$7:Z$7000,AN$7:AN$7000,AN109,AK$7:AK$7000,0),0)),0) -> 0 | AI109: 0 | AJ109: 0 | AK109: 0 | AL109: ไม่ถูกต้อง
A110: ='1.ข้อมูลส่วนบุคคล'!$F$5 -> 1234567891234 | K110: =IF('1.ข้อมูลส่วนบุคคล'!C$21="เชี่ยวชาญ",IF(H110="-","",IF(H110='1.ข้อมูลส่วนบุคคล'!F$26,"เกี่ยวข้อง","ไม่เกี่ยวข้อง")),IF('1.ข้อมูลส่วนบุคคล'!C$21="เชี่ยวชาญพิเศษ",IF(H110="-","",IF(H110='1.ข้อมูลส่วนบุคคล'!F$26,"เกี่ยวข้อง","ไม่เกี่ยวข้อง")),"")) ->  | O110: สอนตามตารางสอน | Q110: ไม่ถูกต้อง | U110: 0 | V110: 0 | W110: =IF(LEFT(Q110,3)="ไม่","",IF(OR(LEFT(P110,1)="1",LEFT(P110,1)="2",LEFT(P110,1)="3",LEFT(P110,1)="4",LEFT(P110,1)="5",LEFT(P110,1)="6",LEFT(P110,1)="7"),0,IF(SUMIFS(Z$7:Z$7000,AL$7:AL$7000,B110&+D110&+E110&+"ถูกต้อง",AK$7:AK$7000,0)<'1.ข้อมูลส่วนบุคคล'!$G$26,1,0))) ->  | X110: 0 | Y110: 0 | Z110: 0 | AA110: 0 | AB110: ='1.ข้อมูลส่วนบุคคล'!$E$32 -> 2560-05-15 | AC110: 25600515 | AD110: 00:00:00 | AE110: 19000100 | AF110: -6600415 | AG110: 0 | AH110: =IF(AG110=1,IF(AN110=AN109,0,'1.ข้อมูลส่วนบุคคล'!G$26-IF(AND(LEFT(Q110,3)<>"ไม่",AK110=0),SUMIFS(Z$7:Z$7000,AN$7:AN$7000,AN110,AK$7:AK$7000,0),0)),0) -> 0 | AI110: 0 | AJ110: 0 | AK110: 0 | AL110: ไม่ถูกต้อง
A111: ='1.ข้อมูลส่วนบุคคล'!$F$5 -> 1234567891234 | K111: =IF('1.ข้อมูลส่วนบุคคล'!C$21="เชี่ยวชาญ",IF(H111="-","",IF(H111='1.ข้อมูลส่วนบุคคล'!F$26,"เกี่ยวข้อง","ไม่เกี่ยวข้อง")),IF('1.ข้อมูลส่วนบุคคล'!C$21="เชี่ยวชาญพิเศษ",IF(H111="-","",IF(H111='1.ข้อมูลส่วนบุคคล'!F$26,"เกี่ยวข้อง","ไม่เกี่ยวข้อง")),"")) ->  | O111: สอนตามตารางสอน | Q111: ไม่ถูกต้อง | U111: 0 | V111: 0 | W111: =IF(LEFT(Q111,3)="ไม่","",IF(OR(LEFT(P111,1)="1",LEFT(P111,1)="2",LEFT(P111,1)="3",LEFT(P111,1)="4",LEFT(P111,1)="5",LEFT(P111,1)="6",LEFT(P111,1)="7"),0,IF(SUMIFS(Z$7:Z$7000,AL$7:AL$7000,B111&+D111&+E111&+"ถูกต้อง",AK$7:AK$7000,0)<'1.ข้อมูลส่วนบุคคล'!$G$26,1,0))) ->  | X111: 0 | Y111: 0 | Z111: 0 | AA111: 0 | AB111: ='1.ข้อมูลส่วนบุคคล'!$E$32 -> 2560-05-15 | AC111: 25600515 | AD111: 00:00:00 | AE111: 19000100 | AF111: -6600415 | AG111: 0 | AH111: =IF(AG111=1,IF(AN111=AN110,0,'1.ข้อมูลส่วนบุคคล'!G$26-IF(AND(LEFT(Q111,3)<>"ไม่",AK111=0),SUMIFS(Z$7:Z$7000,AN$7:AN$7000,AN111,AK$7:AK$7000,0),0)),0) -> 0 | AI111: 0 | AJ111: 0 | AK111: 0 | AL111: ไม่ถูกต้อง
A112: ='1.ข้อมูลส่วนบุคคล'!$F$5 -> 1234567891234 | K112: =IF('1.ข้อมูลส่วนบุคคล'!C$21="เชี่ยวชาญ",IF(H112="-","",IF(H112='1.ข้อมูลส่วนบุคคล'!F$26,"เกี่ยวข้อง","ไม่เกี่ยวข้อง")),IF('1.ข้อมูลส่วนบุคคล'!C$21="เชี่ยวชาญพิเศษ",IF(H112="-","",IF(H112='1.ข้อมูลส่วนบุคคล'!F$26,"เกี่ยวข้อง","ไม่เกี่ยวข้อง")),"")) ->  | O112: สอนตามตารางสอน | Q112: ไม่ถูกต้อง | U112: 0 | V112: 0 | W112: =IF(LEFT(Q112,3)="ไม่","",IF(OR(LEFT(P112,1)="1",LEFT(P112,1)="2",LEFT(P112,1)="3",LEFT(P112,1)="4",LEFT(P112,1)="5",LEFT(P112,1)="6",LEFT(P112,1)="7"),0,IF(SUMIFS(Z$7:Z$7000,AL$7:AL$7000,B112&+D112&+E112&+"ถูกต้อง",AK$7:AK$7000,0)<'1.ข้อมูลส่วนบุคคล'!$G$26,1,0))) ->  | X112: 0 | Y112: 0 | Z112: 0 | AA112: 0 | AB112: ='1.ข้อมูลส่วนบุคคล'!$E$32 -> 2560-05-15 | AC112: 25600515 | AD112: 00:00:00 | AE112: 19000100 | AF112: -6600415 | AG112: 0 | AH112: =IF(AG112=1,IF(AN112=AN111,0,'1.ข้อมูลส่วนบุคคล'!G$26-IF(AND(LEFT(Q112,3)<>"ไม่",AK112=0),SUMIFS(Z$7:Z$7000,AN$7:AN$7000,AN112,AK$7:AK$7000,0),0)),0) -> 0 | AI112: 0 | AJ112: 0 | AK112: 0 | AL112: ไม่ถูกต้อง
A113: ='1.ข้อมูลส่วนบุคคล'!$F$5 -> 1234567891234 | K113: =IF('1.ข้อมูลส่วนบุคคล'!C$21="เชี่ยวชาญ",IF(H113="-","",IF(H113='1.ข้อมูลส่วนบุคคล'!F$26,"เกี่ยวข้อง","ไม่เกี่ยวข้อง")),IF('1.ข้อมูลส่วนบุคคล'!C$21="เชี่ยวชาญพิเศษ",IF(H113="-","",IF(H113='1.ข้อมูลส่วนบุคคล'!F$26,"เกี่ยวข้อง","ไม่เกี่ยวข้อง")),"")) ->  | O113: สอนตามตารางสอน | Q113: ไม่ถูกต้อง | U113: 0 | V113: 0 | W113: =IF(LEFT(Q113,3)="ไม่","",IF(OR(LEFT(P113,1)="1",LEFT(P113,1)="2",LEFT(P113,1)="3",LEFT(P113,1)="4",LEFT(P113,1)="5",LEFT(P113,1)="6",LEFT(P113,1)="7"),0,IF(SUMIFS(Z$7:Z$7000,AL$7:AL$7000,B113&+D113&+E113&+"ถูกต้อง",AK$7:AK$7000,0)<'1.ข้อมูลส่วนบุคคล'!$G$26,1,0))) ->  | X113: 0 | Y113: 0 | Z113: 0 | AA113: 0 | AB113: ='1.ข้อมูลส่วนบุคคล'!$E$32 -> 2560-05-15 | AC113: 25600515 | AD113: 00:00:00 | AE113: 19000100 | AF113: -6600415 | AG113: 0 | AH113: =IF(AG113=1,IF(AN113=AN112,0,'1.ข้อมูลส่วนบุคคล'!G$26-IF(AND(LEFT(Q113,3)<>"ไม่",AK113=0),SUMIFS(Z$7:Z$7000,AN$7:AN$7000,AN113,AK$7:AK$7000,0),0)),0) -> 0 | AI113: 0 | AJ113: 0 | AK113: 0 | AL113: ไม่ถูกต้อง
A114: ='1.ข้อมูลส่วนบุคคล'!$F$5 -> 1234567891234 | K114: =IF('1.ข้อมูลส่วนบุคคล'!C$21="เชี่ยวชาญ",IF(H114="-","",IF(H114='1.ข้อมูลส่วนบุคคล'!F$26,"เกี่ยวข้อง","ไม่เกี่ยวข้อง")),IF('1.ข้อมูลส่วนบุคคล'!C$21="เชี่ยวชาญพิเศษ",IF(H114="-","",IF(H114='1.ข้อมูลส่วนบุคคล'!F$26,"เกี่ยวข้อง","ไม่เกี่ยวข้อง")),"")) ->  | O114: สอนตามตารางสอน | Q114: ไม่ถูกต้อง | U114: 0 | V114: 0 | W114: =IF(LEFT(Q114,3)="ไม่","",IF(OR(LEFT(P114,1)="1",LEFT(P114,1)="2",LEFT(P114,1)="3",LEFT(P114,1)="4",LEFT(P114,1)="5",LEFT(P114,1)="6",LEFT(P114,1)="7"),0,IF(SUMIFS(Z$7:Z$7000,AL$7:AL$7000,B114&+D114&+E114&+"ถูกต้อง",AK$7:AK$7000,0)<'1.ข้อมูลส่วนบุคคล'!$G$26,1,0))) ->  | X114: 0 | Y114: 0 | Z114: 0 | AA114: 0 | AB114: ='1.ข้อมูลส่วนบุคคล'!$E$32 -> 2560-05-15 | AC114: 25600515 | AD114: 00:00:00 | AE114: 19000100 | AF114: -6600415 | AG114: 0 | AH114: =IF(AG114=1,IF(AN114=AN113,0,'1.ข้อมูลส่วนบุคคล'!G$26-IF(AND(LEFT(Q114,3)<>"ไม่",AK114=0),SUMIFS(Z$7:Z$7000,AN$7:AN$7000,AN114,AK$7:AK$7000,0),0)),0) -> 0 | AI114: 0 | AJ114: 0 | AK114: 0 | AL114: ไม่ถูกต้อง
A115: ='1.ข้อมูลส่วนบุคคล'!$F$5 -> 1234567891234 | K115: =IF('1.ข้อมูลส่วนบุคคล'!C$21="เชี่ยวชาญ",IF(H115="-","",IF(H115='1.ข้อมูลส่วนบุคคล'!F$26,"เกี่ยวข้อง","ไม่เกี่ยวข้อง")),IF('1.ข้อมูลส่วนบุคคล'!C$21="เชี่ยวชาญพิเศษ",IF(H115="-","",IF(H115='1.ข้อมูลส่วนบุคคล'!F$26,"เกี่ยวข้อง","ไม่เกี่ยวข้อง")),"")) ->  | O115: สอนตามตารางสอน | Q115: ไม่ถูกต้อง | U115: 0 | V115: 0 | W115: =IF(LEFT(Q115,3)="ไม่","",IF(OR(LEFT(P115,1)="1",LEFT(P115,1)="2",LEFT(P115,1)="3",LEFT(P115,1)="4",LEFT(P115,1)="5",LEFT(P115,1)="6",LEFT(P115,1)="7"),0,IF(SUMIFS(Z$7:Z$7000,AL$7:AL$7000,B115&+D115&+E115&+"ถูกต้อง",AK$7:AK$7000,0)<'1.ข้อมูลส่วนบุคคล'!$G$26,1,0))) ->  | X115: 0 | Y115: 0 | Z115: 0 | AA115: 0 | AB115: ='1.ข้อมูลส่วนบุคคล'!$E$32 -> 2560-05-15 | AC115: 25600515 | AD115: 00:00:00 | AE115: 19000100 | AF115: -6600415 | AG115: 0 | AH115: =IF(AG115=1,IF(AN115=AN114,0,'1.ข้อมูลส่วนบุคคล'!G$26-IF(AND(LEFT(Q115,3)<>"ไม่",AK115=0),SUMIFS(Z$7:Z$7000,AN$7:AN$7000,AN115,AK$7:AK$7000,0),0)),0) -> 0 | AI115: 0 | AJ115: 0 | AK115: 0 | AL115: ไม่ถูกต้อง
A116: ='1.ข้อมูลส่วนบุคคล'!$F$5 -> 1234567891234 | K116: =IF('1.ข้อมูลส่วนบุคคล'!C$21="เชี่ยวชาญ",IF(H116="-","",IF(H116='1.ข้อมูลส่วนบุคคล'!F$26,"เกี่ยวข้อง","ไม่เกี่ยวข้อง")),IF('1.ข้อมูลส่วนบุคคล'!C$21="เชี่ยวชาญพิเศษ",IF(H116="-","",IF(H116='1.ข้อมูลส่วนบุคคล'!F$26,"เกี่ยวข้อง","ไม่เกี่ยวข้อง")),"")) ->  | O116: สอนตามตารางสอน | Q116: ไม่ถูกต้อง | U116: 0 | V116: 0 | W116: =IF(LEFT(Q116,3)="ไม่","",IF(OR(LEFT(P116,1)="1",LEFT(P116,1)="2",LEFT(P116,1)="3",LEFT(P116,1)="4",LEFT(P116,1)="5",LEFT(P116,1)="6",LEFT(P116,1)="7"),0,IF(SUMIFS(Z$7:Z$7000,AL$7:AL$7000,B116&+D116&+E116&+"ถูกต้อง",AK$7:AK$7000,0)<'1.ข้อมูลส่วนบุคคล'!$G$26,1,0))) ->  | X116: 0 | Y116: 0 | Z116: 0 | AA116: 0 | AB116: ='1.ข้อมูลส่วนบุคคล'!$E$32 -> 2560-05-15 | AC116: 25600515 | AD116: 00:00:00 | AE116: 19000100 | AF116: -6600415 | AG116: 0 | AH116: =IF(AG116=1,IF(AN116=AN115,0,'1.ข้อมูลส่วนบุคคล'!G$26-IF(AND(LEFT(Q116,3)<>"ไม่",AK116=0),SUMIFS(Z$7:Z$7000,AN$7:AN$7000,AN116,AK$7:AK$7000,0),0)),0) -> 0 | AI116: 0 | AJ116: 0 | AK116: 0 | AL116: ไม่ถูกต้อง
A117: ='1.ข้อมูลส่วนบุคคล'!$F$5 -> 1234567891234 | K117: =IF('1.ข้อมูลส่วนบุคคล'!C$21="เชี่ยวชาญ",IF(H117="-","",IF(H117='1.ข้อมูลส่วนบุคคล'!F$26,"เกี่ยวข้อง","ไม่เกี่ยวข้อง")),IF('1.ข้อมูลส่วนบุคคล'!C$21="เชี่ยวชาญพิเศษ",IF(H117="-","",IF(H117='1.ข้อมูลส่วนบุคคล'!F$26,"เกี่ยวข้อง","ไม่เกี่ยวข้อง")),"")) ->  | O117: สอนตามตารางสอน | Q117: ไม่ถูกต้อง | T117: =B117&+E117 ->  | U117: 0 | V117: 0 | W117: =IF(LEFT(Q117,3)="ไม่","",IF(OR(LEFT(P117,1)="1",LEFT(P117,1)="2",LEFT(P117,1)="3",LEFT(P117,1)="4",LEFT(P117,1)="5",LEFT(P117,1)="6",LEFT(P117,1)="7"),0,IF(SUMIFS(Z$7:Z$7000,AL$7:AL$7000,B117&+D117&+E117&+"ถูกต้อง",AK$7:AK$7000,0)<'1.ข้อมูลส่วนบุคคล'!$G$26,1,0))) ->  | X117: 0 | Y117: 0 | Z117: 0 | AA117: 0 | AB117: ='1.ข้อมูลส่วนบุคคล'!$E$32 -> 2560-05-15 | AC117: 25600515 | AD117: 00:00:00 | AE117: 19000100 | AF117: -6600415 | AG117: 0 | AH117: =IF(AG117=1,IF(AN117=AN116,0,'1.ข้อมูลส่วนบุคคล'!G$26-IF(AND(LEFT(Q117,3)<>"ไม่",AK117=0),SUMIFS(Z$7:Z$7000,AN$7:AN$7000,AN117,AK$7:AK$7000,0),0)),0) -> 0 | AI117: 0 | AJ117: 0 | AK117: 0 | AL117: ไม่ถูกต้อง
A118: ='1.ข้อมูลส่วนบุคคล'!$F$5 -> 1234567891234 | K118: =IF('1.ข้อมูลส่วนบุคคล'!C$21="เชี่ยวชาญ",IF(H118="-","",IF(H118='1.ข้อมูลส่วนบุคคล'!F$26,"เกี่ยวข้อง","ไม่เกี่ยวข้อง")),IF('1.ข้อมูลส่วนบุคคล'!C$21="เชี่ยวชาญพิเศษ",IF(H118="-","",IF(H118='1.ข้อมูลส่วนบุคคล'!F$26,"เกี่ยวข้อง","ไม่เกี่ยวข้อง")),"")) ->  | O118: สอนตามตารางสอน | Q118: ไม่ถูกต้อง | U118: 0 | V118: 0 | W118: =IF(LEFT(Q118,3)="ไม่","",IF(OR(LEFT(P118,1)="1",LEFT(P118,1)="2",LEFT(P118,1)="3",LEFT(P118,1)="4",LEFT(P118,1)="5",LEFT(P118,1)="6",LEFT(P118,1)="7"),0,IF(SUMIFS(Z$7:Z$7000,AL$7:AL$7000,B118&+D118&+E118&+"ถูกต้อง",AK$7:AK$7000,0)<'1.ข้อมูลส่วนบุคคล'!$G$26,1,0))) ->  | X118: 0 | Y118: 0 | Z118: 0 | AA118: 0 | AB118: ='1.ข้อมูลส่วนบุคคล'!$E$32 -> 2560-05-15 | AC118: 25600515 | AD118: 00:00:00 | AE118: 19000100 | AF118: -6600415 | AG118: 0 | AH118: =IF(AG118=1,IF(AN118=AN117,0,'1.ข้อมูลส่วนบุคคล'!G$26-IF(AND(LEFT(Q118,3)<>"ไม่",AK118=0),SUMIFS(Z$7:Z$7000,AN$7:AN$7000,AN118,AK$7:AK$7000,0),0)),0) -> 0 | AI118: 0 | AJ118: 0 | AK118: 0 | AL118: ไม่ถูกต้อง
A119: ='1.ข้อมูลส่วนบุคคล'!$F$5 -> 1234567891234 | K119: =IF('1.ข้อมูลส่วนบุคคล'!C$21="เชี่ยวชาญ",IF(H119="-","",IF(H119='1.ข้อมูลส่วนบุคคล'!F$26,"เกี่ยวข้อง","ไม่เกี่ยวข้อง")),IF('1.ข้อมูลส่วนบุคคล'!C$21="เชี่ยวชาญพิเศษ",IF(H119="-","",IF(H119='1.ข้อมูลส่วนบุคคล'!F$26,"เกี่ยวข้อง","ไม่เกี่ยวข้อง")),"")) ->  | O119: สอนตามตารางสอน | Q119: ไม่ถูกต้อง | U119: 0 | V119: 0 | W119: =IF(LEFT(Q119,3)="ไม่","",IF(OR(LEFT(P119,1)="1",LEFT(P119,1)="2",LEFT(P119,1)="3",LEFT(P119,1)="4",LEFT(P119,1)="5",LEFT(P119,1)="6",LEFT(P119,1)="7"),0,IF(SUMIFS(Z$7:Z$7000,AL$7:AL$7000,B119&+D119&+E119&+"ถูกต้อง",AK$7:AK$7000,0)<'1.ข้อมูลส่วนบุคคล'!$G$26,1,0))) ->  | X119: 0 | Y119: 0 | Z119: 0 | AA119: 0 | AB119: ='1.ข้อมูลส่วนบุคคล'!$E$32 -> 2560-05-15 | AC119: 25600515 | AD119: 00:00:00 | AE119: 19000100 | AF119: -6600415 | AG119: 0 | AH119: =IF(AG119=1,IF(AN119=AN118,0,'1.ข้อมูลส่วนบุคคล'!G$26-IF(AND(LEFT(Q119,3)<>"ไม่",AK119=0),SUMIFS(Z$7:Z$7000,AN$7:AN$7000,AN119,AK$7:AK$7000,0),0)),0) -> 0 | AI119: 0 | AJ119: 0 | AK119: 0 | AL119: ไม่ถูกต้อง
A120: ='1.ข้อมูลส่วนบุคคล'!$F$5 -> 1234567891234 | K120: =IF('1.ข้อมูลส่วนบุคคล'!C$21="เชี่ยวชาญ",IF(H120="-","",IF(H120='1.ข้อมูลส่วนบุคคล'!F$26,"เกี่ยวข้อง","ไม่เกี่ยวข้อง")),IF('1.ข้อมูลส่วนบุคคล'!C$21="เชี่ยวชาญพิเศษ",IF(H120="-","",IF(H120='1.ข้อมูลส่วนบุคคล'!F$26,"เกี่ยวข้อง","ไม่เกี่ยวข้อง")),"")) ->  | O120: สอนตามตารางสอน | Q120: ไม่ถูกต้อง | U120: 0 | V120: 0 | W120: =IF(LEFT(Q120,3)="ไม่","",IF(OR(LEFT(P120,1)="1",LEFT(P120,1)="2",LEFT(P120,1)="3",LEFT(P120,1)="4",LEFT(P120,1)="5",LEFT(P120,1)="6",LEFT(P120,1)="7"),0,IF(SUMIFS(Z$7:Z$7000,AL$7:AL$7000,B120&+D120&+E120&+"ถูกต้อง",AK$7:AK$7000,0)<'1.ข้อมูลส่วนบุคคล'!$G$26,1,0))) ->  | X120: 0 | Y120: 0 | Z120: 0 | AA120: 0 | AB120: ='1.ข้อมูลส่วนบุคคล'!$E$32 -> 2560-05-15 | AC120: 25600515 | AD120: 00:00:00 | AE120: 19000100 | AF120: -6600415 | AG120: 0 | AH120: =IF(AG120=1,IF(AN120=AN119,0,'1.ข้อมูลส่วนบุคคล'!G$26-IF(AND(LEFT(Q120,3)<>"ไม่",AK120=0),SUMIFS(Z$7:Z$7000,AN$7:AN$7000,AN120,AK$7:AK$7000,0),0)),0) -> 0 | AI120: 0 | AJ120: 0 | AK120: 0 | AL120: ไม่ถูกต้อง
A121: ='1.ข้อมูลส่วนบุคคล'!$F$5 -> 1234567891234 | K121: =IF('1.ข้อมูลส่วนบุคคล'!C$21="เชี่ยวชาญ",IF(H121="-","",IF(H121='1.ข้อมูลส่วนบุคคล'!F$26,"เกี่ยวข้อง","ไม่เกี่ยวข้อง")),IF('1.ข้อมูลส่วนบุคคล'!C$21="เชี่ยวชาญพิเศษ",IF(H121="-","",IF(H121='1.ข้อมูลส่วนบุคคล'!F$26,"เกี่ยวข้อง","ไม่เกี่ยวข้อง")),"")) ->  | O121: สอนตามตารางสอน | Q121: ไม่ถูกต้อง | U121: 0 | V121: 0 | W121: =IF(LEFT(Q121,3)="ไม่","",IF(OR(LEFT(P121,1)="1",LEFT(P121,1)="2",LEFT(P121,1)="3",LEFT(P121,1)="4",LEFT(P121,1)="5",LEFT(P121,1)="6",LEFT(P121,1)="7"),0,IF(SUMIFS(Z$7:Z$7000,AL$7:AL$7000,B121&+D121&+E121&+"ถูกต้อง",AK$7:AK$7000,0)<'1.ข้อมูลส่วนบุคคล'!$G$26,1,0))) ->  | X121: 0 | Y121: 0 | Z121: 0 | AA121: 0 | AB121: ='1.ข้อมูลส่วนบุคคล'!$E$32 -> 2560-05-15 | AC121: 25600515 | AD121: 00:00:00 | AE121: 19000100 | AF121: -6600415 | AG121: 0 | AH121: =IF(AG121=1,IF(AN121=AN120,0,'1.ข้อมูลส่วนบุคคล'!G$26-IF(AND(LEFT(Q121,3)<>"ไม่",AK121=0),SUMIFS(Z$7:Z$7000,AN$7:AN$7000,AN121,AK$7:AK$7000,0),0)),0) -> 0 | AI121: 0 | AJ121: 0 | AK121: 0 | AL121: ไม่ถูกต้อง
A122: ='1.ข้อมูลส่วนบุคคล'!$F$5 -> 1234567891234 | K122: =IF('1.ข้อมูลส่วนบุคคล'!C$21="เชี่ยวชาญ",IF(H122="-","",IF(H122='1.ข้อมูลส่วนบุคคล'!F$26,"เกี่ยวข้อง","ไม่เกี่ยวข้อง")),IF('1.ข้อมูลส่วนบุคคล'!C$21="เชี่ยวชาญพิเศษ",IF(H122="-","",IF(H122='1.ข้อมูลส่วนบุคคล'!F$26,"เกี่ยวข้อง","ไม่เกี่ยวข้อง")),"")) ->  | O122: สอนตามตารางสอน | Q122: ไม่ถูกต้อง | U122: 0 | V122: 0 | W122: =IF(LEFT(Q122,3)="ไม่","",IF(OR(LEFT(P122,1)="1",LEFT(P122,1)="2",LEFT(P122,1)="3",LEFT(P122,1)="4",LEFT(P122,1)="5",LEFT(P122,1)="6",LEFT(P122,1)="7"),0,IF(SUMIFS(Z$7:Z$7000,AL$7:AL$7000,B122&+D122&+E122&+"ถูกต้อง",AK$7:AK$7000,0)<'1.ข้อมูลส่วนบุคคล'!$G$26,1,0))) ->  | X122: 0 | Y122: 0 | Z122: 0 | AA122: 0 | AB122: ='1.ข้อมูลส่วนบุคคล'!$E$32 -> 2560-05-15 | AC122: 25600515 | AD122: 00:00:00 | AE122: 19000100 | AF122: -6600415 | AG122: 0 | AH122: =IF(AG122=1,IF(AN122=AN121,0,'1.ข้อมูลส่วนบุคคล'!G$26-IF(AND(LEFT(Q122,3)<>"ไม่",AK122=0),SUMIFS(Z$7:Z$7000,AN$7:AN$7000,AN122,AK$7:AK$7000,0),0)),0) -> 0 | AI122: 0 | AJ122: 0 | AK122: 0 | AL122: ไม่ถูกต้อง
A123: ='1.ข้อมูลส่วนบุคคล'!$F$5 -> 1234567891234 | K123: =IF('1.ข้อมูลส่วนบุคคล'!C$21="เชี่ยวชาญ",IF(H123="-","",IF(H123='1.ข้อมูลส่วนบุคคล'!F$26,"เกี่ยวข้อง","ไม่เกี่ยวข้อง")),IF('1.ข้อมูลส่วนบุคคล'!C$21="เชี่ยวชาญพิเศษ",IF(H123="-","",IF(H123='1.ข้อมูลส่วนบุคคล'!F$26,"เกี่ยวข้อง","ไม่เกี่ยวข้อง")),"")) ->  | O123: สอนตามตารางสอน | Q123: ไม่ถูกต้อง | U123: 0 | V123: 0 | W123: =IF(LEFT(Q123,3)="ไม่","",IF(OR(LEFT(P123,1)="1",LEFT(P123,1)="2",LEFT(P123,1)="3",LEFT(P123,1)="4",LEFT(P123,1)="5",LEFT(P123,1)="6",LEFT(P123,1)="7"),0,IF(SUMIFS(Z$7:Z$7000,AL$7:AL$7000,B123&+D123&+E123&+"ถูกต้อง",AK$7:AK$7000,0)<'1.ข้อมูลส่วนบุคคล'!$G$26,1,0))) ->  | X123: 0 | Y123: 0 | Z123: 0 | AA123: 0 | AB123: ='1.ข้อมูลส่วนบุคคล'!$E$32 -> 2560-05-15 | AC123: 25600515 | AD123: 00:00:00 | AE123: 19000100 | AF123: -6600415 | AG123: 0 | AH123: =IF(AG123=1,IF(AN123=AN122,0,'1.ข้อมูลส่วนบุคคล'!G$26-IF(AND(LEFT(Q123,3)<>"ไม่",AK123=0),SUMIFS(Z$7:Z$7000,AN$7:AN$7000,AN123,AK$7:AK$7000,0),0)),0) -> 0 | AI123: 0 | AJ123: 0 | AK123: 0 | AL123: ไม่ถูกต้อง
A124: ='1.ข้อมูลส่วนบุคคล'!$F$5 -> 1234567891234 | K124: =IF('1.ข้อมูลส่วนบุคคล'!C$21="เชี่ยวชาญ",IF(H124="-","",IF(H124='1.ข้อมูลส่วนบุคคล'!F$26,"เกี่ยวข้อง","ไม่เกี่ยวข้อง")),IF('1.ข้อมูลส่วนบุคคล'!C$21="เชี่ยวชาญพิเศษ",IF(H124="-","",IF(H124='1.ข้อมูลส่วนบุคคล'!F$26,"เกี่ยวข้อง","ไม่เกี่ยวข้อง")),"")) ->  | O124: สอนตามตารางสอน | Q124: ไม่ถูกต้อง | U124: 0 | V124: 0 | W124: =IF(LEFT(Q124,3)="ไม่","",IF(OR(LEFT(P124,1)="1",LEFT(P124,1)="2",LEFT(P124,1)="3",LEFT(P124,1)="4",LEFT(P124,1)="5",LEFT(P124,1)="6",LEFT(P124,1)="7"),0,IF(SUMIFS(Z$7:Z$7000,AL$7:AL$7000,B124&+D124&+E124&+"ถูกต้อง",AK$7:AK$7000,0)<'1.ข้อมูลส่วนบุคคล'!$G$26,1,0))) ->  | X124: 0 | Y124: 0 | Z124: 0 | AA124: 0 | AB124: ='1.ข้อมูลส่วนบุคคล'!$E$32 -> 2560-05-15 | AC124: 25600515 | AD124: 00:00:00 | AE124: 19000100 | AF124: -6600415 | AG124: 0 | AH124: =IF(AG124=1,IF(AN124=AN123,0,'1.ข้อมูลส่วนบุคคล'!G$26-IF(AND(LEFT(Q124,3)<>"ไม่",AK124=0),SUMIFS(Z$7:Z$7000,AN$7:AN$7000,AN124,AK$7:AK$7000,0),0)),0) -> 0 | AI124: 0 | AJ124: 0 | AK124: 0 | AL124: ไม่ถูกต้อง
A125: ='1.ข้อมูลส่วนบุคคล'!$F$5 -> 1234567891234 | K125: =IF('1.ข้อมูลส่วนบุคคล'!C$21="เชี่ยวชาญ",IF(H125="-","",IF(H125='1.ข้อมูลส่วนบุคคล'!F$26,"เกี่ยวข้อง","ไม่เกี่ยวข้อง")),IF('1.ข้อมูลส่วนบุคคล'!C$21="เชี่ยวชาญพิเศษ",IF(H125="-","",IF(H125='1.ข้อมูลส่วนบุคคล'!F$26,"เกี่ยวข้อง","ไม่เกี่ยวข้อง")),"")) ->  | O125: สอนตามตารางสอน | Q125: ไม่ถูกต้อง | U125: 0 | V125: 0 | W125: =IF(LEFT(Q125,3)="ไม่","",IF(OR(LEFT(P125,1)="1",LEFT(P125,1)="2",LEFT(P125,1)="3",LEFT(P125,1)="4",LEFT(P125,1)="5",LEFT(P125,1)="6",LEFT(P125,1)="7"),0,IF(SUMIFS(Z$7:Z$7000,AL$7:AL$7000,B125&+D125&+E125&+"ถูกต้อง",AK$7:AK$7000,0)<'1.ข้อมูลส่วนบุคคล'!$G$26,1,0))) ->  | X125: 0 | Y125: 0 | Z125: 0 | AA125: 0 | AB125: ='1.ข้อมูลส่วนบุคคล'!$E$32 -> 2560-05-15 | AC125: 25600515 | AD125: 00:00:00 | AE125: 19000100 | AF125: -6600415 | AG125: 0 | AH125: =IF(AG125=1,IF(AN125=AN124,0,'1.ข้อมูลส่วนบุคคล'!G$26-IF(AND(LEFT(Q125,3)<>"ไม่",AK125=0),SUMIFS(Z$7:Z$7000,AN$7:AN$7000,AN125,AK$7:AK$7000,0),0)),0) -> 0 | AI125: 0 | AJ125: 0 | AK125: 0 | AL125: ไม่ถูกต้อง
A126: ='1.ข้อมูลส่วนบุคคล'!$F$5 -> 1234567891234 | K126: =IF('1.ข้อมูลส่วนบุคคล'!C$21="เชี่ยวชาญ",IF(H126="-","",IF(H126='1.ข้อมูลส่วนบุคคล'!F$26,"เกี่ยวข้อง","ไม่เกี่ยวข้อง")),IF('1.ข้อมูลส่วนบุคคล'!C$21="เชี่ยวชาญพิเศษ",IF(H126="-","",IF(H126='1.ข้อมูลส่วนบุคคล'!F$26,"เกี่ยวข้อง","ไม่เกี่ยวข้อง")),"")) ->  | O126: สอนตามตารางสอน | Q126: ไม่ถูกต้อง | U126: 0 | V126: 0 | W126: =IF(LEFT(Q126,3)="ไม่","",IF(OR(LEFT(P126,1)="1",LEFT(P126,1)="2",LEFT(P126,1)="3",LEFT(P126,1)="4",LEFT(P126,1)="5",LEFT(P126,1)="6",LEFT(P126,1)="7"),0,IF(SUMIFS(Z$7:Z$7000,AL$7:AL$7000,B126&+D126&+E126&+"ถูกต้อง",AK$7:AK$7000,0)<'1.ข้อมูลส่วนบุคคล'!$G$26,1,0))) ->  | X126: 0 | Y126: 0 | Z126: 0 | AA126: 0 | AB126: ='1.ข้อมูลส่วนบุคคล'!$E$32 -> 2560-05-15 | AC126: 25600515 | AD126: 00:00:00 | AE126: 19000100 | AF126: -6600415 | AG126: 0 | AH126: =IF(AG126=1,IF(AN126=AN125,0,'1.ข้อมูลส่วนบุคคล'!G$26-IF(AND(LEFT(Q126,3)<>"ไม่",AK126=0),SUMIFS(Z$7:Z$7000,AN$7:AN$7000,AN126,AK$7:AK$7000,0),0)),0) -> 0 | AI126: 0 | AJ126: 0 | AK126: 0 | AL126: ไม่ถูกต้อง
A127: ='1.ข้อมูลส่วนบุคคล'!$F$5 -> 1234567891234 | K127: =IF('1.ข้อมูลส่วนบุคคล'!C$21="เชี่ยวชาญ",IF(H127="-","",IF(H127='1.ข้อมูลส่วนบุคคล'!F$26,"เกี่ยวข้อง","ไม่เกี่ยวข้อง")),IF('1.ข้อมูลส่วนบุคคล'!C$21="เชี่ยวชาญพิเศษ",IF(H127="-","",IF(H127='1.ข้อมูลส่วนบุคคล'!F$26,"เกี่ยวข้อง","ไม่เกี่ยวข้อง")),"")) ->  | O127: สอนตามตารางสอน | Q127: ไม่ถูกต้อง | U127: 0 | V127: 0 | W127: =IF(LEFT(Q127,3)="ไม่","",IF(OR(LEFT(P127,1)="1",LEFT(P127,1)="2",LEFT(P127,1)="3",LEFT(P127,1)="4",LEFT(P127,1)="5",LEFT(P127,1)="6",LEFT(P127,1)="7"),0,IF(SUMIFS(Z$7:Z$7000,AL$7:AL$7000,B127&+D127&+E127&+"ถูกต้อง",AK$7:AK$7000,0)<'1.ข้อมูลส่วนบุคคล'!$G$26,1,0))) ->  | X127: 0 | Y127: 0 | Z127: 0 | AA127: 0 | AB127: ='1.ข้อมูลส่วนบุคคล'!$E$32 -> 2560-05-15 | AC127: 25600515 | AD127: 00:00:00 | AE127: 19000100 | AF127: -6600415 | AG127: 0 | AH127: =IF(AG127=1,IF(AN127=AN126,0,'1.ข้อมูลส่วนบุคคล'!G$26-IF(AND(LEFT(Q127,3)<>"ไม่",AK127=0),SUMIFS(Z$7:Z$7000,AN$7:AN$7000,AN127,AK$7:AK$7000,0),0)),0) -> 0 | AI127: 0 | AJ127: 0 | AK127: 0 | AL127: ไม่ถูกต้อง
A128: ='1.ข้อมูลส่วนบุคคล'!$F$5 -> 1234567891234 | K128: =IF('1.ข้อมูลส่วนบุคคล'!C$21="เชี่ยวชาญ",IF(H128="-","",IF(H128='1.ข้อมูลส่วนบุคคล'!F$26,"เกี่ยวข้อง","ไม่เกี่ยวข้อง")),IF('1.ข้อมูลส่วนบุคคล'!C$21="เชี่ยวชาญพิเศษ",IF(H128="-","",IF(H128='1.ข้อมูลส่วนบุคคล'!F$26,"เกี่ยวข้อง","ไม่เกี่ยวข้อง")),"")) ->  | O128: สอนตามตารางสอน | Q128: ไม่ถูกต้อง | U128: 0 | V128: 0 | W128: =IF(LEFT(Q128,3)="ไม่","",IF(OR(LEFT(P128,1)="1",LEFT(P128,1)="2",LEFT(P128,1)="3",LEFT(P128,1)="4",LEFT(P128,1)="5",LEFT(P128,1)="6",LEFT(P128,1)="7"),0,IF(SUMIFS(Z$7:Z$7000,AL$7:AL$7000,B128&+D128&+E128&+"ถูกต้อง",AK$7:AK$7000,0)<'1.ข้อมูลส่วนบุคคล'!$G$26,1,0))) ->  | X128: 0 | Y128: 0 | Z128: 0 | AA128: 0 | AB128: ='1.ข้อมูลส่วนบุคคล'!$E$32 -> 2560-05-15 | AC128: 25600515 | AD128: 00:00:00 | AE128: 19000100 | AF128: -6600415 | AG128: 0 | AH128: =IF(AG128=1,IF(AN128=AN127,0,'1.ข้อมูลส่วนบุคคล'!G$26-IF(AND(LEFT(Q128,3)<>"ไม่",AK128=0),SUMIFS(Z$7:Z$7000,AN$7:AN$7000,AN128,AK$7:AK$7000,0),0)),0) -> 0 | AI128: 0 | AJ128: 0 | AK128: 0 | AL128: ไม่ถูกต้อง
A129: ='1.ข้อมูลส่วนบุคคล'!$F$5 -> 1234567891234 | K129: =IF('1.ข้อมูลส่วนบุคคล'!C$21="เชี่ยวชาญ",IF(H129="-","",IF(H129='1.ข้อมูลส่วนบุคคล'!F$26,"เกี่ยวข้อง","ไม่เกี่ยวข้อง")),IF('1.ข้อมูลส่วนบุคคล'!C$21="เชี่ยวชาญพิเศษ",IF(H129="-","",IF(H129='1.ข้อมูลส่วนบุคคล'!F$26,"เกี่ยวข้อง","ไม่เกี่ยวข้อง")),"")) ->  | O129: สอนตามตารางสอน | Q129: ไม่ถูกต้อง | U129: 0 | V129: 0 | W129: =IF(LEFT(Q129,3)="ไม่","",IF(OR(LEFT(P129,1)="1",LEFT(P129,1)="2",LEFT(P129,1)="3",LEFT(P129,1)="4",LEFT(P129,1)="5",LEFT(P129,1)="6",LEFT(P129,1)="7"),0,IF(SUMIFS(Z$7:Z$7000,AL$7:AL$7000,B129&+D129&+E129&+"ถูกต้อง",AK$7:AK$7000,0)<'1.ข้อมูลส่วนบุคคล'!$G$26,1,0))) ->  | X129: 0 | Y129: 0 | Z129: 0 | AA129: 0 | AB129: ='1.ข้อมูลส่วนบุคคล'!$E$32 -> 2560-05-15 | AC129: 25600515 | AD129: 00:00:00 | AE129: 19000100 | AF129: -6600415 | AG129: 0 | AH129: =IF(AG129=1,IF(AN129=AN128,0,'1.ข้อมูลส่วนบุคคล'!G$26-IF(AND(LEFT(Q129,3)<>"ไม่",AK129=0),SUMIFS(Z$7:Z$7000,AN$7:AN$7000,AN129,AK$7:AK$7000,0),0)),0) -> 0 | AI129: 0 | AJ129: 0 | AK129: 0 | AL129: ไม่ถูกต้อง
A130: ='1.ข้อมูลส่วนบุคคล'!$F$5 -> 1234567891234 | K130: =IF('1.ข้อมูลส่วนบุคคล'!C$21="เชี่ยวชาญ",IF(H130="-","",IF(H130='1.ข้อมูลส่วนบุคคล'!F$26,"เกี่ยวข้อง","ไม่เกี่ยวข้อง")),IF('1.ข้อมูลส่วนบุคคล'!C$21="เชี่ยวชาญพิเศษ",IF(H130="-","",IF(H130='1.ข้อมูลส่วนบุคคล'!F$26,"เกี่ยวข้อง","ไม่เกี่ยวข้อง")),"")) ->  | O130: สอนตามตารางสอน | Q130: ไม่ถูกต้อง | U130: 0 | V130: 0 | W130: =IF(LEFT(Q130,3)="ไม่","",IF(OR(LEFT(P130,1)="1",LEFT(P130,1)="2",LEFT(P130,1)="3",LEFT(P130,1)="4",LEFT(P130,1)="5",LEFT(P130,1)="6",LEFT(P130,1)="7"),0,IF(SUMIFS(Z$7:Z$7000,AL$7:AL$7000,B130&+D130&+E130&+"ถูกต้อง",AK$7:AK$7000,0)<'1.ข้อมูลส่วนบุคคล'!$G$26,1,0))) ->  | X130: 0 | Y130: 0 | Z130: 0 | AA130: 0 | AB130: ='1.ข้อมูลส่วนบุคคล'!$E$32 -> 2560-05-15 | AC130: 25600515 | AD130: 00:00:00 | AE130: 19000100 | AF130: -6600415 | AG130: 0 | AH130: =IF(AG130=1,IF(AN130=AN129,0,'1.ข้อมูลส่วนบุคคล'!G$26-IF(AND(LEFT(Q130,3)<>"ไม่",AK130=0),SUMIFS(Z$7:Z$7000,AN$7:AN$7000,AN130,AK$7:AK$7000,0),0)),0) -> 0 | AI130: 0 | AJ130: 0 | AK130: 0 | AL130: ไม่ถูกต้อง
A131: ='1.ข้อมูลส่วนบุคคล'!$F$5 -> 1234567891234 | K131: =IF('1.ข้อมูลส่วนบุคคล'!C$21="เชี่ยวชาญ",IF(H131="-","",IF(H131='1.ข้อมูลส่วนบุคคล'!F$26,"เกี่ยวข้อง","ไม่เกี่ยวข้อง")),IF('1.ข้อมูลส่วนบุคคล'!C$21="เชี่ยวชาญพิเศษ",IF(H131="-","",IF(H131='1.ข้อมูลส่วนบุคคล'!F$26,"เกี่ยวข้อง","ไม่เกี่ยวข้อง")),"")) ->  | O131: สอนตามตารางสอน | Q131: ไม่ถูกต้อง | U131: 0 | V131: 0 | W131: =IF(LEFT(Q131,3)="ไม่","",IF(OR(LEFT(P131,1)="1",LEFT(P131,1)="2",LEFT(P131,1)="3",LEFT(P131,1)="4",LEFT(P131,1)="5",LEFT(P131,1)="6",LEFT(P131,1)="7"),0,IF(SUMIFS(Z$7:Z$7000,AL$7:AL$7000,B131&+D131&+E131&+"ถูกต้อง",AK$7:AK$7000,0)<'1.ข้อมูลส่วนบุคคล'!$G$26,1,0))) ->  | X131: 0 | Y131: 0 | Z131: 0 | AA131: 0 | AB131: ='1.ข้อมูลส่วนบุคคล'!$E$32 -> 2560-05-15 | AC131: 25600515 | AD131: 00:00:00 | AE131: 19000100 | AF131: -6600415 | AG131: 0 | AH131: =IF(AG131=1,IF(AN131=AN130,0,'1.ข้อมูลส่วนบุคคล'!G$26-IF(AND(LEFT(Q131,3)<>"ไม่",AK131=0),SUMIFS(Z$7:Z$7000,AN$7:AN$7000,AN131,AK$7:AK$7000,0),0)),0) -> 0 | AI131: 0 | AJ131: 0 | AK131: 0 | AL131: ไม่ถูกต้อง
A132: ='1.ข้อมูลส่วนบุคคล'!$F$5 -> 1234567891234 | K132: =IF('1.ข้อมูลส่วนบุคคล'!C$21="เชี่ยวชาญ",IF(H132="-","",IF(H132='1.ข้อมูลส่วนบุคคล'!F$26,"เกี่ยวข้อง","ไม่เกี่ยวข้อง")),IF('1.ข้อมูลส่วนบุคคล'!C$21="เชี่ยวชาญพิเศษ",IF(H132="-","",IF(H132='1.ข้อมูลส่วนบุคคล'!F$26,"เกี่ยวข้อง","ไม่เกี่ยวข้อง")),"")) ->  | O132: สอนตามตารางสอน | Q132: ไม่ถูกต้อง | U132: 0 | V132: 0 | W132: =IF(LEFT(Q132,3)="ไม่","",IF(OR(LEFT(P132,1)="1",LEFT(P132,1)="2",LEFT(P132,1)="3",LEFT(P132,1)="4",LEFT(P132,1)="5",LEFT(P132,1)="6",LEFT(P132,1)="7"),0,IF(SUMIFS(Z$7:Z$7000,AL$7:AL$7000,B132&+D132&+E132&+"ถูกต้อง",AK$7:AK$7000,0)<'1.ข้อมูลส่วนบุคคล'!$G$26,1,0))) ->  | X132: 0 | Y132: 0 | Z132: 0 | AA132: 0 | AB132: ='1.ข้อมูลส่วนบุคคล'!$E$32 -> 2560-05-15 | AC132: 25600515 | AD132: 00:00:00 | AE132: 19000100 | AF132: -6600415 | AG132: 0 | AH132: =IF(AG132=1,IF(AN132=AN131,0,'1.ข้อมูลส่วนบุคคล'!G$26-IF(AND(LEFT(Q132,3)<>"ไม่",AK132=0),SUMIFS(Z$7:Z$7000,AN$7:AN$7000,AN132,AK$7:AK$7000,0),0)),0) -> 0 | AI132: 0 | AJ132: 0 | AK132: 0 | AL132: ไม่ถูกต้อง
A133: ='1.ข้อมูลส่วนบุคคล'!$F$5 -> 1234567891234 | K133: =IF('1.ข้อมูลส่วนบุคคล'!C$21="เชี่ยวชาญ",IF(H133="-","",IF(H133='1.ข้อมูลส่วนบุคคล'!F$26,"เกี่ยวข้อง","ไม่เกี่ยวข้อง")),IF('1.ข้อมูลส่วนบุคคล'!C$21="เชี่ยวชาญพิเศษ",IF(H133="-","",IF(H133='1.ข้อมูลส่วนบุคคล'!F$26,"เกี่ยวข้อง","ไม่เกี่ยวข้อง")),"")) ->  | O133: สอนตามตารางสอน | Q133: ไม่ถูกต้อง | U133: 0 | V133: 0 | W133: =IF(LEFT(Q133,3)="ไม่","",IF(OR(LEFT(P133,1)="1",LEFT(P133,1)="2",LEFT(P133,1)="3",LEFT(P133,1)="4",LEFT(P133,1)="5",LEFT(P133,1)="6",LEFT(P133,1)="7"),0,IF(SUMIFS(Z$7:Z$7000,AL$7:AL$7000,B133&+D133&+E133&+"ถูกต้อง",AK$7:AK$7000,0)<'1.ข้อมูลส่วนบุคคล'!$G$26,1,0))) ->  | X133: 0 | Y133: 0 | Z133: 0 | AA133: 0 | AB133: ='1.ข้อมูลส่วนบุคคล'!$E$32 -> 2560-05-15 | AC133: 25600515 | AD133: 00:00:00 | AE133: 19000100 | AF133: -6600415 | AG133: 0 | AH133: =IF(AG133=1,IF(AN133=AN132,0,'1.ข้อมูลส่วนบุคคล'!G$26-IF(AND(LEFT(Q133,3)<>"ไม่",AK133=0),SUMIFS(Z$7:Z$7000,AN$7:AN$7000,AN133,AK$7:AK$7000,0),0)),0) -> 0 | AI133: 0 | AJ133: 0 | AK133: 0 | AL133: ไม่ถูกต้อง
A134: ='1.ข้อมูลส่วนบุคคล'!$F$5 -> 1234567891234 | K134: =IF('1.ข้อมูลส่วนบุคคล'!C$21="เชี่ยวชาญ",IF(H134="-","",IF(H134='1.ข้อมูลส่วนบุคคล'!F$26,"เกี่ยวข้อง","ไม่เกี่ยวข้อง")),IF('1.ข้อมูลส่วนบุคคล'!C$21="เชี่ยวชาญพิเศษ",IF(H134="-","",IF(H134='1.ข้อมูลส่วนบุคคล'!F$26,"เกี่ยวข้อง","ไม่เกี่ยวข้อง")),"")) ->  | O134: สอนตามตารางสอน | Q134: ไม่ถูกต้อง | U134: 0 | V134: 0 | W134: =IF(LEFT(Q134,3)="ไม่","",IF(OR(LEFT(P134,1)="1",LEFT(P134,1)="2",LEFT(P134,1)="3",LEFT(P134,1)="4",LEFT(P134,1)="5",LEFT(P134,1)="6",LEFT(P134,1)="7"),0,IF(SUMIFS(Z$7:Z$7000,AL$7:AL$7000,B134&+D134&+E134&+"ถูกต้อง",AK$7:AK$7000,0)<'1.ข้อมูลส่วนบุคคล'!$G$26,1,0))) ->  | X134: 0 | Y134: 0 | Z134: 0 | AA134: 0 | AB134: ='1.ข้อมูลส่วนบุคคล'!$E$32 -> 2560-05-15 | AC134: 25600515 | AD134: 00:00:00 | AE134: 19000100 | AF134: -6600415 | AG134: 0 | AH134: =IF(AG134=1,IF(AN134=AN133,0,'1.ข้อมูลส่วนบุคคล'!G$26-IF(AND(LEFT(Q134,3)<>"ไม่",AK134=0),SUMIFS(Z$7:Z$7000,AN$7:AN$7000,AN134,AK$7:AK$7000,0),0)),0) -> 0 | AI134: 0 | AJ134: 0 | AK134: 0 | AL134: ไม่ถูกต้อง
A135: ='1.ข้อมูลส่วนบุคคล'!$F$5 -> 1234567891234 | K135: =IF('1.ข้อมูลส่วนบุคคล'!C$21="เชี่ยวชาญ",IF(H135="-","",IF(H135='1.ข้อมูลส่วนบุคคล'!F$26,"เกี่ยวข้อง","ไม่เกี่ยวข้อง")),IF('1.ข้อมูลส่วนบุคคล'!C$21="เชี่ยวชาญพิเศษ",IF(H135="-","",IF(H135='1.ข้อมูลส่วนบุคคล'!F$26,"เกี่ยวข้อง","ไม่เกี่ยวข้อง")),"")) ->  | O135: สอนตามตารางสอน | Q135: ไม่ถูกต้อง | S135: =C135&+D135&+E135&+J135&+LEFT(I135,20) ->  | U135: =IF(LEFT(Q135,3)="ไม่",0,IF(L135="","",B135)) -> 0 | V135: =IF(K135="เกี่ยวข้อง",1,0) -> 0 | W135: =IF(LEFT(Q135,3)="ไม่","",IF(OR(LEFT(P135,1)="1",LEFT(P135,1)="2",LEFT(P135,1)="3",LEFT(P135,1)="4",LEFT(P135,1)="5",LEFT(P135,1)="6",LEFT(P135,1)="7"),0,IF(SUMIFS(Z$7:Z$7000,AL$7:AL$7000,B135&+D135&+E135&+"ถูกต้อง",AK$7:AK$7000,0)<'1.ข้อมูลส่วนบุคคล'!$G$26,1,0))) ->  | X135: =IF(Q135="ไม่ถูกต้อง",0,IF(N135="นาที",(L135*M135)/60,L135*M135)) -> 0 | Y135: 0 | Z135: 0 | AA135: 0 | AB135: ='1.ข้อมูลส่วนบุคคล'!$E$32 -> 2560-05-15 | AC135: 25600515 | AD135: =F135 -> 00:00:00 | AE135: 19000100 | AF135: -6600415 | AG135: =IF(LEFT(P135,1)="7",1,0) -> 0 | AH135: =IF(AG135=1,IF(AN135=AN134,0,'1.ข้อมูลส่วนบุคคล'!G$26-IF(AND(LEFT(Q135,3)<>"ไม่",AK135=0),SUMIFS(Z$7:Z$7000,AN$7:AN$7000,AN135,AK$7:AK$7000,0),0)),0) -> 0 | AI135: =IF(O135="สอนซ่อมเสริม",Z135,0) -> 0 | AJ135: =IF(SUMIF(AM$7:AM$7000,C135&+D135,AI$7:AI$7000)-SUMIF(AM$7:AM$7000,C135&+D135,AH$7:AH$7000)<0,1,0) -> 0 | AK135: =IF(O135="สอนซ่อมเสริม",1,0) -> 0 | AL135: =B135&+D135&+E135&+Q135 -> ไม่ถูกต้อง | AM135: =C135&+D135 ->  | AN135: =C135&+E135 -> 
A136: ='1.ข้อมูลส่วนบุคคล'!$F$5 -> 1234567891234 | B136: =IF(AF136<0,"",IF(DATEDIF(AB136,AD136,"y")+(DATEDIF(AB136,AD136,"ym")/10)<=1,1,IF(DATEDIF(AB136,AD136,"y")+(DATEDIF(AB136,AD136,"ym")/10)<=2,2,IF(DATEDIF(AB136,AD136,"y")+(DATEDIF(AB136,AD136,"ym")/10)<=3,3,IF(DATEDIF(AB136,AD136,"y")+(DATEDIF(AB136,AD136,"ym")/10)<=4,4,IF(DATEDIF(AB136,AD136,"y")+(DATEDIF(AB136,AD136,"ym")/10)<=5,5,IF(DATEDIF(AB136,AD136,"y")+(DATEDIF(AB136,AD136,"ym")/10)<=6,6,IF(DATEDIF(AB136,AD136,"y")+(DATEDIF(AB136,AD136,"ym")/10)<=7,7,IF(DATEDIF(AB136,AD136,"y")+(DATEDIF(AB136,AD136,"ym")/10)<=8,8,IF(DATEDIF(AB136,AD136,"y")+(DATEDIF(AB136,AD136,"ym")/10)<=9,9,IF(DATEDIF(AB136,AD136,"y")+(DATEDIF(AB136,AD136,"ym")/10)<=10,10,"ไม่ถูกต้อง"))))))))))) ->  | K136: =IF('1.ข้อมูลส่วนบุคคล'!C$21="เชี่ยวชาญ",IF(H136="-","",IF(H136='1.ข้อมูลส่วนบุคคล'!F$26,"เกี่ยวข้อง","ไม่เกี่ยวข้อง")),IF('1.ข้อมูลส่วนบุคคล'!C$21="เชี่ยวชาญพิเศษ",IF(H136="-","",IF(H136='1.ข้อมูลส่วนบุคคล'!F$26,"เกี่ยวข้อง","ไม่เกี่ยวข้อง")),"")) ->  | O136: สอนตามตารางสอน | Q136: ไม่ถูกต้อง | R136: =S136 ->  | U136: 0 | V136: 0 | W136: =IF(LEFT(Q136,3)="ไม่","",IF(OR(LEFT(P136,1)="1",LEFT(P136,1)="2",LEFT(P136,1)="3",LEFT(P136,1)="4",LEFT(P136,1)="5",LEFT(P136,1)="6",LEFT(P136,1)="7"),0,IF(SUMIFS(Z$7:Z$7000,AL$7:AL$7000,B136&+D136&+E136&+"ถูกต้อง",AK$7:AK$7000,0)<'1.ข้อมูลส่วนบุคคล'!$G$26,1,0))) ->  | X136: 0 | Y136: 0 | Z136: =ROUNDDOWN(X136,0)+Y136 -> 0 | AA136: =IF(ISBLANK(E136),0,IF(ISBLANK(D136),IF(AND(C136=C135,E136=E135),0,IF(AND(C136=C135,E136=(E135+1)),0,IF(AND(C136=(C135+1),E136=1,E135>=18),0,1))),IF(AND(C136=C135,D136=D135,E136=E135),0,IF(AND(C136=C135,D136=D135,E136=(E135+1)),0,IF(AND(C136=C135,D136=(D135+1),E136=1,E135>=18),0,IF(AND(C136=(C135+1),D136=1,E136=1,E135>=18),0,1)))))) -> 0 | AB136: ='1.ข้อมูลส่วนบุคคล'!$E$32 -> 2560-05-15 | AC136: =TEXT(AB136,"yyyy")&+IF(TEXT(AB136,"mm")>9,TEXT(AB136,"mm"),"0"&+TEXT(AB136,"mm"))&+IF(TEXT(AB136,"dd")>9,TEXT(AB136,"dd"),"0"&+TEXT(AB136,"dd")) -> 25600515 | AD136: 00:00:00 | AE136: =TEXT(AD136,"yyyy")&+IF(TEXT(AD136,"mm")>9,TEXT(AD136,"mm"),"0"&+TEXT(AD136,"mm"))&+IF(TEXT(AD136,"dd")>9,TEXT(AD136,"dd"),"0"&+TEXT(AD136,"dd")) -> 19000100 | AF136: =AE136-AC136 -> -6600415 | AG136: 0 | AH136: =IF(AG136=1,IF(AN136=AN135,0,'1.ข้อมูลส่วนบุคคล'!G$26-IF(AND(LEFT(Q136,3)<>"ไม่",AK136=0),SUMIFS(Z$7:Z$7000,AN$7:AN$7000,AN136,AK$7:AK$7000,0),0)),0) -> 0 | AI136: 0 | AJ136: 0 | AK136: 0 | AL136: ไม่ถูกต้อง
A137: ='1.ข้อมูลส่วนบุคคล'!$F$5 -> 1234567891234 | K137: =IF('1.ข้อมูลส่วนบุคคล'!C$21="เชี่ยวชาญ",IF(H137="-","",IF(H137='1.ข้อมูลส่วนบุคคล'!F$26,"เกี่ยวข้อง","ไม่เกี่ยวข้อง")),IF('1.ข้อมูลส่วนบุคคล'!C$21="เชี่ยวชาญพิเศษ",IF(H137="-","",IF(H137='1.ข้อมูลส่วนบุคคล'!F$26,"เกี่ยวข้อง","ไม่เกี่ยวข้อง")),"")) ->  | O137: สอนตามตารางสอน | Q137: ไม่ถูกต้อง | U137: 0 | V137: 0 | W137: =IF(LEFT(Q137,3)="ไม่","",IF(OR(LEFT(P137,1)="1",LEFT(P137,1)="2",LEFT(P137,1)="3",LEFT(P137,1)="4",LEFT(P137,1)="5",LEFT(P137,1)="6",LEFT(P137,1)="7"),0,IF(SUMIFS(Z$7:Z$7000,AL$7:AL$7000,B137&+D137&+E137&+"ถูกต้อง",AK$7:AK$7000,0)<'1.ข้อมูลส่วนบุคคล'!$G$26,1,0))) ->  | X137: 0 | Y137: =(MOD(X137,1))*60/100 -> 0 | Z137: 0 | AA137: 0 | AB137: ='1.ข้อมูลส่วนบุคคล'!$E$32 -> 2560-05-15 | AC137: 25600515 | AD137: 00:00:00 | AE137: 19000100 | AF137: -6600415 | AG137: 0 | AH137: =IF(AG137=1,IF(AN137=AN136,0,'1.ข้อมูลส่วนบุคคล'!G$26-IF(AND(LEFT(Q137,3)<>"ไม่",AK137=0),SUMIFS(Z$7:Z$7000,AN$7:AN$7000,AN137,AK$7:AK$7000,0),0)),0) -> 0 | AI137: 0 | AJ137: 0 | AK137: 0 | AL137: ไม่ถูกต้อง
A138: ='1.ข้อมูลส่วนบุคคล'!$F$5 -> 1234567891234 | K138: =IF('1.ข้อมูลส่วนบุคคล'!C$21="เชี่ยวชาญ",IF(H138="-","",IF(H138='1.ข้อมูลส่วนบุคคล'!F$26,"เกี่ยวข้อง","ไม่เกี่ยวข้อง")),IF('1.ข้อมูลส่วนบุคคล'!C$21="เชี่ยวชาญพิเศษ",IF(H138="-","",IF(H138='1.ข้อมูลส่วนบุคคล'!F$26,"เกี่ยวข้อง","ไม่เกี่ยวข้อง")),"")) ->  | O138: สอนตามตารางสอน | Q138: ไม่ถูกต้อง | U138: 0 | V138: 0 | W138: =IF(LEFT(Q138,3)="ไม่","",IF(OR(LEFT(P138,1)="1",LEFT(P138,1)="2",LEFT(P138,1)="3",LEFT(P138,1)="4",LEFT(P138,1)="5",LEFT(P138,1)="6",LEFT(P138,1)="7"),0,IF(SUMIFS(Z$7:Z$7000,AL$7:AL$7000,B138&+D138&+E138&+"ถูกต้อง",AK$7:AK$7000,0)<'1.ข้อมูลส่วนบุคคล'!$G$26,1,0))) ->  | X138: 0 | Y138: 0 | Z138: 0 | AA138: 0 | AB138: ='1.ข้อมูลส่วนบุคคล'!$E$32 -> 2560-05-15 | AC138: 25600515 | AD138: 00:00:00 | AE138: 19000100 | AF138: -6600415 | AG138: 0 | AH138: =IF(AG138=1,IF(AN138=AN137,0,'1.ข้อมูลส่วนบุคคล'!G$26-IF(AND(LEFT(Q138,3)<>"ไม่",AK138=0),SUMIFS(Z$7:Z$7000,AN$7:AN$7000,AN138,AK$7:AK$7000,0),0)),0) -> 0 | AI138: 0 | AJ138: 0 | AK138: 0 | AL138: ไม่ถูกต้อง
A139: ='1.ข้อมูลส่วนบุคคล'!$F$5 -> 1234567891234 | K139: =IF('1.ข้อมูลส่วนบุคคล'!C$21="เชี่ยวชาญ",IF(H139="-","",IF(H139='1.ข้อมูลส่วนบุคคล'!F$26,"เกี่ยวข้อง","ไม่เกี่ยวข้อง")),IF('1.ข้อมูลส่วนบุคคล'!C$21="เชี่ยวชาญพิเศษ",IF(H139="-","",IF(H139='1.ข้อมูลส่วนบุคคล'!F$26,"เกี่ยวข้อง","ไม่เกี่ยวข้อง")),"")) ->  | O139: สอนตามตารางสอน | Q139: ไม่ถูกต้อง | U139: 0 | V139: 0 | W139: =IF(LEFT(Q139,3)="ไม่","",IF(OR(LEFT(P139,1)="1",LEFT(P139,1)="2",LEFT(P139,1)="3",LEFT(P139,1)="4",LEFT(P139,1)="5",LEFT(P139,1)="6",LEFT(P139,1)="7"),0,IF(SUMIFS(Z$7:Z$7000,AL$7:AL$7000,B139&+D139&+E139&+"ถูกต้อง",AK$7:AK$7000,0)<'1.ข้อมูลส่วนบุคคล'!$G$26,1,0))) ->  | X139: 0 | Y139: 0 | Z139: 0 | AA139: 0 | AB139: ='1.ข้อมูลส่วนบุคคล'!$E$32 -> 2560-05-15 | AC139: 25600515 | AD139: 00:00:00 | AE139: 19000100 | AF139: -6600415 | AG139: 0 | AH139: =IF(AG139=1,IF(AN139=AN138,0,'1.ข้อมูลส่วนบุคคล'!G$26-IF(AND(LEFT(Q139,3)<>"ไม่",AK139=0),SUMIFS(Z$7:Z$7000,AN$7:AN$7000,AN139,AK$7:AK$7000,0),0)),0) -> 0 | AI139: 0 | AJ139: 0 | AK139: 0 | AL139: ไม่ถูกต้อง
A140: ='1.ข้อมูลส่วนบุคคล'!$F$5 -> 1234567891234 | K140: =IF('1.ข้อมูลส่วนบุคคล'!C$21="เชี่ยวชาญ",IF(H140="-","",IF(H140='1.ข้อมูลส่วนบุคคล'!F$26,"เกี่ยวข้อง","ไม่เกี่ยวข้อง")),IF('1.ข้อมูลส่วนบุคคล'!C$21="เชี่ยวชาญพิเศษ",IF(H140="-","",IF(H140='1.ข้อมูลส่วนบุคคล'!F$26,"เกี่ยวข้อง","ไม่เกี่ยวข้อง")),"")) ->  | O140: สอนตามตารางสอน | Q140: ไม่ถูกต้อง | U140: 0 | V140: 0 | W140: =IF(LEFT(Q140,3)="ไม่","",IF(OR(LEFT(P140,1)="1",LEFT(P140,1)="2",LEFT(P140,1)="3",LEFT(P140,1)="4",LEFT(P140,1)="5",LEFT(P140,1)="6",LEFT(P140,1)="7"),0,IF(SUMIFS(Z$7:Z$7000,AL$7:AL$7000,B140&+D140&+E140&+"ถูกต้อง",AK$7:AK$7000,0)<'1.ข้อมูลส่วนบุคคล'!$G$26,1,0))) ->  | X140: 0 | Y140: 0 | Z140: 0 | AA140: 0 | AB140: ='1.ข้อมูลส่วนบุคคล'!$E$32 -> 2560-05-15 | AC140: 25600515 | AD140: 00:00:00 | AE140: 19000100 | AF140: -6600415 | AG140: 0 | AH140: =IF(AG140=1,IF(AN140=AN139,0,'1.ข้อมูลส่วนบุคคล'!G$26-IF(AND(LEFT(Q140,3)<>"ไม่",AK140=0),SUMIFS(Z$7:Z$7000,AN$7:AN$7000,AN140,AK$7:AK$7000,0),0)),0) -> 0 | AI140: 0 | AJ140: 0 | AK140: 0 | AL140: ไม่ถูกต้อง
A141: ='1.ข้อมูลส่วนบุคคล'!$F$5 -> 1234567891234 | K141: =IF('1.ข้อมูลส่วนบุคคล'!C$21="เชี่ยวชาญ",IF(H141="-","",IF(H141='1.ข้อมูลส่วนบุคคล'!F$26,"เกี่ยวข้อง","ไม่เกี่ยวข้อง")),IF('1.ข้อมูลส่วนบุคคล'!C$21="เชี่ยวชาญพิเศษ",IF(H141="-","",IF(H141='1.ข้อมูลส่วนบุคคล'!F$26,"เกี่ยวข้อง","ไม่เกี่ยวข้อง")),"")) ->  | O141: สอนตามตารางสอน | Q141: ไม่ถูกต้อง | U141: 0 | V141: 0 | W141: =IF(LEFT(Q141,3)="ไม่","",IF(OR(LEFT(P141,1)="1",LEFT(P141,1)="2",LEFT(P141,1)="3",LEFT(P141,1)="4",LEFT(P141,1)="5",LEFT(P141,1)="6",LEFT(P141,1)="7"),0,IF(SUMIFS(Z$7:Z$7000,AL$7:AL$7000,B141&+D141&+E141&+"ถูกต้อง",AK$7:AK$7000,0)<'1.ข้อมูลส่วนบุคคล'!$G$26,1,0))) ->  | X141: 0 | Y141: 0 | Z141: 0 | AA141: 0 | AB141: ='1.ข้อมูลส่วนบุคคล'!$E$32 -> 2560-05-15 | AC141: 25600515 | AD141: 00:00:00 | AE141: 19000100 | AF141: -6600415 | AG141: 0 | AH141: =IF(AG141=1,IF(AN141=AN140,0,'1.ข้อมูลส่วนบุคคล'!G$26-IF(AND(LEFT(Q141,3)<>"ไม่",AK141=0),SUMIFS(Z$7:Z$7000,AN$7:AN$7000,AN141,AK$7:AK$7000,0),0)),0) -> 0 | AI141: 0 | AJ141: 0 | AK141: 0 | AL141: ไม่ถูกต้อง
A142: ='1.ข้อมูลส่วนบุคคล'!$F$5 -> 1234567891234 | K142: =IF('1.ข้อมูลส่วนบุคคล'!C$21="เชี่ยวชาญ",IF(H142="-","",IF(H142='1.ข้อมูลส่วนบุคคล'!F$26,"เกี่ยวข้อง","ไม่เกี่ยวข้อง")),IF('1.ข้อมูลส่วนบุคคล'!C$21="เชี่ยวชาญพิเศษ",IF(H142="-","",IF(H142='1.ข้อมูลส่วนบุคคล'!F$26,"เกี่ยวข้อง","ไม่เกี่ยวข้อง")),"")) ->  | O142: สอนตามตารางสอน | Q142: ไม่ถูกต้อง | U142: 0 | V142: 0 | W142: =IF(LEFT(Q142,3)="ไม่","",IF(OR(LEFT(P142,1)="1",LEFT(P142,1)="2",LEFT(P142,1)="3",LEFT(P142,1)="4",LEFT(P142,1)="5",LEFT(P142,1)="6",LEFT(P142,1)="7"),0,IF(SUMIFS(Z$7:Z$7000,AL$7:AL$7000,B142&+D142&+E142&+"ถูกต้อง",AK$7:AK$7000,0)<'1.ข้อมูลส่วนบุคคล'!$G$26,1,0))) ->  | X142: 0 | Y142: 0 | Z142: 0 | AA142: 0 | AB142: ='1.ข้อมูลส่วนบุคคล'!$E$32 -> 2560-05-15 | AC142: 25600515 | AD142: 00:00:00 | AE142: 19000100 | AF142: -6600415 | AG142: 0 | AH142: =IF(AG142=1,IF(AN142=AN141,0,'1.ข้อมูลส่วนบุคคล'!G$26-IF(AND(LEFT(Q142,3)<>"ไม่",AK142=0),SUMIFS(Z$7:Z$7000,AN$7:AN$7000,AN142,AK$7:AK$7000,0),0)),0) -> 0 | AI142: 0 | AJ142: 0 | AK142: 0 | AL142: ไม่ถูกต้อง
A143: ='1.ข้อมูลส่วนบุคคล'!$F$5 -> 1234567891234 | K143: =IF('1.ข้อมูลส่วนบุคคล'!C$21="เชี่ยวชาญ",IF(H143="-","",IF(H143='1.ข้อมูลส่วนบุคคล'!F$26,"เกี่ยวข้อง","ไม่เกี่ยวข้อง")),IF('1.ข้อมูลส่วนบุคคล'!C$21="เชี่ยวชาญพิเศษ",IF(H143="-","",IF(H143='1.ข้อมูลส่วนบุคคล'!F$26,"เกี่ยวข้อง","ไม่เกี่ยวข้อง")),"")) ->  | O143: สอนตามตารางสอน | Q143: ไม่ถูกต้อง | U143: 0 | V143: 0 | W143: =IF(LEFT(Q143,3)="ไม่","",IF(OR(LEFT(P143,1)="1",LEFT(P143,1)="2",LEFT(P143,1)="3",LEFT(P143,1)="4",LEFT(P143,1)="5",LEFT(P143,1)="6",LEFT(P143,1)="7"),0,IF(SUMIFS(Z$7:Z$7000,AL$7:AL$7000,B143&+D143&+E143&+"ถูกต้อง",AK$7:AK$7000,0)<'1.ข้อมูลส่วนบุคคล'!$G$26,1,0))) ->  | X143: 0 | Y143: 0 | Z143: 0 | AA143: 0 | AB143: ='1.ข้อมูลส่วนบุคคล'!$E$32 -> 2560-05-15 | AC143: 25600515 | AD143: 00:00:00 | AE143: 19000100 | AF143: -6600415 | AG143: 0 | AH143: =IF(AG143=1,IF(AN143=AN142,0,'1.ข้อมูลส่วนบุคคล'!G$26-IF(AND(LEFT(Q143,3)<>"ไม่",AK143=0),SUMIFS(Z$7:Z$7000,AN$7:AN$7000,AN143,AK$7:AK$7000,0),0)),0) -> 0 | AI143: 0 | AJ143: 0 | AK143: 0 | AL143: ไม่ถูกต้อง
A144: ='1.ข้อมูลส่วนบุคคล'!$F$5 -> 1234567891234 | K144: =IF('1.ข้อมูลส่วนบุคคล'!C$21="เชี่ยวชาญ",IF(H144="-","",IF(H144='1.ข้อมูลส่วนบุคคล'!F$26,"เกี่ยวข้อง","ไม่เกี่ยวข้อง")),IF('1.ข้อมูลส่วนบุคคล'!C$21="เชี่ยวชาญพิเศษ",IF(H144="-","",IF(H144='1.ข้อมูลส่วนบุคคล'!F$26,"เกี่ยวข้อง","ไม่เกี่ยวข้อง")),"")) ->  | O144: สอนตามตารางสอน | Q144: ไม่ถูกต้อง | U144: 0 | V144: 0 | W144: =IF(LEFT(Q144,3)="ไม่","",IF(OR(LEFT(P144,1)="1",LEFT(P144,1)="2",LEFT(P144,1)="3",LEFT(P144,1)="4",LEFT(P144,1)="5",LEFT(P144,1)="6",LEFT(P144,1)="7"),0,IF(SUMIFS(Z$7:Z$7000,AL$7:AL$7000,B144&+D144&+E144&+"ถูกต้อง",AK$7:AK$7000,0)<'1.ข้อมูลส่วนบุคคล'!$G$26,1,0))) ->  | X144: 0 | Y144: 0 | Z144: 0 | AA144: 0 | AB144: ='1.ข้อมูลส่วนบุคคล'!$E$32 -> 2560-05-15 | AC144: 25600515 | AD144: 00:00:00 | AE144: 19000100 | AF144: -6600415 | AG144: 0 | AH144: =IF(AG144=1,IF(AN144=AN143,0,'1.ข้อมูลส่วนบุคคล'!G$26-IF(AND(LEFT(Q144,3)<>"ไม่",AK144=0),SUMIFS(Z$7:Z$7000,AN$7:AN$7000,AN144,AK$7:AK$7000,0),0)),0) -> 0 | AI144: 0 | AJ144: 0 | AK144: 0 | AL144: ไม่ถูกต้อง
A145: ='1.ข้อมูลส่วนบุคคล'!$F$5 -> 1234567891234 | K145: =IF('1.ข้อมูลส่วนบุคคล'!C$21="เชี่ยวชาญ",IF(H145="-","",IF(H145='1.ข้อมูลส่วนบุคคล'!F$26,"เกี่ยวข้อง","ไม่เกี่ยวข้อง")),IF('1.ข้อมูลส่วนบุคคล'!C$21="เชี่ยวชาญพิเศษ",IF(H145="-","",IF(H145='1.ข้อมูลส่วนบุคคล'!F$26,"เกี่ยวข้อง","ไม่เกี่ยวข้อง")),"")) ->  | O145: สอนตามตารางสอน | Q145: ไม่ถูกต้อง | U145: 0 | V145: 0 | W145: =IF(LEFT(Q145,3)="ไม่","",IF(OR(LEFT(P145,1)="1",LEFT(P145,1)="2",LEFT(P145,1)="3",LEFT(P145,1)="4",LEFT(P145,1)="5",LEFT(P145,1)="6",LEFT(P145,1)="7"),0,IF(SUMIFS(Z$7:Z$7000,AL$7:AL$7000,B145&+D145&+E145&+"ถูกต้อง",AK$7:AK$7000,0)<'1.ข้อมูลส่วนบุคคล'!$G$26,1,0))) ->  | X145: 0 | Y145: 0 | Z145: 0 | AA145: 0 | AB145: ='1.ข้อมูลส่วนบุคคล'!$E$32 -> 2560-05-15 | AC145: 25600515 | AD145: 00:00:00 | AE145: 19000100 | AF145: -6600415 | AG145: 0 | AH145: =IF(AG145=1,IF(AN145=AN144,0,'1.ข้อมูลส่วนบุคคล'!G$26-IF(AND(LEFT(Q145,3)<>"ไม่",AK145=0),SUMIFS(Z$7:Z$7000,AN$7:AN$7000,AN145,AK$7:AK$7000,0),0)),0) -> 0 | AI145: 0 | AJ145: 0 | AK145: 0 | AL145: ไม่ถูกต้อง
A146: ='1.ข้อมูลส่วนบุคคล'!$F$5 -> 1234567891234 | K146: =IF('1.ข้อมูลส่วนบุคคล'!C$21="เชี่ยวชาญ",IF(H146="-","",IF(H146='1.ข้อมูลส่วนบุคคล'!F$26,"เกี่ยวข้อง","ไม่เกี่ยวข้อง")),IF('1.ข้อมูลส่วนบุคคล'!C$21="เชี่ยวชาญพิเศษ",IF(H146="-","",IF(H146='1.ข้อมูลส่วนบุคคล'!F$26,"เกี่ยวข้อง","ไม่เกี่ยวข้อง")),"")) ->  | O146: สอนตามตารางสอน | Q146: ไม่ถูกต้อง | U146: 0 | V146: 0 | W146: =IF(LEFT(Q146,3)="ไม่","",IF(OR(LEFT(P146,1)="1",LEFT(P146,1)="2",LEFT(P146,1)="3",LEFT(P146,1)="4",LEFT(P146,1)="5",LEFT(P146,1)="6",LEFT(P146,1)="7"),0,IF(SUMIFS(Z$7:Z$7000,AL$7:AL$7000,B146&+D146&+E146&+"ถูกต้อง",AK$7:AK$7000,0)<'1.ข้อมูลส่วนบุคคล'!$G$26,1,0))) ->  | X146: 0 | Y146: 0 | Z146: 0 | AA146: 0 | AB146: ='1.ข้อมูลส่วนบุคคล'!$E$32 -> 2560-05-15 | AC146: 25600515 | AD146: 00:00:00 | AE146: 19000100 | AF146: -6600415 | AG146: 0 | AH146: =IF(AG146=1,IF(AN146=AN145,0,'1.ข้อมูลส่วนบุคคล'!G$26-IF(AND(LEFT(Q146,3)<>"ไม่",AK146=0),SUMIFS(Z$7:Z$7000,AN$7:AN$7000,AN146,AK$7:AK$7000,0),0)),0) -> 0 | AI146: 0 | AJ146: 0 | AK146: 0 | AL146: ไม่ถูกต้อง
A147: ='1.ข้อมูลส่วนบุคคล'!$F$5 -> 1234567891234 | K147: =IF('1.ข้อมูลส่วนบุคคล'!C$21="เชี่ยวชาญ",IF(H147="-","",IF(H147='1.ข้อมูลส่วนบุคคล'!F$26,"เกี่ยวข้อง","ไม่เกี่ยวข้อง")),IF('1.ข้อมูลส่วนบุคคล'!C$21="เชี่ยวชาญพิเศษ",IF(H147="-","",IF(H147='1.ข้อมูลส่วนบุคคล'!F$26,"เกี่ยวข้อง","ไม่เกี่ยวข้อง")),"")) ->  | O147: สอนตามตารางสอน | Q147: ไม่ถูกต้อง | U147: 0 | V147: 0 | W147: =IF(LEFT(Q147,3)="ไม่","",IF(OR(LEFT(P147,1)="1",LEFT(P147,1)="2",LEFT(P147,1)="3",LEFT(P147,1)="4",LEFT(P147,1)="5",LEFT(P147,1)="6",LEFT(P147,1)="7"),0,IF(SUMIFS(Z$7:Z$7000,AL$7:AL$7000,B147&+D147&+E147&+"ถูกต้อง",AK$7:AK$7000,0)<'1.ข้อมูลส่วนบุคคล'!$G$26,1,0))) ->  | X147: 0 | Y147: 0 | Z147: 0 | AA147: 0 | AB147: ='1.ข้อมูลส่วนบุคคล'!$E$32 -> 2560-05-15 | AC147: 25600515 | AD147: 00:00:00 | AE147: 19000100 | AF147: -6600415 | AG147: 0 | AH147: =IF(AG147=1,IF(AN147=AN146,0,'1.ข้อมูลส่วนบุคคล'!G$26-IF(AND(LEFT(Q147,3)<>"ไม่",AK147=0),SUMIFS(Z$7:Z$7000,AN$7:AN$7000,AN147,AK$7:AK$7000,0),0)),0) -> 0 | AI147: 0 | AJ147: 0 | AK147: 0 | AL147: ไม่ถูกต้อง
A148: ='1.ข้อมูลส่วนบุคคล'!$F$5 -> 1234567891234 | K148: =IF('1.ข้อมูลส่วนบุคคล'!C$21="เชี่ยวชาญ",IF(H148="-","",IF(H148='1.ข้อมูลส่วนบุคคล'!F$26,"เกี่ยวข้อง","ไม่เกี่ยวข้อง")),IF('1.ข้อมูลส่วนบุคคล'!C$21="เชี่ยวชาญพิเศษ",IF(H148="-","",IF(H148='1.ข้อมูลส่วนบุคคล'!F$26,"เกี่ยวข้อง","ไม่เกี่ยวข้อง")),"")) ->  | O148: สอนตามตารางสอน | Q148: ไม่ถูกต้อง | U148: 0 | V148: 0 | W148: =IF(LEFT(Q148,3)="ไม่","",IF(OR(LEFT(P148,1)="1",LEFT(P148,1)="2",LEFT(P148,1)="3",LEFT(P148,1)="4",LEFT(P148,1)="5",LEFT(P148,1)="6",LEFT(P148,1)="7"),0,IF(SUMIFS(Z$7:Z$7000,AL$7:AL$7000,B148&+D148&+E148&+"ถูกต้อง",AK$7:AK$7000,0)<'1.ข้อมูลส่วนบุคคล'!$G$26,1,0))) ->  | X148: 0 | Y148: 0 | Z148: 0 | AA148: 0 | AB148: ='1.ข้อมูลส่วนบุคคล'!$E$32 -> 2560-05-15 | AC148: 25600515 | AD148: 00:00:00 | AE148: 19000100 | AF148: -6600415 | AG148: 0 | AH148: =IF(AG148=1,IF(AN148=AN147,0,'1.ข้อมูลส่วนบุคคล'!G$26-IF(AND(LEFT(Q148,3)<>"ไม่",AK148=0),SUMIFS(Z$7:Z$7000,AN$7:AN$7000,AN148,AK$7:AK$7000,0),0)),0) -> 0 | AI148: 0 | AJ148: 0 | AK148: 0 | AL148: ไม่ถูกต้อง
A149: ='1.ข้อมูลส่วนบุคคล'!$F$5 -> 1234567891234 | K149: =IF('1.ข้อมูลส่วนบุคคล'!C$21="เชี่ยวชาญ",IF(H149="-","",IF(H149='1.ข้อมูลส่วนบุคคล'!F$26,"เกี่ยวข้อง","ไม่เกี่ยวข้อง")),IF('1.ข้อมูลส่วนบุคคล'!C$21="เชี่ยวชาญพิเศษ",IF(H149="-","",IF(H149='1.ข้อมูลส่วนบุคคล'!F$26,"เกี่ยวข้อง","ไม่เกี่ยวข้อง")),"")) ->  | O149: สอนตามตารางสอน | Q149: ไม่ถูกต้อง | U149: 0 | V149: 0 | W149: =IF(LEFT(Q149,3)="ไม่","",IF(OR(LEFT(P149,1)="1",LEFT(P149,1)="2",LEFT(P149,1)="3",LEFT(P149,1)="4",LEFT(P149,1)="5",LEFT(P149,1)="6",LEFT(P149,1)="7"),0,IF(SUMIFS(Z$7:Z$7000,AL$7:AL$7000,B149&+D149&+E149&+"ถูกต้อง",AK$7:AK$7000,0)<'1.ข้อมูลส่วนบุคคล'!$G$26,1,0))) ->  | X149: 0 | Y149: 0 | Z149: 0 | AA149: 0 | AB149: ='1.ข้อมูลส่วนบุคคล'!$E$32 -> 2560-05-15 | AC149: 25600515 | AD149: 00:00:00 | AE149: 19000100 | AF149: -6600415 | AG149: 0 | AH149: =IF(AG149=1,IF(AN149=AN148,0,'1.ข้อมูลส่วนบุคคล'!G$26-IF(AND(LEFT(Q149,3)<>"ไม่",AK149=0),SUMIFS(Z$7:Z$7000,AN$7:AN$7000,AN149,AK$7:AK$7000,0),0)),0) -> 0 | AI149: 0 | AJ149: 0 | AK149: 0 | AL149: ไม่ถูกต้อง
A150: ='1.ข้อมูลส่วนบุคคล'!$F$5 -> 1234567891234 | K150: =IF('1.ข้อมูลส่วนบุคคล'!C$21="เชี่ยวชาญ",IF(H150="-","",IF(H150='1.ข้อมูลส่วนบุคคล'!F$26,"เกี่ยวข้อง","ไม่เกี่ยวข้อง")),IF('1.ข้อมูลส่วนบุคคล'!C$21="เชี่ยวชาญพิเศษ",IF(H150="-","",IF(H150='1.ข้อมูลส่วนบุคคล'!F$26,"เกี่ยวข้อง","ไม่เกี่ยวข้อง")),"")) ->  | O150: สอนตามตารางสอน | Q150: ไม่ถูกต้อง | U150: 0 | V150: 0 | W150: =IF(LEFT(Q150,3)="ไม่","",IF(OR(LEFT(P150,1)="1",LEFT(P150,1)="2",LEFT(P150,1)="3",LEFT(P150,1)="4",LEFT(P150,1)="5",LEFT(P150,1)="6",LEFT(P150,1)="7"),0,IF(SUMIFS(Z$7:Z$7000,AL$7:AL$7000,B150&+D150&+E150&+"ถูกต้อง",AK$7:AK$7000,0)<'1.ข้อมูลส่วนบุคคล'!$G$26,1,0))) ->  | X150: 0 | Y150: 0 | Z150: 0 | AA150: 0 | AB150: ='1.ข้อมูลส่วนบุคคล'!$E$32 -> 2560-05-15 | AC150: 25600515 | AD150: 00:00:00 | AE150: 19000100 | AF150: -6600415 | AG150: 0 | AH150: =IF(AG150=1,IF(AN150=AN149,0,'1.ข้อมูลส่วนบุคคล'!G$26-IF(AND(LEFT(Q150,3)<>"ไม่",AK150=0),SUMIFS(Z$7:Z$7000,AN$7:AN$7000,AN150,AK$7:AK$7000,0),0)),0) -> 0 | AI150: 0 | AJ150: 0 | AK150: 0 | AL150: ไม่ถูกต้อง
A151: ='1.ข้อมูลส่วนบุคคล'!$F$5 -> 1234567891234 | K151: =IF('1.ข้อมูลส่วนบุคคล'!C$21="เชี่ยวชาญ",IF(H151="-","",IF(H151='1.ข้อมูลส่วนบุคคล'!F$26,"เกี่ยวข้อง","ไม่เกี่ยวข้อง")),IF('1.ข้อมูลส่วนบุคคล'!C$21="เชี่ยวชาญพิเศษ",IF(H151="-","",IF(H151='1.ข้อมูลส่วนบุคคล'!F$26,"เกี่ยวข้อง","ไม่เกี่ยวข้อง")),"")) ->  | O151: สอนตามตารางสอน | Q151: ไม่ถูกต้อง | U151: 0 | V151: 0 | W151: =IF(LEFT(Q151,3)="ไม่","",IF(OR(LEFT(P151,1)="1",LEFT(P151,1)="2",LEFT(P151,1)="3",LEFT(P151,1)="4",LEFT(P151,1)="5",LEFT(P151,1)="6",LEFT(P151,1)="7"),0,IF(SUMIFS(Z$7:Z$7000,AL$7:AL$7000,B151&+D151&+E151&+"ถูกต้อง",AK$7:AK$7000,0)<'1.ข้อมูลส่วนบุคคล'!$G$26,1,0))) ->  | X151: 0 | Y151: 0 | Z151: 0 | AA151: 0 | AB151: ='1.ข้อมูลส่วนบุคคล'!$E$32 -> 2560-05-15 | AC151: 25600515 | AD151: 00:00:00 | AE151: 19000100 | AF151: -6600415 | AG151: 0 | AH151: =IF(AG151=1,IF(AN151=AN150,0,'1.ข้อมูลส่วนบุคคล'!G$26-IF(AND(LEFT(Q151,3)<>"ไม่",AK151=0),SUMIFS(Z$7:Z$7000,AN$7:AN$7000,AN151,AK$7:AK$7000,0),0)),0) -> 0 | AI151: 0 | AJ151: 0 | AK151: 0 | AL151: ไม่ถูกต้อง
A152: ='1.ข้อมูลส่วนบุคคล'!$F$5 -> 1234567891234 | K152: =IF('1.ข้อมูลส่วนบุคคล'!C$21="เชี่ยวชาญ",IF(H152="-","",IF(H152='1.ข้อมูลส่วนบุคคล'!F$26,"เกี่ยวข้อง","ไม่เกี่ยวข้อง")),IF('1.ข้อมูลส่วนบุคคล'!C$21="เชี่ยวชาญพิเศษ",IF(H152="-","",IF(H152='1.ข้อมูลส่วนบุคคล'!F$26,"เกี่ยวข้อง","ไม่เกี่ยวข้อง")),"")) ->  | O152: สอนตามตารางสอน | Q152: ไม่ถูกต้อง | U152: 0 | V152: 0 | W152: =IF(LEFT(Q152,3)="ไม่","",IF(OR(LEFT(P152,1)="1",LEFT(P152,1)="2",LEFT(P152,1)="3",LEFT(P152,1)="4",LEFT(P152,1)="5",LEFT(P152,1)="6",LEFT(P152,1)="7"),0,IF(SUMIFS(Z$7:Z$7000,AL$7:AL$7000,B152&+D152&+E152&+"ถูกต้อง",AK$7:AK$7000,0)<'1.ข้อมูลส่วนบุคคล'!$G$26,1,0))) ->  | X152: 0 | Y152: 0 | Z152: 0 | AA152: 0 | AB152: ='1.ข้อมูลส่วนบุคคล'!$E$32 -> 2560-05-15 | AC152: 25600515 | AD152: 00:00:00 | AE152: 19000100 | AF152: -6600415 | AG152: 0 | AH152: =IF(AG152=1,IF(AN152=AN151,0,'1.ข้อมูลส่วนบุคคล'!G$26-IF(AND(LEFT(Q152,3)<>"ไม่",AK152=0),SUMIFS(Z$7:Z$7000,AN$7:AN$7000,AN152,AK$7:AK$7000,0),0)),0) -> 0 | AI152: 0 | AJ152: 0 | AK152: 0 | AL152: ไม่ถูกต้อง
A153: ='1.ข้อมูลส่วนบุคคล'!$F$5 -> 1234567891234 | K153: =IF('1.ข้อมูลส่วนบุคคล'!C$21="เชี่ยวชาญ",IF(H153="-","",IF(H153='1.ข้อมูลส่วนบุคคล'!F$26,"เกี่ยวข้อง","ไม่เกี่ยวข้อง")),IF('1.ข้อมูลส่วนบุคคล'!C$21="เชี่ยวชาญพิเศษ",IF(H153="-","",IF(H153='1.ข้อมูลส่วนบุคคล'!F$26,"เกี่ยวข้อง","ไม่เกี่ยวข้อง")),"")) ->  | O153: สอนตามตารางสอน | Q153: ไม่ถูกต้อง | U153: 0 | V153: 0 | W153: =IF(LEFT(Q153,3)="ไม่","",IF(OR(LEFT(P153,1)="1",LEFT(P153,1)="2",LEFT(P153,1)="3",LEFT(P153,1)="4",LEFT(P153,1)="5",LEFT(P153,1)="6",LEFT(P153,1)="7"),0,IF(SUMIFS(Z$7:Z$7000,AL$7:AL$7000,B153&+D153&+E153&+"ถูกต้อง",AK$7:AK$7000,0)<'1.ข้อมูลส่วนบุคคล'!$G$26,1,0))) ->  | X153: 0 | Y153: 0 | Z153: 0 | AA153: 0 | AB153: ='1.ข้อมูลส่วนบุคคล'!$E$32 -> 2560-05-15 | AC153: 25600515 | AD153: 00:00:00 | AE153: 19000100 | AF153: -6600415 | AG153: 0 | AH153: =IF(AG153=1,IF(AN153=AN152,0,'1.ข้อมูลส่วนบุคคล'!G$26-IF(AND(LEFT(Q153,3)<>"ไม่",AK153=0),SUMIFS(Z$7:Z$7000,AN$7:AN$7000,AN153,AK$7:AK$7000,0),0)),0) -> 0 | AI153: 0 | AJ153: 0 | AK153: 0 | AL153: ไม่ถูกต้อง
A154: ='1.ข้อมูลส่วนบุคคล'!$F$5 -> 1234567891234 | K154: =IF('1.ข้อมูลส่วนบุคคล'!C$21="เชี่ยวชาญ",IF(H154="-","",IF(H154='1.ข้อมูลส่วนบุคคล'!F$26,"เกี่ยวข้อง","ไม่เกี่ยวข้อง")),IF('1.ข้อมูลส่วนบุคคล'!C$21="เชี่ยวชาญพิเศษ",IF(H154="-","",IF(H154='1.ข้อมูลส่วนบุคคล'!F$26,"เกี่ยวข้อง","ไม่เกี่ยวข้อง")),"")) ->  | O154: สอนตามตารางสอน | Q154: ไม่ถูกต้อง | U154: 0 | V154: 0 | W154: =IF(LEFT(Q154,3)="ไม่","",IF(OR(LEFT(P154,1)="1",LEFT(P154,1)="2",LEFT(P154,1)="3",LEFT(P154,1)="4",LEFT(P154,1)="5",LEFT(P154,1)="6",LEFT(P154,1)="7"),0,IF(SUMIFS(Z$7:Z$7000,AL$7:AL$7000,B154&+D154&+E154&+"ถูกต้อง",AK$7:AK$7000,0)<'1.ข้อมูลส่วนบุคคล'!$G$26,1,0))) ->  | X154: 0 | Y154: 0 | Z154: 0 | AA154: 0 | AB154: ='1.ข้อมูลส่วนบุคคล'!$E$32 -> 2560-05-15 | AC154: 25600515 | AD154: 00:00:00 | AE154: 19000100 | AF154: -6600415 | AG154: 0 | AH154: =IF(AG154=1,IF(AN154=AN153,0,'1.ข้อมูลส่วนบุคคล'!G$26-IF(AND(LEFT(Q154,3)<>"ไม่",AK154=0),SUMIFS(Z$7:Z$7000,AN$7:AN$7000,AN154,AK$7:AK$7000,0),0)),0) -> 0 | AI154: 0 | AJ154: 0 | AK154: 0 | AL154: ไม่ถูกต้อง
A155: ='1.ข้อมูลส่วนบุคคล'!$F$5 -> 1234567891234 | K155: =IF('1.ข้อมูลส่วนบุคคล'!C$21="เชี่ยวชาญ",IF(H155="-","",IF(H155='1.ข้อมูลส่วนบุคคล'!F$26,"เกี่ยวข้อง","ไม่เกี่ยวข้อง")),IF('1.ข้อมูลส่วนบุคคล'!C$21="เชี่ยวชาญพิเศษ",IF(H155="-","",IF(H155='1.ข้อมูลส่วนบุคคล'!F$26,"เกี่ยวข้อง","ไม่เกี่ยวข้อง")),"")) ->  | O155: สอนตามตารางสอน | Q155: ไม่ถูกต้อง | U155: 0 | V155: 0 | W155: =IF(LEFT(Q155,3)="ไม่","",IF(OR(LEFT(P155,1)="1",LEFT(P155,1)="2",LEFT(P155,1)="3",LEFT(P155,1)="4",LEFT(P155,1)="5",LEFT(P155,1)="6",LEFT(P155,1)="7"),0,IF(SUMIFS(Z$7:Z$7000,AL$7:AL$7000,B155&+D155&+E155&+"ถูกต้อง",AK$7:AK$7000,0)<'1.ข้อมูลส่วนบุคคล'!$G$26,1,0))) ->  | X155: 0 | Y155: 0 | Z155: 0 | AA155: 0 | AB155: ='1.ข้อมูลส่วนบุคคล'!$E$32 -> 2560-05-15 | AC155: 25600515 | AD155: 00:00:00 | AE155: 19000100 | AF155: -6600415 | AG155: 0 | AH155: =IF(AG155=1,IF(AN155=AN154,0,'1.ข้อมูลส่วนบุคคล'!G$26-IF(AND(LEFT(Q155,3)<>"ไม่",AK155=0),SUMIFS(Z$7:Z$7000,AN$7:AN$7000,AN155,AK$7:AK$7000,0),0)),0) -> 0 | AI155: 0 | AJ155: 0 | AK155: 0 | AL155: ไม่ถูกต้อง
A156: ='1.ข้อมูลส่วนบุคคล'!$F$5 -> 1234567891234 | K156: =IF('1.ข้อมูลส่วนบุคคล'!C$21="เชี่ยวชาญ",IF(H156="-","",IF(H156='1.ข้อมูลส่วนบุคคล'!F$26,"เกี่ยวข้อง","ไม่เกี่ยวข้อง")),IF('1.ข้อมูลส่วนบุคคล'!C$21="เชี่ยวชาญพิเศษ",IF(H156="-","",IF(H156='1.ข้อมูลส่วนบุคคล'!F$26,"เกี่ยวข้อง","ไม่เกี่ยวข้อง")),"")) ->  | O156: สอนตามตารางสอน | Q156: ไม่ถูกต้อง | U156: 0 | V156: 0 | W156: =IF(LEFT(Q156,3)="ไม่","",IF(OR(LEFT(P156,1)="1",LEFT(P156,1)="2",LEFT(P156,1)="3",LEFT(P156,1)="4",LEFT(P156,1)="5",LEFT(P156,1)="6",LEFT(P156,1)="7"),0,IF(SUMIFS(Z$7:Z$7000,AL$7:AL$7000,B156&+D156&+E156&+"ถูกต้อง",AK$7:AK$7000,0)<'1.ข้อมูลส่วนบุคคล'!$G$26,1,0))) ->  | X156: 0 | Y156: 0 | Z156: 0 | AA156: 0 | AB156: ='1.ข้อมูลส่วนบุคคล'!$E$32 -> 2560-05-15 | AC156: 25600515 | AD156: 00:00:00 | AE156: 19000100 | AF156: -6600415 | AG156: 0 | AH156: =IF(AG156=1,IF(AN156=AN155,0,'1.ข้อมูลส่วนบุคคล'!G$26-IF(AND(LEFT(Q156,3)<>"ไม่",AK156=0),SUMIFS(Z$7:Z$7000,AN$7:AN$7000,AN156,AK$7:AK$7000,0),0)),0) -> 0 | AI156: 0 | AJ156: 0 | AK156: 0 | AL156: ไม่ถูกต้อง
A157: ='1.ข้อมูลส่วนบุคคล'!$F$5 -> 1234567891234 | K157: =IF('1.ข้อมูลส่วนบุคคล'!C$21="เชี่ยวชาญ",IF(H157="-","",IF(H157='1.ข้อมูลส่วนบุคคล'!F$26,"เกี่ยวข้อง","ไม่เกี่ยวข้อง")),IF('1.ข้อมูลส่วนบุคคล'!C$21="เชี่ยวชาญพิเศษ",IF(H157="-","",IF(H157='1.ข้อมูลส่วนบุคคล'!F$26,"เกี่ยวข้อง","ไม่เกี่ยวข้อง")),"")) ->  | O157: สอนตามตารางสอน | Q157: ไม่ถูกต้อง | U157: 0 | V157: 0 | W157: =IF(LEFT(Q157,3)="ไม่","",IF(OR(LEFT(P157,1)="1",LEFT(P157,1)="2",LEFT(P157,1)="3",LEFT(P157,1)="4",LEFT(P157,1)="5",LEFT(P157,1)="6",LEFT(P157,1)="7"),0,IF(SUMIFS(Z$7:Z$7000,AL$7:AL$7000,B157&+D157&+E157&+"ถูกต้อง",AK$7:AK$7000,0)<'1.ข้อมูลส่วนบุคคล'!$G$26,1,0))) ->  | X157: 0 | Y157: 0 | Z157: 0 | AA157: 0 | AB157: ='1.ข้อมูลส่วนบุคคล'!$E$32 -> 2560-05-15 | AC157: 25600515 | AD157: 00:00:00 | AE157: 19000100 | AF157: -6600415 | AG157: 0 | AH157: =IF(AG157=1,IF(AN157=AN156,0,'1.ข้อมูลส่วนบุคคล'!G$26-IF(AND(LEFT(Q157,3)<>"ไม่",AK157=0),SUMIFS(Z$7:Z$7000,AN$7:AN$7000,AN157,AK$7:AK$7000,0),0)),0) -> 0 | AI157: 0 | AJ157: 0 | AK157: 0 | AL157: ไม่ถูกต้อง
A158: ='1.ข้อมูลส่วนบุคคล'!$F$5 -> 1234567891234 | K158: =IF('1.ข้อมูลส่วนบุคคล'!C$21="เชี่ยวชาญ",IF(H158="-","",IF(H158='1.ข้อมูลส่วนบุคคล'!F$26,"เกี่ยวข้อง","ไม่เกี่ยวข้อง")),IF('1.ข้อมูลส่วนบุคคล'!C$21="เชี่ยวชาญพิเศษ",IF(H158="-","",IF(H158='1.ข้อมูลส่วนบุคคล'!F$26,"เกี่ยวข้อง","ไม่เกี่ยวข้อง")),"")) ->  | O158: สอนตามตารางสอน | Q158: ไม่ถูกต้อง | U158: 0 | V158: 0 | W158: =IF(LEFT(Q158,3)="ไม่","",IF(OR(LEFT(P158,1)="1",LEFT(P158,1)="2",LEFT(P158,1)="3",LEFT(P158,1)="4",LEFT(P158,1)="5",LEFT(P158,1)="6",LEFT(P158,1)="7"),0,IF(SUMIFS(Z$7:Z$7000,AL$7:AL$7000,B158&+D158&+E158&+"ถูกต้อง",AK$7:AK$7000,0)<'1.ข้อมูลส่วนบุคคล'!$G$26,1,0))) ->  | X158: 0 | Y158: 0 | Z158: 0 | AA158: 0 | AB158: ='1.ข้อมูลส่วนบุคคล'!$E$32 -> 2560-05-15 | AC158: 25600515 | AD158: 00:00:00 | AE158: 19000100 | AF158: -6600415 | AG158: 0 | AH158: =IF(AG158=1,IF(AN158=AN157,0,'1.ข้อมูลส่วนบุคคล'!G$26-IF(AND(LEFT(Q158,3)<>"ไม่",AK158=0),SUMIFS(Z$7:Z$7000,AN$7:AN$7000,AN158,AK$7:AK$7000,0),0)),0) -> 0 | AI158: 0 | AJ158: 0 | AK158: 0 | AL158: ไม่ถูกต้อง
A159: ='1.ข้อมูลส่วนบุคคล'!$F$5 -> 1234567891234 | K159: =IF('1.ข้อมูลส่วนบุคคล'!C$21="เชี่ยวชาญ",IF(H159="-","",IF(H159='1.ข้อมูลส่วนบุคคล'!F$26,"เกี่ยวข้อง","ไม่เกี่ยวข้อง")),IF('1.ข้อมูลส่วนบุคคล'!C$21="เชี่ยวชาญพิเศษ",IF(H159="-","",IF(H159='1.ข้อมูลส่วนบุคคล'!F$26,"เกี่ยวข้อง","ไม่เกี่ยวข้อง")),"")) ->  | O159: สอนตามตารางสอน | Q159: ไม่ถูกต้อง | U159: 0 | V159: 0 | W159: =IF(LEFT(Q159,3)="ไม่","",IF(OR(LEFT(P159,1)="1",LEFT(P159,1)="2",LEFT(P159,1)="3",LEFT(P159,1)="4",LEFT(P159,1)="5",LEFT(P159,1)="6",LEFT(P159,1)="7"),0,IF(SUMIFS(Z$7:Z$7000,AL$7:AL$7000,B159&+D159&+E159&+"ถูกต้อง",AK$7:AK$7000,0)<'1.ข้อมูลส่วนบุคคล'!$G$26,1,0))) ->  | X159: 0 | Y159: 0 | Z159: 0 | AA159: 0 | AB159: ='1.ข้อมูลส่วนบุคคล'!$E$32 -> 2560-05-15 | AC159: 25600515 | AD159: 00:00:00 | AE159: 19000100 | AF159: -6600415 | AG159: 0 | AH159: =IF(AG159=1,IF(AN159=AN158,0,'1.ข้อมูลส่วนบุคคล'!G$26-IF(AND(LEFT(Q159,3)<>"ไม่",AK159=0),SUMIFS(Z$7:Z$7000,AN$7:AN$7000,AN159,AK$7:AK$7000,0),0)),0) -> 0 | AI159: 0 | AJ159: 0 | AK159: 0 | AL159: ไม่ถูกต้อง
A160: ='1.ข้อมูลส่วนบุคคล'!$F$5 -> 1234567891234 | K160: =IF('1.ข้อมูลส่วนบุคคล'!C$21="เชี่ยวชาญ",IF(H160="-","",IF(H160='1.ข้อมูลส่วนบุคคล'!F$26,"เกี่ยวข้อง","ไม่เกี่ยวข้อง")),IF('1.ข้อมูลส่วนบุคคล'!C$21="เชี่ยวชาญพิเศษ",IF(H160="-","",IF(H160='1.ข้อมูลส่วนบุคคล'!F$26,"เกี่ยวข้อง","ไม่เกี่ยวข้อง")),"")) ->  | O160: สอนตามตารางสอน | Q160: ไม่ถูกต้อง | U160: 0 | V160: 0 | W160: =IF(LEFT(Q160,3)="ไม่","",IF(OR(LEFT(P160,1)="1",LEFT(P160,1)="2",LEFT(P160,1)="3",LEFT(P160,1)="4",LEFT(P160,1)="5",LEFT(P160,1)="6",LEFT(P160,1)="7"),0,IF(SUMIFS(Z$7:Z$7000,AL$7:AL$7000,B160&+D160&+E160&+"ถูกต้อง",AK$7:AK$7000,0)<'1.ข้อมูลส่วนบุคคล'!$G$26,1,0))) ->  | X160: 0 | Y160: 0 | Z160: 0 | AA160: 0 | AB160: ='1.ข้อมูลส่วนบุคคล'!$E$32 -> 2560-05-15 | AC160: 25600515 | AD160: 00:00:00 | AE160: 19000100 | AF160: -6600415 | AG160: 0 | AH160: =IF(AG160=1,IF(AN160=AN159,0,'1.ข้อมูลส่วนบุคคล'!G$26-IF(AND(LEFT(Q160,3)<>"ไม่",AK160=0),SUMIFS(Z$7:Z$7000,AN$7:AN$7000,AN160,AK$7:AK$7000,0),0)),0) -> 0 | AI160: 0 | AJ160: 0 | AK160: 0 | AL160: ไม่ถูกต้อง
A161: ='1.ข้อมูลส่วนบุคคล'!$F$5 -> 1234567891234 | K161: =IF('1.ข้อมูลส่วนบุคคล'!C$21="เชี่ยวชาญ",IF(H161="-","",IF(H161='1.ข้อมูลส่วนบุคคล'!F$26,"เกี่ยวข้อง","ไม่เกี่ยวข้อง")),IF('1.ข้อมูลส่วนบุคคล'!C$21="เชี่ยวชาญพิเศษ",IF(H161="-","",IF(H161='1.ข้อมูลส่วนบุคคล'!F$26,"เกี่ยวข้อง","ไม่เกี่ยวข้อง")),"")) ->  | O161: สอนตามตารางสอน | Q161: ไม่ถูกต้อง | U161: 0 | V161: 0 | W161: =IF(LEFT(Q161,3)="ไม่","",IF(OR(LEFT(P161,1)="1",LEFT(P161,1)="2",LEFT(P161,1)="3",LEFT(P161,1)="4",LEFT(P161,1)="5",LEFT(P161,1)="6",LEFT(P161,1)="7"),0,IF(SUMIFS(Z$7:Z$7000,AL$7:AL$7000,B161&+D161&+E161&+"ถูกต้อง",AK$7:AK$7000,0)<'1.ข้อมูลส่วนบุคคล'!$G$26,1,0))) ->  | X161: 0 | Y161: 0 | Z161: 0 | AA161: 0 | AB161: ='1.ข้อมูลส่วนบุคคล'!$E$32 -> 2560-05-15 | AC161: 25600515 | AD161: 00:00:00 | AE161: 19000100 | AF161: -6600415 | AG161: 0 | AH161: =IF(AG161=1,IF(AN161=AN160,0,'1.ข้อมูลส่วนบุคคล'!G$26-IF(AND(LEFT(Q161,3)<>"ไม่",AK161=0),SUMIFS(Z$7:Z$7000,AN$7:AN$7000,AN161,AK$7:AK$7000,0),0)),0) -> 0 | AI161: 0 | AJ161: 0 | AK161: 0 | AL161: ไม่ถูกต้อง
A162: ='1.ข้อมูลส่วนบุคคล'!$F$5 -> 1234567891234 | K162: =IF('1.ข้อมูลส่วนบุคคล'!C$21="เชี่ยวชาญ",IF(H162="-","",IF(H162='1.ข้อมูลส่วนบุคคล'!F$26,"เกี่ยวข้อง","ไม่เกี่ยวข้อง")),IF('1.ข้อมูลส่วนบุคคล'!C$21="เชี่ยวชาญพิเศษ",IF(H162="-","",IF(H162='1.ข้อมูลส่วนบุคคล'!F$26,"เกี่ยวข้อง","ไม่เกี่ยวข้อง")),"")) ->  | O162: สอนตามตารางสอน | Q162: ไม่ถูกต้อง | U162: 0 | V162: 0 | W162: =IF(LEFT(Q162,3)="ไม่","",IF(OR(LEFT(P162,1)="1",LEFT(P162,1)="2",LEFT(P162,1)="3",LEFT(P162,1)="4",LEFT(P162,1)="5",LEFT(P162,1)="6",LEFT(P162,1)="7"),0,IF(SUMIFS(Z$7:Z$7000,AL$7:AL$7000,B162&+D162&+E162&+"ถูกต้อง",AK$7:AK$7000,0)<'1.ข้อมูลส่วนบุคคล'!$G$26,1,0))) ->  | X162: 0 | Y162: 0 | Z162: 0 | AA162: 0 | AB162: ='1.ข้อมูลส่วนบุคคล'!$E$32 -> 2560-05-15 | AC162: 25600515 | AD162: 00:00:00 | AE162: 19000100 | AF162: -6600415 | AG162: 0 | AH162: =IF(AG162=1,IF(AN162=AN161,0,'1.ข้อมูลส่วนบุคคล'!G$26-IF(AND(LEFT(Q162,3)<>"ไม่",AK162=0),SUMIFS(Z$7:Z$7000,AN$7:AN$7000,AN162,AK$7:AK$7000,0),0)),0) -> 0 | AI162: 0 | AJ162: 0 | AK162: 0 | AL162: ไม่ถูกต้อง
A163: ='1.ข้อมูลส่วนบุคคล'!$F$5 -> 1234567891234 | K163: =IF('1.ข้อมูลส่วนบุคคล'!C$21="เชี่ยวชาญ",IF(H163="-","",IF(H163='1.ข้อมูลส่วนบุคคล'!F$26,"เกี่ยวข้อง","ไม่เกี่ยวข้อง")),IF('1.ข้อมูลส่วนบุคคล'!C$21="เชี่ยวชาญพิเศษ",IF(H163="-","",IF(H163='1.ข้อมูลส่วนบุคคล'!F$26,"เกี่ยวข้อง","ไม่เกี่ยวข้อง")),"")) ->  | O163: สอนตามตารางสอน | Q163: ไม่ถูกต้อง | U163: 0 | V163: 0 | W163: =IF(LEFT(Q163,3)="ไม่","",IF(OR(LEFT(P163,1)="1",LEFT(P163,1)="2",LEFT(P163,1)="3",LEFT(P163,1)="4",LEFT(P163,1)="5",LEFT(P163,1)="6",LEFT(P163,1)="7"),0,IF(SUMIFS(Z$7:Z$7000,AL$7:AL$7000,B163&+D163&+E163&+"ถูกต้อง",AK$7:AK$7000,0)<'1.ข้อมูลส่วนบุคคล'!$G$26,1,0))) ->  | X163: 0 | Y163: 0 | Z163: 0 | AA163: 0 | AB163: ='1.ข้อมูลส่วนบุคคล'!$E$32 -> 2560-05-15 | AC163: 25600515 | AD163: 00:00:00 | AE163: 19000100 | AF163: -6600415 | AG163: 0 | AH163: =IF(AG163=1,IF(AN163=AN162,0,'1.ข้อมูลส่วนบุคคล'!G$26-IF(AND(LEFT(Q163,3)<>"ไม่",AK163=0),SUMIFS(Z$7:Z$7000,AN$7:AN$7000,AN163,AK$7:AK$7000,0),0)),0) -> 0 | AI163: 0 | AJ163: 0 | AK163: 0 | AL163: ไม่ถูกต้อง
A164: ='1.ข้อมูลส่วนบุคคล'!$F$5 -> 1234567891234 | K164: =IF('1.ข้อมูลส่วนบุคคล'!C$21="เชี่ยวชาญ",IF(H164="-","",IF(H164='1.ข้อมูลส่วนบุคคล'!F$26,"เกี่ยวข้อง","ไม่เกี่ยวข้อง")),IF('1.ข้อมูลส่วนบุคคล'!C$21="เชี่ยวชาญพิเศษ",IF(H164="-","",IF(H164='1.ข้อมูลส่วนบุคคล'!F$26,"เกี่ยวข้อง","ไม่เกี่ยวข้อง")),"")) ->  | O164: สอนตามตารางสอน | Q164: ไม่ถูกต้อง | U164: 0 | V164: 0 | W164: =IF(LEFT(Q164,3)="ไม่","",IF(OR(LEFT(P164,1)="1",LEFT(P164,1)="2",LEFT(P164,1)="3",LEFT(P164,1)="4",LEFT(P164,1)="5",LEFT(P164,1)="6",LEFT(P164,1)="7"),0,IF(SUMIFS(Z$7:Z$7000,AL$7:AL$7000,B164&+D164&+E164&+"ถูกต้อง",AK$7:AK$7000,0)<'1.ข้อมูลส่วนบุคคล'!$G$26,1,0))) ->  | X164: 0 | Y164: 0 | Z164: 0 | AA164: 0 | AB164: ='1.ข้อมูลส่วนบุคคล'!$E$32 -> 2560-05-15 | AC164: 25600515 | AD164: 00:00:00 | AE164: 19000100 | AF164: -6600415 | AG164: 0 | AH164: =IF(AG164=1,IF(AN164=AN163,0,'1.ข้อมูลส่วนบุคคล'!G$26-IF(AND(LEFT(Q164,3)<>"ไม่",AK164=0),SUMIFS(Z$7:Z$7000,AN$7:AN$7000,AN164,AK$7:AK$7000,0),0)),0) -> 0 | AI164: 0 | AJ164: 0 | AK164: 0 | AL164: ไม่ถูกต้อง
A165: ='1.ข้อมูลส่วนบุคคล'!$F$5 -> 1234567891234 | K165: =IF('1.ข้อมูลส่วนบุคคล'!C$21="เชี่ยวชาญ",IF(H165="-","",IF(H165='1.ข้อมูลส่วนบุคคล'!F$26,"เกี่ยวข้อง","ไม่เกี่ยวข้อง")),IF('1.ข้อมูลส่วนบุคคล'!C$21="เชี่ยวชาญพิเศษ",IF(H165="-","",IF(H165='1.ข้อมูลส่วนบุคคล'!F$26,"เกี่ยวข้อง","ไม่เกี่ยวข้อง")),"")) ->  | O165: สอนตามตารางสอน | Q165: ไม่ถูกต้อง | U165: 0 | V165: 0 | W165: =IF(LEFT(Q165,3)="ไม่","",IF(OR(LEFT(P165,1)="1",LEFT(P165,1)="2",LEFT(P165,1)="3",LEFT(P165,1)="4",LEFT(P165,1)="5",LEFT(P165,1)="6",LEFT(P165,1)="7"),0,IF(SUMIFS(Z$7:Z$7000,AL$7:AL$7000,B165&+D165&+E165&+"ถูกต้อง",AK$7:AK$7000,0)<'1.ข้อมูลส่วนบุคคล'!$G$26,1,0))) ->  | X165: 0 | Y165: 0 | Z165: 0 | AA165: 0 | AB165: ='1.ข้อมูลส่วนบุคคล'!$E$32 -> 2560-05-15 | AC165: 25600515 | AD165: 00:00:00 | AE165: 19000100 | AF165: -6600415 | AG165: 0 | AH165: =IF(AG165=1,IF(AN165=AN164,0,'1.ข้อมูลส่วนบุคคล'!G$26-IF(AND(LEFT(Q165,3)<>"ไม่",AK165=0),SUMIFS(Z$7:Z$7000,AN$7:AN$7000,AN165,AK$7:AK$7000,0),0)),0) -> 0 | AI165: 0 | AJ165: 0 | AK165: 0 | AL165: ไม่ถูกต้อง
A166: ='1.ข้อมูลส่วนบุคคล'!$F$5 -> 1234567891234 | K166: =IF('1.ข้อมูลส่วนบุคคล'!C$21="เชี่ยวชาญ",IF(H166="-","",IF(H166='1.ข้อมูลส่วนบุคคล'!F$26,"เกี่ยวข้อง","ไม่เกี่ยวข้อง")),IF('1.ข้อมูลส่วนบุคคล'!C$21="เชี่ยวชาญพิเศษ",IF(H166="-","",IF(H166='1.ข้อมูลส่วนบุคคล'!F$26,"เกี่ยวข้อง","ไม่เกี่ยวข้อง")),"")) ->  | O166: สอนตามตารางสอน | Q166: ไม่ถูกต้อง | U166: 0 | V166: 0 | W166: =IF(LEFT(Q166,3)="ไม่","",IF(OR(LEFT(P166,1)="1",LEFT(P166,1)="2",LEFT(P166,1)="3",LEFT(P166,1)="4",LEFT(P166,1)="5",LEFT(P166,1)="6",LEFT(P166,1)="7"),0,IF(SUMIFS(Z$7:Z$7000,AL$7:AL$7000,B166&+D166&+E166&+"ถูกต้อง",AK$7:AK$7000,0)<'1.ข้อมูลส่วนบุคคล'!$G$26,1,0))) ->  | X166: 0 | Y166: 0 | Z166: 0 | AA166: 0 | AB166: ='1.ข้อมูลส่วนบุคคล'!$E$32 -> 2560-05-15 | AC166: 25600515 | AD166: 00:00:00 | AE166: 19000100 | AF166: -6600415 | AG166: 0 | AH166: =IF(AG166=1,IF(AN166=AN165,0,'1.ข้อมูลส่วนบุคคล'!G$26-IF(AND(LEFT(Q166,3)<>"ไม่",AK166=0),SUMIFS(Z$7:Z$7000,AN$7:AN$7000,AN166,AK$7:AK$7000,0),0)),0) -> 0 | AI166: 0 | AJ166: 0 | AK166: 0 | AL166: ไม่ถูกต้อง
A167: ='1.ข้อมูลส่วนบุคคล'!$F$5 -> 1234567891234 | K167: =IF('1.ข้อมูลส่วนบุคคล'!C$21="เชี่ยวชาญ",IF(H167="-","",IF(H167='1.ข้อมูลส่วนบุคคล'!F$26,"เกี่ยวข้อง","ไม่เกี่ยวข้อง")),IF('1.ข้อมูลส่วนบุคคล'!C$21="เชี่ยวชาญพิเศษ",IF(H167="-","",IF(H167='1.ข้อมูลส่วนบุคคล'!F$26,"เกี่ยวข้อง","ไม่เกี่ยวข้อง")),"")) ->  | O167: สอนตามตารางสอน | Q167: ไม่ถูกต้อง | U167: 0 | V167: 0 | W167: =IF(LEFT(Q167,3)="ไม่","",IF(OR(LEFT(P167,1)="1",LEFT(P167,1)="2",LEFT(P167,1)="3",LEFT(P167,1)="4",LEFT(P167,1)="5",LEFT(P167,1)="6",LEFT(P167,1)="7"),0,IF(SUMIFS(Z$7:Z$7000,AL$7:AL$7000,B167&+D167&+E167&+"ถูกต้อง",AK$7:AK$7000,0)<'1.ข้อมูลส่วนบุคคล'!$G$26,1,0))) ->  | X167: 0 | Y167: 0 | Z167: 0 | AA167: 0 | AB167: ='1.ข้อมูลส่วนบุคคล'!$E$32 -> 2560-05-15 | AC167: 25600515 | AD167: 00:00:00 | AE167: 19000100 | AF167: -6600415 | AG167: 0 | AH167: =IF(AG167=1,IF(AN167=AN166,0,'1.ข้อมูลส่วนบุคคล'!G$26-IF(AND(LEFT(Q167,3)<>"ไม่",AK167=0),SUMIFS(Z$7:Z$7000,AN$7:AN$7000,AN167,AK$7:AK$7000,0),0)),0) -> 0 | AI167: 0 | AJ167: 0 | AK167: 0 | AL167: ไม่ถูกต้อง
A168: ='1.ข้อมูลส่วนบุคคล'!$F$5 -> 1234567891234 | K168: =IF('1.ข้อมูลส่วนบุคคล'!C$21="เชี่ยวชาญ",IF(H168="-","",IF(H168='1.ข้อมูลส่วนบุคคล'!F$26,"เกี่ยวข้อง","ไม่เกี่ยวข้อง")),IF('1.ข้อมูลส่วนบุคคล'!C$21="เชี่ยวชาญพิเศษ",IF(H168="-","",IF(H168='1.ข้อมูลส่วนบุคคล'!F$26,"เกี่ยวข้อง","ไม่เกี่ยวข้อง")),"")) ->  | O168: สอนตามตารางสอน | Q168: ไม่ถูกต้อง | U168: 0 | V168: 0 | W168: =IF(LEFT(Q168,3)="ไม่","",IF(OR(LEFT(P168,1)="1",LEFT(P168,1)="2",LEFT(P168,1)="3",LEFT(P168,1)="4",LEFT(P168,1)="5",LEFT(P168,1)="6",LEFT(P168,1)="7"),0,IF(SUMIFS(Z$7:Z$7000,AL$7:AL$7000,B168&+D168&+E168&+"ถูกต้อง",AK$7:AK$7000,0)<'1.ข้อมูลส่วนบุคคล'!$G$26,1,0))) ->  | X168: 0 | Y168: 0 | Z168: 0 | AA168: 0 | AB168: ='1.ข้อมูลส่วนบุคคล'!$E$32 -> 2560-05-15 | AC168: 25600515 | AD168: 00:00:00 | AE168: 19000100 | AF168: -6600415 | AG168: 0 | AH168: =IF(AG168=1,IF(AN168=AN167,0,'1.ข้อมูลส่วนบุคคล'!G$26-IF(AND(LEFT(Q168,3)<>"ไม่",AK168=0),SUMIFS(Z$7:Z$7000,AN$7:AN$7000,AN168,AK$7:AK$7000,0),0)),0) -> 0 | AI168: 0 | AJ168: 0 | AK168: 0 | AL168: ไม่ถูกต้อง
A169: ='1.ข้อมูลส่วนบุคคล'!$F$5 -> 1234567891234 | K169: =IF('1.ข้อมูลส่วนบุคคล'!C$21="เชี่ยวชาญ",IF(H169="-","",IF(H169='1.ข้อมูลส่วนบุคคล'!F$26,"เกี่ยวข้อง","ไม่เกี่ยวข้อง")),IF('1.ข้อมูลส่วนบุคคล'!C$21="เชี่ยวชาญพิเศษ",IF(H169="-","",IF(H169='1.ข้อมูลส่วนบุคคล'!F$26,"เกี่ยวข้อง","ไม่เกี่ยวข้อง")),"")) ->  | O169: สอนตามตารางสอน | Q169: ไม่ถูกต้อง | U169: 0 | V169: 0 | W169: =IF(LEFT(Q169,3)="ไม่","",IF(OR(LEFT(P169,1)="1",LEFT(P169,1)="2",LEFT(P169,1)="3",LEFT(P169,1)="4",LEFT(P169,1)="5",LEFT(P169,1)="6",LEFT(P169,1)="7"),0,IF(SUMIFS(Z$7:Z$7000,AL$7:AL$7000,B169&+D169&+E169&+"ถูกต้อง",AK$7:AK$7000,0)<'1.ข้อมูลส่วนบุคคล'!$G$26,1,0))) ->  | X169: 0 | Y169: 0 | Z169: 0 | AA169: 0 | AB169: ='1.ข้อมูลส่วนบุคคล'!$E$32 -> 2560-05-15 | AC169: 25600515 | AD169: 00:00:00 | AE169: 19000100 | AF169: -6600415 | AG169: 0 | AH169: =IF(AG169=1,IF(AN169=AN168,0,'1.ข้อมูลส่วนบุคคล'!G$26-IF(AND(LEFT(Q169,3)<>"ไม่",AK169=0),SUMIFS(Z$7:Z$7000,AN$7:AN$7000,AN169,AK$7:AK$7000,0),0)),0) -> 0 | AI169: 0 | AJ169: 0 | AK169: 0 | AL169: ไม่ถูกต้อง
A170: ='1.ข้อมูลส่วนบุคคล'!$F$5 -> 1234567891234 | K170: =IF('1.ข้อมูลส่วนบุคคล'!C$21="เชี่ยวชาญ",IF(H170="-","",IF(H170='1.ข้อมูลส่วนบุคคล'!F$26,"เกี่ยวข้อง","ไม่เกี่ยวข้อง")),IF('1.ข้อมูลส่วนบุคคล'!C$21="เชี่ยวชาญพิเศษ",IF(H170="-","",IF(H170='1.ข้อมูลส่วนบุคคล'!F$26,"เกี่ยวข้อง","ไม่เกี่ยวข้อง")),"")) ->  | O170: สอนตามตารางสอน | Q170: ไม่ถูกต้อง | U170: 0 | V170: 0 | W170: =IF(LEFT(Q170,3)="ไม่","",IF(OR(LEFT(P170,1)="1",LEFT(P170,1)="2",LEFT(P170,1)="3",LEFT(P170,1)="4",LEFT(P170,1)="5",LEFT(P170,1)="6",LEFT(P170,1)="7"),0,IF(SUMIFS(Z$7:Z$7000,AL$7:AL$7000,B170&+D170&+E170&+"ถูกต้อง",AK$7:AK$7000,0)<'1.ข้อมูลส่วนบุคคล'!$G$26,1,0))) ->  | X170: 0 | Y170: 0 | Z170: 0 | AA170: 0 | AB170: ='1.ข้อมูลส่วนบุคคล'!$E$32 -> 2560-05-15 | AC170: 25600515 | AD170: 00:00:00 | AE170: 19000100 | AF170: -6600415 | AG170: 0 | AH170: =IF(AG170=1,IF(AN170=AN169,0,'1.ข้อมูลส่วนบุคคล'!G$26-IF(AND(LEFT(Q170,3)<>"ไม่",AK170=0),SUMIFS(Z$7:Z$7000,AN$7:AN$7000,AN170,AK$7:AK$7000,0),0)),0) -> 0 | AI170: 0 | AJ170: 0 | AK170: 0 | AL170: ไม่ถูกต้อง
A171: ='1.ข้อมูลส่วนบุคคล'!$F$5 -> 1234567891234 | K171: =IF('1.ข้อมูลส่วนบุคคล'!C$21="เชี่ยวชาญ",IF(H171="-","",IF(H171='1.ข้อมูลส่วนบุคคล'!F$26,"เกี่ยวข้อง","ไม่เกี่ยวข้อง")),IF('1.ข้อมูลส่วนบุคคล'!C$21="เชี่ยวชาญพิเศษ",IF(H171="-","",IF(H171='1.ข้อมูลส่วนบุคคล'!F$26,"เกี่ยวข้อง","ไม่เกี่ยวข้อง")),"")) ->  | O171: สอนตามตารางสอน | Q171: ไม่ถูกต้อง | U171: 0 | V171: 0 | W171: =IF(LEFT(Q171,3)="ไม่","",IF(OR(LEFT(P171,1)="1",LEFT(P171,1)="2",LEFT(P171,1)="3",LEFT(P171,1)="4",LEFT(P171,1)="5",LEFT(P171,1)="6",LEFT(P171,1)="7"),0,IF(SUMIFS(Z$7:Z$7000,AL$7:AL$7000,B171&+D171&+E171&+"ถูกต้อง",AK$7:AK$7000,0)<'1.ข้อมูลส่วนบุคคล'!$G$26,1,0))) ->  | X171: 0 | Y171: 0 | Z171: 0 | AA171: 0 | AB171: ='1.ข้อมูลส่วนบุคคล'!$E$32 -> 2560-05-15 | AC171: 25600515 | AD171: 00:00:00 | AE171: 19000100 | AF171: -6600415 | AG171: 0 | AH171: =IF(AG171=1,IF(AN171=AN170,0,'1.ข้อมูลส่วนบุคคล'!G$26-IF(AND(LEFT(Q171,3)<>"ไม่",AK171=0),SUMIFS(Z$7:Z$7000,AN$7:AN$7000,AN171,AK$7:AK$7000,0),0)),0) -> 0 | AI171: 0 | AJ171: 0 | AK171: 0 | AL171: ไม่ถูกต้อง
A172: ='1.ข้อมูลส่วนบุคคล'!$F$5 -> 1234567891234 | K172: =IF('1.ข้อมูลส่วนบุคคล'!C$21="เชี่ยวชาญ",IF(H172="-","",IF(H172='1.ข้อมูลส่วนบุคคล'!F$26,"เกี่ยวข้อง","ไม่เกี่ยวข้อง")),IF('1.ข้อมูลส่วนบุคคล'!C$21="เชี่ยวชาญพิเศษ",IF(H172="-","",IF(H172='1.ข้อมูลส่วนบุคคล'!F$26,"เกี่ยวข้อง","ไม่เกี่ยวข้อง")),"")) ->  | O172: สอนตามตารางสอน | Q172: ไม่ถูกต้อง | U172: 0 | V172: 0 | W172: =IF(LEFT(Q172,3)="ไม่","",IF(OR(LEFT(P172,1)="1",LEFT(P172,1)="2",LEFT(P172,1)="3",LEFT(P172,1)="4",LEFT(P172,1)="5",LEFT(P172,1)="6",LEFT(P172,1)="7"),0,IF(SUMIFS(Z$7:Z$7000,AL$7:AL$7000,B172&+D172&+E172&+"ถูกต้อง",AK$7:AK$7000,0)<'1.ข้อมูลส่วนบุคคล'!$G$26,1,0))) ->  | X172: 0 | Y172: 0 | Z172: 0 | AA172: 0 | AB172: ='1.ข้อมูลส่วนบุคคล'!$E$32 -> 2560-05-15 | AC172: 25600515 | AD172: 00:00:00 | AE172: 19000100 | AF172: -6600415 | AG172: 0 | AH172: =IF(AG172=1,IF(AN172=AN171,0,'1.ข้อมูลส่วนบุคคล'!G$26-IF(AND(LEFT(Q172,3)<>"ไม่",AK172=0),SUMIFS(Z$7:Z$7000,AN$7:AN$7000,AN172,AK$7:AK$7000,0),0)),0) -> 0 | AI172: 0 | AJ172: 0 | AK172: 0 | AL172: ไม่ถูกต้อง
A173: ='1.ข้อมูลส่วนบุคคล'!$F$5 -> 1234567891234 | K173: =IF('1.ข้อมูลส่วนบุคคล'!C$21="เชี่ยวชาญ",IF(H173="-","",IF(H173='1.ข้อมูลส่วนบุคคล'!F$26,"เกี่ยวข้อง","ไม่เกี่ยวข้อง")),IF('1.ข้อมูลส่วนบุคคล'!C$21="เชี่ยวชาญพิเศษ",IF(H173="-","",IF(H173='1.ข้อมูลส่วนบุคคล'!F$26,"เกี่ยวข้อง","ไม่เกี่ยวข้อง")),"")) ->  | O173: สอนตามตารางสอน | Q173: ไม่ถูกต้อง | U173: 0 | V173: 0 | W173: =IF(LEFT(Q173,3)="ไม่","",IF(OR(LEFT(P173,1)="1",LEFT(P173,1)="2",LEFT(P173,1)="3",LEFT(P173,1)="4",LEFT(P173,1)="5",LEFT(P173,1)="6",LEFT(P173,1)="7"),0,IF(SUMIFS(Z$7:Z$7000,AL$7:AL$7000,B173&+D173&+E173&+"ถูกต้อง",AK$7:AK$7000,0)<'1.ข้อมูลส่วนบุคคล'!$G$26,1,0))) ->  | X173: 0 | Y173: 0 | Z173: 0 | AA173: 0 | AB173: ='1.ข้อมูลส่วนบุคคล'!$E$32 -> 2560-05-15 | AC173: 25600515 | AD173: 00:00:00 | AE173: 19000100 | AF173: -6600415 | AG173: 0 | AH173: =IF(AG173=1,IF(AN173=AN172,0,'1.ข้อมูลส่วนบุคคล'!G$26-IF(AND(LEFT(Q173,3)<>"ไม่",AK173=0),SUMIFS(Z$7:Z$7000,AN$7:AN$7000,AN173,AK$7:AK$7000,0),0)),0) -> 0 | AI173: 0 | AJ173: 0 | AK173: 0 | AL173: ไม่ถูกต้อง
A174: ='1.ข้อมูลส่วนบุคคล'!$F$5 -> 1234567891234 | K174: =IF('1.ข้อมูลส่วนบุคคล'!C$21="เชี่ยวชาญ",IF(H174="-","",IF(H174='1.ข้อมูลส่วนบุคคล'!F$26,"เกี่ยวข้อง","ไม่เกี่ยวข้อง")),IF('1.ข้อมูลส่วนบุคคล'!C$21="เชี่ยวชาญพิเศษ",IF(H174="-","",IF(H174='1.ข้อมูลส่วนบุคคล'!F$26,"เกี่ยวข้อง","ไม่เกี่ยวข้อง")),"")) ->  | O174: สอนตามตารางสอน | Q174: ไม่ถูกต้อง | U174: 0 | V174: 0 | W174: =IF(LEFT(Q174,3)="ไม่","",IF(OR(LEFT(P174,1)="1",LEFT(P174,1)="2",LEFT(P174,1)="3",LEFT(P174,1)="4",LEFT(P174,1)="5",LEFT(P174,1)="6",LEFT(P174,1)="7"),0,IF(SUMIFS(Z$7:Z$7000,AL$7:AL$7000,B174&+D174&+E174&+"ถูกต้อง",AK$7:AK$7000,0)<'1.ข้อมูลส่วนบุคคล'!$G$26,1,0))) ->  | X174: 0 | Y174: 0 | Z174: 0 | AA174: 0 | AB174: ='1.ข้อมูลส่วนบุคคล'!$E$32 -> 2560-05-15 | AC174: 25600515 | AD174: 00:00:00 | AE174: 19000100 | AF174: -6600415 | AG174: 0 | AH174: =IF(AG174=1,IF(AN174=AN173,0,'1.ข้อมูลส่วนบุคคล'!G$26-IF(AND(LEFT(Q174,3)<>"ไม่",AK174=0),SUMIFS(Z$7:Z$7000,AN$7:AN$7000,AN174,AK$7:AK$7000,0),0)),0) -> 0 | AI174: 0 | AJ174: 0 | AK174: 0 | AL174: ไม่ถูกต้อง
A175: ='1.ข้อมูลส่วนบุคคล'!$F$5 -> 1234567891234 | K175: =IF('1.ข้อมูลส่วนบุคคล'!C$21="เชี่ยวชาญ",IF(H175="-","",IF(H175='1.ข้อมูลส่วนบุคคล'!F$26,"เกี่ยวข้อง","ไม่เกี่ยวข้อง")),IF('1.ข้อมูลส่วนบุคคล'!C$21="เชี่ยวชาญพิเศษ",IF(H175="-","",IF(H175='1.ข้อมูลส่วนบุคคล'!F$26,"เกี่ยวข้อง","ไม่เกี่ยวข้อง")),"")) ->  | O175: สอนตามตารางสอน | Q175: ไม่ถูกต้อง | U175: 0 | V175: 0 | W175: =IF(LEFT(Q175,3)="ไม่","",IF(OR(LEFT(P175,1)="1",LEFT(P175,1)="2",LEFT(P175,1)="3",LEFT(P175,1)="4",LEFT(P175,1)="5",LEFT(P175,1)="6",LEFT(P175,1)="7"),0,IF(SUMIFS(Z$7:Z$7000,AL$7:AL$7000,B175&+D175&+E175&+"ถูกต้อง",AK$7:AK$7000,0)<'1.ข้อมูลส่วนบุคคล'!$G$26,1,0))) ->  | X175: 0 | Y175: 0 | Z175: 0 | AA175: 0 | AB175: ='1.ข้อมูลส่วนบุคคล'!$E$32 -> 2560-05-15 | AC175: 25600515 | AD175: 00:00:00 | AE175: 19000100 | AF175: -6600415 | AG175: 0 | AH175: =IF(AG175=1,IF(AN175=AN174,0,'1.ข้อมูลส่วนบุคคล'!G$26-IF(AND(LEFT(Q175,3)<>"ไม่",AK175=0),SUMIFS(Z$7:Z$7000,AN$7:AN$7000,AN175,AK$7:AK$7000,0),0)),0) -> 0 | AI175: 0 | AJ175: 0 | AK175: 0 | AL175: ไม่ถูกต้อง
A176: ='1.ข้อมูลส่วนบุคคล'!$F$5 -> 1234567891234 | K176: =IF('1.ข้อมูลส่วนบุคคล'!C$21="เชี่ยวชาญ",IF(H176="-","",IF(H176='1.ข้อมูลส่วนบุคคล'!F$26,"เกี่ยวข้อง","ไม่เกี่ยวข้อง")),IF('1.ข้อมูลส่วนบุคคล'!C$21="เชี่ยวชาญพิเศษ",IF(H176="-","",IF(H176='1.ข้อมูลส่วนบุคคล'!F$26,"เกี่ยวข้อง","ไม่เกี่ยวข้อง")),"")) ->  | O176: สอนตามตารางสอน | Q176: ไม่ถูกต้อง | U176: 0 | V176: 0 | W176: =IF(LEFT(Q176,3)="ไม่","",IF(OR(LEFT(P176,1)="1",LEFT(P176,1)="2",LEFT(P176,1)="3",LEFT(P176,1)="4",LEFT(P176,1)="5",LEFT(P176,1)="6",LEFT(P176,1)="7"),0,IF(SUMIFS(Z$7:Z$7000,AL$7:AL$7000,B176&+D176&+E176&+"ถูกต้อง",AK$7:AK$7000,0)<'1.ข้อมูลส่วนบุคคล'!$G$26,1,0))) ->  | X176: 0 | Y176: 0 | Z176: 0 | AA176: 0 | AB176: ='1.ข้อมูลส่วนบุคคล'!$E$32 -> 2560-05-15 | AC176: 25600515 | AD176: 00:00:00 | AE176: 19000100 | AF176: -6600415 | AG176: 0 | AH176: =IF(AG176=1,IF(AN176=AN175,0,'1.ข้อมูลส่วนบุคคล'!G$26-IF(AND(LEFT(Q176,3)<>"ไม่",AK176=0),SUMIFS(Z$7:Z$7000,AN$7:AN$7000,AN176,AK$7:AK$7000,0),0)),0) -> 0 | AI176: 0 | AJ176: 0 | AK176: 0 | AL176: ไม่ถูกต้อง
A177: ='1.ข้อมูลส่วนบุคคล'!$F$5 -> 1234567891234 | K177: =IF('1.ข้อมูลส่วนบุคคล'!C$21="เชี่ยวชาญ",IF(H177="-","",IF(H177='1.ข้อมูลส่วนบุคคล'!F$26,"เกี่ยวข้อง","ไม่เกี่ยวข้อง")),IF('1.ข้อมูลส่วนบุคคล'!C$21="เชี่ยวชาญพิเศษ",IF(H177="-","",IF(H177='1.ข้อมูลส่วนบุคคล'!F$26,"เกี่ยวข้อง","ไม่เกี่ยวข้อง")),"")) ->  | O177: สอนตามตารางสอน | Q177: ไม่ถูกต้อง | U177: 0 | V177: 0 | W177: =IF(LEFT(Q177,3)="ไม่","",IF(OR(LEFT(P177,1)="1",LEFT(P177,1)="2",LEFT(P177,1)="3",LEFT(P177,1)="4",LEFT(P177,1)="5",LEFT(P177,1)="6",LEFT(P177,1)="7"),0,IF(SUMIFS(Z$7:Z$7000,AL$7:AL$7000,B177&+D177&+E177&+"ถูกต้อง",AK$7:AK$7000,0)<'1.ข้อมูลส่วนบุคคล'!$G$26,1,0))) ->  | X177: 0 | Y177: 0 | Z177: 0 | AA177: 0 | AB177: ='1.ข้อมูลส่วนบุคคล'!$E$32 -> 2560-05-15 | AC177: 25600515 | AD177: 00:00:00 | AE177: 19000100 | AF177: -6600415 | AG177: 0 | AH177: =IF(AG177=1,IF(AN177=AN176,0,'1.ข้อมูลส่วนบุคคล'!G$26-IF(AND(LEFT(Q177,3)<>"ไม่",AK177=0),SUMIFS(Z$7:Z$7000,AN$7:AN$7000,AN177,AK$7:AK$7000,0),0)),0) -> 0 | AI177: 0 | AJ177: 0 | AK177: 0 | AL177: ไม่ถูกต้อง
A178: ='1.ข้อมูลส่วนบุคคล'!$F$5 -> 1234567891234 | K178: =IF('1.ข้อมูลส่วนบุคคล'!C$21="เชี่ยวชาญ",IF(H178="-","",IF(H178='1.ข้อมูลส่วนบุคคล'!F$26,"เกี่ยวข้อง","ไม่เกี่ยวข้อง")),IF('1.ข้อมูลส่วนบุคคล'!C$21="เชี่ยวชาญพิเศษ",IF(H178="-","",IF(H178='1.ข้อมูลส่วนบุคคล'!F$26,"เกี่ยวข้อง","ไม่เกี่ยวข้อง")),"")) ->  | O178: สอนตามตารางสอน | Q178: ไม่ถูกต้อง | U178: 0 | V178: 0 | W178: =IF(LEFT(Q178,3)="ไม่","",IF(OR(LEFT(P178,1)="1",LEFT(P178,1)="2",LEFT(P178,1)="3",LEFT(P178,1)="4",LEFT(P178,1)="5",LEFT(P178,1)="6",LEFT(P178,1)="7"),0,IF(SUMIFS(Z$7:Z$7000,AL$7:AL$7000,B178&+D178&+E178&+"ถูกต้อง",AK$7:AK$7000,0)<'1.ข้อมูลส่วนบุคคล'!$G$26,1,0))) ->  | X178: 0 | Y178: 0 | Z178: 0 | AA178: 0 | AB178: ='1.ข้อมูลส่วนบุคคล'!$E$32 -> 2560-05-15 | AC178: 25600515 | AD178: 00:00:00 | AE178: 19000100 | AF178: -6600415 | AG178: 0 | AH178: =IF(AG178=1,IF(AN178=AN177,0,'1.ข้อมูลส่วนบุคคล'!G$26-IF(AND(LEFT(Q178,3)<>"ไม่",AK178=0),SUMIFS(Z$7:Z$7000,AN$7:AN$7000,AN178,AK$7:AK$7000,0),0)),0) -> 0 | AI178: 0 | AJ178: 0 | AK178: 0 | AL178: ไม่ถูกต้อง
A179: ='1.ข้อมูลส่วนบุคคล'!$F$5 -> 1234567891234 | K179: =IF('1.ข้อมูลส่วนบุคคล'!C$21="เชี่ยวชาญ",IF(H179="-","",IF(H179='1.ข้อมูลส่วนบุคคล'!F$26,"เกี่ยวข้อง","ไม่เกี่ยวข้อง")),IF('1.ข้อมูลส่วนบุคคล'!C$21="เชี่ยวชาญพิเศษ",IF(H179="-","",IF(H179='1.ข้อมูลส่วนบุคคล'!F$26,"เกี่ยวข้อง","ไม่เกี่ยวข้อง")),"")) ->  | O179: สอนตามตารางสอน | Q179: ไม่ถูกต้อง | U179: 0 | V179: 0 | W179: =IF(LEFT(Q179,3)="ไม่","",IF(OR(LEFT(P179,1)="1",LEFT(P179,1)="2",LEFT(P179,1)="3",LEFT(P179,1)="4",LEFT(P179,1)="5",LEFT(P179,1)="6",LEFT(P179,1)="7"),0,IF(SUMIFS(Z$7:Z$7000,AL$7:AL$7000,B179&+D179&+E179&+"ถูกต้อง",AK$7:AK$7000,0)<'1.ข้อมูลส่วนบุคคล'!$G$26,1,0))) ->  | X179: 0 | Y179: 0 | Z179: 0 | AA179: 0 | AB179: ='1.ข้อมูลส่วนบุคคล'!$E$32 -> 2560-05-15 | AC179: 25600515 | AD179: 00:00:00 | AE179: 19000100 | AF179: -6600415 | AG179: 0 | AH179: =IF(AG179=1,IF(AN179=AN178,0,'1.ข้อมูลส่วนบุคคล'!G$26-IF(AND(LEFT(Q179,3)<>"ไม่",AK179=0),SUMIFS(Z$7:Z$7000,AN$7:AN$7000,AN179,AK$7:AK$7000,0),0)),0) -> 0 | AI179: 0 | AJ179: 0 | AK179: 0 | AL179: ไม่ถูกต้อง
A180: ='1.ข้อมูลส่วนบุคคล'!$F$5 -> 1234567891234 | K180: =IF('1.ข้อมูลส่วนบุคคล'!C$21="เชี่ยวชาญ",IF(H180="-","",IF(H180='1.ข้อมูลส่วนบุคคล'!F$26,"เกี่ยวข้อง","ไม่เกี่ยวข้อง")),IF('1.ข้อมูลส่วนบุคคล'!C$21="เชี่ยวชาญพิเศษ",IF(H180="-","",IF(H180='1.ข้อมูลส่วนบุคคล'!F$26,"เกี่ยวข้อง","ไม่เกี่ยวข้อง")),"")) ->  | O180: สอนตามตารางสอน | Q180: ไม่ถูกต้อง | U180: 0 | V180: 0 | W180: =IF(LEFT(Q180,3)="ไม่","",IF(OR(LEFT(P180,1)="1",LEFT(P180,1)="2",LEFT(P180,1)="3",LEFT(P180,1)="4",LEFT(P180,1)="5",LEFT(P180,1)="6",LEFT(P180,1)="7"),0,IF(SUMIFS(Z$7:Z$7000,AL$7:AL$7000,B180&+D180&+E180&+"ถูกต้อง",AK$7:AK$7000,0)<'1.ข้อมูลส่วนบุคคล'!$G$26,1,0))) ->  | X180: 0 | Y180: 0 | Z180: 0 | AA180: 0 | AB180: ='1.ข้อมูลส่วนบุคคล'!$E$32 -> 2560-05-15 | AC180: 25600515 | AD180: 00:00:00 | AE180: 19000100 | AF180: -6600415 | AG180: 0 | AH180: =IF(AG180=1,IF(AN180=AN179,0,'1.ข้อมูลส่วนบุคคล'!G$26-IF(AND(LEFT(Q180,3)<>"ไม่",AK180=0),SUMIFS(Z$7:Z$7000,AN$7:AN$7000,AN180,AK$7:AK$7000,0),0)),0) -> 0 | AI180: 0 | AJ180: 0 | AK180: 0 | AL180: ไม่ถูกต้อง
A181: ='1.ข้อมูลส่วนบุคคล'!$F$5 -> 1234567891234 | K181: =IF('1.ข้อมูลส่วนบุคคล'!C$21="เชี่ยวชาญ",IF(H181="-","",IF(H181='1.ข้อมูลส่วนบุคคล'!F$26,"เกี่ยวข้อง","ไม่เกี่ยวข้อง")),IF('1.ข้อมูลส่วนบุคคล'!C$21="เชี่ยวชาญพิเศษ",IF(H181="-","",IF(H181='1.ข้อมูลส่วนบุคคล'!F$26,"เกี่ยวข้อง","ไม่เกี่ยวข้อง")),"")) ->  | O181: สอนตามตารางสอน | Q181: ไม่ถูกต้อง | T181: =B181&+E181 ->  | U181: 0 | V181: 0 | W181: =IF(LEFT(Q181,3)="ไม่","",IF(OR(LEFT(P181,1)="1",LEFT(P181,1)="2",LEFT(P181,1)="3",LEFT(P181,1)="4",LEFT(P181,1)="5",LEFT(P181,1)="6",LEFT(P181,1)="7"),0,IF(SUMIFS(Z$7:Z$7000,AL$7:AL$7000,B181&+D181&+E181&+"ถูกต้อง",AK$7:AK$7000,0)<'1.ข้อมูลส่วนบุคคล'!$G$26,1,0))) ->  | X181: 0 | Y181: 0 | Z181: 0 | AA181: 0 | AB181: ='1.ข้อมูลส่วนบุคคล'!$E$32 -> 2560-05-15 | AC181: 25600515 | AD181: 00:00:00 | AE181: 19000100 | AF181: -6600415 | AG181: 0 | AH181: =IF(AG181=1,IF(AN181=AN180,0,'1.ข้อมูลส่วนบุคคล'!G$26-IF(AND(LEFT(Q181,3)<>"ไม่",AK181=0),SUMIFS(Z$7:Z$7000,AN$7:AN$7000,AN181,AK$7:AK$7000,0),0)),0) -> 0 | AI181: 0 | AJ181: 0 | AK181: 0 | AL181: ไม่ถูกต้อง
A182: ='1.ข้อมูลส่วนบุคคล'!$F$5 -> 1234567891234 | K182: =IF('1.ข้อมูลส่วนบุคคล'!C$21="เชี่ยวชาญ",IF(H182="-","",IF(H182='1.ข้อมูลส่วนบุคคล'!F$26,"เกี่ยวข้อง","ไม่เกี่ยวข้อง")),IF('1.ข้อมูลส่วนบุคคล'!C$21="เชี่ยวชาญพิเศษ",IF(H182="-","",IF(H182='1.ข้อมูลส่วนบุคคล'!F$26,"เกี่ยวข้อง","ไม่เกี่ยวข้อง")),"")) ->  | O182: สอนตามตารางสอน | Q182: ไม่ถูกต้อง | U182: 0 | V182: 0 | W182: =IF(LEFT(Q182,3)="ไม่","",IF(OR(LEFT(P182,1)="1",LEFT(P182,1)="2",LEFT(P182,1)="3",LEFT(P182,1)="4",LEFT(P182,1)="5",LEFT(P182,1)="6",LEFT(P182,1)="7"),0,IF(SUMIFS(Z$7:Z$7000,AL$7:AL$7000,B182&+D182&+E182&+"ถูกต้อง",AK$7:AK$7000,0)<'1.ข้อมูลส่วนบุคคล'!$G$26,1,0))) ->  | X182: 0 | Y182: 0 | Z182: 0 | AA182: 0 | AB182: ='1.ข้อมูลส่วนบุคคล'!$E$32 -> 2560-05-15 | AC182: 25600515 | AD182: 00:00:00 | AE182: 19000100 | AF182: -6600415 | AG182: 0 | AH182: =IF(AG182=1,IF(AN182=AN181,0,'1.ข้อมูลส่วนบุคคล'!G$26-IF(AND(LEFT(Q182,3)<>"ไม่",AK182=0),SUMIFS(Z$7:Z$7000,AN$7:AN$7000,AN182,AK$7:AK$7000,0),0)),0) -> 0 | AI182: 0 | AJ182: 0 | AK182: 0 | AL182: ไม่ถูกต้อง
A183: ='1.ข้อมูลส่วนบุคคล'!$F$5 -> 1234567891234 | K183: =IF('1.ข้อมูลส่วนบุคคล'!C$21="เชี่ยวชาญ",IF(H183="-","",IF(H183='1.ข้อมูลส่วนบุคคล'!F$26,"เกี่ยวข้อง","ไม่เกี่ยวข้อง")),IF('1.ข้อมูลส่วนบุคคล'!C$21="เชี่ยวชาญพิเศษ",IF(H183="-","",IF(H183='1.ข้อมูลส่วนบุคคล'!F$26,"เกี่ยวข้อง","ไม่เกี่ยวข้อง")),"")) ->  | O183: สอนตามตารางสอน | Q183: ไม่ถูกต้อง | U183: 0 | V183: 0 | W183: =IF(LEFT(Q183,3)="ไม่","",IF(OR(LEFT(P183,1)="1",LEFT(P183,1)="2",LEFT(P183,1)="3",LEFT(P183,1)="4",LEFT(P183,1)="5",LEFT(P183,1)="6",LEFT(P183,1)="7"),0,IF(SUMIFS(Z$7:Z$7000,AL$7:AL$7000,B183&+D183&+E183&+"ถูกต้อง",AK$7:AK$7000,0)<'1.ข้อมูลส่วนบุคคล'!$G$26,1,0))) ->  | X183: 0 | Y183: 0 | Z183: 0 | AA183: 0 | AB183: ='1.ข้อมูลส่วนบุคคล'!$E$32 -> 2560-05-15 | AC183: 25600515 | AD183: 00:00:00 | AE183: 19000100 | AF183: -6600415 | AG183: 0 | AH183: =IF(AG183=1,IF(AN183=AN182,0,'1.ข้อมูลส่วนบุคคล'!G$26-IF(AND(LEFT(Q183,3)<>"ไม่",AK183=0),SUMIFS(Z$7:Z$7000,AN$7:AN$7000,AN183,AK$7:AK$7000,0),0)),0) -> 0 | AI183: 0 | AJ183: 0 | AK183: 0 | AL183: ไม่ถูกต้อง
